Workbook

Sheet Start
B1: Project Information | M1: Crawfordville
B2: Estimator Name: | F2: District: | H2: La Porte | J2: Only Green Cells are editable by users | K2: Any comments or questions, please contact Maan Omran (317-233-2097) | M2: Fort Wayne
B3: Corridor No | C3: 98 | F3: Route | H3: SR 25 | M3: Greenfield
B4: Contract No: | C4: IB 30854 | F4: Brief Description: | M4: La Porte
B5: Des Number: | C5: 401053 | M5: Seymour
B6: Letting Date | C6: 2011-08-10 | F6: Date Created: | M6: Vincennes
C8: Sheet Number | D8: Sheet Title | E8: Sheet Content | I8: Hide/Unhide Sheet | K8: Editable?
B9: Main Raw Data From Oman | C9: 1 | D9: Parameters | E9: Sheet where to paste any set of Parameters used in each Comparison. | I9: Always Visible | K9: Yes, Some cells
C10: 2 | D10: Raw Data | E10: Sheet where to paste the raw data from Oman | I10: Always Visible | K10: No, Just Paste Data From Oman
B11: Main Data Linked | C11: 3a | D11: Data | E11: Contains links to all data imported from Oman: Formatted, filtered, ranked and other calculations. | I11: Always Visible | K11: (Select x) Column for Selected Set
C12: 3b | D12: Zeros | E12: Contains items originally with zeros, and how they were replaced using the 3 steps method (see below). | I12: =IF(L12=1,"Hidden","Visible") -> Hidden | K12: No | L12: 1
B13: Analyzing Top 20 Items In The Selected Set | C13: 4a | D13: Top 20 | E13: Compared the top 20 items in the Selected Set to all comparisons for the same items. | I13: Visible | K13: No | L13: 2
C14: 4b | D14: Graph | E14: The graph of the top 20 items in the Selected Set compared to the same items in other sets. | I14: Visible | K14: No | L14: 2
C15: 4c | D15: Adjust | E15: Comparing all sets to the Selected Set graph, with the ability to adjust each set from -25% and up to 75%. Users can also overwrite the item prices. | I15: Hidden | K15: Yes | L15: 1
C16: 4d | D16: Adjusted | E16: Summary of what was changed, adjusted in all Item Prices in Sheet 4c) | I16: Hidden | K16: No | L16: 1
B17: Analyzing Top 20 Items In Each Comparison | C17: 5a | D17: Top All | E17: Shows the top 20 items in each set | I17: Hidden | K17: No | L17: 1
C18: 5b | D18: Graph | E18: Shows the graph of the top 10 items in each set | I18: Hidden | K18: No | L18: 1
C19: 5c | D19: Graph | E19: Shows the top 10 items in each set compared to the same items in the selected set | I19: Hidden | K19: No | L19: 1
B20: Summary Per: Section, Sub Section or Unit | C20: 6 | D20: Sec. | E20: Shows the total $ amount per Main Section for each set. The section numbers are according to the Specification Book of 2012 edition. | I20: Hidden | K20: No | L20: 1
C21: 7 | D21: Sub Sec. | E21: Shows the total $ amount per Sub Section for each set. | I21: Hidden | K21: No | L21: 1
C22: 8 | D22: Unit | E22: Shows the total $ amount per unit for each set. | I22: Hidden | K22: No | L22: 1
B23: Extras | C23: 9 | D23: Av. | E23: Compares each set of data with the average of all 3 sets | I23: Hidden | K23: No | L23: 1
C24: 10 | D24: Pay Items | E24: List of Approved English Pay Items, July 2011 (Spec Book 2012) | I24: Hidden | K24: No | L24: 1
C26: Important | D26: All cells are protected because they are filled with formulas or links. The only cells that can filled or changed by users are
D27: in Start Sheet where users can enter Project Information.
D28: in Sheet 1) Parameters where users can add comments, parameters used and any information about the project.
D29: in Sheet 4c) Adj. where New Price cells are editable, users can use the spinner to change the value, or overwrite the existing.
C32: The 3 steps methods in Oman (only if 3 comparisons were filled and in sequence starting with Comparison 1)
D33: 1) Fill the first Comparison using certain Set of Parameters. This comparison should be the most restrictive.
D34: 2) Fill the second Comparison, using same set of parameters as Comparison 1, but less restrictive.
D35: 3) Fill the third Comparison, using less restrictive parameters than both.
C37: At the end, if there are:
C38: Zeros in Comparison 1: then copy the same non zero values from Comparison 2 replacing the zeros in Comparison 1.
C39: Zeros in Comparison 1 and 2: then copy the same none zero values from Comparison 3 into both 1 and 2.
C40: Zeros in Comparison 1, 2 and 3: then use Load One PI – State Average to get the data for each zero item

Sheet 1) Parameters
E1: Only Green Cells are editable by users
A2: Using the Main Parameters in "Load All State Average"
A3: 1) In Oman, on top menu, click on the button: Section Totals.
A4: 2) Click on the button: Copy Parameters to Clipboard, then click on the button below to paste the data. | H4: Image of Section Totals menu in Oman
B5: Main Parameters in All Comparisons (Original, with Zeros) | C5: Compa- rison # | D5: District- Region | E5: Comments
B6: Comparison #1: DOT District 4/Low 3 Prices/from:07/07/2010 TO:07/13/2011 Quantity Range from 50.00% under to 100.00% over and job size from $500,000.00 up to $4,000,000.00/Project Prefix: Multiple | C6: =IF(B6="","",IF(MID(B6,13,1)="1",1,IF(MID(B6,13,1)="2",2,IF(MID(B6,13,1)="3",3,"?")))) -> 1 | D6: =IF(B6="","",IF(MID(B6,29,1)="1","C",IF(MID(B6,29,1)="2","F",IF(MID(B6,29,1)="3","G",IF(MID(B6,29,1)="4","L",IF(MID(B6,29,1)="5","S",IF(MID(B6,29,1)="6","V",IF(MID(B6,16,5)="State","Statewide",IF(MID(B6,16,4)="Spec","Specific Item",IF(MID(B6,16,4)="User","User Region","")))))))))) -> L
B7: Comparison #2: State Averages/Low 3 Prices/from:07/07/2010 TO:07/13/2011 Quantity Range from 50.00% under to 100.00% over and job size from $500,000.00 up to $4,000,000.00/Project Prefix: Multiple | C7: =IF(B7="","",IF(MID(B7,13,1)="1",1,IF(MID(B7,13,1)="2",2,IF(MID(B7,13,1)="3",3,"?")))) -> 2 | D7: =IF(B7="","",IF(MID(B7,29,1)="1","C",IF(MID(B7,29,1)="2","F",IF(MID(B7,29,1)="3","G",IF(MID(B7,29,1)="4","L",IF(MID(B7,29,1)="5","S",IF(MID(B7,29,1)="6","V",IF(MID(B7,16,5)="State","Statewide",IF(MID(B7,16,4)="Spec","Specific Item",IF(MID(B7,16,4)="User","User Region","")))))))))) -> Statewide
B8: Comparison #3: State Averages/Low 3 Prices/from:07/09/2008 TO:07/13/2011 Quantity Range from 50.00% under to 100.00% over and job size from $500,000.00 up to $4,000,000.00 | C8: 3 | D8: Statewide
A12: Using Additional Parameters in "Load All State Average" to remove zeros. | H12: Using: "Load One PI – State Average" to remove zeros.
A13: 1) In Oman, on top menu, click on the button: Section Totals. | H13: Just put the Sort Code number, and comments.
A14: 2) Click on the button next to each Comparison to copy the data. Then click on the button below to paste it. | H14: The other columns are linked and will be filled after Raw data is pasted from Oman
B16: Additional Sets of Parameters to Remove Zeros | C16: Compa- rison # | D16: District- Region | E16: Comments | H16: Sort Code | I16: Comments | K16: Item Code | L16: Item description | M16: Quantity | N16: Item Price
C17: =IF(B17="","",IF(MID(B17,13,1)="1",1,IF(MID(B17,13,1)="2",2,IF(MID(B17,13,1)="3",3,"?")))) ->  | D17: =IF(B17="","",IF(MID(B17,29,1)="1","C",IF(MID(B17,29,1)="2","F",IF(MID(B17,29,1)="3","G",IF(MID(B17,29,1)="4","L",IF(MID(B17,29,1)="5","S",IF(MID(B17,29,1)="6","V",IF(MID(B17,16,5)="State","Statewide",IF(MID(B17,16,4)="Spec","Specific Item",IF(MID(B17,16,4)="User","User Region","")))))))))) ->  | H17: 22 | I17: Price was changed | K17: =IF('3a) Data'!$E$3=0,"No Data from Oman",IF(H17="","",INDEX('3a) Data'!$C$14:$AO$1000,MATCH(H17,'3a) Data'!$AO$14:$AO$1000,0),1))) -> 211-06467 | L17: =IF('3a) Data'!$E$3=0,"",IF(H17="","",INDEX('3a) Data'!$C$14:$AO$1000,MATCH(H17,'3a) Data'!$AO$14:$AO$1000,0),2))) -> Aggregate For End Bent Backfill | M17: =IF('3a) Data'!$E$3=0,"",IF(H17="","",INDEX('3a) Data'!$C$14:$AO$1000,MATCH(H17,'3a) Data'!$AO$14:$AO$1000,0),3))) -> 128 | N17: =IF('3a) Data'!$E$3=0,"",IF(H17="","",INDEX('3a) Data'!$C$14:$AO$1000,MATCH(H17,'3a) Data'!$AO$14:$AO$1000,0),12))) -> 48.38
D18: =IF(B18="","",IF(MID(B18,29,1)="1","C",IF(MID(B18,29,1)="2","F",IF(MID(B18,29,1)="3","G",IF(MID(B18,29,1)="4","L",IF(MID(B18,29,1)="5","S",IF(MID(B18,29,1)="6","V",IF(MID(B18,16,5)="State","Statewide",IF(MID(B18,16,4)="Spec","Specific Item",IF(MID(B18,16,4)="User","User Region","")))))))))) ->  | H18: 25 | I18: Price was changed | K18: =IF('3a) Data'!$E$3=0,"No Data from Oman",IF(H18="","",INDEX('3a) Data'!$C$14:$AO$1000,MATCH(H18,'3a) Data'!$AO$14:$AO$1000,0),1))) -> 503-05310 | L18: =IF('3a) Data'!$E$3=0,"",IF(H18="","",INDEX('3a) Data'!$C$14:$AO$1000,MATCH(H18,'3a) Data'!$AO$14:$AO$1000,0),2))) -> Terminal Joint | M18: =IF('3a) Data'!$E$3=0,"",IF(H18="","",INDEX('3a) Data'!$C$14:$AO$1000,MATCH(H18,'3a) Data'!$AO$14:$AO$1000,0),3))) -> 96 | N18: =IF('3a) Data'!$E$3=0,"",IF(H18="","",INDEX('3a) Data'!$C$14:$AO$1000,MATCH(H18,'3a) Data'!$AO$14:$AO$1000,0),12))) -> 157.6
K19: =IF('3a) Data'!$E$3=0,"No Data from Oman",IF(H19="","",INDEX('3a) Data'!$C$14:$AO$1000,MATCH(H19,'3a) Data'!$AO$14:$AO$1000,0),1))) ->  | L19: =IF('3a) Data'!$E$3=0,"",IF(H19="","",INDEX('3a) Data'!$C$14:$AO$1000,MATCH(H19,'3a) Data'!$AO$14:$AO$1000,0),2))) ->  | M19: =IF('3a) Data'!$E$3=0,"",IF(H19="","",INDEX('3a) Data'!$C$14:$AO$1000,MATCH(H19,'3a) Data'!$AO$14:$AO$1000,0),3))) ->  | N19: =IF('3a) Data'!$E$3=0,"",IF(H19="","",INDEX('3a) Data'!$C$14:$AO$1000,MATCH(H19,'3a) Data'!$AO$14:$AO$1000,0),12))) -> 
K20: =IF('3a) Data'!$E$3=0,"No Data from Oman",IF(H20="","",INDEX('3a) Data'!$C$14:$AO$1000,MATCH(H20,'3a) Data'!$AO$14:$AO$1000,0),1))) ->  | L20: =IF('3a) Data'!$E$3=0,"",IF(H20="","",INDEX('3a) Data'!$C$14:$AO$1000,MATCH(H20,'3a) Data'!$AO$14:$AO$1000,0),2))) ->  | M20: =IF('3a) Data'!$E$3=0,"",IF(H20="","",INDEX('3a) Data'!$C$14:$AO$1000,MATCH(H20,'3a) Data'!$AO$14:$AO$1000,0),3))) ->  | N20: =IF('3a) Data'!$E$3=0,"",IF(H20="","",INDEX('3a) Data'!$C$14:$AO$1000,MATCH(H20,'3a) Data'!$AO$14:$AO$1000,0),12))) -> 
K21: =IF('3a) Data'!$E$3=0,"No Data from Oman",IF(H21="","",INDEX('3a) Data'!$C$14:$AO$1000,MATCH(H21,'3a) Data'!$AO$14:$AO$1000,0),1))) ->  | L21: =IF('3a) Data'!$E$3=0,"",IF(H21="","",INDEX('3a) Data'!$C$14:$AO$1000,MATCH(H21,'3a) Data'!$AO$14:$AO$1000,0),2))) ->  | M21: =IF('3a) Data'!$E$3=0,"",IF(H21="","",INDEX('3a) Data'!$C$14:$AO$1000,MATCH(H21,'3a) Data'!$AO$14:$AO$1000,0),3))) ->  | N21: =IF('3a) Data'!$E$3=0,"",IF(H21="","",INDEX('3a) Data'!$C$14:$AO$1000,MATCH(H21,'3a) Data'!$AO$14:$AO$1000,0),12))) -> 
K22: =IF('3a) Data'!$E$3=0,"No Data from Oman",IF(H22="","",INDEX('3a) Data'!$C$14:$AO$1000,MATCH(H22,'3a) Data'!$AO$14:$AO$1000,0),1))) ->  | L22: =IF('3a) Data'!$E$3=0,"",IF(H22="","",INDEX('3a) Data'!$C$14:$AO$1000,MATCH(H22,'3a) Data'!$AO$14:$AO$1000,0),2))) ->  | M22: =IF('3a) Data'!$E$3=0,"",IF(H22="","",INDEX('3a) Data'!$C$14:$AO$1000,MATCH(H22,'3a) Data'!$AO$14:$AO$1000,0),3))) ->  | N22: =IF('3a) Data'!$E$3=0,"",IF(H22="","",INDEX('3a) Data'!$C$14:$AO$1000,MATCH(H22,'3a) Data'!$AO$14:$AO$1000,0),12))) -> 
K23: =IF('3a) Data'!$E$3=0,"No Data from Oman",IF(H23="","",INDEX('3a) Data'!$C$14:$AO$1000,MATCH(H23,'3a) Data'!$AO$14:$AO$1000,0),1))) ->  | L23: =IF('3a) Data'!$E$3=0,"",IF(H23="","",INDEX('3a) Data'!$C$14:$AO$1000,MATCH(H23,'3a) Data'!$AO$14:$AO$1000,0),2))) ->  | M23: =IF('3a) Data'!$E$3=0,"",IF(H23="","",INDEX('3a) Data'!$C$14:$AO$1000,MATCH(H23,'3a) Data'!$AO$14:$AO$1000,0),3))) ->  | N23: =IF('3a) Data'!$E$3=0,"",IF(H23="","",INDEX('3a) Data'!$C$14:$AO$1000,MATCH(H23,'3a) Data'!$AO$14:$AO$1000,0),12))) -> 
K24: =IF('3a) Data'!$E$3=0,"No Data from Oman",IF(H24="","",INDEX('3a) Data'!$C$14:$AO$1000,MATCH(H24,'3a) Data'!$AO$14:$AO$1000,0),1))) ->  | L24: =IF('3a) Data'!$E$3=0,"",IF(H24="","",INDEX('3a) Data'!$C$14:$AO$1000,MATCH(H24,'3a) Data'!$AO$14:$AO$1000,0),2))) ->  | M24: =IF('3a) Data'!$E$3=0,"",IF(H24="","",INDEX('3a) Data'!$C$14:$AO$1000,MATCH(H24,'3a) Data'!$AO$14:$AO$1000,0),3))) ->  | N24: =IF('3a) Data'!$E$3=0,"",IF(H24="","",INDEX('3a) Data'!$C$14:$AO$1000,MATCH(H24,'3a) Data'!$AO$14:$AO$1000,0),12))) -> 
K25: =IF('3a) Data'!$E$3=0,"No Data from Oman",IF(H25="","",INDEX('3a) Data'!$C$14:$AO$1000,MATCH(H25,'3a) Data'!$AO$14:$AO$1000,0),1))) ->  | L25: =IF('3a) Data'!$E$3=0,"",IF(H25="","",INDEX('3a) Data'!$C$14:$AO$1000,MATCH(H25,'3a) Data'!$AO$14:$AO$1000,0),2))) ->  | M25: =IF('3a) Data'!$E$3=0,"",IF(H25="","",INDEX('3a) Data'!$C$14:$AO$1000,MATCH(H25,'3a) Data'!$AO$14:$AO$1000,0),3))) ->  | N25: =IF('3a) Data'!$E$3=0,"",IF(H25="","",INDEX('3a) Data'!$C$14:$AO$1000,MATCH(H25,'3a) Data'!$AO$14:$AO$1000,0),12))) -> 
K26: =IF('3a) Data'!$E$3=0,"No Data from Oman",IF(H26="","",INDEX('3a) Data'!$C$14:$AO$1000,MATCH(H26,'3a) Data'!$AO$14:$AO$1000,0),1))) ->  | L26: =IF('3a) Data'!$E$3=0,"",IF(H26="","",INDEX('3a) Data'!$C$14:$AO$1000,MATCH(H26,'3a) Data'!$AO$14:$AO$1000,0),2))) ->  | M26: =IF('3a) Data'!$E$3=0,"",IF(H26="","",INDEX('3a) Data'!$C$14:$AO$1000,MATCH(H26,'3a) Data'!$AO$14:$AO$1000,0),3))) ->  | N26: =IF('3a) Data'!$E$3=0,"",IF(H26="","",INDEX('3a) Data'!$C$14:$AO$1000,MATCH(H26,'3a) Data'!$AO$14:$AO$1000,0),12))) -> 
K27: =IF('3a) Data'!$E$3=0,"No Data from Oman",IF(H27="","",INDEX('3a) Data'!$C$14:$AO$1000,MATCH(H27,'3a) Data'!$AO$14:$AO$1000,0),1))) ->  | L27: =IF('3a) Data'!$E$3=0,"",IF(H27="","",INDEX('3a) Data'!$C$14:$AO$1000,MATCH(H27,'3a) Data'!$AO$14:$AO$1000,0),2))) ->  | M27: =IF('3a) Data'!$E$3=0,"",IF(H27="","",INDEX('3a) Data'!$C$14:$AO$1000,MATCH(H27,'3a) Data'!$AO$14:$AO$1000,0),3))) ->  | N27: =IF('3a) Data'!$E$3=0,"",IF(H27="","",INDEX('3a) Data'!$C$14:$AO$1000,MATCH(H27,'3a) Data'!$AO$14:$AO$1000,0),12))) -> 
K28: =IF('3a) Data'!$E$3=0,"No Data from Oman",IF(H28="","",INDEX('3a) Data'!$C$14:$AO$1000,MATCH(H28,'3a) Data'!$AO$14:$AO$1000,0),1))) ->  | L28: =IF('3a) Data'!$E$3=0,"",IF(H28="","",INDEX('3a) Data'!$C$14:$AO$1000,MATCH(H28,'3a) Data'!$AO$14:$AO$1000,0),2))) ->  | M28: =IF('3a) Data'!$E$3=0,"",IF(H28="","",INDEX('3a) Data'!$C$14:$AO$1000,MATCH(H28,'3a) Data'!$AO$14:$AO$1000,0),3))) ->  | N28: =IF('3a) Data'!$E$3=0,"",IF(H28="","",INDEX('3a) Data'!$C$14:$AO$1000,MATCH(H28,'3a) Data'!$AO$14:$AO$1000,0),12))) -> 
K29: =IF('3a) Data'!$E$3=0,"No Data from Oman",IF(H29="","",INDEX('3a) Data'!$C$14:$AO$1000,MATCH(H29,'3a) Data'!$AO$14:$AO$1000,0),1))) ->  | L29: =IF('3a) Data'!$E$3=0,"",IF(H29="","",INDEX('3a) Data'!$C$14:$AO$1000,MATCH(H29,'3a) Data'!$AO$14:$AO$1000,0),2))) ->  | M29: =IF('3a) Data'!$E$3=0,"",IF(H29="","",INDEX('3a) Data'!$C$14:$AO$1000,MATCH(H29,'3a) Data'!$AO$14:$AO$1000,0),3))) ->  | N29: =IF('3a) Data'!$E$3=0,"",IF(H29="","",INDEX('3a) Data'!$C$14:$AO$1000,MATCH(H29,'3a) Data'!$AO$14:$AO$1000,0),12))) -> 
K30: =IF('3a) Data'!$E$3=0,"No Data from Oman",IF(H30="","",INDEX('3a) Data'!$C$14:$AO$1000,MATCH(H30,'3a) Data'!$AO$14:$AO$1000,0),1))) ->  | L30: =IF('3a) Data'!$E$3=0,"",IF(H30="","",INDEX('3a) Data'!$C$14:$AO$1000,MATCH(H30,'3a) Data'!$AO$14:$AO$1000,0),2))) ->  | M30: =IF('3a) Data'!$E$3=0,"",IF(H30="","",INDEX('3a) Data'!$C$14:$AO$1000,MATCH(H30,'3a) Data'!$AO$14:$AO$1000,0),3))) ->  | N30: =IF('3a) Data'!$E$3=0,"",IF(H30="","",INDEX('3a) Data'!$C$14:$AO$1000,MATCH(H30,'3a) Data'!$AO$14:$AO$1000,0),12))) -> 
K31: =IF('3a) Data'!$E$3=0,"No Data from Oman",IF(H31="","",INDEX('3a) Data'!$C$14:$AO$1000,MATCH(H31,'3a) Data'!$AO$14:$AO$1000,0),1))) ->  | L31: =IF('3a) Data'!$E$3=0,"",IF(H31="","",INDEX('3a) Data'!$C$14:$AO$1000,MATCH(H31,'3a) Data'!$AO$14:$AO$1000,0),2))) ->  | M31: =IF('3a) Data'!$E$3=0,"",IF(H31="","",INDEX('3a) Data'!$C$14:$AO$1000,MATCH(H31,'3a) Data'!$AO$14:$AO$1000,0),3))) ->  | N31: =IF('3a) Data'!$E$3=0,"",IF(H31="","",INDEX('3a) Data'!$C$14:$AO$1000,MATCH(H31,'3a) Data'!$AO$14:$AO$1000,0),12))) -> 
K32: =IF('3a) Data'!$E$3=0,"No Data from Oman",IF(H32="","",INDEX('3a) Data'!$C$14:$AO$1000,MATCH(H32,'3a) Data'!$AO$14:$AO$1000,0),1))) ->  | L32: =IF('3a) Data'!$E$3=0,"",IF(H32="","",INDEX('3a) Data'!$C$14:$AO$1000,MATCH(H32,'3a) Data'!$AO$14:$AO$1000,0),2))) ->  | M32: =IF('3a) Data'!$E$3=0,"",IF(H32="","",INDEX('3a) Data'!$C$14:$AO$1000,MATCH(H32,'3a) Data'!$AO$14:$AO$1000,0),3))) ->  | N32: =IF('3a) Data'!$E$3=0,"",IF(H32="","",INDEX('3a) Data'!$C$14:$AO$1000,MATCH(H32,'3a) Data'!$AO$14:$AO$1000,0),12))) -> 
K33: =IF('3a) Data'!$E$3=0,"No Data from Oman",IF(H33="","",INDEX('3a) Data'!$C$14:$AO$1000,MATCH(H33,'3a) Data'!$AO$14:$AO$1000,0),1))) ->  | L33: =IF('3a) Data'!$E$3=0,"",IF(H33="","",INDEX('3a) Data'!$C$14:$AO$1000,MATCH(H33,'3a) Data'!$AO$14:$AO$1000,0),2))) ->  | M33: =IF('3a) Data'!$E$3=0,"",IF(H33="","",INDEX('3a) Data'!$C$14:$AO$1000,MATCH(H33,'3a) Data'!$AO$14:$AO$1000,0),3))) ->  | N33: =IF('3a) Data'!$E$3=0,"",IF(H33="","",INDEX('3a) Data'!$C$14:$AO$1000,MATCH(H33,'3a) Data'!$AO$14:$AO$1000,0),12))) -> 
K34: =IF('3a) Data'!$E$3=0,"No Data from Oman",IF(H34="","",INDEX('3a) Data'!$C$14:$AO$1000,MATCH(H34,'3a) Data'!$AO$14:$AO$1000,0),1))) ->  | L34: =IF('3a) Data'!$E$3=0,"",IF(H34="","",INDEX('3a) Data'!$C$14:$AO$1000,MATCH(H34,'3a) Data'!$AO$14:$AO$1000,0),2))) ->  | M34: =IF('3a) Data'!$E$3=0,"",IF(H34="","",INDEX('3a) Data'!$C$14:$AO$1000,MATCH(H34,'3a) Data'!$AO$14:$AO$1000,0),3))) ->  | N34: =IF('3a) Data'!$E$3=0,"",IF(H34="","",INDEX('3a) Data'!$C$14:$AO$1000,MATCH(H34,'3a) Data'!$AO$14:$AO$1000,0),12))) -> 
K35: =IF('3a) Data'!$E$3=0,"No Data from Oman",IF(H35="","",INDEX('3a) Data'!$C$14:$AO$1000,MATCH(H35,'3a) Data'!$AO$14:$AO$1000,0),1))) ->  | L35: =IF('3a) Data'!$E$3=0,"",IF(H35="","",INDEX('3a) Data'!$C$14:$AO$1000,MATCH(H35,'3a) Data'!$AO$14:$AO$1000,0),2))) ->  | M35: =IF('3a) Data'!$E$3=0,"",IF(H35="","",INDEX('3a) Data'!$C$14:$AO$1000,MATCH(H35,'3a) Data'!$AO$14:$AO$1000,0),3))) ->  | N35: =IF('3a) Data'!$E$3=0,"",IF(H35="","",INDEX('3a) Data'!$C$14:$AO$1000,MATCH(H35,'3a) Data'!$AO$14:$AO$1000,0),12))) -> 
K36: =IF('3a) Data'!$E$3=0,"No Data from Oman",IF(H36="","",INDEX('3a) Data'!$C$14:$AO$1000,MATCH(H36,'3a) Data'!$AO$14:$AO$1000,0),1))) ->  | L36: =IF('3a) Data'!$E$3=0,"",IF(H36="","",INDEX('3a) Data'!$C$14:$AO$1000,MATCH(H36,'3a) Data'!$AO$14:$AO$1000,0),2))) ->  | M36: =IF('3a) Data'!$E$3=0,"",IF(H36="","",INDEX('3a) Data'!$C$14:$AO$1000,MATCH(H36,'3a) Data'!$AO$14:$AO$1000,0),3))) ->  | N36: =IF('3a) Data'!$E$3=0,"",IF(H36="","",INDEX('3a) Data'!$C$14:$AO$1000,MATCH(H36,'3a) Data'!$AO$14:$AO$1000,0),12))) -> 
K37: =IF('3a) Data'!$E$3=0,"No Data from Oman",IF(H37="","",INDEX('3a) Data'!$C$14:$AO$1000,MATCH(H37,'3a) Data'!$AO$14:$AO$1000,0),1))) ->  | L37: =IF('3a) Data'!$E$3=0,"",IF(H37="","",INDEX('3a) Data'!$C$14:$AO$1000,MATCH(H37,'3a) Data'!$AO$14:$AO$1000,0),2))) ->  | M37: =IF('3a) Data'!$E$3=0,"",IF(H37="","",INDEX('3a) Data'!$C$14:$AO$1000,MATCH(H37,'3a) Data'!$AO$14:$AO$1000,0),3))) ->  | N37: =IF('3a) Data'!$E$3=0,"",IF(H37="","",INDEX('3a) Data'!$C$14:$AO$1000,MATCH(H37,'3a) Data'!$AO$14:$AO$1000,0),12))) -> 
K38: =IF('3a) Data'!$E$3=0,"No Data from Oman",IF(H38="","",INDEX('3a) Data'!$C$14:$AO$1000,MATCH(H38,'3a) Data'!$AO$14:$AO$1000,0),1))) ->  | L38: =IF('3a) Data'!$E$3=0,"",IF(H38="","",INDEX('3a) Data'!$C$14:$AO$1000,MATCH(H38,'3a) Data'!$AO$14:$AO$1000,0),2))) ->  | M38: =IF('3a) Data'!$E$3=0,"",IF(H38="","",INDEX('3a) Data'!$C$14:$AO$1000,MATCH(H38,'3a) Data'!$AO$14:$AO$1000,0),3))) ->  | N38: =IF('3a) Data'!$E$3=0,"",IF(H38="","",INDEX('3a) Data'!$C$14:$AO$1000,MATCH(H38,'3a) Data'!$AO$14:$AO$1000,0),12))) -> 
K39: =IF('3a) Data'!$E$3=0,"No Data from Oman",IF(H39="","",INDEX('3a) Data'!$C$14:$AO$1000,MATCH(H39,'3a) Data'!$AO$14:$AO$1000,0),1))) ->  | L39: =IF('3a) Data'!$E$3=0,"",IF(H39="","",INDEX('3a) Data'!$C$14:$AO$1000,MATCH(H39,'3a) Data'!$AO$14:$AO$1000,0),2))) ->  | M39: =IF('3a) Data'!$E$3=0,"",IF(H39="","",INDEX('3a) Data'!$C$14:$AO$1000,MATCH(H39,'3a) Data'!$AO$14:$AO$1000,0),3))) ->  | N39: =IF('3a) Data'!$E$3=0,"",IF(H39="","",INDEX('3a) Data'!$C$14:$AO$1000,MATCH(H39,'3a) Data'!$AO$14:$AO$1000,0),12))) -> 
K40: =IF('3a) Data'!$E$3=0,"No Data from Oman",IF(H40="","",INDEX('3a) Data'!$C$14:$AO$1000,MATCH(H40,'3a) Data'!$AO$14:$AO$1000,0),1))) ->  | L40: =IF('3a) Data'!$E$3=0,"",IF(H40="","",INDEX('3a) Data'!$C$14:$AO$1000,MATCH(H40,'3a) Data'!$AO$14:$AO$1000,0),2))) ->  | M40: =IF('3a) Data'!$E$3=0,"",IF(H40="","",INDEX('3a) Data'!$C$14:$AO$1000,MATCH(H40,'3a) Data'!$AO$14:$AO$1000,0),3))) ->  | N40: =IF('3a) Data'!$E$3=0,"",IF(H40="","",INDEX('3a) Data'!$C$14:$AO$1000,MATCH(H40,'3a) Data'!$AO$14:$AO$1000,0),12))) -> 
K41: =IF('3a) Data'!$E$3=0,"No Data from Oman",IF(H41="","",INDEX('3a) Data'!$C$14:$AO$1000,MATCH(H41,'3a) Data'!$AO$14:$AO$1000,0),1))) ->  | L41: =IF('3a) Data'!$E$3=0,"",IF(H41="","",INDEX('3a) Data'!$C$14:$AO$1000,MATCH(H41,'3a) Data'!$AO$14:$AO$1000,0),2))) ->  | M41: =IF('3a) Data'!$E$3=0,"",IF(H41="","",INDEX('3a) Data'!$C$14:$AO$1000,MATCH(H41,'3a) Data'!$AO$14:$AO$1000,0),3))) ->  | N41: =IF('3a) Data'!$E$3=0,"",IF(H41="","",INDEX('3a) Data'!$C$14:$AO$1000,MATCH(H41,'3a) Data'!$AO$14:$AO$1000,0),12))) -> 
K42: =IF('3a) Data'!$E$3=0,"No Data from Oman",IF(H42="","",INDEX('3a) Data'!$C$14:$AO$1000,MATCH(H42,'3a) Data'!$AO$14:$AO$1000,0),1))) ->  | L42: =IF('3a) Data'!$E$3=0,"",IF(H42="","",INDEX('3a) Data'!$C$14:$AO$1000,MATCH(H42,'3a) Data'!$AO$14:$AO$1000,0),2))) ->  | M42: =IF('3a) Data'!$E$3=0,"",IF(H42="","",INDEX('3a) Data'!$C$14:$AO$1000,MATCH(H42,'3a) Data'!$AO$14:$AO$1000,0),3))) ->  | N42: =IF('3a) Data'!$E$3=0,"",IF(H42="","",INDEX('3a) Data'!$C$14:$AO$1000,MATCH(H42,'3a) Data'!$AO$14:$AO$1000,0),12))) -> 
K43: =IF('3a) Data'!$E$3=0,"No Data from Oman",IF(H43="","",INDEX('3a) Data'!$C$14:$AO$1000,MATCH(H43,'3a) Data'!$AO$14:$AO$1000,0),1))) ->  | L43: =IF('3a) Data'!$E$3=0,"",IF(H43="","",INDEX('3a) Data'!$C$14:$AO$1000,MATCH(H43,'3a) Data'!$AO$14:$AO$1000,0),2))) ->  | M43: =IF('3a) Data'!$E$3=0,"",IF(H43="","",INDEX('3a) Data'!$C$14:$AO$1000,MATCH(H43,'3a) Data'!$AO$14:$AO$1000,0),3))) ->  | N43: =IF('3a) Data'!$E$3=0,"",IF(H43="","",INDEX('3a) Data'!$C$14:$AO$1000,MATCH(H43,'3a) Data'!$AO$14:$AO$1000,0),12))) -> 
K44: =IF('3a) Data'!$E$3=0,"No Data from Oman",IF(H44="","",INDEX('3a) Data'!$C$14:$AO$1000,MATCH(H44,'3a) Data'!$AO$14:$AO$1000,0),1))) ->  | L44: =IF('3a) Data'!$E$3=0,"",IF(H44="","",INDEX('3a) Data'!$C$14:$AO$1000,MATCH(H44,'3a) Data'!$AO$14:$AO$1000,0),2))) ->  | M44: =IF('3a) Data'!$E$3=0,"",IF(H44="","",INDEX('3a) Data'!$C$14:$AO$1000,MATCH(H44,'3a) Data'!$AO$14:$AO$1000,0),3))) ->  | N44: =IF('3a) Data'!$E$3=0,"",IF(H44="","",INDEX('3a) Data'!$C$14:$AO$1000,MATCH(H44,'3a) Data'!$AO$14:$AO$1000,0),12))) -> 
K45: =IF('3a) Data'!$E$3=0,"No Data from Oman",IF(H45="","",INDEX('3a) Data'!$C$14:$AO$1000,MATCH(H45,'3a) Data'!$AO$14:$AO$1000,0),1))) ->  | L45: =IF('3a) Data'!$E$3=0,"",IF(H45="","",INDEX('3a) Data'!$C$14:$AO$1000,MATCH(H45,'3a) Data'!$AO$14:$AO$1000,0),2))) ->  | M45: =IF('3a) Data'!$E$3=0,"",IF(H45="","",INDEX('3a) Data'!$C$14:$AO$1000,MATCH(H45,'3a) Data'!$AO$14:$AO$1000,0),3))) ->  | N45: =IF('3a) Data'!$E$3=0,"",IF(H45="","",INDEX('3a) Data'!$C$14:$AO$1000,MATCH(H45,'3a) Data'!$AO$14:$AO$1000,0),12))) -> 

Sheet 2) Raw
B1: Error? | C1: Extension Rank | E1: *PAY ITEM* | F1: Description | G1: Quantity | H1: Unit | I1: Unit Price | J1: Extension | K1: Comparison #1 | L1: Extension #1 | M1: Count | N1: Std. Dev. | O1: Comparison #2 | P1: Extension #2 | Q1: Count | R1: Std. Dev. | S1: Comparison #3 | T1: Extension #3 | U1: Count | V1: Std. Dev. | W1: Section | X1: Sort Code | Y1: Alternate | Z1: Unit Variance | AA1: Total Variance | AB1: Bid Count | AC1: Bid Tot EXCL | AD1: Bid Tot EXCL2 | AE1: Comp1 | AF1: Comp1 | AG1: Comp1
B2: =IF(E2="","",IF(COUNTIF(E:E,E2)>1,"Duplicate Item",IF(J2=0,"Extension Is Empty",IF(MID(E2,11,1)="{","Check Item No",IF(AND(C2<=25,COUNTIF(C:C,C2)>1),"Duplicate Rank",""))))) ->  | C2: =IF(E2="","",RANK(J2,J:J)) -> 19 | E2: 105-06845 | F2: CONSTRUCTION ENGINEERING | G2: 1 | H2: L.S. | I2: 21699.91 | J2: 21699.91 | K2: 21699.91 | L2: 21699.91 | M2: 120 | N2: 0 | O2: 19022.26 | P2: 19022.26 | Q2: 527 | R2: 0 | S2: 14825.95 | T2: 14825.95 | U2: 2337 | V2: 0 | W2: 100 | X2: 1 | Z2: 0 | AA2: 0 | AB2: 120 | AC2: 21700 | AD2: 21700 | AE2: 21700 | AF2: 19022 | AG2: 14826
B3: =IF(E3="","",IF(COUNTIF(E:E,E3)>1,"Duplicate Item",IF(J3=0,"Extension Is Empty",IF(MID(E3,11,1)="{","Check Item No",IF(AND(C3<=25,COUNTIF(C:C,C3)>1),"Duplicate Rank",""))))) ->  | C3: =IF(E3="","",RANK(J3,J:J)) -> 77 | E3: 109-08359 | F3: LIQUIDATED DAMAGES | G3: 1 | H3: $ | I3: 1 | J3: 1 | K3: 1 | L3: 1 | M3: 215 | N3: 0 | O3: 1 | P3: 1 | Q3: 959 | R3: 0 | S3: 1 | T3: 1 | U3: 4807 | V3: 0 | W3: 100 | X3: 2 | Z3: 0 | AA3: 0 | AB3: 215 | AC3: 1 | AD3: 1 | AE3: 1 | AF3: 1 | AG3: 1
C4: 77 | E4: 109-08360 | F4: CONTRACT LIENS | G4: 1 | H4: $ | I4: 1 | J4: 1 | K4: 1 | L4: 1 | M4: 212 | N4: 0 | O4: 1 | P4: 1 | Q4: 959 | R4: 0 | S4: 1 | T4: 1 | U4: 4813 | V4: 0 | W4: 100 | X4: 3 | Z4: 0 | AA4: 0 | AB4: 212 | AC4: 1 | AD4: 1 | AE4: 1 | AF4: 1 | AG4: 1
C5: 77 | E5: 109-08443 | F5: QUALITY ADJUSTMENTS, TEMPORARY TRAFFIC CONTROL DEVICES | G5: 1 | H5: $ | I5: 1 | J5: 1 | K5: 1 | L5: 1 | M5: 200 | N5: 0 | O5: 1 | P5: 1 | Q5: 898 | R5: 0 | S5: 1 | T5: 1 | U5: 4582 | V5: 0 | W5: 100 | X5: 4 | Z5: 0 | AA5: 0 | AB5: 200 | AC5: 1 | AD5: 1 | AE5: 1 | AF5: 1 | AG5: 1
C6: 77 | E6: 109-08444 | F6: QUALITY ADJUSTMENTS, FAILED MATERIALS | G6: 1 | H6: $ | I6: 1 | J6: 1 | K6: 1 | L6: 1 | M6: 209 | N6: 0 | O6: 1 | P6: 1 | Q6: 936 | R6: 0 | S6: 1 | T6: 1 | U6: 4626 | V6: 0 | W6: 100 | X6: 5 | Z6: 0 | AA6: 0 | AB6: 209 | AC6: 1 | AD6: 1 | AE6: 1 | AF6: 1 | AG6: 1
C7: 77 | E7: 109-08463 | F7: PROJECT ESTIMATE ADJUSTMENT | G7: 1 | H7: $ | I7: 1 | J7: 1 | K7: 1 | L7: 1 | M7: 76 | N7: 0 | O7: 1 | P7: 1 | Q7: 263 | R7: 0 | S7: 1 | T7: 1 | U7: 1213 | V7: 0 | W7: 100 | X7: 6 | Z7: 0 | AA7: 0 | AB7: 76 | AC7: 1 | AD7: 1 | AE7: 1 | AF7: 1 | AG7: 1
C8: 10 | E8: 110-01001 | F8: MOBILIZATION AND DEMOBILIZATION | G8: 1 | H8: L.S. | I8: 63332.89 | J8: 63332.89 | K8: 63332.89 | L8: 63332.89 | M8: 156 | N8: 0 | O8: 64358.53 | P8: 64358.53 | Q8: 563 | R8: 0 | S8: 65198.94 | T8: 65198.94 | U8: 2436 | V8: 0 | W8: 100 | X8: 7 | Z8: 0 | AA8: 0 | AB8: 156 | AC8: 63333 | AD8: 63333 | AE8: 63333 | AF8: 64359 | AG8: 65199
A9: In case on Duplicate Rank: Change the Extension amount by 1 cent. (Top 25 only) | C9: 16 | E9: 201-52370 | F9: CLEARING RIGHT OF WAY | G9: 1 | H9: L.S. | I9: 23474.63 | J9: 23474.63 | K9: 23474.63 | L9: 23474.63 | M9: 117 | N9: 0 | O9: 26933.02 | P9: 26933.02 | Q9: 444 | R9: 0 | S9: 29157.69 | T9: 29157.69 | U9: 1227 | V9: 0 | W9: 200 | X9: 8 | Z9: 0 | AA9: 0 | AB9: 117 | AC9: 23475 | AD9: 23475 | AE9: 23475 | AF9: 26933 | AG9: 29158
C10: 71 | E10: 202-96133 | F10: PIPE, REMOVE | G10: 41 | H10: L.F. | I10: 20.35 | J10: 834.35 | K10: 20.35 | L10: 834.35 | M10: 7 | N10: 0 | O10: 23.4 | P10: 959.4 | Q10: 52 | R10: 0 | S10: 23.03 | T10: 944.23 | U10: 125 | V10: 0 | W10: 200 | X10: 9 | Z10: 0 | AA10: 0 | AB10: 7 | AC10: 834 | AD10: 834 | AE10: 834 | AF10: 959 | AG10: 944
C11: 66 | E11: 202-99187 | F11: FENCE, FARM FIELD, REMOVE | G11: 589 | H11: L.F. | I11: 2 | J11: 1178 | K11: 2 | L11: 1178 | M11: 1 | N11: 0 | O11: 2.63 | P11: 1549.07 | Q11: 21 | R11: 0 | S11: 3.17 | T11: 1867.13 | U11: 44 | V11: 0 | W11: 200 | X11: 10 | Z11: 0 | AA11: 0 | AB11: 1 | AC11: 1178 | AD11: 1178 | AE11: 1178 | AF11: 1549 | AG11: 1867
C12: 33 | E12: 203-02010 | F12: EXCAVATION, ROCK | G12: 100 | H12: C.Y. | I12: 67.33 | J12: 6733 | K12: 67.33 | L12: 6733 | M12: 0 | N12: 0 | O12: 67.33 | P12: 6733 | Q12: 3 | R12: 0 | S12: 96.46 | T12: 9646 | U12: 23 | V12: 0 | W12: 200 | X12: 11 | Z12: 0 | AA12: 0 | AB12: 0 | AC12: 6733 | AD12: 6733 | AE12: 6733 | AF12: 6733 | AG12: 9646
C13: 4 | E13: 203-02055 | F13: EMBANKMENT | G13: 45813 | H13: C.Y. | I13: 6.47 | J13: 296410.11 | K13: 6.47 | L13: 296410.11 | M13: 0 | N13: 0 | O13: 6.47 | P13: 296410.11 | Q13: 0 | R13: 0 | S13: 6.47 | T13: 296410.11 | U13: 6 | V13: 0 | W13: 200 | X13: 12 | Z13: 0 | AA13: 0 | AB13: 0 | AC13: 296410 | AD13: 296410 | AE13: 296410 | AF13: 296410 | AG13: 296410
C14: 47 | E14: 203-08607 | F14: LINEAR GRADING | G14: 400 | H14: L.F. | I14: 12.9 | J14: 5160 | K14: 12.9 | L14: 5160 | M14: 2 | N14: 0 | O14: 35.66 | P14: 14264 | Q14: 14 | R14: 0 | S14: 13.96 | T14: 5584 | U14: 85 | V14: 0 | W14: 200 | X14: 13 | Z14: 0 | AA14: 0 | AB14: 2 | AC14: 5160 | AD14: 5160 | AE14: 5160 | AF14: 14264 | AG14: 5584
C15: 59 | E15: 205-03371 | F15: SEDIMENT, REMOVE | G15: 180 | H15: C.Y. | I15: 10.59 | J15: 1906.2 | K15: 10.59 | L15: 1906.2 | M15: 7 | N15: 0 | O15: 16.79 | P15: 3022.2 | Q15: 58 | R15: 0 | S15: 17.65 | T15: 3177 | U15: 228 | V15: 0 | W15: 200 | X15: 14 | Z15: 0 | AA15: 0 | AB15: 7 | AC15: 1906 | AD15: 1906 | AE15: 1906 | AF15: 3022 | AG15: 3177
C16: 37 | E16: 205-06931 | F16: TEMPORARY CHECK DAM, REVETMENT RIPRAP | G16: 152.5 | H16: TON | I16: 40.15 | J16: 6122.88 | K16: 40.15 | L16: 6122.88 | M16: 0 | N16: 0 | O16: 40.15 | P16: 6122.88 | Q16: 61 | R16: 0 | S16: 41.46 | T16: 6322.65 | U16: 241 | V16: 0 | W16: 200 | X16: 15 | Z16: 0 | AA16: 0 | AB16: 0 | AC16: 6123 | AD16: 6123 | AE16: 6123 | AF16: 6123 | AG16: 6323
C17: 45 | E17: 205-06936 | F17: TEMPORARY SEDIMENT TRAP | G17: 102 | H17: TON | I17: 52.33 | J17: 5337.66 | K17: 52.33 | L17: 5337.66 | M17: 15 | N17: 0 | O17: 41.77 | P17: 4260.54 | Q17: 87 | R17: 0 | S17: 43.65 | T17: 4452.3 | U17: 227 | V17: 0 | W17: 200 | X17: 16 | Z17: 0 | AA17: 0 | AB17: 15 | AC17: 5338 | AD17: 5338 | AE17: 5338 | AF17: 4261 | AG17: 4452
C18: 64 | E18: 205-06937 | F18: TEMPORARY SILT FENCE | G18: 619 | H18: L.F. | I18: 2.42 | J18: 1497.98 | K18: 2.42 | L18: 1497.98 | M18: 25 | N18: 0 | O18: 2.29 | P18: 1417.51 | Q18: 229 | R18: 0 | S18: 2.27 | T18: 1405.13 | U18: 649 | V18: 0 | W18: 200 | X18: 17 | Z18: 0 | AA18: 0 | AB18: 25 | AC18: 1498 | AD18: 1498 | AE18: 1498 | AF18: 1418 | AG18: 1405
C19: 44 | E19: 205-09543 | F19: NO 2 STONE | G19: 180 | H19: TON | I19: 29.83 | J19: 5369.4 | K19: 29.83 | L19: 5369.4 | M19: 73 | N19: 0 | O19: 26.25 | P19: 4725 | Q19: 372 | R19: 0 | S19: 25.42 | T19: 4575.6 | U19: 756 | V19: 0 | W19: 200 | X19: 18 | Z19: 0 | AA19: 0 | AB19: 73 | AC19: 5369 | AD19: 5369 | AE19: 5369 | AF19: 4725 | AG19: 4576
C20: 23 | E20: 206-51215 | F20: EXCAVATION, X | G20: 284 | H20: C.Y. | I20: 50 | J20: 14200 | K20: 50 | L20: 14200 | M20: 1 | N20: 0 | O20: 78.65 | P20: 22336.6 | Q20: 15 | R20: 0 | S20: 83.44 | T20: 23696.96 | U20: 18 | V20: 0 | W20: 200 | X20: 19 | Z20: 0 | AA20: 0 | AB20: 1 | AC20: 14200 | AD20: 14200 | AE20: 14200 | AF20: 22337 | AG20: 23697
C21: 49 | E21: 206-51230 | F21: EXCAVATION, FOUNDATION, UNCLASSIFIED | G21: 388 | H21: C.Y. | I21: 11.5 | J21: 4462 | K21: 11.5 | L21: 4462 | M21: 4 | N21: 0 | O21: 23.83 | P21: 9246.04 | Q21: 24 | R21: 0 | S21: 30.02 | T21: 11647.76 | U21: 104 | V21: 0 | W21: 200 | X21: 20 | Z21: 0 | AA21: 0 | AB21: 4 | AC21: 4462 | AD21: 4462 | AE21: 4462 | AF21: 9246 | AG21: 11648
C22: 21 | E22: 211-02050 | F22: B BORROW | G22: 382 | H22: C.Y. | I22: 42.15 | J22: 16101.3 | K22: 42.15 | L22: 16101.3 | M22: 7 | N22: 0 | O22: 31.34 | P22: 11971.88 | Q22: 51 | R22: 0 | S22: 27.61 | T22: 10547.02 | U22: 145 | V22: 0 | W22: 200 | X22: 21 | Z22: 0 | AA22: 0 | AB22: 7 | AC22: 16101 | AD22: 16101 | AE22: 16101 | AF22: 11972 | AG22: 10547
C23: 36 | E23: 211-06467 | F23: AGGREGATE FOR END BENT BACKFILL | G23: 128 | H23: C.Y. | I23: 48.38 | J23: 6192.64 | K23: 48.38 | L23: 6192.64 | M23: 13 | N23: 0 | O23: 49.01 | P23: 6273.28 | Q23: 51 | R23: 0 | S23: 52.83 | T23: 6762.24 | U23: 179 | V23: 0 | W23: 200 | X23: 22 | Z23: 0 | AA23: 0 | AB23: 13 | AC23: 6193 | AD23: 6193 | AE23: 6193 | AF23: 6273 | AG23: 6762
C24: 56 | E24: 211-09264 | F24: STRUCTURAL BACKFILL, TYPE 1 | G24: 94.7 | H24: C.Y. | I24: 24.4 | J24: 2310.68 | K24: 24.4 | L24: 2310.68 | M24: 17 | N24: 0 | O24: 30.44 | P24: 2882.67 | Q24: 82 | R24: 0 | S24: 30.35 | T24: 2874.15 | U24: 216 | V24: 0 | W24: 200 | X24: 23 | Z24: 0 | AA24: 0 | AB24: 17 | AC24: 2311 | AD24: 2311 | AE24: 2311 | AF24: 2883 | AG24: 2874
C25: 48 | E25: 302-07455 | F25: DENSE GRADED SUBBASE | G25: 91 | H25: C.Y. | I25: 50.22 | J25: 4570.02 | K25: 50.22 | L25: 4570.02 | M25: 22 | N25: 0 | O25: 57.5 | P25: 5232.5 | Q25: 108 | R25: 0 | S25: 60.44 | T25: 5500.04 | U25: 306 | V25: 0 | W25: 300 | X25: 24 | Z25: 0 | AA25: 0 | AB25: 22 | AC25: 4570 | AD25: 4570 | AE25: 4570 | AF25: 5233 | AG25: 5500
C26: 22 | E26: 503-05310 | F26: TERMINAL JOINT | G26: 96 | H26: L.F. | I26: 157.6 | J26: 15129.6 | K26: 157.6 | L26: 15129.6 | M26: 6 | N26: 0 | O26: 160.97 | P26: 15453.12 | Q26: 38 | R26: 0 | S26: 154.75 | T26: 14856 | U26: 112 | V26: 0 | W26: 500 | X26: 25 | Z26: 0 | AA26: 0 | AB26: 6 | AC26: 15130 | AD26: 15130 | AE26: 15130 | AF26: 15453 | AG26: 14856
C27: 73 | E27: 602-06729 | F27: BARRIER DELINEATOR | G27: 28 | H27: EACH | I27: 15.93 | J27: 446.04 | K27: 15.93 | L27: 446.04 | M27: 19 | N27: 0 | O27: 15.77 | P27: 441.56 | Q27: 57 | R27: 0 | S27: 14.36 | T27: 402.08 | U27: 234 | V27: 0 | W27: 600 | X27: 26 | Z27: 0 | AA27: 0 | AB27: 19 | AC27: 446 | AD27: 446 | AE27: 446 | AF27: 442 | AG27: 402
C28: 26 | E28: 603-06040 | F28: FENCE, FARM FIELD, 47 IN | G28: 2429 | H28: L.F. | I28: 5.29 | J28: 12849.41 | K28: 5.29 | L28: 12849.41 | M28: 0 | N28: 0 | O28: 5.29 | P28: 12849.41 | Q28: 6 | R28: 0 | S28: 6.22 | T28: 15108.38 | U28: 24 | V28: 0 | W28: 600 | X28: 27 | Z28: 0 | AA28: 0 | AB28: 0 | AC28: 12849 | AD28: 12849 | AE28: 12849 | AF28: 12849 | AG28: 15108
C29: 11 | E29: 609-06259 | F29: REINFORCED CONCRETE BRIDGE APPROACH 12 IN | G29: 576.2 | H29: S.Y. | I29: 72.94 | J29: 42028.03 | K29: 72.94 | L29: 42028.03 | M29: 16 | N29: 0 | O29: 76.73 | P29: 44211.83 | Q29: 87 | R29: 0 | S29: 80.46 | T29: 46361.05 | U29: 267 | V29: 0 | W29: 600 | X29: 28 | Z29: 0 | AA29: 0 | AB29: 16 | AC29: 42028 | AD29: 42028 | AE29: 42028 | AF29: 44212 | AG29: 46361
C30: 54 | E30: 616-02320 | F30: GEOTEXTILES | G30: 925 | H30: S.Y. | I30: 2.95 | J30: 2728.75 | K30: 2.95 | L30: 2728.75 | M30: 46 | N30: 0 | O30: 2.86 | P30: 2645.5 | Q30: 224 | R30: 0 | S30: 2.67 | T30: 2469.75 | U30: 617 | V30: 0 | W30: 600 | X30: 29 | Z30: 0 | AA30: 0 | AB30: 46 | AC30: 2729 | AD30: 2729 | AE30: 2729 | AF30: 2646 | AG30: 2470
C31: 20 | E31: 616-06405 | F31: RIPRAP, REVETMENT | G31: 368 | H31: TON | I31: 44.84 | J31: 16501.12 | K31: 44.84 | L31: 16501.12 | M31: 40 | N31: 0 | O31: 36.14 | P31: 13299.52 | Q31: 129 | R31: 0 | S31: 33.82 | T31: 12445.76 | U31: 414 | V31: 0 | W31: 600 | X31: 30 | Z31: 0 | AA31: 0 | AB31: 40 | AC31: 16501 | AD31: 16501 | AE31: 16501 | AF31: 13300 | AG31: 12446
C32: 63 | E32: 616-06451 | F32: RIPRAP, UNIFORM | G32: 20 | H32: TON | I32: 75 | J32: 1500 | K32: 75 | L32: 1500 | M32: 1 | N32: 0 | O32: 42.55 | P32: 851 | Q32: 29 | R32: 0 | S32: 46.63 | T32: 932.6 | U32: 84 | V32: 0 | W32: 600 | X32: 31 | Z32: 0 | AA32: 0 | AB32: 1 | AC32: 1500 | AD32: 1500 | AE32: 1500 | AF32: 851 | AG32: 933
C33: 8 | E33: 616-51367 | F33: SLOPEWALL, CONCRETE, 4 IN | G33: 1285 | H33: S.Y. | I33: 61.67 | J33: 79245.95 | K33: 61.67 | L33: 79245.95 | M33: 4 | N33: 0 | O33: 58.41 | P33: 75056.85 | Q33: 9 | R33: 0 | S33: 51.9 | T33: 66691.5 | U33: 24 | V33: 0 | W33: 600 | X33: 32 | Z33: 0 | AA33: 0 | AB33: 4 | AC33: 79246 | AD33: 79246 | AE33: 79246 | AF33: 75057 | AG33: 66692
C34: 67 | E34: 621-01004 | F34: MOBILIZATION AND DEMOBILIZATION FOR SEEDING | G34: 3 | H34: EACH | I34: 341.27 | J34: 1023.81 | K34: 341.27 | L34: 1023.81 | M34: 65 | N34: 0 | O34: 474.36 | P34: 1423.08 | Q34: 465 | R34: 0 | S34: 512.1 | T34: 1536.3 | U34: 1413 | V34: 0 | W34: 600 | X34: 33 | Z34: 0 | AA34: 0 | AB34: 65 | AC34: 1024 | AD34: 1024 | AE34: 1024 | AF34: 1423 | AG34: 1536
C35: 58 | E35: 621-06545 | F35: FERTILIZER | G35: 2.2 | H35: TON | I35: 882.51 | J35: 1941.52 | K35: 882.51 | L35: 1941.52 | M35: 21 | N35: 0 | O35: 786.67 | P35: 1730.67 | Q35: 86 | R35: 0 | S35: 966.15 | T35: 2125.53 | U35: 301 | V35: 0 | W35: 600 | X35: 34 | Z35: 0 | AA35: 0 | AB35: 21 | AC35: 1942 | AD35: 1942 | AE35: 1942 | AF35: 1731 | AG35: 2126
C36: 46 | E36: 621-06553 | F36: SEED MIXTURE, R | G36: 947 | H36: LBS | I36: 5.51 | J36: 5217.97 | K36: 5.51 | L36: 5217.97 | M36: 4 | N36: 0 | O36: 6.85 | P36: 6486.95 | Q36: 32 | R36: 0 | S36: 4.28 | T36: 4053.16 | U36: 134 | V36: 0 | W36: 600 | X36: 35 | Z36: 0 | AA36: 0 | AB36: 4 | AC36: 5218 | AD36: 5218 | AE36: 5218 | AF36: 6487 | AG36: 4053
C37: 65 | E37: 621-06557 | F37: SEED MIXTURE, T | G37: 418 | H37: LBS | I37: 2.91 | J37: 1216.38 | K37: 2.91 | L37: 1216.38 | M37: 14 | N37: 0 | O37: 2.6 | P37: 1086.8 | Q37: 95 | R37: 0 | S37: 2.85 | T37: 1191.3 | U37: 296 | V37: 0 | W37: 600 | X37: 36 | Z37: 0 | AA37: 0 | AB37: 14 | AC37: 1216 | AD37: 1216 | AE37: 1216 | AF37: 1087 | AG37: 1191
C38: 35 | E38: 621-06565 | F38: MULCHING MATERIAL | G38: 17 | H38: TON | I38: 367.8 | J38: 6252.6 | K38: 367.8 | L38: 6252.6 | M38: 12 | N38: 0 | O38: 330.46 | P38: 5617.82 | Q38: 78 | R38: 0 | S38: 352.84 | T38: 5998.28 | U38: 256 | V38: 0 | W38: 600 | X38: 37 | Z38: 0 | AA38: 0 | AB38: 12 | AC38: 6253 | AD38: 6253 | AE38: 6253 | AF38: 5618 | AG38: 5998
C39: 74 | E39: 621-06567 | F39: WATER | G39: 12 | H39: M.G. | I39: 30.41 | J39: 364.92 | K39: 30.41 | L39: 364.92 | M39: 24 | N39: 0 | O39: 13.35 | P39: 160.2 | Q39: 101 | R39: 0 | S39: 9.24 | T39: 110.88 | U39: 340 | V39: 0 | W39: 600 | X39: 38 | Z39: 0 | AA39: 0 | AB39: 24 | AC39: 365 | AD39: 365 | AE39: 365 | AF39: 160 | AG39: 111
C40: 28 | E40: 621-06574 | F40: SODDING | G40: 2999 | H40: S.Y. | I40: 3.54 | J40: 10616.46 | K40: 3.54 | L40: 10616.46 | M40: 11 | N40: 0 | O40: 3.26 | P40: 9776.74 | Q40: 45 | R40: 0 | S40: 3.35 | T40: 10046.65 | U40: 204 | V40: 0 | W40: 600 | X40: 39 | Z40: 0 | AA40: 0 | AB40: 11 | AC40: 10616 | AD40: 10616 | AE40: 10616 | AF40: 9777 | AG40: 10047
C41: 77 | E41: 628-08524 | F41: CELLULAR TELEPHONE/RADIO, ADDITIONAL MINUTES | G41: 1 | H41: $ | I41: 1 | J41: 1 | K41: 1 | L41: 1 | M41: 50 | N41: 0 | O41: 1.47 | P41: 1.47 | Q41: 212 | R41: 0 | S41: 1.29 | T41: 1.29 | U41: 338 | V41: 0 | W41: 600 | X41: 42 | Z41: 0 | AA41: 0 | AB41: 50 | AC41: 1 | AD41: 1 | AE41: 1 | AF41: 1 | AG41: 1
C42: 13 | E42: 628-09403 | F42: FIELD OFFICE, C | G42: 14 | H42: MONTH | I42: 2048.15 | J42: 28674.1 | K42: 2048.15 | L42: 28674.1 | M42: 31 | N42: 0 | O42: 2086.68 | P42: 29213.52 | Q42: 84 | R42: 0 | S42: 2126.84 | T42: 29775.76 | U42: 214 | V42: 0 | W42: 600 | X42: 43 | Z42: 0 | AA42: 0 | AB42: 31 | AC42: 28674 | AD42: 28674 | AE42: 28674 | AF42: 29214 | AG42: 29776
C43: 39 | E43: 628-09407 | F43: FIELD OFFICE COMPUTER SYSTEM, ADDITIONAL {2 EACH} | G43: 28 | H43: MONTH | I43: 213.01 | J43: 5964.28 | K43: 213.01 | L43: 5964.28 | M43: 45 | N43: 0 | O43: 182.32 | P43: 5104.96 | Q43: 162 | R43: 0 | S43: 198.95 | T43: 5570.6 | U43: 524 | V43: 0 | W43: 600 | X43: 44 | Z43: 0 | AA43: 0 | AB43: 45 | AC43: 5964 | AD43: 5964 | AE43: 5964 | AF43: 5105 | AG43: 5571
C44: 72 | E44: 628-11068 | F44: CELLULAR TELEPHONE/RADIO | G44: 3 | H44: EACH | I44: 164.08 | J44: 492.24 | K44: 164.08 | L44: 492.24 | M44: 47 | N44: 0 | O44: 158.86 | P44: 476.58 | Q44: 210 | R44: 0 | S44: 155.11 | T44: 465.33 | U44: 336 | V44: 0 | W44: 600 | X44: 40 | Z44: 0 | AA44: 0 | AB44: 47 | AC44: 492 | AD44: 492 | AE44: 492 | AF44: 477 | AG44: 465
C45: 51 | E45: 628-11069 | F45: CELLULAR TELEPHONE/RADIO SERVICE | G45: 42 | H45: MONTH | I45: 97.31 | J45: 4087.02 | K45: 97.31 | L45: 4087.02 | M45: 50 | N45: 0 | O45: 92.98 | P45: 3905.16 | Q45: 213 | R45: 0 | S45: 90.51 | T45: 3801.42 | U45: 339 | V45: 0 | W45: 600 | X45: 41 | Z45: 0 | AA45: 0 | AB45: 50 | AC45: 4087 | AD45: 4087 | AE45: 4087 | AF45: 3905 | AG45: 3801
C46: 61 | E46: 701-01814 | F46: MOBILIZATION FOR DYNAMIC PILE MONITORING AND EQUIPMENT | G46: 1 | H46: EACH | I46: 1717.41 | J46: 1717.41 | K46: 1717.41 | L46: 1717.41 | M46: 0 | N46: 0 | O46: 1717.41 | P46: 1717.41 | Q46: 0 | R46: 0 | S46: 1717.41 | T46: 1717.41 | U46: 3 | V46: 0 | W46: 700 | X46: 45 | Z46: 0 | AA46: 0 | AB46: 0 | AC46: 1717 | AD46: 1717 | AE46: 1717 | AF46: 1717 | AG46: 1717
C47: 32 | E47: 701-06011 | F47: DYNAMIC PILE LOAD TEST | G47: 4 | H47: EACH | I47: 1880.01 | J47: 7520.04 | K47: 1880.01 | L47: 7520.04 | M47: 19 | N47: 0 | O47: 2110.42 | P47: 8441.68 | Q47: 57 | R47: 0 | S47: 2106.26 | T47: 8425.04 | U47: 161 | V47: 0 | W47: 700 | X47: 46 | Z47: 0 | AA47: 0 | AB47: 19 | AC47: 7520 | AD47: 7520 | AE47: 7520 | AF47: 8442 | AG47: 8425
C48: 24 | E48: 701-08253 | F48: PILE SLEEVES | G48: 20 | H48: EACH | I48: 687.5 | J48: 13750 | K48: 687.5 | L48: 13750 | M48: 10 | N48: 0 | O48: 549.68 | P48: 10993.6 | Q48: 21 | R48: 0 | S48: 556.58 | T48: 11131.6 | U48: 42 | V48: 0 | W48: 700 | X48: 47 | Z48: 0 | AA48: 0 | AB48: 10 | AC48: 13750 | AD48: 13750 | AE48: 13750 | AF48: 10994 | AG48: 11132
C49: 31 | E49: 701-09557 | F49: TEST PILE, DYNAMIC, PRODUCTION | G49: 157 | H49: L.F. | I49: 53.71 | J49: 8432.47 | K49: 53.71 | L49: 8432.47 | M49: 13 | N49: 0 | O49: 53.81 | P49: 8448.17 | Q49: 57 | R49: 0 | S49: 53.08 | T49: 8333.56 | U49: 84 | V49: 0 | W49: 700 | X49: 48 | Z49: 0 | AA49: 0 | AB49: 13 | AC49: 8432 | AD49: 8432 | AE49: 8432 | AF49: 8448 | AG49: 8334
C50: 41 | E50: 701-09559 | F50: TEST PILE, DYNAMIC, RESTRIKE | G50: 4 | H50: EACH | I50: 1435.35 | J50: 5741.4 | K50: 1435.35 | L50: 5741.4 | M50: 19 | N50: 0 | O50: 1629.05 | P50: 6516.2 | Q50: 66 | R50: 0 | S50: 1554.62 | T50: 6218.48 | U50: 102 | V50: 0 | W50: 700 | X50: 49 | Z50: 0 | AA50: 0 | AB50: 19 | AC50: 5741 | AD50: 5741 | AE50: 5741 | AF50: 6516 | AG50: 6218
C51: 15 | E51: 701-51195 | F51: PILE, STEEL H, HP 12 IN X 53 | G51: 468 | H51: L.F. | I51: 52.52 | J51: 24579.36 | K51: 52.52 | L51: 24579.36 | M51: 0 | N51: 0 | O51: 52.52 | P51: 24579.36 | Q51: 35 | R51: 0 | S51: 54.21 | T51: 25370.28 | U51: 103 | V51: 0 | W51: 700 | X51: 50 | Z51: 0 | AA51: 0 | AB51: 0 | AC51: 24579 | AD51: 24579 | AE51: 24579 | AF51: 24579 | AG51: 25370
C52: 18 | E52: 701-92043 | F52: CORED HOLE IN ROCK, 18 IN | G52: 100 | H52: L.F. | I52: 224.71 | J52: 22471 | K52: 224.71 | L52: 22471 | M52: 0 | N52: 0 | O52: 224.71 | P52: 22471 | Q52: 9 | R52: 0 | S52: 281.15 | T52: 28115 | U52: 21 | V52: 0 | W52: 700 | X52: 51 | Z52: 0 | AA52: 0 | AB52: 0 | AC52: 22471 | AD52: 22471 | AE52: 22471 | AF52: 22471 | AG52: 28115
C53: 17 | E53: 702-05533 | F53: GRATES, BASINS, AND FITTINGS, CAST IRON | G53: 1 | H53: L.S. | I53: 23333.33 | J53: 23333.33 | K53: 23333.33 | L53: 23333.33 | M53: 0 | N53: 0 | O53: 23333.33 | P53: 23333.33 | Q53: 0 | R53: 0 | S53: 23333.33 | T53: 23333.33 | U53: 6 | V53: 0 | W53: 700 | X53: 52 | Z53: 0 | AA53: 0 | AB53: 0 | AC53: 23333 | AD53: 23333 | AE53: 23333 | AF53: 23333 | AG53: 23333
C54: 6 | E54: 702-51005 | F54: CONCRETE, A, SUBSTRUCTURE | G54: 526 | H54: C.Y. | I54: 353.53 | J54: 185956.78 | K54: 353.53 | L54: 185956.78 | M54: 16 | N54: 0 | O54: 458.8 | P54: 241328.8 | Q54: 51 | R54: 0 | S54: 513.56 | T54: 270132.56 | U54: 127 | V54: 0 | W54: 700 | X54: 53 | Z54: 0 | AA54: 0 | AB54: 16 | AC54: 185957 | AD54: 185957 | AE54: 185957 | AF54: 241329 | AG54: 270133
C55: 9 | E55: 702-51015 | F55: CONCRETE, B, FOOTINGS | G55: 206.9 | H55: C.Y. | I55: 320.54 | J55: 66319.73 | K55: 320.54 | L55: 66319.73 | M55: 10 | N55: 0 | O55: 339.76 | P55: 70296.34 | Q55: 36 | R55: 0 | S55: 352.47 | T55: 72926.04 | U55: 92 | V55: 0 | W55: 700 | X55: 54 | Z55: 0 | AA55: 0 | AB55: 10 | AC55: 66320 | AD55: 66320 | AE55: 66320 | AF55: 70296 | AG55: 72926
C56: 7 | E56: 703-06028 | F56: REINFORCING BARS | G56: 107370 | H56: LBS | I56: 0.8 | J56: 85896 | K56: 0.8 | L56: 85896 | M56: 19 | N56: 0 | O56: 0.81 | P56: 86969.7 | Q56: 39 | R56: 0 | S56: 0.8 | T56: 85896 | U56: 74 | V56: 0 | W56: 700 | X56: 55 | Z56: 0 | AA56: 0 | AB56: 19 | AC56: 85896 | AD56: 85896 | AE56: 85896 | AF56: 86970 | AG56: 85896
C57: 5 | E57: 703-06029 | F57: REINFORCING BARS, EPOXY COATED | G57: 236513 | H57: LBS | I57: 0.87 | J57: 205766.31 | K57: 0.87 | L57: 205766.31 | M57: 19 | N57: 0 | O57: 0.9 | P57: 212861.7 | Q57: 90 | R57: 0 | S57: 0.85 | T57: 201036.05 | U57: 175 | V57: 0 | W57: 700 | X57: 56 | Z57: 0 | AA57: 0 | AB57: 19 | AC57: 205766 | AD57: 205766 | AE57: 205766 | AF57: 212862 | AG57: 201036
C58: 3 | E58: 704-51002 | F58: CONCRETE, C, SUPERSTRUCTURE | G58: 639.4 | H58: C.Y. | I58: 553 | J58: 353588.2 | K58: 553 | L58: 353588.2 | M58: 25 | N58: 0 | O58: 518.47 | P58: 331509.72 | Q58: 101 | R58: 0 | S58: 534.93 | T58: 342034.24 | U58: 266 | V58: 0 | W58: 700 | X58: 57 | Z58: 0 | AA58: 0 | AB58: 25 | AC58: 353588 | AD58: 353588 | AE58: 353588 | AF58: 331510 | AG58: 342034
C59: 27 | E59: 706-05732 | F59: CONCRETE BRIDGE RAILING TRANSITION, TBC | G59: 8 | H59: EACH | I59: 1460.93 | J59: 11687.44 | K59: 1460.93 | L59: 11687.44 | M59: 31 | N59: 0 | O59: 1424.37 | P59: 11394.96 | Q59: 101 | R59: 0 | S59: 1455.29 | T59: 11642.32 | U59: 302 | V59: 0 | W59: 700 | X59: 58 | Z59: 0 | AA59: 0 | AB59: 31 | AC59: 11687 | AD59: 11687 | AE59: 11687 | AF59: 11395 | AG59: 11642
C60: 12 | E60: 706-51020 | F60: RAILING, CONCRETE, C | G60: 74 | H60: C.Y. | I60: 504.15 | J60: 37307.1 | K60: 504.15 | L60: 37307.1 | M60: 21 | N60: 0 | O60: 497.6 | P60: 36822.4 | Q60: 61 | R60: 0 | S60: 479.5 | T60: 35483 | U60: 222 | V60: 0 | W60: 700 | X60: 59 | Z60: 0 | AA60: 0 | AB60: 21 | AC60: 37307 | AD60: 37307 | AE60: 37307 | AF60: 36822 | AG60: 35483
C61: 2 | E61: 707-09865 | F61: STRUCTURAL MEMBER, CONCRETE BULB-T BEAM, 36 IN X 49 IN | G61: 1905 | H61: L.F. | I61: 230.32 | J61: 438759.6 | K61: 230.32 | L61: 438759.6 | M61: 0 | N61: 0 | O61: 230.32 | P61: 438759.6 | Q61: 12 | R61: 0 | S61: 248.64 | T61: 473659.2 | U61: 15 | V61: 0 | W61: 700 | X61: 60 | Z61: 0 | AA61: 0 | AB61: 0 | AC61: 438760 | AD61: 438760 | AE61: 438760 | AF61: 438760 | AG61: 473659
C62: 50 | E62: 709-51821 | F62: SURFACE SEAL | G62: 1 | H62: L.S. | I62: 4283.99 | J62: 4283.99 | K62: 4283.99 | L62: 4283.99 | M62: 93 | N62: 0 | O62: 4739.96 | P62: 4739.96 | Q62: 217 | R62: 0 | S62: 4903.75 | T62: 4903.75 | U62: 589 | V62: 0 | W62: 700 | X62: 61 | Z62: 0 | AA62: 0 | AB62: 93 | AC62: 4284 | AD62: 4284 | AE62: 4284 | AF62: 4740 | AG62: 4904
C63: 60 | E63: 711-51070 | F63: ANCHOR PLATE, AP 1 | G63: 20 | H63: EACH | I63: 90.16 | J63: 1803.2 | K63: 90.16 | L63: 1803.2 | M63: 0 | N63: 0 | O63: 90.16 | P63: 1803.2 | Q63: 12 | R63: 0 | S63: 109.03 | T63: 2180.6 | U63: 54 | V63: 0 | W63: 700 | X63: 62 | Z63: 0 | AA63: 0 | AB63: 0 | AC63: 1803 | AD63: 1803 | AE63: 1803 | AF63: 1803 | AG63: 2181
C64: 25 | E64: 714-11081 | F64: STRUCTURE, PRECAST, RC, BOX SECTION 7FT X 3FT | G64: 50 | H64: L.F. | I64: 263.98 | J64: 13199 | K64: 263.98 | L64: 13199 | M64: 0 | N64: 0 | O64: 263.98 | P64: 13199 | Q64: 6 | R64: 0 | S64: 301.65 | T64: 15082.5 | U64: 12 | V64: 0 | W64: 700 | X64: 63 | Z64: 0 | AA64: 0 | AB64: 0 | AC64: 13199 | AD64: 13199 | AE64: 13199 | AF64: 13199 | AG64: 15083
C65: 29 | E65: 715-03475 | F65: SAFETY METAL END SECTION, 4:1 15 IN | G65: 8 | H65: EACH | I65: 1250 | J65: 10000 | K65: 1250 | L65: 10000 | M65: 2 | N65: 0 | O65: 590.14 | P65: 4721.12 | Q65: 20 | R65: 0 | S65: 523.26 | T65: 4186.08 | U65: 54 | V65: 0 | W65: 700 | X65: 64 | Z65: 0 | AA65: 0 | AB65: 2 | AC65: 10000 | AD65: 10000 | AE65: 10000 | AF65: 4721 | AG65: 4186
C66: 38 | E66: 715-05169 | F66: PIPE, TYPE 3 CIRCULAR 15 IN | G66: 176 | H66: L.F. | I66: 34.14 | J66: 6008.64 | K66: 34.14 | L66: 6008.64 | M66: 9 | N66: 0 | O66: 30.32 | P66: 5336.32 | Q66: 108 | R66: 0 | S66: 32.43 | T66: 5707.68 | U66: 299 | V66: 0 | W66: 700 | X66: 65 | Z66: 0 | AA66: 0 | AB66: 9 | AC66: 6009 | AD66: 6009 | AE66: 6009 | AF66: 5336 | AG66: 5708
B67: =IF(E67="","",IF(COUNTIF(E:E,E67)>1,"Duplicate Item",IF(J67=0,"Extension Is Empty",IF(MID(E67,11,1)="{","Check Item No",IF(AND(C67<=25,COUNTIF(C:C,C67)>1),"Duplicate Rank",""))))) ->  | C67: =IF(E67="","",RANK(J67,J:J)) -> 40 | E67: 715-05244 | F67: PIPE, TYPE 1 DEFORMED MIN AREA 11.6 SF | G67: 50 | H67: L.F. | I67: 114.83 | J67: 5741.5 | K67: 114.83 | L67: 5741.5 | M67: 0 | N67: 0 | O67: 114.83 | P67: 5741.5 | Q67: 3 | R67: 0 | S67: 135.13 | T67: 6756.5 | U67: 6 | V67: 0 | W67: 700 | X67: 66 | Z67: 0 | AA67: 0 | AB67: 0 | AC67: 5742 | AD67: 5742 | AE67: 5742 | AF67: 5742 | AG67: 6757
C68: 52 | E68: 715-05407 | F68: PIPE, END BENT DRAIN, 6 IN | G68: 240 | H68: L.F. | I68: 12.81 | J68: 3074.4 | K68: 12.81 | L68: 3074.4 | M68: 22 | N68: 0 | O68: 11.22 | P68: 2692.8 | Q68: 86 | R68: 0 | S68: 10.99 | T68: 2637.6 | U68: 254 | V68: 0 | W68: 700 | X68: 67 | Z68: 0 | AA68: 0 | AB68: 22 | AC68: 3074 | AD68: 3074 | AE68: 3074 | AF68: 2693 | AG68: 2638
C69: 53 | E69: 715-07107 | F69: PIPE END SECTION, MIN AREA 11.6 SF | G69: 2 | H69: EACH | I69: 1390 | J69: 2780 | K69: 1390 | L69: 2780 | M69: 4 | N69: 0 | O69: 1336.91 | P69: 2673.82 | Q69: 6 | R69: 0 | S69: 1336.91 | T69: 2673.82 | U69: 6 | V69: 0 | W69: 700 | X69: 68 | Z69: 0 | AA69: 0 | AB69: 4 | AC69: 2780 | AD69: 2780 | AE69: 2780 | AF69: 2674 | AG69: 2674
C70: 43 | E70: 715-08305 | F70: HMA FOR STRUCTURE INSTALLATION, TYPE B | G70: 38.2 | H70: TON | I70: 145.84 | J70: 5571.09 | K70: 145.84 | L70: 5571.09 | M70: 7 | N70: 0 | O70: 128.3 | P70: 4901.06 | Q70: 33 | R70: 0 | S70: 135.21 | T70: 5165.02 | U70: 92 | V70: 0 | W70: 700 | X70: 69 | Z70: 0 | AA70: 0 | AB70: 7 | AC70: 5571 | AD70: 5571 | AE70: 5571 | AF70: 4901 | AG70: 5165
C71: 70 | E71: 715-09064 | F71: VIDEO INSPECTION FOR PIPE | G71: 226 | H71: L.F. | I71: 3.75 | J71: 847.5 | K71: 3.75 | L71: 847.5 | M71: 1 | N71: 0 | O71: 7.26 | P71: 1640.76 | Q71: 17 | R71: 0 | S71: 6.6 | T71: 1491.6 | U71: 52 | V71: 0 | W71: 700 | X71: 70 | Z71: 0 | AA71: 0 | AB71: 1 | AC71: 848 | AD71: 848 | AE71: 848 | AF71: 1641 | AG71: 1492
C72: 75 | E72: 801-03290 | F72: CONSTRUCTION SIGN, C | G72: 2 | H72: EACH | I72: 155.03 | J72: 310.06 | K72: 155.03 | L72: 310.06 | M72: 104 | N72: 0 | O72: 220.49 | P72: 440.98 | Q72: 483 | R72: 0 | S72: 202.68 | T72: 405.36 | U72: 2669 | V72: 0 | W72: 800 | X72: 71 | Z72: 0 | AA72: 0 | AB72: 104 | AC72: 310 | AD72: 310 | AE72: 310 | AF72: 441 | AG72: 405
C73: 55 | E73: 801-06207 | F73: TEMPORARY PAVEMENT MARKING, REMOVABLE, 4 IN | G73: 2280 | H73: L.F. | I73: 1.03 | J73: 2348.4 | K73: 1.03 | L73: 2348.4 | M73: 15 | N73: 0 | O73: 1.1 | P73: 2508 | Q73: 102 | R73: 0 | S73: 1.08 | T73: 2462.4 | U73: 607 | V73: 0 | W73: 800 | X73: 72 | Z73: 0 | AA73: 0 | AB73: 15 | AC73: 2348 | AD73: 2348 | AE73: 2348 | AF73: 2508 | AG73: 2462
C74: 57 | E74: 801-06640 | F74: CONSTRUCTION SIGN, A | G74: 18 | H74: EACH | I74: 123.84 | J74: 2229.12 | K74: 123.84 | L74: 2229.12 | M74: 104 | N74: 0 | O74: 154.88 | P74: 2787.84 | Q74: 483 | R74: 0 | S74: 134.66 | T74: 2423.88 | U74: 2444 | V74: 0 | W74: 800 | X74: 73 | Z74: 0 | AA74: 0 | AB74: 104 | AC74: 2229 | AD74: 2229 | AE74: 2229 | AF74: 2788 | AG74: 2424
C75: 76 | E75: 801-06645 | F75: CONSTRUCTION SIGN, B | G75: 2 | H75: EACH | I75: 48.15 | J75: 96.3 | K75: 48.15 | L75: 96.3 | M75: 34 | N75: 0 | O75: 75.33 | P75: 150.66 | Q75: 162 | R75: 0 | S75: 68.11 | T75: 136.22 | U75: 622 | V75: 0 | W75: 800 | X75: 74 | Z75: 0 | AA75: 0 | AB75: 34 | AC75: 96 | AD75: 96 | AE75: 96 | AF75: 151 | AG75: 136
C76: 62 | E76: 801-06710 | F76: FLASHING ARROW SIGN | G76: 120 | H76: DAY | I76: 14.2 | J76: 1704 | K76: 14.2 | L76: 1704 | M76: 26 | N76: 0 | O76: 12.22 | P76: 1466.4 | Q76: 95 | R76: 0 | S76: 11.49 | T76: 1378.8 | U76: 488 | V76: 0 | W76: 800 | X76: 75 | Z76: 0 | AA76: 0 | AB76: 26 | AC76: 1704 | AD76: 1704 | AE76: 1704 | AF76: 1466 | AG76: 1379
C77: 14 | E77: 801-06775 | F77: MAINTAINING TRAFFIC | G77: 1 | H77: L.S. | I77: 24850.93 | J77: 24850.93 | K77: 24850.93 | L77: 24850.93 | M77: 125 | N77: 0 | O77: 27443.21 | P77: 27443.21 | Q77: 480 | R77: 0 | S77: 36965.59 | T77: 36965.59 | U77: 2273 | V77: 0 | W77: 800 | X77: 76 | Z77: 0 | AA77: 0 | AB77: 125 | AC77: 24851 | AD77: 24851 | AE77: 24851 | AF77: 27443 | AG77: 36966
C78: 34 | E78: 801-07023 | F78: ENERGY ABSORBING TERMINAL, CZ, TL-2 | G78: 1 | H78: EACH | I78: 6300 | J78: 6300 | K78: 6300 | L78: 6300 | M78: 1 | N78: 0 | O78: 5475.04 | P78: 5475.04 | Q78: 29 | R78: 0 | S78: 5187.57 | T78: 5187.57 | U78: 101 | V78: 0 | W78: 800 | X78: 77 | Z78: 0 | AA78: 0 | AB78: 1 | AC78: 6300 | AD78: 6300 | AE78: 6300 | AF78: 5475 | AG78: 5188
C79: 30 | E79: 801-08401 | F79: TEMPORARY TRAFFIC BARRIER, TYPE 2 | G79: 300 | H79: L.F. | I79: 31.58 | J79: 9474 | K79: 31.58 | L79: 9474 | M79: 13 | N79: 0 | O79: 31.62 | P79: 9486 | Q79: 41 | R79: 0 | S79: 33.81 | T79: 10143 | U79: 89 | V79: 0 | W79: 800 | X79: 78 | Z79: 0 | AA79: 0 | AB79: 13 | AC79: 9474 | AD79: 9474 | AE79: 9474 | AF79: 9486 | AG79: 10143
C80: 42 | E80: 801-08508 | F80: TEMPORARY TRAFFIC BARRIER, TYPE 2, ANCHORED | G80: 150 | H80: L.F. | I80: 38 | J80: 5700 | K80: 38 | L80: 5700 | M80: 1 | N80: 0 | O80: 47.97 | P80: 7195.5 | Q80: 21 | R80: 0 | S80: 42.67 | T80: 6400.5 | U80: 65 | V80: 0 | W80: 800 | X80: 79 | Z80: 0 | AA80: 0 | AB80: 1 | AC80: 5700 | AD80: 5700 | AE80: 5700 | AF80: 7196 | AG80: 6401
C81: 68 | E81: 808-10033 | F81: LINE, MULTI-COMP, SOLID, WHITE, 4 IN | G81: 200 | H81: L.F. | I81: 4.5 | J81: 900 | K81: 4.5 | L81: 900 | M81: 1 | N81: 0 | O81: 2.34 | P81: 468 | Q81: 15 | R81: 0 | S81: 2.64 | T81: 528 | U81: 27 | V81: 0 | W81: 800 | X81: 80 | Z81: 0 | AA81: 0 | AB81: 1 | AC81: 900 | AD81: 900 | AE81: 900 | AF81: 468 | AG81: 528
C82: 68 | E82: 808-10034 | F82: LINE, MULTI-COMP, SOLID, YELLOW, 4 IN | G82: 200 | H82: L.F. | I82: 4.5 | J82: 900 | K82: 4.5 | L82: 900 | M82: 1 | N82: 0 | O82: 4.76 | P82: 952 | Q82: 12 | R82: 0 | S82: 3.73 | T82: 746 | U82: 21 | V82: 0 | W82: 800 | X82: 81 | Z82: 0 | AA82: 0 | AB82: 1 | AC82: 900 | AD82: 900 | AE82: 900 | AF82: 952 | AG82: 746
F84: TOTALS | J84: 2324128.14 | K84: 2324128.14 | O84: 2379785.37 | S84: 2451560.1 | AA84: 0 | AC84: 2324128
B131: =IF(E131="","",IF(COUNTIF(E:E,E131)>1,"Duplicate Item",IF(J131=0,"Extension Is Empty",IF(MID(E131,11,1)="{","Check Item No",IF(AND(C131<=25,COUNTIF(C:C,C131)>1),"Duplicate Rank",""))))) ->  | C131: =IF(E131="","",RANK(J131,J:J)) -> 
B195: =IF(E195="","",IF(COUNTIF(E:E,E195)>1,"Duplicate Item",IF(J195=0,"Extension Is Empty",IF(MID(E195,11,1)="{","Check Item No",IF(AND(C195<=25,COUNTIF(C:C,C195)>1),"Duplicate Rank",""))))) ->  | C195: =IF(E195="","",RANK(J195,J:J)) -> 
B259: =IF(E259="","",IF(COUNTIF(E:E,E259)>1,"Duplicate Item",IF(J259=0,"Extension Is Empty",IF(MID(E259,11,1)="{","Check Item No",IF(AND(C259<=25,COUNTIF(C:C,C259)>1),"Duplicate Rank",""))))) ->  | C259: =IF(E259="","",RANK(J259,J:J)) -> 
B323: =IF(E323="","",IF(COUNTIF(E:E,E323)>1,"Duplicate Item",IF(J323=0,"Extension Is Empty",IF(MID(E323,11,1)="{","Check Item No",IF(AND(C323<=25,COUNTIF(C:C,C323)>1),"Duplicate Rank",""))))) ->  | C323: =IF(E323="","",RANK(J323,J:J)) -> 
B387: =IF(E387="","",IF(COUNTIF(E:E,E387)>1,"Duplicate Item",IF(J387=0,"Extension Is Empty",IF(MID(E387,11,1)="{","Check Item No",IF(AND(C387<=25,COUNTIF(C:C,C387)>1),"Duplicate Rank",""))))) ->  | C387: =IF(E387="","",RANK(J387,J:J)) -> 
B451: =IF(E451="","",IF(COUNTIF(E:E,E451)>1,"Duplicate Item",IF(J451=0,"Extension Is Empty",IF(MID(E451,11,1)="{","Check Item No",IF(AND(C451<=25,COUNTIF(C:C,C451)>1),"Duplicate Rank",""))))) ->  | C451: =IF(E451="","",RANK(J451,J:J)) -> 
B515: =IF(E515="","",IF(COUNTIF(E:E,E515)>1,"Duplicate Item",IF(J515=0,"Extension Is Empty",IF(MID(E515,11,1)="{","Check Item No",IF(AND(C515<=25,COUNTIF(C:C,C515)>1),"Duplicate Rank",""))))) ->  | C515: =IF(E515="","",RANK(J515,J:J)) -> 
B579: =IF(E579="","",IF(COUNTIF(E:E,E579)>1,"Duplicate Item",IF(J579=0,"Extension Is Empty",IF(MID(E579,11,1)="{","Check Item No",IF(AND(C579<=25,COUNTIF(C:C,C579)>1),"Duplicate Rank",""))))) ->  | C579: =IF(E579="","",RANK(J579,J:J)) -> 
B643: =IF(E643="","",IF(COUNTIF(E:E,E643)>1,"Duplicate Item",IF(J643=0,"Extension Is Empty",IF(MID(E643,11,1)="{","Check Item No",IF(AND(C643<=25,COUNTIF(C:C,C643)>1),"Duplicate Rank",""))))) ->  | C643: =IF(E643="","",RANK(J643,J:J)) -> 
B707: =IF(E707="","",IF(COUNTIF(E:E,E707)>1,"Duplicate Item",IF(J707=0,"Extension Is Empty",IF(MID(E707,11,1)="{","Check Item No",IF(AND(C707<=25,COUNTIF(C:C,C707)>1),"Duplicate Rank",""))))) ->  | C707: =IF(E707="","",RANK(J707,J:J)) -> 
B771: =IF(E771="","",IF(COUNTIF(E:E,E771)>1,"Duplicate Item",IF(J771=0,"Extension Is Empty",IF(MID(E771,11,1)="{","Check Item No",IF(AND(C771<=25,COUNTIF(C:C,C771)>1),"Duplicate Rank",""))))) ->  | C771: =IF(E771="","",RANK(J771,J:J)) -> 
B835: =IF(E835="","",IF(COUNTIF(E:E,E835)>1,"Duplicate Item",IF(J835=0,"Extension Is Empty",IF(MID(E835,11,1)="{","Check Item No",IF(AND(C835<=25,COUNTIF(C:C,C835)>1),"Duplicate Rank",""))))) ->  | C835: =IF(E835="","",RANK(J835,J:J)) -> 
B899: =IF(E899="","",IF(COUNTIF(E:E,E899)>1,"Duplicate Item",IF(J899=0,"Extension Is Empty",IF(MID(E899,11,1)="{","Check Item No",IF(AND(C899<=25,COUNTIF(C:C,C899)>1),"Duplicate Rank",""))))) ->  | C899: =IF(E899="","",RANK(J899,J:J)) -> 
B963: =IF(E963="","",IF(COUNTIF(E:E,E963)>1,"Duplicate Item",IF(J963=0,"Extension Is Empty",IF(MID(E963,11,1)="{","Check Item No",IF(AND(C963<=25,COUNTIF(C:C,C963)>1),"Duplicate Rank",""))))) ->  | C963: =IF(E963="","",RANK(J963,J:J)) -> 
B996: =IF(J996="","",IF(COUNTIF(E:E,E996)>1,"Duplicate Item",IF(AND(C996<=25,COUNTIF(C:C,C996)>1),"Duplicate Rank",""))) ->  | C996: =IF(J996="","",RANK(J996,J:J)) -> 

Sheet 3a) Data
A1: Change Selected Total: | E1: # All Items | I1: Unit Price | J1: Selected Set: | O1: Extension 1 | Q1: Comparison | U1: Extension 2 | W1: Comparison | AA1: Extension 3 | AC1: Comparison
H2: Grand Total | I2: =SUM(I14:I999) -> 2324128.15 | J2: =IF(I2=0,"",IF(I2=O2,"Comparison 1",IF(I2=U2,"Comparison 2",IF(I2=AA2,"Comparison 3","")))) -> Comparison 1 | N2: Grand Total | O2: =SUM(O14:O999) -> 2324128.15 | Q2: 1 | T2: Grand Total | U2: =SUM(U14:U999) -> 2379785.37 | W2: 2 | Z2: Grand Total | AA2: =SUM(AA14:AA999) -> 2451560.1 | AC2: 3 | AE2: =IF(I2="","",MAX(O2,U2,AA2)) -> 2451560.1 | AI2: =IF(I2="","",MIN(O2,U2,AA2)) -> 2324128.15
A3: By %: | B3: =IF(I2="","",(A10-50)/200) -> 0 | E3: =COUNT(E14:E999) -> 81 | H3: Filtered Total | I3: =IF(E3=E9,"",SUBTOTAL(9,I$14:I$65536)) ->  | N3: Filtered Total | O3: =IF(E3=E9,"",SUBTOTAL(9,O$14:O$65536)) ->  | T3: Filtered Total | U3: =IF(E3=E9,"",SUBTOTAL(9,U$14:U$65536)) ->  | Z3: Filtered Total | AA3: =IF(E3=E9,"",SUBTOTAL(9,AA$14:AA$65536)) ->  | AE3: =IF(I3="","",MAX(O3,U3,AA3)) ->  | AI3: =IF(I3="","",MIN(O3,U3,AA3)) -> 
A5: By $: | B5: =IF(A8=I2,"No Changes",A8-I2) -> No Changes | H5: Overall Max | I5: =MAX(I14:I999) -> 438759.6 | J5: =IF(I2=0,"Stop!! Selected Set is Empty in Oman","") ->  | N5: Overall Max | O5: =MAX(O14:O999) -> 438759.6 | Q5: =IF(O2=0,"",IF(O2=$I$2,"Selected","")) -> Selected | T5: Overall Max | U5: =MAX(U14:U999) -> 438759.6 | W5: =IF(U2=0,"",IF(U2=$I$2,"Selected","")) ->  | Z5: Overall Max | AA5: =MAX(AA14:AA999) -> 473659.2 | AC5: =IF(AA2=0,"",IF(AA2=$I$2,"Selected","")) ->  | AE5: 473659.2 | AI5: 438759.6
A6: New Selected Total: | E6: # Filtered Items: | H6: Filtered Max | I6: =IF(E3=E9,"",SUBTOTAL(4,I$14:I$65536)) ->  | N6: Filtered Max | O6: =IF(E3=E9,"",SUBTOTAL(4,O$14:O$65536)) ->  | P6: Correlation: | R6: =IF(O2=0,0,CORREL($I$13:$I$999,O13:O999)) -> 1 | T6: Filtered Max | U6: =IF(E3=E9,"",SUBTOTAL(4,U$14:U$65536)) ->  | V6: Correlation: | X6: =IF(U2=0,0,CORREL($I$13:$I$999,U13:U999)) -> 0.9957576295 | Z6: Filtered Max | AA6: =IF(E3=E9,"",SUBTOTAL(4,AA$14:AA$65536)) ->  | AB6: Correlation: | AD6: =IF(AA2=0,0,CORREL($I$13:$I$999,AA13:AA999)) -> 0.9921034989
R7: =IF(R6=1,"Match",IF(ABS(R6)>=0.7,"Strong",IF(ABS(R6)>=0.3,"Moderate","Weak"))) -> Match | X7: =IF(X6=1,"Match",IF(ABS(X6)>=0.7,"Strong",IF(ABS(X6)>=0.3,"Moderate","Weak"))) -> Strong | AD7: =IF(AD6=1,"Match",IF(ABS(AD6)>=0.7,"Strong",IF(ABS(AD6)>=0.3,"Moderate","Weak"))) -> Strong
A8: =IF(B3=0,I2,(B3+1)*I2) -> 2324128.15 | H8: Overall Min | I8: =MIN(I17:I999) -> 1 | N8: Overall Min | O8: =MIN(O17:O999) -> 1 | T8: Overall Min | U8: =MIN(U17:U999) -> 1 | Z8: Overall Min | AA8: =MIN(AA17:AA999) -> 1 | AE8: 1 | AI8: 1
E9: =SUBTOTAL(2,E$14:E$65536) -> 81 | H9: Filtered Min: | I9: =IF(E3=E9,"",SUBTOTAL(5,I$14:I$65536)) ->  | J9: Value Per Row: | N9: Filtered Min: | O9: =IF(E3=E9,"",SUBTOTAL(5,O$14:O$65536)) ->  | Q9: Value Per Row: | T9: Filtered Min: | U9: =IF(E3=E9,"",SUBTOTAL(5,U$14:U$65536)) ->  | W9: Value Per Row: | Z9: Filtered Min: | AA9: =IF(E3=E9,"",SUBTOTAL(5,AA$14:AA$65536)) ->  | AC9: Value Per Row:
A10: 50 | B10: =IF(E3=E9,"No filter Applied","Filter Applied") -> No filter Applied | J10: Green-Min | L10: Editable | Q10: Green-Min | W10: Green-Min | AC10: Green-Min
H11: % of Total | I11: =IF(I2=0,0,SUBTOTAL(9,I$14:I$65536)/SUMPRODUCT(E14:E999,H14:H999)) -> 1.000000005 | J11: Yellow-Max | L11: Column | N11: % of Total | O11: =IF(O2=0,0,SUBTOTAL(9,O$14:O$65536)/SUMPRODUCT(E14:E999,N14:N999)) -> 1.000000005 | Q11: Yellow-Max | T11: % of Total | U11: =IF(U2=0,0,SUBTOTAL(9,U$14:U$65536)/SUMPRODUCT(E14:E999,T14:T999)) -> 1.000000002 | W11: Yellow-Max | Z11: % of Total | AA11: =IF(AA2=0,0,SUBTOTAL(9,AA$14:AA$65536)/SUMPRODUCT(E14:E999,Z14:Z999)) -> 0.9999999984 | AC11: Yellow-Max | AE11: 1.000000005 | AI11: 0.9999999984
A13: Main Section | B13: Sub Section | C13: Pay Item | D13: Description | E13: Quantity | F13: Unit | G13: x | H13: Unit Price | I13: Extension | J13: % of Total | K13: Rank | L13: Select x | M13: y | N13: Comparison 1 Avr. Price | O13: Extension 1 | P13: % of Total 1 | Q13: Rank 1 | R13: Count 1 | S13: z | T13: Comparison 2 Avr. Price | U13: Extension 2 | V13: % of Total 2 | W13: Rank 2 | X13: Count 2 | Y13: zz | Z13: Comparison 3 Avr. Price | AA13: Extension 3 | AB13: % of Total 3 | AC13: Rank 3 | AD13: Count 3 | AE13: Max | AF13: C1 | AG13: C2 | AH13: C3 | AI13: Min | AJ13: Average | AK13: Main Section2 | AL13: Sub Section2 | AM13: Average Item | AN13: Cases | AO13: Sort code
A14: =IF(C14="","",LEFT(C14,1)*100) -> 100 | B14: =IF(C14="","",LEFT(C14,3)) -> 105 | C14: =IF('2) Raw'!E2="","",'2) Raw'!E2) -> 105-06845 | D14: =IF('2) Raw'!$E2="","",PROPER('2) Raw'!F2)) -> Construction Engineering | E14: =IF('2) Raw'!$E2="","",'2) Raw'!G2) -> 1 | F14: =IF('2) Raw'!$E2="","",'2) Raw'!H2) -> L.S. | H14: =IF('2) Raw'!$E2="","",'2) Raw'!I2) -> 21699.91 | I14: =IF('2) Raw'!$E2="","",'2) Raw'!J2) -> 21699.91 | J14: =IF(OR(I14="",$I$2=0),"",I14/$I$2) -> 0.009336795822 | K14: =IF(J14="","",RANK(J14,$J$14:$J$999)) -> 18 | N14: =IF('2) Raw'!$E2="","",'2) Raw'!K2) -> 21699.91 | O14: =IF('2) Raw'!$E2="","",'2) Raw'!L2) -> 21699.91 | P14: =IF(OR(O14="",O14=0),"",O14/$O$2) -> 0.009336795822 | Q14: =IF(P14="","",RANK(P14,$P$14:$P$999)) -> 18 | R14: =IF('2) Raw'!$E2="","",'2) Raw'!M2) -> 120 | T14: =IF('2) Raw'!$E2="","",'2) Raw'!O2) -> 19022.26 | U14: =IF('2) Raw'!$E2="","",'2) Raw'!P2) -> 19022.26 | V14: =IF(OR(U14="",$U$2=0),"",U14/$U$2) -> 0.007993267057 | W14: =IF(V14="","",RANK(V14,$V$14:$V$999)) -> 19 | X14: =IF('2) Raw'!$E2="","",'2) Raw'!Q2) -> 527 | Z14: =IF('2) Raw'!$E2="","",'2) Raw'!S2) -> 14825.95 | AA14: =IF('2) Raw'!$E2="","",'2) Raw'!T2) -> 14825.95 | AB14: =IF(OR(AA14="",$AA$2=0),"",AA14/$AA$2) -> 0.006047557227 | AC14: =IF(AB14="","",RANK(AB14,$AB$14:$AB$999)) -> 22 | AD14: =IF('2) Raw'!$E2="","",'2) Raw'!U2) -> 2337 | AE14: =IF(E14="","",MAX(O14,U14,AA14)) -> 21699.91 | AF14: =O14 -> 21699.91 | AG14: =U14 -> 19022.26 | AH14: =AA14 -> 14825.95 | AI14: =MIN(IF(AF14:AH14=0,"",AF14:AH14)) -> 14825.95 | AJ14: =IF(E14="","",AVERAGE(O14,U14,AA14)) -> 18516.04 | AK14: =IF(E14="","",VLOOKUP(A14,List!$A$2:$D$186,2,FALSE)) -> General Provisions | AL14: =IF(E14="","",VLOOKUP(VALUE(B14),List!$C$2:$D$186,2,FALSE)) -> Control Of Work | AM14: =IF(E14="","",IF(AND($U$2=0,$AA$2=0),N14,IF($AA$2=0,AVERAGE(N14,T14),AVERAGE(N14,T14,Z14)))) -> 18516.04 | AN14: =IF(E14="","",IF(OR(R14=0,X14=0,AD14=0),C14,"")) ->  | AO14: =IF('2) Raw'!$X2="","",'2) Raw'!X2) -> 1
A15: 100 | B15: 109 | C15: =IF('2) Raw'!E3="","",'2) Raw'!E3) -> 109-08359 | D15: =IF('2) Raw'!$E3="","",PROPER('2) Raw'!F3)) -> Liquidated Damages | E15: =IF('2) Raw'!$E3="","",'2) Raw'!G3) -> 1 | F15: =IF('2) Raw'!$E3="","",'2) Raw'!H3) -> $ | H15: =IF('2) Raw'!$E3="","",'2) Raw'!I3) -> 1 | I15: =IF('2) Raw'!$E3="","",'2) Raw'!J3) -> 1 | J15: =IF(OR(I15="",$I$2=0),"",I15/$I$2) -> 4.302688731e-07 | K15: 76 | N15: =IF('2) Raw'!$E3="","",'2) Raw'!K3) -> 1 | O15: =IF('2) Raw'!$E3="","",'2) Raw'!L3) -> 1 | P15: =IF(OR(O15="",O15=0),"",O15/$O$2) -> 4.302688731e-07 | Q15: 76 | R15: =IF('2) Raw'!$E3="","",'2) Raw'!M3) -> 215 | T15: =IF('2) Raw'!$E3="","",'2) Raw'!O3) -> 1 | U15: =IF('2) Raw'!$E3="","",'2) Raw'!P3) -> 1 | V15: =IF(OR(U15="",$U$2=0),"",U15/$U$2) -> 4.202059617e-07 | W15: 77 | X15: =IF('2) Raw'!$E3="","",'2) Raw'!Q3) -> 959 | Z15: =IF('2) Raw'!$E3="","",'2) Raw'!S3) -> 1 | AA15: =IF('2) Raw'!$E3="","",'2) Raw'!T3) -> 1 | AB15: =IF(OR(AA15="",$AA$2=0),"",AA15/$AA$2) -> 4.079035223e-07 | AC15: 77 | AD15: =IF('2) Raw'!$E3="","",'2) Raw'!U3) -> 4807 | AE15: =IF(E15="","",MAX(O15,U15,AA15)) -> 1 | AF15: =O15 -> 1 | AG15: =U15 -> 1 | AH15: =AA15 -> 1 | AI15: =MIN(IF(AF15:AH15=0,"",AF15:AH15)) -> 1 | AJ15: =IF(E15="","",AVERAGE(O15,U15,AA15)) -> 1 | AK15: =IF(E15="","",VLOOKUP(A15,List!$A$2:$D$186,2,FALSE)) -> General Provisions | AL15: =IF(E15="","",VLOOKUP(VALUE(B15),List!$C$2:$D$186,2,FALSE)) -> Measurement And Payment | AM15: =IF(E15="","",IF(AND($U$2=0,$AA$2=0),N15,IF($AA$2=0,AVERAGE(N15,T15),AVERAGE(N15,T15,Z15)))) -> 1 | AN15: =IF(E15="","",IF(OR(R15=0,X15=0,AD15=0),C15,"")) ->  | AO15: =IF('2) Raw'!$X3="","",'2) Raw'!X3) -> 2
A16: 100 | B16: 109 | C16: =IF('2) Raw'!E4="","",'2) Raw'!E4) -> 109-08360 | D16: =IF('2) Raw'!$E4="","",PROPER('2) Raw'!F4)) -> Contract Liens | E16: =IF('2) Raw'!$E4="","",'2) Raw'!G4) -> 1 | F16: =IF('2) Raw'!$E4="","",'2) Raw'!H4) -> $ | H16: =IF('2) Raw'!$E4="","",'2) Raw'!I4) -> 1 | I16: =IF('2) Raw'!$E4="","",'2) Raw'!J4) -> 1 | J16: 4.302688731e-07 | K16: 76 | N16: =IF('2) Raw'!$E4="","",'2) Raw'!K4) -> 1 | O16: =IF('2) Raw'!$E4="","",'2) Raw'!L4) -> 1 | P16: 4.302688731e-07 | Q16: 76 | R16: =IF('2) Raw'!$E4="","",'2) Raw'!M4) -> 212 | T16: =IF('2) Raw'!$E4="","",'2) Raw'!O4) -> 1 | U16: =IF('2) Raw'!$E4="","",'2) Raw'!P4) -> 1 | V16: 4.202059617e-07 | W16: 77 | X16: =IF('2) Raw'!$E4="","",'2) Raw'!Q4) -> 959 | Z16: =IF('2) Raw'!$E4="","",'2) Raw'!S4) -> 1 | AA16: =IF('2) Raw'!$E4="","",'2) Raw'!T4) -> 1 | AB16: 4.079035223e-07 | AC16: 77 | AD16: =IF('2) Raw'!$E4="","",'2) Raw'!U4) -> 4813 | AE16: 1 | AF16: 1 | AG16: 1 | AH16: 1 | AI16: =MIN(IF(AF16:AH16=0,"",AF16:AH16)) -> 1 | AJ16: 1 | AK16: =IF(E16="","",VLOOKUP(A16,List!$A$2:$D$186,2,FALSE)) -> General Provisions | AL16: =IF(E16="","",VLOOKUP(VALUE(B16),List!$C$2:$D$186,2,FALSE)) -> Measurement And Payment | AM16: 1 | AO16: =IF('2) Raw'!$X4="","",'2) Raw'!X4) -> 3
A17: 100 | B17: 109 | C17: =IF('2) Raw'!E5="","",'2) Raw'!E5) -> 109-08443 | D17: =IF('2) Raw'!$E5="","",PROPER('2) Raw'!F5)) -> Quality Adjustments, Temporary Traffic Control Devices | E17: =IF('2) Raw'!$E5="","",'2) Raw'!G5) -> 1 | F17: =IF('2) Raw'!$E5="","",'2) Raw'!H5) -> $ | H17: =IF('2) Raw'!$E5="","",'2) Raw'!I5) -> 1 | I17: =IF('2) Raw'!$E5="","",'2) Raw'!J5) -> 1 | J17: 4.302688731e-07 | K17: 76 | N17: =IF('2) Raw'!$E5="","",'2) Raw'!K5) -> 1 | O17: =IF('2) Raw'!$E5="","",'2) Raw'!L5) -> 1 | P17: 4.302688731e-07 | Q17: 76 | R17: =IF('2) Raw'!$E5="","",'2) Raw'!M5) -> 200 | T17: =IF('2) Raw'!$E5="","",'2) Raw'!O5) -> 1 | U17: =IF('2) Raw'!$E5="","",'2) Raw'!P5) -> 1 | V17: 4.202059617e-07 | W17: 77 | X17: =IF('2) Raw'!$E5="","",'2) Raw'!Q5) -> 898 | Z17: =IF('2) Raw'!$E5="","",'2) Raw'!S5) -> 1 | AA17: =IF('2) Raw'!$E5="","",'2) Raw'!T5) -> 1 | AB17: 4.079035223e-07 | AC17: 77 | AD17: =IF('2) Raw'!$E5="","",'2) Raw'!U5) -> 4582 | AE17: 1 | AF17: 1 | AG17: 1 | AH17: 1 | AI17: =MIN(IF(AF17:AH17=0,"",AF17:AH17)) -> 1 | AJ17: 1 | AK17: =IF(E17="","",VLOOKUP(A17,List!$A$2:$D$186,2,FALSE)) -> General Provisions | AL17: =IF(E17="","",VLOOKUP(VALUE(B17),List!$C$2:$D$186,2,FALSE)) -> Measurement And Payment | AM17: 1 | AO17: =IF('2) Raw'!$X5="","",'2) Raw'!X5) -> 4
A18: 100 | B18: 109 | C18: =IF('2) Raw'!E6="","",'2) Raw'!E6) -> 109-08444 | D18: =IF('2) Raw'!$E6="","",PROPER('2) Raw'!F6)) -> Quality Adjustments, Failed Materials | E18: =IF('2) Raw'!$E6="","",'2) Raw'!G6) -> 1 | F18: =IF('2) Raw'!$E6="","",'2) Raw'!H6) -> $ | H18: =IF('2) Raw'!$E6="","",'2) Raw'!I6) -> 1 | I18: =IF('2) Raw'!$E6="","",'2) Raw'!J6) -> 1 | J18: 4.302688731e-07 | K18: 76 | N18: =IF('2) Raw'!$E6="","",'2) Raw'!K6) -> 1 | O18: =IF('2) Raw'!$E6="","",'2) Raw'!L6) -> 1 | P18: 4.302688731e-07 | Q18: 76 | R18: =IF('2) Raw'!$E6="","",'2) Raw'!M6) -> 209 | T18: =IF('2) Raw'!$E6="","",'2) Raw'!O6) -> 1 | U18: =IF('2) Raw'!$E6="","",'2) Raw'!P6) -> 1 | V18: 4.202059617e-07 | W18: 77 | X18: =IF('2) Raw'!$E6="","",'2) Raw'!Q6) -> 936 | Z18: =IF('2) Raw'!$E6="","",'2) Raw'!S6) -> 1 | AA18: =IF('2) Raw'!$E6="","",'2) Raw'!T6) -> 1 | AB18: 4.079035223e-07 | AC18: 77 | AD18: =IF('2) Raw'!$E6="","",'2) Raw'!U6) -> 4626 | AE18: 1 | AF18: 1 | AG18: 1 | AH18: 1 | AI18: =MIN(IF(AF18:AH18=0,"",AF18:AH18)) -> 1 | AJ18: 1 | AK18: =IF(E18="","",VLOOKUP(A18,List!$A$2:$D$186,2,FALSE)) -> General Provisions | AL18: =IF(E18="","",VLOOKUP(VALUE(B18),List!$C$2:$D$186,2,FALSE)) -> Measurement And Payment | AM18: 1 | AO18: =IF('2) Raw'!$X6="","",'2) Raw'!X6) -> 5
A19: 100 | B19: 109 | C19: =IF('2) Raw'!E7="","",'2) Raw'!E7) -> 109-08463 | D19: =IF('2) Raw'!$E7="","",PROPER('2) Raw'!F7)) -> Project Estimate Adjustment | E19: =IF('2) Raw'!$E7="","",'2) Raw'!G7) -> 1 | F19: =IF('2) Raw'!$E7="","",'2) Raw'!H7) -> $ | H19: =IF('2) Raw'!$E7="","",'2) Raw'!I7) -> 1 | I19: =IF('2) Raw'!$E7="","",'2) Raw'!J7) -> 1 | J19: 4.302688731e-07 | K19: 76 | N19: =IF('2) Raw'!$E7="","",'2) Raw'!K7) -> 1 | O19: =IF('2) Raw'!$E7="","",'2) Raw'!L7) -> 1 | P19: 4.302688731e-07 | Q19: 76 | R19: =IF('2) Raw'!$E7="","",'2) Raw'!M7) -> 76 | T19: =IF('2) Raw'!$E7="","",'2) Raw'!O7) -> 1 | U19: =IF('2) Raw'!$E7="","",'2) Raw'!P7) -> 1 | V19: 4.202059617e-07 | W19: 77 | X19: =IF('2) Raw'!$E7="","",'2) Raw'!Q7) -> 263 | Z19: =IF('2) Raw'!$E7="","",'2) Raw'!S7) -> 1 | AA19: =IF('2) Raw'!$E7="","",'2) Raw'!T7) -> 1 | AB19: 4.079035223e-07 | AC19: 77 | AD19: =IF('2) Raw'!$E7="","",'2) Raw'!U7) -> 1213 | AE19: 1 | AF19: 1 | AG19: 1 | AH19: 1 | AI19: =MIN(IF(AF19:AH19=0,"",AF19:AH19)) -> 1 | AJ19: 1 | AK19: =IF(E19="","",VLOOKUP(A19,List!$A$2:$D$186,2,FALSE)) -> General Provisions | AL19: =IF(E19="","",VLOOKUP(VALUE(B19),List!$C$2:$D$186,2,FALSE)) -> Measurement And Payment | AM19: 1 | AO19: =IF('2) Raw'!$X7="","",'2) Raw'!X7) -> 6
A20: 100 | B20: 110 | C20: =IF('2) Raw'!E8="","",'2) Raw'!E8) -> 110-01001 | D20: =IF('2) Raw'!$E8="","",PROPER('2) Raw'!F8)) -> Mobilization And Demobilization | E20: =IF('2) Raw'!$E8="","",'2) Raw'!G8) -> 1 | F20: =IF('2) Raw'!$E8="","",'2) Raw'!H8) -> L.S. | H20: =IF('2) Raw'!$E8="","",'2) Raw'!I8) -> 63332.89 | I20: =IF('2) Raw'!$E8="","",'2) Raw'!J8) -> 63332.89 | J20: 0.02725017121 | K20: 9 | N20: =IF('2) Raw'!$E8="","",'2) Raw'!K8) -> 63332.89 | O20: =IF('2) Raw'!$E8="","",'2) Raw'!L8) -> 63332.89 | P20: 0.02725017121 | Q20: 9 | R20: =IF('2) Raw'!$E8="","",'2) Raw'!M8) -> 156 | T20: =IF('2) Raw'!$E8="","",'2) Raw'!O8) -> 64358.53 | U20: =IF('2) Raw'!$E8="","",'2) Raw'!P8) -> 64358.53 | V20: 0.02704383799 | W20: 9 | X20: =IF('2) Raw'!$E8="","",'2) Raw'!Q8) -> 563 | Z20: =IF('2) Raw'!$E8="","",'2) Raw'!S8) -> 65198.94 | AA20: =IF('2) Raw'!$E8="","",'2) Raw'!T8) -> 65198.94 | AB20: 0.02659487728 | AC20: 9 | AD20: =IF('2) Raw'!$E8="","",'2) Raw'!U8) -> 2436 | AE20: 65198.94 | AF20: 63332.89 | AG20: 64358.53 | AH20: 65198.94 | AI20: =MIN(IF(AF20:AH20=0,"",AF20:AH20)) -> 63332.89 | AJ20: 64296.78667 | AK20: =IF(E20="","",VLOOKUP(A20,List!$A$2:$D$186,2,FALSE)) -> General Provisions | AL20: =IF(E20="","",VLOOKUP(VALUE(B20),List!$C$2:$D$186,2,FALSE)) -> Mobilization And Demobilization | AM20: 64296.78667 | AO20: =IF('2) Raw'!$X8="","",'2) Raw'!X8) -> 7
A21: 200 | B21: 201 | C21: =IF('2) Raw'!E9="","",'2) Raw'!E9) -> 201-52370 | D21: =IF('2) Raw'!$E9="","",PROPER('2) Raw'!F9)) -> Clearing Right Of Way | E21: =IF('2) Raw'!$E9="","",'2) Raw'!G9) -> 1 | F21: =IF('2) Raw'!$E9="","",'2) Raw'!H9) -> L.S. | H21: =IF('2) Raw'!$E9="","",'2) Raw'!I9) -> 23474.63 | I21: =IF('2) Raw'!$E9="","",'2) Raw'!J9) -> 23474.63 | J21: 0.0101004026 | K21: 15 | N21: =IF('2) Raw'!$E9="","",'2) Raw'!K9) -> 23474.63 | O21: =IF('2) Raw'!$E9="","",'2) Raw'!L9) -> 23474.63 | P21: 0.0101004026 | Q21: 15 | R21: =IF('2) Raw'!$E9="","",'2) Raw'!M9) -> 117 | T21: =IF('2) Raw'!$E9="","",'2) Raw'!O9) -> 26933.02 | U21: =IF('2) Raw'!$E9="","",'2) Raw'!P9) -> 26933.02 | V21: 0.01131741557 | W21: 14 | X21: =IF('2) Raw'!$E9="","",'2) Raw'!Q9) -> 444 | Z21: =IF('2) Raw'!$E9="","",'2) Raw'!S9) -> 29157.69 | AA21: =IF('2) Raw'!$E9="","",'2) Raw'!T9) -> 29157.69 | AB21: 0.01189352445 | AC21: 14 | AD21: =IF('2) Raw'!$E9="","",'2) Raw'!U9) -> 1227 | AE21: 29157.69 | AF21: 23474.63 | AG21: 26933.02 | AH21: 29157.69 | AI21: =MIN(IF(AF21:AH21=0,"",AF21:AH21)) -> 23474.63 | AJ21: 26521.78 | AK21: =IF(E21="","",VLOOKUP(A21,List!$A$2:$D$186,2,FALSE)) -> Earthwork | AL21: =IF(E21="","",VLOOKUP(VALUE(B21),List!$C$2:$D$186,2,FALSE)) -> Clearing And Grubbing | AM21: 26521.78 | AO21: =IF('2) Raw'!$X9="","",'2) Raw'!X9) -> 8
A22: 200 | B22: 202 | C22: =IF('2) Raw'!E10="","",'2) Raw'!E10) -> 202-96133 | D22: =IF('2) Raw'!$E10="","",PROPER('2) Raw'!F10)) -> Pipe, Remove | E22: =IF('2) Raw'!$E10="","",'2) Raw'!G10) -> 41 | F22: =IF('2) Raw'!$E10="","",'2) Raw'!H10) -> L.F. | H22: =IF('2) Raw'!$E10="","",'2) Raw'!I10) -> 20.35 | I22: =IF('2) Raw'!$E10="","",'2) Raw'!J10) -> 834.35 | J22: 0.0003589948343 | K22: 70 | N22: =IF('2) Raw'!$E10="","",'2) Raw'!K10) -> 20.35 | O22: =IF('2) Raw'!$E10="","",'2) Raw'!L10) -> 834.35 | P22: 0.0003589948343 | Q22: 70 | R22: =IF('2) Raw'!$E10="","",'2) Raw'!M10) -> 7 | T22: =IF('2) Raw'!$E10="","",'2) Raw'!O10) -> 23.4 | U22: =IF('2) Raw'!$E10="","",'2) Raw'!P10) -> 959.4 | V22: 0.0004031455996 | W22: 67 | X22: =IF('2) Raw'!$E10="","",'2) Raw'!Q10) -> 52 | Z22: =IF('2) Raw'!$E10="","",'2) Raw'!S10) -> 23.03 | AA22: =IF('2) Raw'!$E10="","",'2) Raw'!T10) -> 944.23 | AB22: 0.0003851547429 | AC22: 67 | AD22: =IF('2) Raw'!$E10="","",'2) Raw'!U10) -> 125 | AE22: 959.4 | AF22: 834.35 | AG22: 959.4 | AH22: 944.23 | AI22: =MIN(IF(AF22:AH22=0,"",AF22:AH22)) -> 834.35 | AJ22: 912.66 | AK22: =IF(E22="","",VLOOKUP(A22,List!$A$2:$D$186,2,FALSE)) -> Earthwork | AL22: =IF(E22="","",VLOOKUP(VALUE(B22),List!$C$2:$D$186,2,FALSE)) -> Removal Of Structures And Obstructions | AM22: 22.26 | AO22: =IF('2) Raw'!$X10="","",'2) Raw'!X10) -> 9
A23: 200 | B23: 202 | C23: =IF('2) Raw'!E11="","",'2) Raw'!E11) -> 202-99187 | D23: =IF('2) Raw'!$E11="","",PROPER('2) Raw'!F11)) -> Fence, Farm Field, Remove | E23: =IF('2) Raw'!$E11="","",'2) Raw'!G11) -> 589 | F23: =IF('2) Raw'!$E11="","",'2) Raw'!H11) -> L.F. | H23: =IF('2) Raw'!$E11="","",'2) Raw'!I11) -> 2 | I23: =IF('2) Raw'!$E11="","",'2) Raw'!J11) -> 1178 | J23: 0.0005068567325 | K23: 65 | N23: =IF('2) Raw'!$E11="","",'2) Raw'!K11) -> 2 | O23: =IF('2) Raw'!$E11="","",'2) Raw'!L11) -> 1178 | P23: 0.0005068567325 | Q23: 65 | R23: =IF('2) Raw'!$E11="","",'2) Raw'!M11) -> 1 | T23: =IF('2) Raw'!$E11="","",'2) Raw'!O11) -> 2.63 | U23: =IF('2) Raw'!$E11="","",'2) Raw'!P11) -> 1549.07 | V23: 0.0006509284491 | W23: 62 | X23: =IF('2) Raw'!$E11="","",'2) Raw'!Q11) -> 21 | Z23: =IF('2) Raw'!$E11="","",'2) Raw'!S11) -> 3.17 | AA23: =IF('2) Raw'!$E11="","",'2) Raw'!T11) -> 1867.13 | AB23: 0.0007616089037 | AC23: 60 | AD23: =IF('2) Raw'!$E11="","",'2) Raw'!U11) -> 44 | AE23: 1867.13 | AF23: 1178 | AG23: 1549.07 | AH23: 1867.13 | AI23: =MIN(IF(AF23:AH23=0,"",AF23:AH23)) -> 1178 | AJ23: 1531.4 | AK23: =IF(E23="","",VLOOKUP(A23,List!$A$2:$D$186,2,FALSE)) -> Earthwork | AL23: =IF(E23="","",VLOOKUP(VALUE(B23),List!$C$2:$D$186,2,FALSE)) -> Removal Of Structures And Obstructions | AM23: 2.6 | AO23: =IF('2) Raw'!$X11="","",'2) Raw'!X11) -> 10
A24: 200 | B24: 203 | C24: =IF('2) Raw'!E12="","",'2) Raw'!E12) -> 203-02010 | D24: =IF('2) Raw'!$E12="","",PROPER('2) Raw'!F12)) -> Excavation, Rock | E24: =IF('2) Raw'!$E12="","",'2) Raw'!G12) -> 100 | F24: =IF('2) Raw'!$E12="","",'2) Raw'!H12) -> C.Y. | H24: =IF('2) Raw'!$E12="","",'2) Raw'!I12) -> 67.33 | I24: =IF('2) Raw'!$E12="","",'2) Raw'!J12) -> 6733 | J24: 0.002897000322 | K24: 32 | N24: =IF('2) Raw'!$E12="","",'2) Raw'!K12) -> 67.33 | O24: =IF('2) Raw'!$E12="","",'2) Raw'!L12) -> 6733 | P24: 0.002897000322 | Q24: 32 | R24: =IF('2) Raw'!$E12="","",'2) Raw'!M12) -> 0 | T24: =IF('2) Raw'!$E12="","",'2) Raw'!O12) -> 67.33 | U24: =IF('2) Raw'!$E12="","",'2) Raw'!P12) -> 6733 | V24: 0.00282924674 | W24: 34 | X24: =IF('2) Raw'!$E12="","",'2) Raw'!Q12) -> 3 | Z24: =IF('2) Raw'!$E12="","",'2) Raw'!S12) -> 96.46 | AA24: =IF('2) Raw'!$E12="","",'2) Raw'!T12) -> 9646 | AB24: 0.003934637376 | AC24: 30 | AD24: =IF('2) Raw'!$E12="","",'2) Raw'!U12) -> 23 | AE24: 9646 | AF24: 6733 | AG24: 6733 | AH24: 9646 | AI24: =MIN(IF(AF24:AH24=0,"",AF24:AH24)) -> 6733 | AJ24: 7704 | AK24: =IF(E24="","",VLOOKUP(A24,List!$A$2:$D$186,2,FALSE)) -> Earthwork | AL24: =IF(E24="","",VLOOKUP(VALUE(B24),List!$C$2:$D$186,2,FALSE)) -> Excavation And Embankment | AM24: 77.04 | AN24: 203-02010 | AO24: =IF('2) Raw'!$X12="","",'2) Raw'!X12) -> 11
A25: 200 | B25: 203 | C25: =IF('2) Raw'!E13="","",'2) Raw'!E13) -> 203-02055 | D25: =IF('2) Raw'!$E13="","",PROPER('2) Raw'!F13)) -> Embankment | E25: =IF('2) Raw'!$E13="","",'2) Raw'!G13) -> 45813 | F25: =IF('2) Raw'!$E13="","",'2) Raw'!H13) -> C.Y. | H25: =IF('2) Raw'!$E13="","",'2) Raw'!I13) -> 6.47 | I25: =IF('2) Raw'!$E13="","",'2) Raw'!J13) -> 296410.11 | J25: 0.127536044 | K25: 3 | N25: =IF('2) Raw'!$E13="","",'2) Raw'!K13) -> 6.47 | O25: =IF('2) Raw'!$E13="","",'2) Raw'!L13) -> 296410.11 | P25: 0.127536044 | Q25: 3 | R25: =IF('2) Raw'!$E13="","",'2) Raw'!M13) -> 0 | T25: =IF('2) Raw'!$E13="","",'2) Raw'!O13) -> 6.47 | U25: =IF('2) Raw'!$E13="","",'2) Raw'!P13) -> 296410.11 | V25: 0.1245532953 | W25: 3 | X25: =IF('2) Raw'!$E13="","",'2) Raw'!Q13) -> 0 | Z25: =IF('2) Raw'!$E13="","",'2) Raw'!S13) -> 6.47 | AA25: =IF('2) Raw'!$E13="","",'2) Raw'!T13) -> 296410.11 | AB25: 0.1209067279 | AC25: 3 | AD25: =IF('2) Raw'!$E13="","",'2) Raw'!U13) -> 6 | AE25: 296410.11 | AF25: 296410.11 | AG25: 296410.11 | AH25: 296410.11 | AI25: =MIN(IF(AF25:AH25=0,"",AF25:AH25)) -> 296410.11 | AJ25: 296410.11 | AK25: =IF(E25="","",VLOOKUP(A25,List!$A$2:$D$186,2,FALSE)) -> Earthwork | AL25: =IF(E25="","",VLOOKUP(VALUE(B25),List!$C$2:$D$186,2,FALSE)) -> Excavation And Embankment | AM25: 6.47 | AN25: 203-02055 | AO25: =IF('2) Raw'!$X13="","",'2) Raw'!X13) -> 12
A26: 200 | B26: 203 | C26: =IF('2) Raw'!E14="","",'2) Raw'!E14) -> 203-08607 | D26: =IF('2) Raw'!$E14="","",PROPER('2) Raw'!F14)) -> Linear Grading | E26: =IF('2) Raw'!$E14="","",'2) Raw'!G14) -> 400 | F26: =IF('2) Raw'!$E14="","",'2) Raw'!H14) -> L.F. | H26: =IF('2) Raw'!$E14="","",'2) Raw'!I14) -> 12.9 | I26: =IF('2) Raw'!$E14="","",'2) Raw'!J14) -> 5160 | J26: 0.002220187385 | K26: 46 | N26: =IF('2) Raw'!$E14="","",'2) Raw'!K14) -> 12.9 | O26: =IF('2) Raw'!$E14="","",'2) Raw'!L14) -> 5160 | P26: 0.002220187385 | Q26: 46 | R26: =IF('2) Raw'!$E14="","",'2) Raw'!M14) -> 2 | T26: =IF('2) Raw'!$E14="","",'2) Raw'!O14) -> 35.66 | U26: =IF('2) Raw'!$E14="","",'2) Raw'!P14) -> 14264 | V26: 0.005993817837 | W26: 21 | X26: =IF('2) Raw'!$E14="","",'2) Raw'!Q14) -> 14 | Z26: =IF('2) Raw'!$E14="","",'2) Raw'!S14) -> 13.96 | AA26: =IF('2) Raw'!$E14="","",'2) Raw'!T14) -> 5584 | AB26: 0.002277733269 | AC26: 40 | AD26: =IF('2) Raw'!$E14="","",'2) Raw'!U14) -> 85 | AE26: 14264 | AF26: 5160 | AG26: 14264 | AH26: 5584 | AI26: =MIN(IF(AF26:AH26=0,"",AF26:AH26)) -> 5160 | AJ26: 8336 | AK26: =IF(E26="","",VLOOKUP(A26,List!$A$2:$D$186,2,FALSE)) -> Earthwork | AL26: =IF(E26="","",VLOOKUP(VALUE(B26),List!$C$2:$D$186,2,FALSE)) -> Excavation And Embankment | AM26: 20.84 | AO26: =IF('2) Raw'!$X14="","",'2) Raw'!X14) -> 13
A27: 200 | B27: 205 | C27: =IF('2) Raw'!E15="","",'2) Raw'!E15) -> 205-03371 | D27: =IF('2) Raw'!$E15="","",PROPER('2) Raw'!F15)) -> Sediment, Remove | E27: =IF('2) Raw'!$E15="","",'2) Raw'!G15) -> 180 | F27: =IF('2) Raw'!$E15="","",'2) Raw'!H15) -> C.Y. | H27: =IF('2) Raw'!$E15="","",'2) Raw'!I15) -> 10.59 | I27: =IF('2) Raw'!$E15="","",'2) Raw'!J15) -> 1906.2 | J27: 0.0008201785259 | K27: 58 | N27: =IF('2) Raw'!$E15="","",'2) Raw'!K15) -> 10.59 | O27: =IF('2) Raw'!$E15="","",'2) Raw'!L15) -> 1906.2 | P27: 0.0008201785259 | Q27: 58 | R27: =IF('2) Raw'!$E15="","",'2) Raw'!M15) -> 7 | T27: =IF('2) Raw'!$E15="","",'2) Raw'!O15) -> 16.79 | U27: =IF('2) Raw'!$E15="","",'2) Raw'!P15) -> 3022.2 | V27: 0.001269946457 | W27: 51 | X27: =IF('2) Raw'!$E15="","",'2) Raw'!Q15) -> 58 | Z27: =IF('2) Raw'!$E15="","",'2) Raw'!S15) -> 17.65 | AA27: =IF('2) Raw'!$E15="","",'2) Raw'!T15) -> 3177 | AB27: 0.00129590949 | AC27: 51 | AD27: =IF('2) Raw'!$E15="","",'2) Raw'!U15) -> 228 | AE27: 3177 | AF27: 1906.2 | AG27: 3022.2 | AH27: 3177 | AI27: =MIN(IF(AF27:AH27=0,"",AF27:AH27)) -> 1906.2 | AJ27: 2701.8 | AK27: =IF(E27="","",VLOOKUP(A27,List!$A$2:$D$186,2,FALSE)) -> Earthwork | AL27: =IF(E27="","",VLOOKUP(VALUE(B27),List!$C$2:$D$186,2,FALSE)) -> Temporary Erosion And Sediment Control | AM27: 15.01 | AO27: =IF('2) Raw'!$X15="","",'2) Raw'!X15) -> 14
A28: 200 | B28: 205 | C28: =IF('2) Raw'!E16="","",'2) Raw'!E16) -> 205-06931 | D28: =IF('2) Raw'!$E16="","",PROPER('2) Raw'!F16)) -> Temporary Check Dam, Revetment Riprap | E28: =IF('2) Raw'!$E16="","",'2) Raw'!G16) -> 152.5 | F28: =IF('2) Raw'!$E16="","",'2) Raw'!H16) -> TON | H28: =IF('2) Raw'!$E16="","",'2) Raw'!I16) -> 40.15 | I28: =IF('2) Raw'!$E16="","",'2) Raw'!J16) -> 6122.88 | J28: 0.002634484678 | K28: 36 | N28: =IF('2) Raw'!$E16="","",'2) Raw'!K16) -> 40.15 | O28: =IF('2) Raw'!$E16="","",'2) Raw'!L16) -> 6122.88 | P28: 0.002634484678 | Q28: 36 | R28: =IF('2) Raw'!$E16="","",'2) Raw'!M16) -> 0 | T28: =IF('2) Raw'!$E16="","",'2) Raw'!O16) -> 40.15 | U28: =IF('2) Raw'!$E16="","",'2) Raw'!P16) -> 6122.88 | V28: 0.002572870679 | W28: 38 | X28: =IF('2) Raw'!$E16="","",'2) Raw'!Q16) -> 61 | Z28: =IF('2) Raw'!$E16="","",'2) Raw'!S16) -> 41.46 | AA28: =IF('2) Raw'!$E16="","",'2) Raw'!T16) -> 6322.65 | AB28: 0.002579031205 | AC28: 36 | AD28: =IF('2) Raw'!$E16="","",'2) Raw'!U16) -> 241 | AE28: 6322.65 | AF28: 6122.88 | AG28: 6122.88 | AH28: 6322.65 | AI28: =MIN(IF(AF28:AH28=0,"",AF28:AH28)) -> 6122.88 | AJ28: 6189.47 | AK28: =IF(E28="","",VLOOKUP(A28,List!$A$2:$D$186,2,FALSE)) -> Earthwork | AL28: =IF(E28="","",VLOOKUP(VALUE(B28),List!$C$2:$D$186,2,FALSE)) -> Temporary Erosion And Sediment Control | AM28: 40.58666667 | AN28: 205-06931 | AO28: =IF('2) Raw'!$X16="","",'2) Raw'!X16) -> 15
A29: 200 | B29: 205 | C29: =IF('2) Raw'!E17="","",'2) Raw'!E17) -> 205-06936 | D29: =IF('2) Raw'!$E17="","",PROPER('2) Raw'!F17)) -> Temporary Sediment Trap | E29: =IF('2) Raw'!$E17="","",'2) Raw'!G17) -> 102 | F29: =IF('2) Raw'!$E17="","",'2) Raw'!H17) -> TON | H29: =IF('2) Raw'!$E17="","",'2) Raw'!I17) -> 52.33 | I29: =IF('2) Raw'!$E17="","",'2) Raw'!J17) -> 5337.66 | J29: 0.002296628953 | K29: 44 | N29: =IF('2) Raw'!$E17="","",'2) Raw'!K17) -> 52.33 | O29: =IF('2) Raw'!$E17="","",'2) Raw'!L17) -> 5337.66 | P29: 0.002296628953 | Q29: 44 | R29: =IF('2) Raw'!$E17="","",'2) Raw'!M17) -> 15 | T29: =IF('2) Raw'!$E17="","",'2) Raw'!O17) -> 41.77 | U29: =IF('2) Raw'!$E17="","",'2) Raw'!P17) -> 4260.54 | V29: 0.001790304308 | W29: 49 | X29: =IF('2) Raw'!$E17="","",'2) Raw'!Q17) -> 87 | Z29: =IF('2) Raw'!$E17="","",'2) Raw'!S17) -> 43.65 | AA29: =IF('2) Raw'!$E17="","",'2) Raw'!T17) -> 4452.3 | AB29: 0.001816108852 | AC29: 47 | AD29: =IF('2) Raw'!$E17="","",'2) Raw'!U17) -> 227 | AE29: 5337.66 | AF29: 5337.66 | AG29: 4260.54 | AH29: 4452.3 | AI29: =MIN(IF(AF29:AH29=0,"",AF29:AH29)) -> 4260.54 | AJ29: 4683.5 | AK29: =IF(E29="","",VLOOKUP(A29,List!$A$2:$D$186,2,FALSE)) -> Earthwork | AL29: =IF(E29="","",VLOOKUP(VALUE(B29),List!$C$2:$D$186,2,FALSE)) -> Temporary Erosion And Sediment Control | AM29: 45.91666667 | AO29: =IF('2) Raw'!$X17="","",'2) Raw'!X17) -> 16
A30: 200 | B30: 205 | C30: =IF('2) Raw'!E18="","",'2) Raw'!E18) -> 205-06937 | D30: =IF('2) Raw'!$E18="","",PROPER('2) Raw'!F18)) -> Temporary Silt Fence | E30: =IF('2) Raw'!$E18="","",'2) Raw'!G18) -> 619 | F30: =IF('2) Raw'!$E18="","",'2) Raw'!H18) -> L.F. | H30: =IF('2) Raw'!$E18="","",'2) Raw'!I18) -> 2.42 | I30: =IF('2) Raw'!$E18="","",'2) Raw'!J18) -> 1497.98 | J30: 0.0006445341665 | K30: 63 | N30: =IF('2) Raw'!$E18="","",'2) Raw'!K18) -> 2.42 | O30: =IF('2) Raw'!$E18="","",'2) Raw'!L18) -> 1497.98 | P30: 0.0006445341665 | Q30: 63 | R30: =IF('2) Raw'!$E18="","",'2) Raw'!M18) -> 25 | T30: =IF('2) Raw'!$E18="","",'2) Raw'!O18) -> 2.29 | U30: =IF('2) Raw'!$E18="","",'2) Raw'!P18) -> 1417.51 | V30: 0.0005956461527 | W30: 65 | X30: =IF('2) Raw'!$E18="","",'2) Raw'!Q18) -> 229 | Z30: =IF('2) Raw'!$E18="","",'2) Raw'!S18) -> 2.27 | AA30: =IF('2) Raw'!$E18="","",'2) Raw'!T18) -> 1405.13 | AB30: 0.0005731574763 | AC30: 64 | AD30: =IF('2) Raw'!$E18="","",'2) Raw'!U18) -> 649 | AE30: 1497.98 | AF30: 1497.98 | AG30: 1417.51 | AH30: 1405.13 | AI30: =MIN(IF(AF30:AH30=0,"",AF30:AH30)) -> 1405.13 | AJ30: 1440.206667 | AK30: =IF(E30="","",VLOOKUP(A30,List!$A$2:$D$186,2,FALSE)) -> Earthwork | AL30: =IF(E30="","",VLOOKUP(VALUE(B30),List!$C$2:$D$186,2,FALSE)) -> Temporary Erosion And Sediment Control | AM30: 2.326666667 | AO30: =IF('2) Raw'!$X18="","",'2) Raw'!X18) -> 17
A31: 200 | B31: 205 | C31: =IF('2) Raw'!E19="","",'2) Raw'!E19) -> 205-09543 | D31: =IF('2) Raw'!$E19="","",PROPER('2) Raw'!F19)) -> No 2 Stone | E31: =IF('2) Raw'!$E19="","",'2) Raw'!G19) -> 180 | F31: =IF('2) Raw'!$E19="","",'2) Raw'!H19) -> TON | H31: =IF('2) Raw'!$E19="","",'2) Raw'!I19) -> 29.83 | I31: =IF('2) Raw'!$E19="","",'2) Raw'!J19) -> 5369.4 | J31: 0.002310285687 | K31: 43 | N31: =IF('2) Raw'!$E19="","",'2) Raw'!K19) -> 29.83 | O31: =IF('2) Raw'!$E19="","",'2) Raw'!L19) -> 5369.4 | P31: 0.002310285687 | Q31: 43 | R31: =IF('2) Raw'!$E19="","",'2) Raw'!M19) -> 73 | T31: =IF('2) Raw'!$E19="","",'2) Raw'!O19) -> 26.25 | U31: =IF('2) Raw'!$E19="","",'2) Raw'!P19) -> 4725 | V31: 0.001985473169 | W31: 47 | X31: =IF('2) Raw'!$E19="","",'2) Raw'!Q19) -> 372 | Z31: =IF('2) Raw'!$E19="","",'2) Raw'!S19) -> 25.42 | AA31: =IF('2) Raw'!$E19="","",'2) Raw'!T19) -> 4575.6 | AB31: 0.001866403357 | AC31: 46 | AD31: =IF('2) Raw'!$E19="","",'2) Raw'!U19) -> 756 | AE31: 5369.4 | AF31: 5369.4 | AG31: 4725 | AH31: 4575.6 | AI31: =MIN(IF(AF31:AH31=0,"",AF31:AH31)) -> 4575.6 | AJ31: 4890 | AK31: =IF(E31="","",VLOOKUP(A31,List!$A$2:$D$186,2,FALSE)) -> Earthwork | AL31: =IF(E31="","",VLOOKUP(VALUE(B31),List!$C$2:$D$186,2,FALSE)) -> Temporary Erosion And Sediment Control | AM31: 27.16666667 | AO31: =IF('2) Raw'!$X19="","",'2) Raw'!X19) -> 18
A32: 200 | B32: 206 | C32: =IF('2) Raw'!E20="","",'2) Raw'!E20) -> 206-51215 | D32: =IF('2) Raw'!$E20="","",PROPER('2) Raw'!F20)) -> Excavation, X | E32: =IF('2) Raw'!$E20="","",'2) Raw'!G20) -> 284 | F32: =IF('2) Raw'!$E20="","",'2) Raw'!H20) -> C.Y. | H32: =IF('2) Raw'!$E20="","",'2) Raw'!I20) -> 50 | I32: =IF('2) Raw'!$E20="","",'2) Raw'!J20) -> 14200 | J32: 0.006109817998 | K32: 22 | N32: =IF('2) Raw'!$E20="","",'2) Raw'!K20) -> 50 | O32: =IF('2) Raw'!$E20="","",'2) Raw'!L20) -> 14200 | P32: 0.006109817998 | Q32: 22 | R32: =IF('2) Raw'!$E20="","",'2) Raw'!M20) -> 1 | T32: =IF('2) Raw'!$E20="","",'2) Raw'!O20) -> 78.65 | U32: =IF('2) Raw'!$E20="","",'2) Raw'!P20) -> 22336.6 | V32: 0.009385972484 | W32: 18 | X32: =IF('2) Raw'!$E20="","",'2) Raw'!Q20) -> 15 | Z32: =IF('2) Raw'!$E20="","",'2) Raw'!S20) -> 83.44 | AA32: =IF('2) Raw'!$E20="","",'2) Raw'!T20) -> 23696.96 | AB32: 0.009666073453 | AC32: 17 | AD32: =IF('2) Raw'!$E20="","",'2) Raw'!U20) -> 18 | AE32: 23696.96 | AF32: 14200 | AG32: 22336.6 | AH32: 23696.96 | AI32: =MIN(IF(AF32:AH32=0,"",AF32:AH32)) -> 14200 | AJ32: 20077.85333 | AK32: =IF(E32="","",VLOOKUP(A32,List!$A$2:$D$186,2,FALSE)) -> Earthwork | AL32: =IF(E32="","",VLOOKUP(VALUE(B32),List!$C$2:$D$186,2,FALSE)) -> Structure Excavation | AM32: 70.69666667 | AO32: =IF('2) Raw'!$X20="","",'2) Raw'!X20) -> 19
A33: 200 | B33: 206 | C33: =IF('2) Raw'!E21="","",'2) Raw'!E21) -> 206-51230 | D33: =IF('2) Raw'!$E21="","",PROPER('2) Raw'!F21)) -> Excavation, Foundation, Unclassified | E33: =IF('2) Raw'!$E21="","",'2) Raw'!G21) -> 388 | F33: =IF('2) Raw'!$E21="","",'2) Raw'!H21) -> C.Y. | H33: =IF('2) Raw'!$E21="","",'2) Raw'!I21) -> 11.5 | I33: =IF('2) Raw'!$E21="","",'2) Raw'!J21) -> 4462 | J33: 0.001919859712 | K33: 48 | N33: =IF('2) Raw'!$E21="","",'2) Raw'!K21) -> 11.5 | O33: =IF('2) Raw'!$E21="","",'2) Raw'!L21) -> 4462 | P33: 0.001919859712 | Q33: 48 | R33: =IF('2) Raw'!$E21="","",'2) Raw'!M21) -> 4 | T33: =IF('2) Raw'!$E21="","",'2) Raw'!O21) -> 23.83 | U33: =IF('2) Raw'!$E21="","",'2) Raw'!P21) -> 9246.04 | V33: 0.00388524113 | W33: 30 | X33: =IF('2) Raw'!$E21="","",'2) Raw'!Q21) -> 24 | Z33: =IF('2) Raw'!$E21="","",'2) Raw'!S21) -> 30.02 | AA33: =IF('2) Raw'!$E21="","",'2) Raw'!T21) -> 11647.76 | AB33: 0.004751162331 | AC33: 24 | AD33: =IF('2) Raw'!$E21="","",'2) Raw'!U21) -> 104 | AE33: 11647.76 | AF33: 4462 | AG33: 9246.04 | AH33: 11647.76 | AI33: =MIN(IF(AF33:AH33=0,"",AF33:AH33)) -> 4462 | AJ33: 8451.933333 | AK33: =IF(E33="","",VLOOKUP(A33,List!$A$2:$D$186,2,FALSE)) -> Earthwork | AL33: =IF(E33="","",VLOOKUP(VALUE(B33),List!$C$2:$D$186,2,FALSE)) -> Structure Excavation | AM33: 21.78333333 | AO33: =IF('2) Raw'!$X21="","",'2) Raw'!X21) -> 20
A34: 200 | B34: 211 | C34: =IF('2) Raw'!E22="","",'2) Raw'!E22) -> 211-02050 | D34: =IF('2) Raw'!$E22="","",PROPER('2) Raw'!F22)) -> B Borrow | E34: =IF('2) Raw'!$E22="","",'2) Raw'!G22) -> 382 | F34: =IF('2) Raw'!$E22="","",'2) Raw'!H22) -> C.Y. | H34: =IF('2) Raw'!$E22="","",'2) Raw'!I22) -> 42.15 | I34: =IF('2) Raw'!$E22="","",'2) Raw'!J22) -> 16101.3 | J34: 0.006927888206 | K34: 20 | N34: =IF('2) Raw'!$E22="","",'2) Raw'!K22) -> 42.15 | O34: =IF('2) Raw'!$E22="","",'2) Raw'!L22) -> 16101.3 | P34: 0.006927888206 | Q34: 20 | R34: =IF('2) Raw'!$E22="","",'2) Raw'!M22) -> 7 | T34: =IF('2) Raw'!$E22="","",'2) Raw'!O22) -> 31.34 | U34: =IF('2) Raw'!$E22="","",'2) Raw'!P22) -> 11971.88 | V34: 0.005030655349 | W34: 25 | X34: =IF('2) Raw'!$E22="","",'2) Raw'!Q22) -> 51 | Z34: =IF('2) Raw'!$E22="","",'2) Raw'!S22) -> 27.61 | AA34: =IF('2) Raw'!$E22="","",'2) Raw'!T22) -> 10547.02 | AB34: 0.004302166608 | AC34: 27 | AD34: =IF('2) Raw'!$E22="","",'2) Raw'!U22) -> 145 | AE34: 16101.3 | AF34: 16101.3 | AG34: 11971.88 | AH34: 10547.02 | AI34: =MIN(IF(AF34:AH34=0,"",AF34:AH34)) -> 10547.02 | AJ34: 12873.4 | AK34: =IF(E34="","",VLOOKUP(A34,List!$A$2:$D$186,2,FALSE)) -> Earthwork | AL34: =IF(E34="","",VLOOKUP(VALUE(B34),List!$C$2:$D$186,2,FALSE)) -> B Borrow And Structure Backfill | AM34: 33.7 | AO34: =IF('2) Raw'!$X22="","",'2) Raw'!X22) -> 21
A35: 200 | B35: 211 | C35: =IF('2) Raw'!E23="","",'2) Raw'!E23) -> 211-06467 | D35: =IF('2) Raw'!$E23="","",PROPER('2) Raw'!F23)) -> Aggregate For End Bent Backfill | E35: =IF('2) Raw'!$E23="","",'2) Raw'!G23) -> 128 | F35: =IF('2) Raw'!$E23="","",'2) Raw'!H23) -> C.Y. | H35: =IF('2) Raw'!$E23="","",'2) Raw'!I23) -> 48.38 | I35: =IF('2) Raw'!$E23="","",'2) Raw'!J23) -> 6192.64 | J35: 0.002664500234 | K35: 35 | N35: =IF('2) Raw'!$E23="","",'2) Raw'!K23) -> 48.38 | O35: =IF('2) Raw'!$E23="","",'2) Raw'!L23) -> 6192.64 | P35: 0.002664500234 | Q35: 35 | R35: =IF('2) Raw'!$E23="","",'2) Raw'!M23) -> 13 | T35: =IF('2) Raw'!$E23="","",'2) Raw'!O23) -> 49.01 | U35: =IF('2) Raw'!$E23="","",'2) Raw'!P23) -> 6273.28 | V35: 0.002636069655 | W35: 37 | X35: =IF('2) Raw'!$E23="","",'2) Raw'!Q23) -> 51 | Z35: =IF('2) Raw'!$E23="","",'2) Raw'!S23) -> 52.83 | AA35: =IF('2) Raw'!$E23="","",'2) Raw'!T23) -> 6762.24 | AB35: 0.002758341515 | AC35: 33 | AD35: =IF('2) Raw'!$E23="","",'2) Raw'!U23) -> 179 | AE35: 6762.24 | AF35: 6192.64 | AG35: 6273.28 | AH35: 6762.24 | AI35: =MIN(IF(AF35:AH35=0,"",AF35:AH35)) -> 6192.64 | AJ35: 6409.386667 | AK35: =IF(E35="","",VLOOKUP(A35,List!$A$2:$D$186,2,FALSE)) -> Earthwork | AL35: =IF(E35="","",VLOOKUP(VALUE(B35),List!$C$2:$D$186,2,FALSE)) -> B Borrow And Structure Backfill | AM35: 50.07333333 | AO35: =IF('2) Raw'!$X23="","",'2) Raw'!X23) -> 22
A36: 200 | B36: 211 | C36: =IF('2) Raw'!E24="","",'2) Raw'!E24) -> 211-09264 | D36: =IF('2) Raw'!$E24="","",PROPER('2) Raw'!F24)) -> Structural Backfill, Type 1 | E36: =IF('2) Raw'!$E24="","",'2) Raw'!G24) -> 94.7 | F36: =IF('2) Raw'!$E24="","",'2) Raw'!H24) -> C.Y. | H36: =IF('2) Raw'!$E24="","",'2) Raw'!I24) -> 24.4 | I36: =IF('2) Raw'!$E24="","",'2) Raw'!J24) -> 2310.68 | J36: 0.0009942136797 | K36: 55 | N36: =IF('2) Raw'!$E24="","",'2) Raw'!K24) -> 24.4 | O36: =IF('2) Raw'!$E24="","",'2) Raw'!L24) -> 2310.68 | P36: 0.0009942136797 | Q36: 55 | R36: =IF('2) Raw'!$E24="","",'2) Raw'!M24) -> 17 | T36: =IF('2) Raw'!$E24="","",'2) Raw'!O24) -> 30.44 | U36: =IF('2) Raw'!$E24="","",'2) Raw'!P24) -> 2882.67 | V36: 0.00121131512 | W36: 52 | X36: =IF('2) Raw'!$E24="","",'2) Raw'!Q24) -> 82 | Z36: =IF('2) Raw'!$E24="","",'2) Raw'!S24) -> 30.35 | AA36: =IF('2) Raw'!$E24="","",'2) Raw'!T24) -> 2874.15 | AB36: 0.001172375909 | AC36: 52 | AD36: =IF('2) Raw'!$E24="","",'2) Raw'!U24) -> 216 | AE36: 2882.67 | AF36: 2310.68 | AG36: 2882.67 | AH36: 2874.15 | AI36: =MIN(IF(AF36:AH36=0,"",AF36:AH36)) -> 2310.68 | AJ36: 2689.166667 | AK36: =IF(E36="","",VLOOKUP(A36,List!$A$2:$D$186,2,FALSE)) -> Earthwork | AL36: =IF(E36="","",VLOOKUP(VALUE(B36),List!$C$2:$D$186,2,FALSE)) -> B Borrow And Structure Backfill | AM36: 28.39666667 | AO36: =IF('2) Raw'!$X24="","",'2) Raw'!X24) -> 23
A37: 300 | B37: 302 | C37: =IF('2) Raw'!E25="","",'2) Raw'!E25) -> 302-07455 | D37: =IF('2) Raw'!$E25="","",PROPER('2) Raw'!F25)) -> Dense Graded Subbase | E37: =IF('2) Raw'!$E25="","",'2) Raw'!G25) -> 91 | F37: =IF('2) Raw'!$E25="","",'2) Raw'!H25) -> C.Y. | H37: =IF('2) Raw'!$E25="","",'2) Raw'!I25) -> 50.22 | I37: =IF('2) Raw'!$E25="","",'2) Raw'!J25) -> 4570.02 | J37: 0.001966337355 | K37: 47 | N37: =IF('2) Raw'!$E25="","",'2) Raw'!K25) -> 50.22 | O37: =IF('2) Raw'!$E25="","",'2) Raw'!L25) -> 4570.02 | P37: 0.001966337355 | Q37: 47 | R37: =IF('2) Raw'!$E25="","",'2) Raw'!M25) -> 22 | T37: =IF('2) Raw'!$E25="","",'2) Raw'!O25) -> 57.5 | U37: =IF('2) Raw'!$E25="","",'2) Raw'!P25) -> 5232.5 | V37: 0.002198727695 | W37: 43 | X37: =IF('2) Raw'!$E25="","",'2) Raw'!Q25) -> 108 | Z37: =IF('2) Raw'!$E25="","",'2) Raw'!S25) -> 60.44 | AA37: =IF('2) Raw'!$E25="","",'2) Raw'!T25) -> 5500.04 | AB37: 0.002243485689 | AC37: 42 | AD37: =IF('2) Raw'!$E25="","",'2) Raw'!U25) -> 306 | AE37: 5500.04 | AF37: 4570.02 | AG37: 5232.5 | AH37: 5500.04 | AI37: =MIN(IF(AF37:AH37=0,"",AF37:AH37)) -> 4570.02 | AJ37: 5100.853333 | AK37: =IF(E37="","",VLOOKUP(A37,List!$A$2:$D$186,2,FALSE)) -> Aggregate Pavement And Bases | AL37: =IF(E37="","",VLOOKUP(VALUE(B37),List!$C$2:$D$186,2,FALSE)) -> Subbase | AM37: 56.05333333 | AO37: =IF('2) Raw'!$X25="","",'2) Raw'!X25) -> 24
A38: 500 | B38: 503 | C38: =IF('2) Raw'!E26="","",'2) Raw'!E26) -> 503-05310 | D38: =IF('2) Raw'!$E26="","",PROPER('2) Raw'!F26)) -> Terminal Joint | E38: =IF('2) Raw'!$E26="","",'2) Raw'!G26) -> 96 | F38: =IF('2) Raw'!$E26="","",'2) Raw'!H26) -> L.F. | H38: =IF('2) Raw'!$E26="","",'2) Raw'!I26) -> 157.6 | I38: =IF('2) Raw'!$E26="","",'2) Raw'!J26) -> 15129.6 | J38: 0.006509795942 | K38: 21 | N38: =IF('2) Raw'!$E26="","",'2) Raw'!K26) -> 157.6 | O38: =IF('2) Raw'!$E26="","",'2) Raw'!L26) -> 15129.6 | P38: 0.006509795942 | Q38: 21 | R38: =IF('2) Raw'!$E26="","",'2) Raw'!M26) -> 6 | T38: =IF('2) Raw'!$E26="","",'2) Raw'!O26) -> 160.97 | U38: =IF('2) Raw'!$E26="","",'2) Raw'!P26) -> 15453.12 | V38: 0.006493493151 | W38: 20 | X38: =IF('2) Raw'!$E26="","",'2) Raw'!Q26) -> 38 | Z38: =IF('2) Raw'!$E26="","",'2) Raw'!S26) -> 154.75 | AA38: =IF('2) Raw'!$E26="","",'2) Raw'!T26) -> 14856 | AB38: 0.006059814728 | AC38: 21 | AD38: =IF('2) Raw'!$E26="","",'2) Raw'!U26) -> 112 | AE38: 15453.12 | AF38: 15129.6 | AG38: 15453.12 | AH38: 14856 | AI38: =MIN(IF(AF38:AH38=0,"",AF38:AH38)) -> 14856 | AJ38: 15146.24 | AK38: =IF(E38="","",VLOOKUP(A38,List!$A$2:$D$186,2,FALSE)) -> Concrete Pavement | AL38: =IF(E38="","",VLOOKUP(VALUE(B38),List!$C$2:$D$186,2,FALSE)) -> PCCP Joints | AM38: 157.7733333 | AO38: =IF('2) Raw'!$X26="","",'2) Raw'!X26) -> 25
A39: 600 | B39: 602 | C39: =IF('2) Raw'!E27="","",'2) Raw'!E27) -> 602-06729 | D39: =IF('2) Raw'!$E27="","",PROPER('2) Raw'!F27)) -> Barrier Delineator | E39: =IF('2) Raw'!$E27="","",'2) Raw'!G27) -> 28 | F39: =IF('2) Raw'!$E27="","",'2) Raw'!H27) -> EACH | H39: =IF('2) Raw'!$E27="","",'2) Raw'!I27) -> 15.93 | I39: =IF('2) Raw'!$E27="","",'2) Raw'!J27) -> 446.04 | J39: 0.0001919171281 | K39: 72 | N39: =IF('2) Raw'!$E27="","",'2) Raw'!K27) -> 15.93 | O39: =IF('2) Raw'!$E27="","",'2) Raw'!L27) -> 446.04 | P39: 0.0001919171281 | Q39: 72 | R39: =IF('2) Raw'!$E27="","",'2) Raw'!M27) -> 19 | T39: =IF('2) Raw'!$E27="","",'2) Raw'!O27) -> 15.77 | U39: =IF('2) Raw'!$E27="","",'2) Raw'!P27) -> 441.56 | V39: 0.0001855461444 | W39: 72 | X39: =IF('2) Raw'!$E27="","",'2) Raw'!Q27) -> 57 | Z39: =IF('2) Raw'!$E27="","",'2) Raw'!S27) -> 14.36 | AA39: =IF('2) Raw'!$E27="","",'2) Raw'!T27) -> 402.08 | AB39: 0.0001640098483 | AC39: 73 | AD39: =IF('2) Raw'!$E27="","",'2) Raw'!U27) -> 234 | AE39: 446.04 | AF39: 446.04 | AG39: 441.56 | AH39: 402.08 | AI39: =MIN(IF(AF39:AH39=0,"",AF39:AH39)) -> 402.08 | AJ39: 429.8933333 | AK39: =IF(E39="","",VLOOKUP(A39,List!$A$2:$D$186,2,FALSE)) -> Incidental Construction | AL39: =IF(E39="","",VLOOKUP(VALUE(B39),List!$C$2:$D$186,2,FALSE)) -> Concrete Barrier | AM39: 15.35333333 | AO39: =IF('2) Raw'!$X27="","",'2) Raw'!X27) -> 26
A40: 600 | B40: 603 | C40: =IF('2) Raw'!E28="","",'2) Raw'!E28) -> 603-06040 | D40: =IF('2) Raw'!$E28="","",PROPER('2) Raw'!F28)) -> Fence, Farm Field, 47 In | E40: =IF('2) Raw'!$E28="","",'2) Raw'!G28) -> 2429 | F40: =IF('2) Raw'!$E28="","",'2) Raw'!H28) -> L.F. | H40: =IF('2) Raw'!$E28="","",'2) Raw'!I28) -> 5.29 | I40: =IF('2) Raw'!$E28="","",'2) Raw'!J28) -> 12849.41 | J40: 0.00552870116 | K40: 25 | N40: =IF('2) Raw'!$E28="","",'2) Raw'!K28) -> 5.29 | O40: =IF('2) Raw'!$E28="","",'2) Raw'!L28) -> 12849.41 | P40: 0.00552870116 | Q40: 25 | R40: =IF('2) Raw'!$E28="","",'2) Raw'!M28) -> 0 | T40: =IF('2) Raw'!$E28="","",'2) Raw'!O28) -> 5.29 | U40: =IF('2) Raw'!$E28="","",'2) Raw'!P28) -> 12849.41 | V40: 0.005399398686 | W40: 24 | X40: =IF('2) Raw'!$E28="","",'2) Raw'!Q28) -> 6 | Z40: =IF('2) Raw'!$E28="","",'2) Raw'!S28) -> 6.22 | AA40: =IF('2) Raw'!$E28="","",'2) Raw'!T28) -> 15108.38 | AB40: 0.006162761419 | AC40: 19 | AD40: =IF('2) Raw'!$E28="","",'2) Raw'!U28) -> 24 | AE40: 15108.38 | AF40: 12849.41 | AG40: 12849.41 | AH40: 15108.38 | AI40: =MIN(IF(AF40:AH40=0,"",AF40:AH40)) -> 12849.41 | AJ40: 13602.4 | AK40: =IF(E40="","",VLOOKUP(A40,List!$A$2:$D$186,2,FALSE)) -> Incidental Construction | AL40: =IF(E40="","",VLOOKUP(VALUE(B40),List!$C$2:$D$186,2,FALSE)) -> Fences | AM40: 5.6 | AN40: 603-06040 | AO40: =IF('2) Raw'!$X28="","",'2) Raw'!X28) -> 27
A41: 600 | B41: 609 | C41: =IF('2) Raw'!E29="","",'2) Raw'!E29) -> 609-06259 | D41: =IF('2) Raw'!$E29="","",PROPER('2) Raw'!F29)) -> Reinforced Concrete Bridge Approach 12 In | E41: =IF('2) Raw'!$E29="","",'2) Raw'!G29) -> 576.2 | F41: =IF('2) Raw'!$E29="","",'2) Raw'!H29) -> S.Y. | H41: =IF('2) Raw'!$E29="","",'2) Raw'!I29) -> 72.94 | I41: =IF('2) Raw'!$E29="","",'2) Raw'!J29) -> 42028.03 | J41: 0.01808335311 | K41: 10 | N41: =IF('2) Raw'!$E29="","",'2) Raw'!K29) -> 72.94 | O41: =IF('2) Raw'!$E29="","",'2) Raw'!L29) -> 42028.03 | P41: 0.01808335311 | Q41: 10 | R41: =IF('2) Raw'!$E29="","",'2) Raw'!M29) -> 16 | T41: =IF('2) Raw'!$E29="","",'2) Raw'!O29) -> 76.73 | U41: =IF('2) Raw'!$E29="","",'2) Raw'!P29) -> 44211.83 | V41: 0.01857807454 | W41: 10 | X41: =IF('2) Raw'!$E29="","",'2) Raw'!Q29) -> 87 | Z41: =IF('2) Raw'!$E29="","",'2) Raw'!S29) -> 80.46 | AA41: =IF('2) Raw'!$E29="","",'2) Raw'!T29) -> 46361.05 | AB41: 0.01891083559 | AC41: 10 | AD41: =IF('2) Raw'!$E29="","",'2) Raw'!U29) -> 267 | AE41: 46361.05 | AF41: 42028.03 | AG41: 44211.83 | AH41: 46361.05 | AI41: =MIN(IF(AF41:AH41=0,"",AF41:AH41)) -> 42028.03 | AJ41: 44200.30333 | AK41: =IF(E41="","",VLOOKUP(A41,List!$A$2:$D$186,2,FALSE)) -> Incidental Construction | AL41: =IF(E41="","",VLOOKUP(VALUE(B41),List!$C$2:$D$186,2,FALSE)) -> Reinforced Concrete Bridge Approaches | AM41: 76.71 | AO41: =IF('2) Raw'!$X29="","",'2) Raw'!X29) -> 28
A42: 600 | B42: 616 | C42: =IF('2) Raw'!E30="","",'2) Raw'!E30) -> 616-02320 | D42: =IF('2) Raw'!$E30="","",PROPER('2) Raw'!F30)) -> Geotextiles | E42: =IF('2) Raw'!$E30="","",'2) Raw'!G30) -> 925 | F42: =IF('2) Raw'!$E30="","",'2) Raw'!H30) -> S.Y. | H42: =IF('2) Raw'!$E30="","",'2) Raw'!I30) -> 2.95 | I42: =IF('2) Raw'!$E30="","",'2) Raw'!J30) -> 2728.75 | J42: 0.001174096187 | K42: 53 | N42: =IF('2) Raw'!$E30="","",'2) Raw'!K30) -> 2.95 | O42: =IF('2) Raw'!$E30="","",'2) Raw'!L30) -> 2728.75 | P42: 0.001174096187 | Q42: 53 | R42: =IF('2) Raw'!$E30="","",'2) Raw'!M30) -> 46 | T42: =IF('2) Raw'!$E30="","",'2) Raw'!O30) -> 2.86 | U42: =IF('2) Raw'!$E30="","",'2) Raw'!P30) -> 2645.5 | V42: 0.001111654872 | W42: 56 | X42: =IF('2) Raw'!$E30="","",'2) Raw'!Q30) -> 224 | Z42: =IF('2) Raw'!$E30="","",'2) Raw'!S30) -> 2.67 | AA42: =IF('2) Raw'!$E30="","",'2) Raw'!T30) -> 2469.75 | AB42: 0.001007419724 | AC42: 55 | AD42: =IF('2) Raw'!$E30="","",'2) Raw'!U30) -> 617 | AE42: 2728.75 | AF42: 2728.75 | AG42: 2645.5 | AH42: 2469.75 | AI42: =MIN(IF(AF42:AH42=0,"",AF42:AH42)) -> 2469.75 | AJ42: 2614.666667 | AK42: =IF(E42="","",VLOOKUP(A42,List!$A$2:$D$186,2,FALSE)) -> Incidental Construction | AL42: =IF(E42="","",VLOOKUP(VALUE(B42),List!$C$2:$D$186,2,FALSE)) -> Riprap And Slopewall | AM42: 2.826666667 | AO42: =IF('2) Raw'!$X30="","",'2) Raw'!X30) -> 29
A43: 600 | B43: 616 | C43: =IF('2) Raw'!E31="","",'2) Raw'!E31) -> 616-06405 | D43: =IF('2) Raw'!$E31="","",PROPER('2) Raw'!F31)) -> Riprap, Revetment | E43: =IF('2) Raw'!$E31="","",'2) Raw'!G31) -> 368 | F43: =IF('2) Raw'!$E31="","",'2) Raw'!H31) -> TON | H43: =IF('2) Raw'!$E31="","",'2) Raw'!I31) -> 44.84 | I43: =IF('2) Raw'!$E31="","",'2) Raw'!J31) -> 16501.12 | J43: 0.007099918307 | K43: 19 | N43: =IF('2) Raw'!$E31="","",'2) Raw'!K31) -> 44.84 | O43: =IF('2) Raw'!$E31="","",'2) Raw'!L31) -> 16501.12 | P43: 0.007099918307 | Q43: 19 | R43: =IF('2) Raw'!$E31="","",'2) Raw'!M31) -> 40 | T43: =IF('2) Raw'!$E31="","",'2) Raw'!O31) -> 36.14 | U43: =IF('2) Raw'!$E31="","",'2) Raw'!P31) -> 13299.52 | V43: 0.005588537592 | W43: 22 | X43: =IF('2) Raw'!$E31="","",'2) Raw'!Q31) -> 129 | Z43: =IF('2) Raw'!$E31="","",'2) Raw'!S31) -> 33.82 | AA43: =IF('2) Raw'!$E31="","",'2) Raw'!T31) -> 12445.76 | AB43: 0.005076669342 | AC43: 23 | AD43: =IF('2) Raw'!$E31="","",'2) Raw'!U31) -> 414 | AE43: 16501.12 | AF43: 16501.12 | AG43: 13299.52 | AH43: 12445.76 | AI43: =MIN(IF(AF43:AH43=0,"",AF43:AH43)) -> 12445.76 | AJ43: 14082.13333 | AK43: =IF(E43="","",VLOOKUP(A43,List!$A$2:$D$186,2,FALSE)) -> Incidental Construction | AL43: =IF(E43="","",VLOOKUP(VALUE(B43),List!$C$2:$D$186,2,FALSE)) -> Riprap And Slopewall | AM43: 38.26666667 | AO43: =IF('2) Raw'!$X31="","",'2) Raw'!X31) -> 30
A44: 600 | B44: 616 | C44: =IF('2) Raw'!E32="","",'2) Raw'!E32) -> 616-06451 | D44: =IF('2) Raw'!$E32="","",PROPER('2) Raw'!F32)) -> Riprap, Uniform | E44: =IF('2) Raw'!$E32="","",'2) Raw'!G32) -> 20 | F44: =IF('2) Raw'!$E32="","",'2) Raw'!H32) -> TON | H44: =IF('2) Raw'!$E32="","",'2) Raw'!I32) -> 75 | I44: =IF('2) Raw'!$E32="","",'2) Raw'!J32) -> 1500 | J44: 0.0006454033096 | K44: 62 | N44: =IF('2) Raw'!$E32="","",'2) Raw'!K32) -> 75 | O44: =IF('2) Raw'!$E32="","",'2) Raw'!L32) -> 1500 | P44: 0.0006454033096 | Q44: 62 | R44: =IF('2) Raw'!$E32="","",'2) Raw'!M32) -> 1 | T44: =IF('2) Raw'!$E32="","",'2) Raw'!O32) -> 42.55 | U44: =IF('2) Raw'!$E32="","",'2) Raw'!P32) -> 851 | V44: 0.0003575952734 | W44: 69 | X44: =IF('2) Raw'!$E32="","",'2) Raw'!Q32) -> 29 | Z44: =IF('2) Raw'!$E32="","",'2) Raw'!S32) -> 46.63 | AA44: =IF('2) Raw'!$E32="","",'2) Raw'!T32) -> 932.6 | AB44: 0.0003804108249 | AC44: 68 | AD44: =IF('2) Raw'!$E32="","",'2) Raw'!U32) -> 84 | AE44: 1500 | AF44: 1500 | AG44: 851 | AH44: 932.6 | AI44: =MIN(IF(AF44:AH44=0,"",AF44:AH44)) -> 851 | AJ44: 1094.533333 | AK44: =IF(E44="","",VLOOKUP(A44,List!$A$2:$D$186,2,FALSE)) -> Incidental Construction | AL44: =IF(E44="","",VLOOKUP(VALUE(B44),List!$C$2:$D$186,2,FALSE)) -> Riprap And Slopewall | AM44: 54.72666667 | AO44: =IF('2) Raw'!$X32="","",'2) Raw'!X32) -> 31
A45: 600 | B45: 616 | C45: =IF('2) Raw'!E33="","",'2) Raw'!E33) -> 616-51367 | D45: =IF('2) Raw'!$E33="","",PROPER('2) Raw'!F33)) -> Slopewall, Concrete, 4 In | E45: =IF('2) Raw'!$E33="","",'2) Raw'!G33) -> 1285 | F45: =IF('2) Raw'!$E33="","",'2) Raw'!H33) -> S.Y. | H45: =IF('2) Raw'!$E33="","",'2) Raw'!I33) -> 61.67 | I45: =IF('2) Raw'!$E33="","",'2) Raw'!J33) -> 79245.95 | J45: 0.0340970656 | K45: 7 | N45: =IF('2) Raw'!$E33="","",'2) Raw'!K33) -> 61.67 | O45: =IF('2) Raw'!$E33="","",'2) Raw'!L33) -> 79245.95 | P45: 0.0340970656 | Q45: 7 | R45: =IF('2) Raw'!$E33="","",'2) Raw'!M33) -> 4 | T45: =IF('2) Raw'!$E33="","",'2) Raw'!O33) -> 58.41 | U45: =IF('2) Raw'!$E33="","",'2) Raw'!P33) -> 75056.85 | V45: 0.03153933584 | W45: 7 | X45: =IF('2) Raw'!$E33="","",'2) Raw'!Q33) -> 9 | Z45: =IF('2) Raw'!$E33="","",'2) Raw'!S33) -> 51.9 | AA45: =IF('2) Raw'!$E33="","",'2) Raw'!T33) -> 66691.5 | AB45: 0.02720369776 | AC45: 8 | AD45: =IF('2) Raw'!$E33="","",'2) Raw'!U33) -> 24 | AE45: 79245.95 | AF45: 79245.95 | AG45: 75056.85 | AH45: 66691.5 | AI45: =MIN(IF(AF45:AH45=0,"",AF45:AH45)) -> 66691.5 | AJ45: 73664.76667 | AK45: =IF(E45="","",VLOOKUP(A45,List!$A$2:$D$186,2,FALSE)) -> Incidental Construction | AL45: =IF(E45="","",VLOOKUP(VALUE(B45),List!$C$2:$D$186,2,FALSE)) -> Riprap And Slopewall | AM45: 57.32666667 | AO45: =IF('2) Raw'!$X33="","",'2) Raw'!X33) -> 32
A46: =IF(C46="","",LEFT(C46,1)*100) -> 600 | B46: =IF(C46="","",LEFT(C46,3)) -> 621 | C46: =IF('2) Raw'!E34="","",'2) Raw'!E34) -> 621-01004 | D46: =IF('2) Raw'!$E34="","",PROPER('2) Raw'!F34)) -> Mobilization And Demobilization For Seeding | E46: =IF('2) Raw'!$E34="","",'2) Raw'!G34) -> 3 | F46: =IF('2) Raw'!$E34="","",'2) Raw'!H34) -> EACH | H46: =IF('2) Raw'!$E34="","",'2) Raw'!I34) -> 341.27 | I46: =IF('2) Raw'!$E34="","",'2) Raw'!J34) -> 1023.81 | J46: 0.000440513575 | K46: 66 | N46: =IF('2) Raw'!$E34="","",'2) Raw'!K34) -> 341.27 | O46: =IF('2) Raw'!$E34="","",'2) Raw'!L34) -> 1023.81 | P46: 0.000440513575 | Q46: 66 | R46: =IF('2) Raw'!$E34="","",'2) Raw'!M34) -> 65 | T46: =IF('2) Raw'!$E34="","",'2) Raw'!O34) -> 474.36 | U46: =IF('2) Raw'!$E34="","",'2) Raw'!P34) -> 1423.08 | V46: 0.0005979867 | W46: 64 | X46: =IF('2) Raw'!$E34="","",'2) Raw'!Q34) -> 465 | Z46: =IF('2) Raw'!$E34="","",'2) Raw'!S34) -> 512.1 | AA46: =IF('2) Raw'!$E34="","",'2) Raw'!T34) -> 1536.3 | AB46: 0.0006266621814 | AC46: 62 | AD46: =IF('2) Raw'!$E34="","",'2) Raw'!U34) -> 1413 | AE46: 1536.3 | AF46: 1023.81 | AG46: 1423.08 | AH46: 1536.3 | AI46: =MIN(IF(AF46:AH46=0,"",AF46:AH46)) -> 1023.81 | AJ46: 1327.73 | AK46: =IF(E46="","",VLOOKUP(A46,List!$A$2:$D$186,2,FALSE)) -> Incidental Construction | AL46: =IF(E46="","",VLOOKUP(VALUE(B46),List!$C$2:$D$186,2,FALSE)) -> Seeding And Sodding | AM46: 442.5766667 | AO46: =IF('2) Raw'!$X34="","",'2) Raw'!X34) -> 33
A47: 600 | B47: 621 | C47: =IF('2) Raw'!E35="","",'2) Raw'!E35) -> 621-06545 | D47: =IF('2) Raw'!$E35="","",PROPER('2) Raw'!F35)) -> Fertilizer | E47: =IF('2) Raw'!$E35="","",'2) Raw'!G35) -> 2.2 | F47: =IF('2) Raw'!$E35="","",'2) Raw'!H35) -> TON | H47: =IF('2) Raw'!$E35="","",'2) Raw'!I35) -> 882.51 | I47: =IF('2) Raw'!$E35="","",'2) Raw'!J35) -> 1941.52 | J47: 0.0008353756225 | K47: 57 | N47: =IF('2) Raw'!$E35="","",'2) Raw'!K35) -> 882.51 | O47: =IF('2) Raw'!$E35="","",'2) Raw'!L35) -> 1941.52 | P47: 0.0008353756225 | Q47: 57 | R47: =IF('2) Raw'!$E35="","",'2) Raw'!M35) -> 21 | T47: =IF('2) Raw'!$E35="","",'2) Raw'!O35) -> 786.67 | U47: =IF('2) Raw'!$E35="","",'2) Raw'!P35) -> 1730.67 | V47: 0.0007272378517 | W47: 59 | X47: =IF('2) Raw'!$E35="","",'2) Raw'!Q35) -> 86 | Z47: =IF('2) Raw'!$E35="","",'2) Raw'!S35) -> 966.15 | AA47: =IF('2) Raw'!$E35="","",'2) Raw'!T35) -> 2125.53 | AB47: 0.0008670111738 | AC47: 59 | AD47: =IF('2) Raw'!$E35="","",'2) Raw'!U35) -> 301 | AE47: 2125.53 | AF47: 1941.52 | AG47: 1730.67 | AH47: 2125.53 | AI47: =MIN(IF(AF47:AH47=0,"",AF47:AH47)) -> 1730.67 | AJ47: 1932.573333 | AK47: =IF(E47="","",VLOOKUP(A47,List!$A$2:$D$186,2,FALSE)) -> Incidental Construction | AL47: =IF(E47="","",VLOOKUP(VALUE(B47),List!$C$2:$D$186,2,FALSE)) -> Seeding And Sodding | AM47: 878.4433333 | AO47: =IF('2) Raw'!$X35="","",'2) Raw'!X35) -> 34
A48: 600 | B48: 621 | C48: =IF('2) Raw'!E36="","",'2) Raw'!E36) -> 621-06553 | D48: =IF('2) Raw'!$E36="","",PROPER('2) Raw'!F36)) -> Seed Mixture, R | E48: =IF('2) Raw'!$E36="","",'2) Raw'!G36) -> 947 | F48: =IF('2) Raw'!$E36="","",'2) Raw'!H36) -> LBS | H48: =IF('2) Raw'!$E36="","",'2) Raw'!I36) -> 5.51 | I48: =IF('2) Raw'!$E36="","",'2) Raw'!J36) -> 5217.97 | J48: 0.002245130072 | K48: 45 | N48: =IF('2) Raw'!$E36="","",'2) Raw'!K36) -> 5.51 | O48: =IF('2) Raw'!$E36="","",'2) Raw'!L36) -> 5217.97 | P48: 0.002245130072 | Q48: 45 | R48: =IF('2) Raw'!$E36="","",'2) Raw'!M36) -> 4 | T48: =IF('2) Raw'!$E36="","",'2) Raw'!O36) -> 6.85 | U48: =IF('2) Raw'!$E36="","",'2) Raw'!P36) -> 6486.95 | V48: 0.002725855063 | W48: 36 | X48: =IF('2) Raw'!$E36="","",'2) Raw'!Q36) -> 32 | Z48: =IF('2) Raw'!$E36="","",'2) Raw'!S36) -> 4.28 | AA48: =IF('2) Raw'!$E36="","",'2) Raw'!T36) -> 4053.16 | AB48: 0.001653298241 | AC48: 49 | AD48: =IF('2) Raw'!$E36="","",'2) Raw'!U36) -> 134 | AE48: 6486.95 | AF48: 5217.97 | AG48: 6486.95 | AH48: 4053.16 | AI48: =MIN(IF(AF48:AH48=0,"",AF48:AH48)) -> 4053.16 | AJ48: 5252.693333 | AK48: =IF(E48="","",VLOOKUP(A48,List!$A$2:$D$186,2,FALSE)) -> Incidental Construction | AL48: =IF(E48="","",VLOOKUP(VALUE(B48),List!$C$2:$D$186,2,FALSE)) -> Seeding And Sodding | AM48: 5.546666667 | AO48: =IF('2) Raw'!$X36="","",'2) Raw'!X36) -> 35
A49: 600 | B49: 621 | C49: =IF('2) Raw'!E37="","",'2) Raw'!E37) -> 621-06557 | D49: =IF('2) Raw'!$E37="","",PROPER('2) Raw'!F37)) -> Seed Mixture, T | E49: =IF('2) Raw'!$E37="","",'2) Raw'!G37) -> 418 | F49: =IF('2) Raw'!$E37="","",'2) Raw'!H37) -> LBS | H49: =IF('2) Raw'!$E37="","",'2) Raw'!I37) -> 2.91 | I49: =IF('2) Raw'!$E37="","",'2) Raw'!J37) -> 1216.38 | J49: 0.0005233704518 | K49: 64 | N49: =IF('2) Raw'!$E37="","",'2) Raw'!K37) -> 2.91 | O49: =IF('2) Raw'!$E37="","",'2) Raw'!L37) -> 1216.38 | P49: 0.0005233704518 | Q49: 64 | R49: =IF('2) Raw'!$E37="","",'2) Raw'!M37) -> 14 | T49: =IF('2) Raw'!$E37="","",'2) Raw'!O37) -> 2.6 | U49: =IF('2) Raw'!$E37="","",'2) Raw'!P37) -> 1086.8 | V49: 0.0004566798392 | W49: 66 | X49: =IF('2) Raw'!$E37="","",'2) Raw'!Q37) -> 95 | Z49: =IF('2) Raw'!$E37="","",'2) Raw'!S37) -> 2.85 | AA49: =IF('2) Raw'!$E37="","",'2) Raw'!T37) -> 1191.3 | AB49: 0.0004859354662 | AC49: 66 | AD49: =IF('2) Raw'!$E37="","",'2) Raw'!U37) -> 296 | AE49: 1216.38 | AF49: 1216.38 | AG49: 1086.8 | AH49: 1191.3 | AI49: =MIN(IF(AF49:AH49=0,"",AF49:AH49)) -> 1086.8 | AJ49: 1164.826667 | AK49: =IF(E49="","",VLOOKUP(A49,List!$A$2:$D$186,2,FALSE)) -> Incidental Construction | AL49: =IF(E49="","",VLOOKUP(VALUE(B49),List!$C$2:$D$186,2,FALSE)) -> Seeding And Sodding | AM49: 2.786666667 | AO49: =IF('2) Raw'!$X37="","",'2) Raw'!X37) -> 36
A50: 600 | B50: 621 | C50: =IF('2) Raw'!E38="","",'2) Raw'!E38) -> 621-06565 | D50: =IF('2) Raw'!$E38="","",PROPER('2) Raw'!F38)) -> Mulching Material | E50: =IF('2) Raw'!$E38="","",'2) Raw'!G38) -> 17 | F50: =IF('2) Raw'!$E38="","",'2) Raw'!H38) -> TON | H50: =IF('2) Raw'!$E38="","",'2) Raw'!I38) -> 367.8 | I50: =IF('2) Raw'!$E38="","",'2) Raw'!J38) -> 6252.6 | J50: 0.002690299156 | K50: 34 | N50: =IF('2) Raw'!$E38="","",'2) Raw'!K38) -> 367.8 | O50: =IF('2) Raw'!$E38="","",'2) Raw'!L38) -> 6252.6 | P50: 0.002690299156 | Q50: 34 | R50: =IF('2) Raw'!$E38="","",'2) Raw'!M38) -> 12 | T50: =IF('2) Raw'!$E38="","",'2) Raw'!O38) -> 330.46 | U50: =IF('2) Raw'!$E38="","",'2) Raw'!P38) -> 5617.82 | V50: 0.002360641456 | W50: 40 | X50: =IF('2) Raw'!$E38="","",'2) Raw'!Q38) -> 78 | Z50: =IF('2) Raw'!$E38="","",'2) Raw'!S38) -> 352.84 | AA50: =IF('2) Raw'!$E38="","",'2) Raw'!T38) -> 5998.28 | AB50: 0.00244671954 | AC50: 38 | AD50: =IF('2) Raw'!$E38="","",'2) Raw'!U38) -> 256 | AE50: 6252.6 | AF50: 6252.6 | AG50: 5617.82 | AH50: 5998.28 | AI50: =MIN(IF(AF50:AH50=0,"",AF50:AH50)) -> 5617.82 | AJ50: 5956.233333 | AK50: =IF(E50="","",VLOOKUP(A50,List!$A$2:$D$186,2,FALSE)) -> Incidental Construction | AL50: =IF(E50="","",VLOOKUP(VALUE(B50),List!$C$2:$D$186,2,FALSE)) -> Seeding And Sodding | AM50: 350.3666667 | AO50: =IF('2) Raw'!$X38="","",'2) Raw'!X38) -> 37
A51: 600 | B51: 621 | C51: =IF('2) Raw'!E39="","",'2) Raw'!E39) -> 621-06567 | D51: =IF('2) Raw'!$E39="","",PROPER('2) Raw'!F39)) -> Water | E51: =IF('2) Raw'!$E39="","",'2) Raw'!G39) -> 12 | F51: =IF('2) Raw'!$E39="","",'2) Raw'!H39) -> M.G. | H51: =IF('2) Raw'!$E39="","",'2) Raw'!I39) -> 30.41 | I51: =IF('2) Raw'!$E39="","",'2) Raw'!J39) -> 364.92 | J51: 0.0001570137172 | K51: 73 | N51: =IF('2) Raw'!$E39="","",'2) Raw'!K39) -> 30.41 | O51: =IF('2) Raw'!$E39="","",'2) Raw'!L39) -> 364.92 | P51: 0.0001570137172 | Q51: 73 | R51: =IF('2) Raw'!$E39="","",'2) Raw'!M39) -> 24 | T51: =IF('2) Raw'!$E39="","",'2) Raw'!O39) -> 13.35 | U51: =IF('2) Raw'!$E39="","",'2) Raw'!P39) -> 160.2 | V51: 6.731699506e-05 | W51: 74 | X51: =IF('2) Raw'!$E39="","",'2) Raw'!Q39) -> 101 | Z51: =IF('2) Raw'!$E39="","",'2) Raw'!S39) -> 9.24 | AA51: =IF('2) Raw'!$E39="","",'2) Raw'!T39) -> 110.88 | AB51: 4.522834256e-05 | AC51: 75 | AD51: =IF('2) Raw'!$E39="","",'2) Raw'!U39) -> 340 | AE51: 364.92 | AF51: 364.92 | AG51: 160.2 | AH51: 110.88 | AI51: =MIN(IF(AF51:AH51=0,"",AF51:AH51)) -> 110.88 | AJ51: 212 | AK51: =IF(E51="","",VLOOKUP(A51,List!$A$2:$D$186,2,FALSE)) -> Incidental Construction | AL51: =IF(E51="","",VLOOKUP(VALUE(B51),List!$C$2:$D$186,2,FALSE)) -> Seeding And Sodding | AM51: 17.66666667 | AO51: =IF('2) Raw'!$X39="","",'2) Raw'!X39) -> 38
A52: 600 | B52: 621 | C52: =IF('2) Raw'!E40="","",'2) Raw'!E40) -> 621-06574 | D52: =IF('2) Raw'!$E40="","",PROPER('2) Raw'!F40)) -> Sodding | E52: =IF('2) Raw'!$E40="","",'2) Raw'!G40) -> 2999 | F52: =IF('2) Raw'!$E40="","",'2) Raw'!H40) -> S.Y. | H52: =IF('2) Raw'!$E40="","",'2) Raw'!I40) -> 3.54 | I52: =IF('2) Raw'!$E40="","",'2) Raw'!J40) -> 10616.46 | J52: 0.00456793228 | K52: 27 | N52: =IF('2) Raw'!$E40="","",'2) Raw'!K40) -> 3.54 | O52: =IF('2) Raw'!$E40="","",'2) Raw'!L40) -> 10616.46 | P52: 0.00456793228 | Q52: 27 | R52: =IF('2) Raw'!$E40="","",'2) Raw'!M40) -> 11 | T52: =IF('2) Raw'!$E40="","",'2) Raw'!O40) -> 3.26 | U52: =IF('2) Raw'!$E40="","",'2) Raw'!P40) -> 9776.74 | V52: 0.004108244434 | W52: 28 | X52: =IF('2) Raw'!$E40="","",'2) Raw'!Q40) -> 45 | Z52: =IF('2) Raw'!$E40="","",'2) Raw'!S40) -> 3.35 | AA52: =IF('2) Raw'!$E40="","",'2) Raw'!T40) -> 10046.65 | AB52: 0.004098063923 | AC52: 29 | AD52: =IF('2) Raw'!$E40="","",'2) Raw'!U40) -> 204 | AE52: 10616.46 | AF52: 10616.46 | AG52: 9776.74 | AH52: 10046.65 | AI52: =MIN(IF(AF52:AH52=0,"",AF52:AH52)) -> 9776.74 | AJ52: 10146.61667 | AK52: =IF(E52="","",VLOOKUP(A52,List!$A$2:$D$186,2,FALSE)) -> Incidental Construction | AL52: =IF(E52="","",VLOOKUP(VALUE(B52),List!$C$2:$D$186,2,FALSE)) -> Seeding And Sodding | AM52: 3.383333333 | AO52: =IF('2) Raw'!$X40="","",'2) Raw'!X40) -> 39
A53: 600 | B53: 628 | C53: =IF('2) Raw'!E41="","",'2) Raw'!E41) -> 628-08524 | D53: =IF('2) Raw'!$E41="","",PROPER('2) Raw'!F41)) -> Cellular Telephone/Radio, Additional Minutes | E53: =IF('2) Raw'!$E41="","",'2) Raw'!G41) -> 1 | F53: =IF('2) Raw'!$E41="","",'2) Raw'!H41) -> $ | H53: =IF('2) Raw'!$E41="","",'2) Raw'!I41) -> 1 | I53: =IF('2) Raw'!$E41="","",'2) Raw'!J41) -> 1 | J53: 4.302688731e-07 | K53: 76 | N53: =IF('2) Raw'!$E41="","",'2) Raw'!K41) -> 1 | O53: =IF('2) Raw'!$E41="","",'2) Raw'!L41) -> 1 | P53: 4.302688731e-07 | Q53: 76 | R53: =IF('2) Raw'!$E41="","",'2) Raw'!M41) -> 50 | T53: =IF('2) Raw'!$E41="","",'2) Raw'!O41) -> 1.47 | U53: =IF('2) Raw'!$E41="","",'2) Raw'!P41) -> 1.47 | V53: 6.177027637e-07 | W53: 76 | X53: =IF('2) Raw'!$E41="","",'2) Raw'!Q41) -> 212 | Z53: =IF('2) Raw'!$E41="","",'2) Raw'!S41) -> 1.29 | AA53: =IF('2) Raw'!$E41="","",'2) Raw'!T41) -> 1.29 | AB53: 5.261955438e-07 | AC53: 76 | AD53: =IF('2) Raw'!$E41="","",'2) Raw'!U41) -> 338 | AE53: 1.47 | AF53: 1 | AG53: 1.47 | AH53: 1.29 | AI53: =MIN(IF(AF53:AH53=0,"",AF53:AH53)) -> 1 | AJ53: 1.253333333 | AK53: =IF(E53="","",VLOOKUP(A53,List!$A$2:$D$186,2,FALSE)) -> Incidental Construction | AL53: =IF(E53="","",VLOOKUP(VALUE(B53),List!$C$2:$D$186,2,FALSE)) -> Field Office, Field Laboratory, Computer Systems, Office Machines And Communications | AM53: 1.253333333 | AO53: =IF('2) Raw'!$X41="","",'2) Raw'!X41) -> 42
A54: 600 | B54: 628 | C54: =IF('2) Raw'!E42="","",'2) Raw'!E42) -> 628-09403 | D54: =IF('2) Raw'!$E42="","",PROPER('2) Raw'!F42)) -> Field Office, C | E54: =IF('2) Raw'!$E42="","",'2) Raw'!G42) -> 14 | F54: =IF('2) Raw'!$E42="","",'2) Raw'!H42) -> MONTH | H54: =IF('2) Raw'!$E42="","",'2) Raw'!I42) -> 2048.15 | I54: =IF('2) Raw'!$E42="","",'2) Raw'!J42) -> 28674.1 | J54: 0.01233757269 | K54: 12 | N54: =IF('2) Raw'!$E42="","",'2) Raw'!K42) -> 2048.15 | O54: =IF('2) Raw'!$E42="","",'2) Raw'!L42) -> 28674.1 | P54: 0.01233757269 | Q54: 12 | R54: =IF('2) Raw'!$E42="","",'2) Raw'!M42) -> 31 | T54: =IF('2) Raw'!$E42="","",'2) Raw'!O42) -> 2086.68 | U54: =IF('2) Raw'!$E42="","",'2) Raw'!P42) -> 29213.52 | V54: 0.01227569527 | W54: 12 | X54: =IF('2) Raw'!$E42="","",'2) Raw'!Q42) -> 84 | Z54: =IF('2) Raw'!$E42="","",'2) Raw'!S42) -> 2126.84 | AA54: =IF('2) Raw'!$E42="","",'2) Raw'!T42) -> 29775.76 | AB54: 0.01214563738 | AC54: 13 | AD54: =IF('2) Raw'!$E42="","",'2) Raw'!U42) -> 214 | AE54: 29775.76 | AF54: 28674.1 | AG54: 29213.52 | AH54: 29775.76 | AI54: =MIN(IF(AF54:AH54=0,"",AF54:AH54)) -> 28674.1 | AJ54: 29221.12667 | AK54: =IF(E54="","",VLOOKUP(A54,List!$A$2:$D$186,2,FALSE)) -> Incidental Construction | AL54: =IF(E54="","",VLOOKUP(VALUE(B54),List!$C$2:$D$186,2,FALSE)) -> Field Office, Field Laboratory, Computer Systems, Office Machines And Communications | AM54: 2087.223333 | AO54: =IF('2) Raw'!$X42="","",'2) Raw'!X42) -> 43
A55: 600 | B55: 628 | C55: =IF('2) Raw'!E43="","",'2) Raw'!E43) -> 628-09407 | D55: =IF('2) Raw'!$E43="","",PROPER('2) Raw'!F43)) -> Field Office Computer System, Additional {2 Each} | E55: =IF('2) Raw'!$E43="","",'2) Raw'!G43) -> 28 | F55: =IF('2) Raw'!$E43="","",'2) Raw'!H43) -> MONTH | H55: =IF('2) Raw'!$E43="","",'2) Raw'!I43) -> 213.01 | I55: =IF('2) Raw'!$E43="","",'2) Raw'!J43) -> 5964.28 | J55: 0.002566244034 | K55: 38 | N55: =IF('2) Raw'!$E43="","",'2) Raw'!K43) -> 213.01 | O55: =IF('2) Raw'!$E43="","",'2) Raw'!L43) -> 5964.28 | P55: 0.002566244034 | Q55: 38 | R55: =IF('2) Raw'!$E43="","",'2) Raw'!M43) -> 45 | T55: =IF('2) Raw'!$E43="","",'2) Raw'!O43) -> 182.32 | U55: =IF('2) Raw'!$E43="","",'2) Raw'!P43) -> 5104.96 | V55: 0.002145134626 | W55: 44 | X55: =IF('2) Raw'!$E43="","",'2) Raw'!Q43) -> 162 | Z55: =IF('2) Raw'!$E43="","",'2) Raw'!S43) -> 198.95 | AA55: =IF('2) Raw'!$E43="","",'2) Raw'!T43) -> 5570.6 | AB55: 0.002272267362 | AC55: 41 | AD55: =IF('2) Raw'!$E43="","",'2) Raw'!U43) -> 524 | AE55: 5964.28 | AF55: 5964.28 | AG55: 5104.96 | AH55: 5570.6 | AI55: =MIN(IF(AF55:AH55=0,"",AF55:AH55)) -> 5104.96 | AJ55: 5546.613333 | AK55: =IF(E55="","",VLOOKUP(A55,List!$A$2:$D$186,2,FALSE)) -> Incidental Construction | AL55: =IF(E55="","",VLOOKUP(VALUE(B55),List!$C$2:$D$186,2,FALSE)) -> Field Office, Field Laboratory, Computer Systems, Office Machines And Communications | AM55: 198.0933333 | AO55: =IF('2) Raw'!$X43="","",'2) Raw'!X43) -> 44
A56: 600 | B56: 628 | C56: =IF('2) Raw'!E44="","",'2) Raw'!E44) -> 628-11068 | D56: =IF('2) Raw'!$E44="","",PROPER('2) Raw'!F44)) -> Cellular Telephone/Radio | E56: =IF('2) Raw'!$E44="","",'2) Raw'!G44) -> 3 | F56: =IF('2) Raw'!$E44="","",'2) Raw'!H44) -> EACH | H56: =IF('2) Raw'!$E44="","",'2) Raw'!I44) -> 164.08 | I56: =IF('2) Raw'!$E44="","",'2) Raw'!J44) -> 492.24 | J56: 0.0002117955501 | K56: 71 | N56: =IF('2) Raw'!$E44="","",'2) Raw'!K44) -> 164.08 | O56: =IF('2) Raw'!$E44="","",'2) Raw'!L44) -> 492.24 | P56: 0.0002117955501 | Q56: 71 | R56: =IF('2) Raw'!$E44="","",'2) Raw'!M44) -> 47 | T56: =IF('2) Raw'!$E44="","",'2) Raw'!O44) -> 158.86 | U56: =IF('2) Raw'!$E44="","",'2) Raw'!P44) -> 476.58 | V56: 0.0002002617572 | W56: 70 | X56: =IF('2) Raw'!$E44="","",'2) Raw'!Q44) -> 210 | Z56: =IF('2) Raw'!$E44="","",'2) Raw'!S44) -> 155.11 | AA56: =IF('2) Raw'!$E44="","",'2) Raw'!T44) -> 465.33 | AB56: 0.000189809746 | AC56: 71 | AD56: =IF('2) Raw'!$E44="","",'2) Raw'!U44) -> 336 | AE56: 492.24 | AF56: 492.24 | AG56: 476.58 | AH56: 465.33 | AI56: =MIN(IF(AF56:AH56=0,"",AF56:AH56)) -> 465.33 | AJ56: 478.05 | AK56: =IF(E56="","",VLOOKUP(A56,List!$A$2:$D$186,2,FALSE)) -> Incidental Construction | AL56: =IF(E56="","",VLOOKUP(VALUE(B56),List!$C$2:$D$186,2,FALSE)) -> Field Office, Field Laboratory, Computer Systems, Office Machines And Communications | AM56: 159.35 | AO56: =IF('2) Raw'!$X44="","",'2) Raw'!X44) -> 40
A57: 600 | B57: 628 | C57: =IF('2) Raw'!E45="","",'2) Raw'!E45) -> 628-11069 | D57: =IF('2) Raw'!$E45="","",PROPER('2) Raw'!F45)) -> Cellular Telephone/Radio Service | E57: =IF('2) Raw'!$E45="","",'2) Raw'!G45) -> 42 | F57: =IF('2) Raw'!$E45="","",'2) Raw'!H45) -> MONTH | H57: =IF('2) Raw'!$E45="","",'2) Raw'!I45) -> 97.31 | I57: =IF('2) Raw'!$E45="","",'2) Raw'!J45) -> 4087.02 | J57: 0.00175851749 | K57: 50 | N57: =IF('2) Raw'!$E45="","",'2) Raw'!K45) -> 97.31 | O57: =IF('2) Raw'!$E45="","",'2) Raw'!L45) -> 4087.02 | P57: 0.00175851749 | Q57: 50 | R57: =IF('2) Raw'!$E45="","",'2) Raw'!M45) -> 50 | T57: =IF('2) Raw'!$E45="","",'2) Raw'!O45) -> 92.98 | U57: =IF('2) Raw'!$E45="","",'2) Raw'!P45) -> 3905.16 | V57: 0.001640971513 | W57: 50 | X57: =IF('2) Raw'!$E45="","",'2) Raw'!Q45) -> 213 | Z57: =IF('2) Raw'!$E45="","",'2) Raw'!S45) -> 90.51 | AA57: =IF('2) Raw'!$E45="","",'2) Raw'!T45) -> 3801.42 | AB57: 0.001550612608 | AC57: 50 | AD57: =IF('2) Raw'!$E45="","",'2) Raw'!U45) -> 339 | AE57: 4087.02 | AF57: 4087.02 | AG57: 3905.16 | AH57: 3801.42 | AI57: =MIN(IF(AF57:AH57=0,"",AF57:AH57)) -> 3801.42 | AJ57: 3931.2 | AK57: =IF(E57="","",VLOOKUP(A57,List!$A$2:$D$186,2,FALSE)) -> Incidental Construction | AL57: =IF(E57="","",VLOOKUP(VALUE(B57),List!$C$2:$D$186,2,FALSE)) -> Field Office, Field Laboratory, Computer Systems, Office Machines And Communications | AM57: 93.6 | AO57: =IF('2) Raw'!$X45="","",'2) Raw'!X45) -> 41
A58: 700 | B58: 701 | C58: =IF('2) Raw'!E46="","",'2) Raw'!E46) -> 701-01814 | D58: =IF('2) Raw'!$E46="","",PROPER('2) Raw'!F46)) -> Mobilization For Dynamic Pile Monitoring And Equipment | E58: =IF('2) Raw'!$E46="","",'2) Raw'!G46) -> 1 | F58: =IF('2) Raw'!$E46="","",'2) Raw'!H46) -> EACH | H58: =IF('2) Raw'!$E46="","",'2) Raw'!I46) -> 1717.41 | I58: =IF('2) Raw'!$E46="","",'2) Raw'!J46) -> 1717.41 | J58: 0.0007389480653 | K58: 60 | N58: =IF('2) Raw'!$E46="","",'2) Raw'!K46) -> 1717.41 | O58: =IF('2) Raw'!$E46="","",'2) Raw'!L46) -> 1717.41 | P58: 0.0007389480653 | Q58: 60 | R58: =IF('2) Raw'!$E46="","",'2) Raw'!M46) -> 0 | T58: =IF('2) Raw'!$E46="","",'2) Raw'!O46) -> 1717.41 | U58: =IF('2) Raw'!$E46="","",'2) Raw'!P46) -> 1717.41 | V58: 0.0007216659207 | W58: 60 | X58: =IF('2) Raw'!$E46="","",'2) Raw'!Q46) -> 0 | Z58: =IF('2) Raw'!$E46="","",'2) Raw'!S46) -> 1717.41 | AA58: =IF('2) Raw'!$E46="","",'2) Raw'!T46) -> 1717.41 | AB58: 0.0007005375883 | AC58: 61 | AD58: =IF('2) Raw'!$E46="","",'2) Raw'!U46) -> 3 | AE58: 1717.41 | AF58: 1717.41 | AG58: 1717.41 | AH58: 1717.41 | AI58: =MIN(IF(AF58:AH58=0,"",AF58:AH58)) -> 1717.41 | AJ58: 1717.41 | AK58: =IF(E58="","",VLOOKUP(A58,List!$A$2:$D$186,2,FALSE)) -> Structures | AL58: =IF(E58="","",VLOOKUP(VALUE(B58),List!$C$2:$D$186,2,FALSE)) -> Driven Piling | AM58: 1717.41 | AN58: 701-01814 | AO58: =IF('2) Raw'!$X46="","",'2) Raw'!X46) -> 45
A59: 700 | B59: 701 | C59: =IF('2) Raw'!E47="","",'2) Raw'!E47) -> 701-06011 | D59: =IF('2) Raw'!$E47="","",PROPER('2) Raw'!F47)) -> Dynamic Pile Load Test | E59: =IF('2) Raw'!$E47="","",'2) Raw'!G47) -> 4 | F59: =IF('2) Raw'!$E47="","",'2) Raw'!H47) -> EACH | H59: =IF('2) Raw'!$E47="","",'2) Raw'!I47) -> 1880.01 | I59: =IF('2) Raw'!$E47="","",'2) Raw'!J47) -> 7520.04 | J59: 0.003235639136 | K59: 31 | N59: =IF('2) Raw'!$E47="","",'2) Raw'!K47) -> 1880.01 | O59: =IF('2) Raw'!$E47="","",'2) Raw'!L47) -> 7520.04 | P59: 0.003235639136 | Q59: 31 | R59: =IF('2) Raw'!$E47="","",'2) Raw'!M47) -> 19 | T59: =IF('2) Raw'!$E47="","",'2) Raw'!O47) -> 2110.42 | U59: =IF('2) Raw'!$E47="","",'2) Raw'!P47) -> 8441.68 | V59: 0.003547244263 | W59: 32 | X59: =IF('2) Raw'!$E47="","",'2) Raw'!Q47) -> 57 | Z59: =IF('2) Raw'!$E47="","",'2) Raw'!S47) -> 2106.26 | AA59: =IF('2) Raw'!$E47="","",'2) Raw'!T47) -> 8425.04 | AB59: 0.003436603492 | AC59: 31 | AD59: =IF('2) Raw'!$E47="","",'2) Raw'!U47) -> 161 | AE59: 8441.68 | AF59: 7520.04 | AG59: 8441.68 | AH59: 8425.04 | AI59: =MIN(IF(AF59:AH59=0,"",AF59:AH59)) -> 7520.04 | AJ59: 8128.92 | AK59: =IF(E59="","",VLOOKUP(A59,List!$A$2:$D$186,2,FALSE)) -> Structures | AL59: =IF(E59="","",VLOOKUP(VALUE(B59),List!$C$2:$D$186,2,FALSE)) -> Driven Piling | AM59: 2032.23 | AO59: =IF('2) Raw'!$X47="","",'2) Raw'!X47) -> 46
A60: 700 | B60: 701 | C60: =IF('2) Raw'!E48="","",'2) Raw'!E48) -> 701-08253 | D60: =IF('2) Raw'!$E48="","",PROPER('2) Raw'!F48)) -> Pile Sleeves | E60: =IF('2) Raw'!$E48="","",'2) Raw'!G48) -> 20 | F60: =IF('2) Raw'!$E48="","",'2) Raw'!H48) -> EACH | H60: =IF('2) Raw'!$E48="","",'2) Raw'!I48) -> 687.5 | I60: =IF('2) Raw'!$E48="","",'2) Raw'!J48) -> 13750 | J60: 0.005916197005 | K60: 23 | N60: =IF('2) Raw'!$E48="","",'2) Raw'!K48) -> 687.5 | O60: =IF('2) Raw'!$E48="","",'2) Raw'!L48) -> 13750 | P60: 0.005916197005 | Q60: 23 | R60: =IF('2) Raw'!$E48="","",'2) Raw'!M48) -> 10 | T60: =IF('2) Raw'!$E48="","",'2) Raw'!O48) -> 549.68 | U60: =IF('2) Raw'!$E48="","",'2) Raw'!P48) -> 10993.6 | V60: 0.00461957626 | W60: 27 | X60: =IF('2) Raw'!$E48="","",'2) Raw'!Q48) -> 21 | Z60: =IF('2) Raw'!$E48="","",'2) Raw'!S48) -> 556.58 | AA60: =IF('2) Raw'!$E48="","",'2) Raw'!T48) -> 11131.6 | AB60: 0.004540618849 | AC60: 26 | AD60: =IF('2) Raw'!$E48="","",'2) Raw'!U48) -> 42 | AE60: 13750 | AF60: 13750 | AG60: 10993.6 | AH60: 11131.6 | AI60: =MIN(IF(AF60:AH60=0,"",AF60:AH60)) -> 10993.6 | AJ60: 11958.4 | AK60: =IF(E60="","",VLOOKUP(A60,List!$A$2:$D$186,2,FALSE)) -> Structures | AL60: =IF(E60="","",VLOOKUP(VALUE(B60),List!$C$2:$D$186,2,FALSE)) -> Driven Piling | AM60: 597.92 | AO60: =IF('2) Raw'!$X48="","",'2) Raw'!X48) -> 47
A61: 700 | B61: 701 | C61: =IF('2) Raw'!E49="","",'2) Raw'!E49) -> 701-09557 | D61: =IF('2) Raw'!$E49="","",PROPER('2) Raw'!F49)) -> Test Pile, Dynamic, Production | E61: =IF('2) Raw'!$E49="","",'2) Raw'!G49) -> 157 | F61: =IF('2) Raw'!$E49="","",'2) Raw'!H49) -> L.F. | H61: =IF('2) Raw'!$E49="","",'2) Raw'!I49) -> 53.71 | I61: =IF('2) Raw'!$E49="","",'2) Raw'!J49) -> 8432.47 | J61: 0.003628229364 | K61: 30 | N61: =IF('2) Raw'!$E49="","",'2) Raw'!K49) -> 53.71 | O61: =IF('2) Raw'!$E49="","",'2) Raw'!L49) -> 8432.47 | P61: 0.003628229364 | Q61: 30 | R61: =IF('2) Raw'!$E49="","",'2) Raw'!M49) -> 13 | T61: =IF('2) Raw'!$E49="","",'2) Raw'!O49) -> 53.81 | U61: =IF('2) Raw'!$E49="","",'2) Raw'!P49) -> 8448.17 | V61: 0.003549971399 | W61: 31 | X61: =IF('2) Raw'!$E49="","",'2) Raw'!Q49) -> 57 | Z61: =IF('2) Raw'!$E49="","",'2) Raw'!S49) -> 53.08 | AA61: =IF('2) Raw'!$E49="","",'2) Raw'!T49) -> 8333.56 | AB61: 0.003399288478 | AC61: 32 | AD61: =IF('2) Raw'!$E49="","",'2) Raw'!U49) -> 84 | AE61: 8448.17 | AF61: 8432.47 | AG61: 8448.17 | AH61: 8333.56 | AI61: =MIN(IF(AF61:AH61=0,"",AF61:AH61)) -> 8333.56 | AJ61: 8404.733333 | AK61: =IF(E61="","",VLOOKUP(A61,List!$A$2:$D$186,2,FALSE)) -> Structures | AL61: =IF(E61="","",VLOOKUP(VALUE(B61),List!$C$2:$D$186,2,FALSE)) -> Driven Piling | AM61: 53.53333333 | AO61: =IF('2) Raw'!$X49="","",'2) Raw'!X49) -> 48
A62: 700 | B62: 701 | C62: =IF('2) Raw'!E50="","",'2) Raw'!E50) -> 701-09559 | D62: =IF('2) Raw'!$E50="","",PROPER('2) Raw'!F50)) -> Test Pile, Dynamic, Restrike | E62: =IF('2) Raw'!$E50="","",'2) Raw'!G50) -> 4 | F62: =IF('2) Raw'!$E50="","",'2) Raw'!H50) -> EACH | H62: =IF('2) Raw'!$E50="","",'2) Raw'!I50) -> 1435.35 | I62: =IF('2) Raw'!$E50="","",'2) Raw'!J50) -> 5741.4 | J62: 0.002470345708 | K62: 40 | N62: =IF('2) Raw'!$E50="","",'2) Raw'!K50) -> 1435.35 | O62: =IF('2) Raw'!$E50="","",'2) Raw'!L50) -> 5741.4 | P62: 0.002470345708 | Q62: 40 | R62: =IF('2) Raw'!$E50="","",'2) Raw'!M50) -> 19 | T62: =IF('2) Raw'!$E50="","",'2) Raw'!O50) -> 1629.05 | U62: =IF('2) Raw'!$E50="","",'2) Raw'!P50) -> 6516.2 | V62: 0.002738146088 | W62: 35 | X62: =IF('2) Raw'!$E50="","",'2) Raw'!Q50) -> 66 | Z62: =IF('2) Raw'!$E50="","",'2) Raw'!S50) -> 1554.62 | AA62: =IF('2) Raw'!$E50="","",'2) Raw'!T50) -> 6218.48 | AB62: 0.002536539896 | AC62: 37 | AD62: =IF('2) Raw'!$E50="","",'2) Raw'!U50) -> 102 | AE62: 6516.2 | AF62: 5741.4 | AG62: 6516.2 | AH62: 6218.48 | AI62: =MIN(IF(AF62:AH62=0,"",AF62:AH62)) -> 5741.4 | AJ62: 6158.693333 | AK62: =IF(E62="","",VLOOKUP(A62,List!$A$2:$D$186,2,FALSE)) -> Structures | AL62: =IF(E62="","",VLOOKUP(VALUE(B62),List!$C$2:$D$186,2,FALSE)) -> Driven Piling | AM62: 1539.673333 | AO62: =IF('2) Raw'!$X50="","",'2) Raw'!X50) -> 49
A63: 700 | B63: 701 | C63: =IF('2) Raw'!E51="","",'2) Raw'!E51) -> 701-51195 | D63: =IF('2) Raw'!$E51="","",PROPER('2) Raw'!F51)) -> Pile, Steel H, Hp 12 In X 53 | E63: =IF('2) Raw'!$E51="","",'2) Raw'!G51) -> 468 | F63: =IF('2) Raw'!$E51="","",'2) Raw'!H51) -> L.F. | H63: =IF('2) Raw'!$E51="","",'2) Raw'!I51) -> 52.52 | I63: =IF('2) Raw'!$E51="","",'2) Raw'!J51) -> 24579.36 | J63: 0.01057573353 | K63: 14 | N63: =IF('2) Raw'!$E51="","",'2) Raw'!K51) -> 52.52 | O63: =IF('2) Raw'!$E51="","",'2) Raw'!L51) -> 24579.36 | P63: 0.01057573353 | Q63: 14 | R63: =IF('2) Raw'!$E51="","",'2) Raw'!M51) -> 0 | T63: =IF('2) Raw'!$E51="","",'2) Raw'!O51) -> 52.52 | U63: =IF('2) Raw'!$E51="","",'2) Raw'!P51) -> 24579.36 | V63: 0.01032839361 | W63: 15 | X63: =IF('2) Raw'!$E51="","",'2) Raw'!Q51) -> 35 | Z63: =IF('2) Raw'!$E51="","",'2) Raw'!S51) -> 54.21 | AA63: =IF('2) Raw'!$E51="","",'2) Raw'!T51) -> 25370.28 | AB63: 0.01034862657 | AC63: 16 | AD63: =IF('2) Raw'!$E51="","",'2) Raw'!U51) -> 103 | AE63: 25370.28 | AF63: 24579.36 | AG63: 24579.36 | AH63: 25370.28 | AI63: =MIN(IF(AF63:AH63=0,"",AF63:AH63)) -> 24579.36 | AJ63: 24843 | AK63: =IF(E63="","",VLOOKUP(A63,List!$A$2:$D$186,2,FALSE)) -> Structures | AL63: =IF(E63="","",VLOOKUP(VALUE(B63),List!$C$2:$D$186,2,FALSE)) -> Driven Piling | AM63: 53.08333333 | AN63: 701-51195 | AO63: =IF('2) Raw'!$X51="","",'2) Raw'!X51) -> 50
A64: 700 | B64: 701 | C64: =IF('2) Raw'!E52="","",'2) Raw'!E52) -> 701-92043 | D64: =IF('2) Raw'!$E52="","",PROPER('2) Raw'!F52)) -> Cored Hole In Rock, 18 In | E64: =IF('2) Raw'!$E52="","",'2) Raw'!G52) -> 100 | F64: =IF('2) Raw'!$E52="","",'2) Raw'!H52) -> L.F. | H64: =IF('2) Raw'!$E52="","",'2) Raw'!I52) -> 224.71 | I64: =IF('2) Raw'!$E52="","",'2) Raw'!J52) -> 22471 | J64: 0.009668571847 | K64: 17 | N64: =IF('2) Raw'!$E52="","",'2) Raw'!K52) -> 224.71 | O64: =IF('2) Raw'!$E52="","",'2) Raw'!L52) -> 22471 | P64: 0.009668571847 | Q64: 17 | R64: =IF('2) Raw'!$E52="","",'2) Raw'!M52) -> 0 | T64: =IF('2) Raw'!$E52="","",'2) Raw'!O52) -> 224.71 | U64: =IF('2) Raw'!$E52="","",'2) Raw'!P52) -> 22471 | V64: 0.009442448165 | W64: 17 | X64: =IF('2) Raw'!$E52="","",'2) Raw'!Q52) -> 9 | Z64: =IF('2) Raw'!$E52="","",'2) Raw'!S52) -> 281.15 | AA64: =IF('2) Raw'!$E52="","",'2) Raw'!T52) -> 28115 | AB64: 0.01146820753 | AC64: 15 | AD64: =IF('2) Raw'!$E52="","",'2) Raw'!U52) -> 21 | AE64: 28115 | AF64: 22471 | AG64: 22471 | AH64: 28115 | AI64: =MIN(IF(AF64:AH64=0,"",AF64:AH64)) -> 22471 | AJ64: 24352.33333 | AK64: =IF(E64="","",VLOOKUP(A64,List!$A$2:$D$186,2,FALSE)) -> Structures | AL64: =IF(E64="","",VLOOKUP(VALUE(B64),List!$C$2:$D$186,2,FALSE)) -> Driven Piling | AM64: 243.5233333 | AN64: 701-92043 | AO64: =IF('2) Raw'!$X52="","",'2) Raw'!X52) -> 51
A65: 700 | B65: 702 | C65: =IF('2) Raw'!E53="","",'2) Raw'!E53) -> 702-05533 | D65: =IF('2) Raw'!$E53="","",PROPER('2) Raw'!F53)) -> Grates, Basins, And Fittings, Cast Iron | E65: =IF('2) Raw'!$E53="","",'2) Raw'!G53) -> 1 | F65: =IF('2) Raw'!$E53="","",'2) Raw'!H53) -> L.S. | H65: =IF('2) Raw'!$E53="","",'2) Raw'!I53) -> 23333.33 | I65: =IF('2) Raw'!$E53="","",'2) Raw'!J53) -> 23333.33 | J65: 0.0100396056 | K65: 16 | N65: =IF('2) Raw'!$E53="","",'2) Raw'!K53) -> 23333.33 | O65: =IF('2) Raw'!$E53="","",'2) Raw'!L53) -> 23333.33 | P65: 0.0100396056 | Q65: 16 | R65: =IF('2) Raw'!$E53="","",'2) Raw'!M53) -> 0 | T65: =IF('2) Raw'!$E53="","",'2) Raw'!O53) -> 23333.33 | U65: =IF('2) Raw'!$E53="","",'2) Raw'!P53) -> 23333.33 | V65: 0.009804804372 | W65: 16 | X65: =IF('2) Raw'!$E53="","",'2) Raw'!Q53) -> 0 | Z65: =IF('2) Raw'!$E53="","",'2) Raw'!S53) -> 23333.33 | AA65: =IF('2) Raw'!$E53="","",'2) Raw'!T53) -> 23333.33 | AB65: 0.009517747495 | AC65: 18 | AD65: =IF('2) Raw'!$E53="","",'2) Raw'!U53) -> 6 | AE65: 23333.33 | AF65: 23333.33 | AG65: 23333.33 | AH65: 23333.33 | AI65: =MIN(IF(AF65:AH65=0,"",AF65:AH65)) -> 23333.33 | AJ65: 23333.33 | AK65: =IF(E65="","",VLOOKUP(A65,List!$A$2:$D$186,2,FALSE)) -> Structures | AL65: =IF(E65="","",VLOOKUP(VALUE(B65),List!$C$2:$D$186,2,FALSE)) -> Structural Concrete | AM65: 23333.33 | AN65: 702-05533 | AO65: =IF('2) Raw'!$X53="","",'2) Raw'!X53) -> 52
A66: 700 | B66: 702 | C66: =IF('2) Raw'!E54="","",'2) Raw'!E54) -> 702-51005 | D66: =IF('2) Raw'!$E54="","",PROPER('2) Raw'!F54)) -> Concrete, A, Substructure | E66: =IF('2) Raw'!$E54="","",'2) Raw'!G54) -> 526 | F66: =IF('2) Raw'!$E54="","",'2) Raw'!H54) -> C.Y. | H66: =IF('2) Raw'!$E54="","",'2) Raw'!I54) -> 353.53 | I66: =IF('2) Raw'!$E54="","",'2) Raw'!J54) -> 185956.78 | J66: 0.08001141417 | K66: 5 | N66: =IF('2) Raw'!$E54="","",'2) Raw'!K54) -> 353.53 | O66: =IF('2) Raw'!$E54="","",'2) Raw'!L54) -> 185956.78 | P66: 0.08001141417 | Q66: 5 | R66: =IF('2) Raw'!$E54="","",'2) Raw'!M54) -> 16 | T66: =IF('2) Raw'!$E54="","",'2) Raw'!O54) -> 458.8 | U66: =IF('2) Raw'!$E54="","",'2) Raw'!P54) -> 241328.8 | V66: 0.1014078005 | W66: 4 | X66: =IF('2) Raw'!$E54="","",'2) Raw'!Q54) -> 51 | Z66: =IF('2) Raw'!$E54="","",'2) Raw'!S54) -> 513.56 | AA66: =IF('2) Raw'!$E54="","",'2) Raw'!T54) -> 270132.56 | AB66: 0.1101880227 | AC66: 4 | AD66: =IF('2) Raw'!$E54="","",'2) Raw'!U54) -> 127 | AE66: 270132.56 | AF66: 185956.78 | AG66: 241328.8 | AH66: 270132.56 | AI66: =MIN(IF(AF66:AH66=0,"",AF66:AH66)) -> 185956.78 | AJ66: 232472.7133 | AK66: =IF(E66="","",VLOOKUP(A66,List!$A$2:$D$186,2,FALSE)) -> Structures | AL66: =IF(E66="","",VLOOKUP(VALUE(B66),List!$C$2:$D$186,2,FALSE)) -> Structural Concrete | AM66: 441.9633333 | AO66: =IF('2) Raw'!$X54="","",'2) Raw'!X54) -> 53
A67: 700 | B67: 702 | C67: =IF('2) Raw'!E55="","",'2) Raw'!E55) -> 702-51015 | D67: =IF('2) Raw'!$E55="","",PROPER('2) Raw'!F55)) -> Concrete, B, Footings | E67: =IF('2) Raw'!$E55="","",'2) Raw'!G55) -> 206.9 | F67: =IF('2) Raw'!$E55="","",'2) Raw'!H55) -> C.Y. | H67: =IF('2) Raw'!$E55="","",'2) Raw'!I55) -> 320.54 | I67: =IF('2) Raw'!$E55="","",'2) Raw'!J55) -> 66319.73 | J67: 0.02853531549 | K67: 8 | N67: =IF('2) Raw'!$E55="","",'2) Raw'!K55) -> 320.54 | O67: =IF('2) Raw'!$E55="","",'2) Raw'!L55) -> 66319.73 | P67: 0.02853531549 | Q67: 8 | R67: =IF('2) Raw'!$E55="","",'2) Raw'!M55) -> 10 | T67: =IF('2) Raw'!$E55="","",'2) Raw'!O55) -> 339.76 | U67: =IF('2) Raw'!$E55="","",'2) Raw'!P55) -> 70296.34 | V67: 0.02953894115 | W67: 8 | X67: =IF('2) Raw'!$E55="","",'2) Raw'!Q55) -> 36 | Z67: =IF('2) Raw'!$E55="","",'2) Raw'!S55) -> 352.47 | AA67: =IF('2) Raw'!$E55="","",'2) Raw'!T55) -> 72926.04 | AB67: 0.02974678859 | AC67: 7 | AD67: =IF('2) Raw'!$E55="","",'2) Raw'!U55) -> 92 | AE67: 72926.04 | AF67: 66319.73 | AG67: 70296.34 | AH67: 72926.04 | AI67: =MIN(IF(AF67:AH67=0,"",AF67:AH67)) -> 66319.73 | AJ67: 69847.37 | AK67: =IF(E67="","",VLOOKUP(A67,List!$A$2:$D$186,2,FALSE)) -> Structures | AL67: =IF(E67="","",VLOOKUP(VALUE(B67),List!$C$2:$D$186,2,FALSE)) -> Structural Concrete | AM67: 337.59 | AO67: =IF('2) Raw'!$X55="","",'2) Raw'!X55) -> 54
A68: 700 | B68: 703 | C68: =IF('2) Raw'!E56="","",'2) Raw'!E56) -> 703-06028 | D68: =IF('2) Raw'!$E56="","",PROPER('2) Raw'!F56)) -> Reinforcing Bars | E68: =IF('2) Raw'!$E56="","",'2) Raw'!G56) -> 107370 | F68: =IF('2) Raw'!$E56="","",'2) Raw'!H56) -> LBS | H68: =IF('2) Raw'!$E56="","",'2) Raw'!I56) -> 0.8 | I68: =IF('2) Raw'!$E56="","",'2) Raw'!J56) -> 85896 | J68: 0.03695837512 | K68: 6 | N68: =IF('2) Raw'!$E56="","",'2) Raw'!K56) -> 0.8 | O68: =IF('2) Raw'!$E56="","",'2) Raw'!L56) -> 85896 | P68: 0.03695837512 | Q68: 6 | R68: =IF('2) Raw'!$E56="","",'2) Raw'!M56) -> 19 | T68: =IF('2) Raw'!$E56="","",'2) Raw'!O56) -> 0.81 | U68: =IF('2) Raw'!$E56="","",'2) Raw'!P56) -> 86969.7 | V68: 0.03654518643 | W68: 6 | X68: =IF('2) Raw'!$E56="","",'2) Raw'!Q56) -> 39 | Z68: =IF('2) Raw'!$E56="","",'2) Raw'!S56) -> 0.8 | AA68: =IF('2) Raw'!$E56="","",'2) Raw'!T56) -> 85896 | AB68: 0.03503728095 | AC68: 6 | AD68: =IF('2) Raw'!$E56="","",'2) Raw'!U56) -> 74 | AE68: 86969.7 | AF68: 85896 | AG68: 86969.7 | AH68: 85896 | AI68: =MIN(IF(AF68:AH68=0,"",AF68:AH68)) -> 85896 | AJ68: 86253.9 | AK68: =IF(E68="","",VLOOKUP(A68,List!$A$2:$D$186,2,FALSE)) -> Structures | AL68: =IF(E68="","",VLOOKUP(VALUE(B68),List!$C$2:$D$186,2,FALSE)) -> Reinforcing Bars | AM68: 0.8033333333 | AO68: =IF('2) Raw'!$X56="","",'2) Raw'!X56) -> 55
A69: 700 | B69: 703 | C69: =IF('2) Raw'!E57="","",'2) Raw'!E57) -> 703-06029 | D69: =IF('2) Raw'!$E57="","",PROPER('2) Raw'!F57)) -> Reinforcing Bars, Epoxy Coated | E69: =IF('2) Raw'!$E57="","",'2) Raw'!G57) -> 236513 | F69: =IF('2) Raw'!$E57="","",'2) Raw'!H57) -> LBS | H69: =IF('2) Raw'!$E57="","",'2) Raw'!I57) -> 0.87 | I69: =IF('2) Raw'!$E57="","",'2) Raw'!J57) -> 205766.31 | J69: 0.08853483832 | K69: 4 | N69: =IF('2) Raw'!$E57="","",'2) Raw'!K57) -> 0.87 | O69: =IF('2) Raw'!$E57="","",'2) Raw'!L57) -> 205766.31 | P69: 0.08853483832 | Q69: 4 | R69: =IF('2) Raw'!$E57="","",'2) Raw'!M57) -> 19 | T69: =IF('2) Raw'!$E57="","",'2) Raw'!O57) -> 0.9 | U69: =IF('2) Raw'!$E57="","",'2) Raw'!P57) -> 212861.7 | V69: 0.08944575535 | W69: 5 | X69: =IF('2) Raw'!$E57="","",'2) Raw'!Q57) -> 90 | Z69: =IF('2) Raw'!$E57="","",'2) Raw'!S57) -> 0.85 | AA69: =IF('2) Raw'!$E57="","",'2) Raw'!T57) -> 201036.05 | AB69: 0.08200331291 | AC69: 5 | AD69: =IF('2) Raw'!$E57="","",'2) Raw'!U57) -> 175 | AE69: 212861.7 | AF69: 205766.31 | AG69: 212861.7 | AH69: 201036.05 | AI69: =MIN(IF(AF69:AH69=0,"",AF69:AH69)) -> 201036.05 | AJ69: 206554.6867 | AK69: =IF(E69="","",VLOOKUP(A69,List!$A$2:$D$186,2,FALSE)) -> Structures | AL69: =IF(E69="","",VLOOKUP(VALUE(B69),List!$C$2:$D$186,2,FALSE)) -> Reinforcing Bars | AM69: 0.8733333333 | AO69: =IF('2) Raw'!$X57="","",'2) Raw'!X57) -> 56
A70: 700 | B70: 704 | C70: =IF('2) Raw'!E58="","",'2) Raw'!E58) -> 704-51002 | D70: =IF('2) Raw'!$E58="","",PROPER('2) Raw'!F58)) -> Concrete, C, Superstructure | E70: =IF('2) Raw'!$E58="","",'2) Raw'!G58) -> 639.4 | F70: =IF('2) Raw'!$E58="","",'2) Raw'!H58) -> C.Y. | H70: =IF('2) Raw'!$E58="","",'2) Raw'!I58) -> 553 | I70: =IF('2) Raw'!$E58="","",'2) Raw'!J58) -> 353588.2 | J70: 0.1521379963 | K70: 2 | N70: =IF('2) Raw'!$E58="","",'2) Raw'!K58) -> 553 | O70: =IF('2) Raw'!$E58="","",'2) Raw'!L58) -> 353588.2 | P70: 0.1521379963 | Q70: 2 | R70: =IF('2) Raw'!$E58="","",'2) Raw'!M58) -> 25 | T70: =IF('2) Raw'!$E58="","",'2) Raw'!O58) -> 518.47 | U70: =IF('2) Raw'!$E58="","",'2) Raw'!P58) -> 331509.72 | V70: 0.1393023607 | W70: 2 | X70: =IF('2) Raw'!$E58="","",'2) Raw'!Q58) -> 101 | Z70: =IF('2) Raw'!$E58="","",'2) Raw'!S58) -> 534.93 | AA70: =IF('2) Raw'!$E58="","",'2) Raw'!T58) -> 342034.24 | AB70: 0.1395169713 | AC70: 2 | AD70: =IF('2) Raw'!$E58="","",'2) Raw'!U58) -> 266 | AE70: 353588.2 | AF70: 353588.2 | AG70: 331509.72 | AH70: 342034.24 | AI70: =MIN(IF(AF70:AH70=0,"",AF70:AH70)) -> 331509.72 | AJ70: 342377.3867 | AK70: =IF(E70="","",VLOOKUP(A70,List!$A$2:$D$186,2,FALSE)) -> Structures | AL70: =IF(E70="","",VLOOKUP(VALUE(B70),List!$C$2:$D$186,2,FALSE)) -> Concrete Floor Slabs | AM70: 535.4666667 | AO70: =IF('2) Raw'!$X58="","",'2) Raw'!X58) -> 57
A71: 700 | B71: 706 | C71: =IF('2) Raw'!E59="","",'2) Raw'!E59) -> 706-05732 | D71: =IF('2) Raw'!$E59="","",PROPER('2) Raw'!F59)) -> Concrete Bridge Railing Transition, Tbc | E71: =IF('2) Raw'!$E59="","",'2) Raw'!G59) -> 8 | F71: =IF('2) Raw'!$E59="","",'2) Raw'!H59) -> EACH | H71: =IF('2) Raw'!$E59="","",'2) Raw'!I59) -> 1460.93 | I71: =IF('2) Raw'!$E59="","",'2) Raw'!J59) -> 11687.44 | J71: 0.005028741638 | K71: 26 | N71: =IF('2) Raw'!$E59="","",'2) Raw'!K59) -> 1460.93 | O71: =IF('2) Raw'!$E59="","",'2) Raw'!L59) -> 11687.44 | P71: 0.005028741638 | Q71: 26 | R71: =IF('2) Raw'!$E59="","",'2) Raw'!M59) -> 31 | T71: =IF('2) Raw'!$E59="","",'2) Raw'!O59) -> 1424.37 | U71: =IF('2) Raw'!$E59="","",'2) Raw'!P59) -> 11394.96 | V71: 0.004788230125 | W71: 26 | X71: =IF('2) Raw'!$E59="","",'2) Raw'!Q59) -> 101 | Z71: =IF('2) Raw'!$E59="","",'2) Raw'!S59) -> 1455.29 | AA71: =IF('2) Raw'!$E59="","",'2) Raw'!T59) -> 11642.32 | AB71: 0.004748943336 | AC71: 25 | AD71: =IF('2) Raw'!$E59="","",'2) Raw'!U59) -> 302 | AE71: 11687.44 | AF71: 11687.44 | AG71: 11394.96 | AH71: 11642.32 | AI71: =MIN(IF(AF71:AH71=0,"",AF71:AH71)) -> 11394.96 | AJ71: 11574.90667 | AK71: =IF(E71="","",VLOOKUP(A71,List!$A$2:$D$186,2,FALSE)) -> Structures | AL71: =IF(E71="","",VLOOKUP(VALUE(B71),List!$C$2:$D$186,2,FALSE)) -> Bridge Railings | AM71: 1446.863333 | AO71: =IF('2) Raw'!$X59="","",'2) Raw'!X59) -> 58
A72: 700 | B72: 706 | C72: =IF('2) Raw'!E60="","",'2) Raw'!E60) -> 706-51020 | D72: =IF('2) Raw'!$E60="","",PROPER('2) Raw'!F60)) -> Railing, Concrete, C | E72: =IF('2) Raw'!$E60="","",'2) Raw'!G60) -> 74 | F72: =IF('2) Raw'!$E60="","",'2) Raw'!H60) -> C.Y. | H72: =IF('2) Raw'!$E60="","",'2) Raw'!I60) -> 504.15 | I72: =IF('2) Raw'!$E60="","",'2) Raw'!J60) -> 37307.1 | J72: 0.01605208387 | K72: 11 | N72: =IF('2) Raw'!$E60="","",'2) Raw'!K60) -> 504.15 | O72: =IF('2) Raw'!$E60="","",'2) Raw'!L60) -> 37307.1 | P72: 0.01605208387 | Q72: 11 | R72: =IF('2) Raw'!$E60="","",'2) Raw'!M60) -> 21 | T72: =IF('2) Raw'!$E60="","",'2) Raw'!O60) -> 497.6 | U72: =IF('2) Raw'!$E60="","",'2) Raw'!P60) -> 36822.4 | V72: 0.015472992 | W72: 11 | X72: =IF('2) Raw'!$E60="","",'2) Raw'!Q60) -> 61 | Z72: =IF('2) Raw'!$E60="","",'2) Raw'!S60) -> 479.5 | AA72: =IF('2) Raw'!$E60="","",'2) Raw'!T60) -> 35483 | AB72: 0.01447364068 | AC72: 12 | AD72: =IF('2) Raw'!$E60="","",'2) Raw'!U60) -> 222 | AE72: 37307.1 | AF72: 37307.1 | AG72: 36822.4 | AH72: 35483 | AI72: =MIN(IF(AF72:AH72=0,"",AF72:AH72)) -> 35483 | AJ72: 36537.5 | AK72: =IF(E72="","",VLOOKUP(A72,List!$A$2:$D$186,2,FALSE)) -> Structures | AL72: =IF(E72="","",VLOOKUP(VALUE(B72),List!$C$2:$D$186,2,FALSE)) -> Bridge Railings | AM72: 493.75 | AO72: =IF('2) Raw'!$X60="","",'2) Raw'!X60) -> 59
A73: 700 | B73: 707 | C73: =IF('2) Raw'!E61="","",'2) Raw'!E61) -> 707-09865 | D73: =IF('2) Raw'!$E61="","",PROPER('2) Raw'!F61)) -> Structural Member, Concrete Bulb-T Beam, 36 In X 49 In | E73: =IF('2) Raw'!$E61="","",'2) Raw'!G61) -> 1905 | F73: =IF('2) Raw'!$E61="","",'2) Raw'!H61) -> L.F. | H73: =IF('2) Raw'!$E61="","",'2) Raw'!I61) -> 230.32 | I73: =IF('2) Raw'!$E61="","",'2) Raw'!J61) -> 438759.6 | J73: 0.1887845986 | K73: 1 | N73: =IF('2) Raw'!$E61="","",'2) Raw'!K61) -> 230.32 | O73: =IF('2) Raw'!$E61="","",'2) Raw'!L61) -> 438759.6 | P73: 0.1887845986 | Q73: 1 | R73: =IF('2) Raw'!$E61="","",'2) Raw'!M61) -> 0 | T73: =IF('2) Raw'!$E61="","",'2) Raw'!O61) -> 230.32 | U73: =IF('2) Raw'!$E61="","",'2) Raw'!P61) -> 438759.6 | V73: 0.1843693997 | W73: 1 | X73: =IF('2) Raw'!$E61="","",'2) Raw'!Q61) -> 12 | Z73: =IF('2) Raw'!$E61="","",'2) Raw'!S61) -> 248.64 | AA73: =IF('2) Raw'!$E61="","",'2) Raw'!T61) -> 473659.2 | AB73: 0.1932072561 | AC73: 1 | AD73: =IF('2) Raw'!$E61="","",'2) Raw'!U61) -> 15 | AE73: 473659.2 | AF73: 438759.6 | AG73: 438759.6 | AH73: 473659.2 | AI73: =MIN(IF(AF73:AH73=0,"",AF73:AH73)) -> 438759.6 | AJ73: 450392.8 | AK73: =IF(E73="","",VLOOKUP(A73,List!$A$2:$D$186,2,FALSE)) -> Structures | AL73: =IF(E73="","",VLOOKUP(VALUE(B73),List!$C$2:$D$186,2,FALSE)) -> Precast And Precast Prestressed Concrete Structural Members | AM73: 236.4266667 | AN73: 707-09865 | AO73: =IF('2) Raw'!$X61="","",'2) Raw'!X61) -> 60
A74: 700 | B74: 709 | C74: =IF('2) Raw'!E62="","",'2) Raw'!E62) -> 709-51821 | D74: =IF('2) Raw'!$E62="","",PROPER('2) Raw'!F62)) -> Surface Seal | E74: =IF('2) Raw'!$E62="","",'2) Raw'!G62) -> 1 | F74: =IF('2) Raw'!$E62="","",'2) Raw'!H62) -> L.S. | H74: =IF('2) Raw'!$E62="","",'2) Raw'!I62) -> 4283.99 | I74: =IF('2) Raw'!$E62="","",'2) Raw'!J62) -> 4283.99 | J74: 0.00184326755 | K74: 49 | N74: =IF('2) Raw'!$E62="","",'2) Raw'!K62) -> 4283.99 | O74: =IF('2) Raw'!$E62="","",'2) Raw'!L62) -> 4283.99 | P74: 0.00184326755 | Q74: 49 | R74: =IF('2) Raw'!$E62="","",'2) Raw'!M62) -> 93 | T74: =IF('2) Raw'!$E62="","",'2) Raw'!O62) -> 4739.96 | U74: =IF('2) Raw'!$E62="","",'2) Raw'!P62) -> 4739.96 | V74: 0.00199175945 | W74: 46 | X74: =IF('2) Raw'!$E62="","",'2) Raw'!Q62) -> 217 | Z74: =IF('2) Raw'!$E62="","",'2) Raw'!S62) -> 4903.75 | AA74: =IF('2) Raw'!$E62="","",'2) Raw'!T62) -> 4903.75 | AB74: 0.002000256898 | AC74: 45 | AD74: =IF('2) Raw'!$E62="","",'2) Raw'!U62) -> 589 | AE74: 4903.75 | AF74: 4283.99 | AG74: 4739.96 | AH74: 4903.75 | AI74: =MIN(IF(AF74:AH74=0,"",AF74:AH74)) -> 4283.99 | AJ74: 4642.566667 | AK74: =IF(E74="","",VLOOKUP(A74,List!$A$2:$D$186,2,FALSE)) -> Structures | AL74: =IF(E74="","",VLOOKUP(VALUE(B74),List!$C$2:$D$186,2,FALSE)) -> Portland Cement Concrete Sealers | AM74: 4642.566667 | AO74: =IF('2) Raw'!$X62="","",'2) Raw'!X62) -> 61
A75: 700 | B75: 711 | C75: =IF('2) Raw'!E63="","",'2) Raw'!E63) -> 711-51070 | D75: =IF('2) Raw'!$E63="","",PROPER('2) Raw'!F63)) -> Anchor Plate, Ap 1 | E75: =IF('2) Raw'!$E63="","",'2) Raw'!G63) -> 20 | F75: =IF('2) Raw'!$E63="","",'2) Raw'!H63) -> EACH | H75: =IF('2) Raw'!$E63="","",'2) Raw'!I63) -> 90.16 | I75: =IF('2) Raw'!$E63="","",'2) Raw'!J63) -> 1803.2 | J75: 0.0007758608319 | K75: 59 | N75: =IF('2) Raw'!$E63="","",'2) Raw'!K63) -> 90.16 | O75: =IF('2) Raw'!$E63="","",'2) Raw'!L63) -> 1803.2 | P75: 0.0007758608319 | Q75: 59 | R75: =IF('2) Raw'!$E63="","",'2) Raw'!M63) -> 0 | T75: =IF('2) Raw'!$E63="","",'2) Raw'!O63) -> 90.16 | U75: =IF('2) Raw'!$E63="","",'2) Raw'!P63) -> 1803.2 | V75: 0.0007577153901 | W75: 58 | X75: =IF('2) Raw'!$E63="","",'2) Raw'!Q63) -> 12 | Z75: =IF('2) Raw'!$E63="","",'2) Raw'!S63) -> 109.03 | AA75: =IF('2) Raw'!$E63="","",'2) Raw'!T63) -> 2180.6 | AB75: 0.0008894744208 | AC75: 58 | AD75: =IF('2) Raw'!$E63="","",'2) Raw'!U63) -> 54 | AE75: 2180.6 | AF75: 1803.2 | AG75: 1803.2 | AH75: 2180.6 | AI75: =MIN(IF(AF75:AH75=0,"",AF75:AH75)) -> 1803.2 | AJ75: 1929 | AK75: =IF(E75="","",VLOOKUP(A75,List!$A$2:$D$186,2,FALSE)) -> Structures | AL75: =IF(E75="","",VLOOKUP(VALUE(B75),List!$C$2:$D$186,2,FALSE)) -> Steel Structures | AM75: 96.45 | AN75: 711-51070 | AO75: =IF('2) Raw'!$X63="","",'2) Raw'!X63) -> 62
A76: 700 | B76: 714 | C76: =IF('2) Raw'!E64="","",'2) Raw'!E64) -> 714-11081 | D76: =IF('2) Raw'!$E64="","",PROPER('2) Raw'!F64)) -> Structure, Precast, Rc, Box Section 7Ft X 3Ft | E76: =IF('2) Raw'!$E64="","",'2) Raw'!G64) -> 50 | F76: =IF('2) Raw'!$E64="","",'2) Raw'!H64) -> L.F. | H76: =IF('2) Raw'!$E64="","",'2) Raw'!I64) -> 263.98 | I76: =IF('2) Raw'!$E64="","",'2) Raw'!J64) -> 13199 | J76: 0.005679118856 | K76: 24 | N76: =IF('2) Raw'!$E64="","",'2) Raw'!K64) -> 263.98 | O76: =IF('2) Raw'!$E64="","",'2) Raw'!L64) -> 13199 | P76: 0.005679118856 | Q76: 24 | R76: =IF('2) Raw'!$E64="","",'2) Raw'!M64) -> 0 | T76: =IF('2) Raw'!$E64="","",'2) Raw'!O64) -> 263.98 | U76: =IF('2) Raw'!$E64="","",'2) Raw'!P64) -> 13199 | V76: 0.005546298488 | W76: 23 | X76: =IF('2) Raw'!$E64="","",'2) Raw'!Q64) -> 6 | Z76: =IF('2) Raw'!$E64="","",'2) Raw'!S64) -> 301.65 | AA76: =IF('2) Raw'!$E64="","",'2) Raw'!T64) -> 15082.5 | AB76: 0.006152204876 | AC76: 20 | AD76: =IF('2) Raw'!$E64="","",'2) Raw'!U64) -> 12 | AE76: 15082.5 | AF76: 13199 | AG76: 13199 | AH76: 15082.5 | AI76: =MIN(IF(AF76:AH76=0,"",AF76:AH76)) -> 13199 | AJ76: 13826.83333 | AK76: =IF(E76="","",VLOOKUP(A76,List!$A$2:$D$186,2,FALSE)) -> Structures | AL76: =IF(E76="","",VLOOKUP(VALUE(B76),List!$C$2:$D$186,2,FALSE)) -> Reinforced Concrete Box Structures | AM76: 276.5366667 | AN76: 714-11081 | AO76: =IF('2) Raw'!$X64="","",'2) Raw'!X64) -> 63
A77: 700 | B77: 715 | C77: =IF('2) Raw'!E65="","",'2) Raw'!E65) -> 715-03475 | D77: =IF('2) Raw'!$E65="","",PROPER('2) Raw'!F65)) -> Safety Metal End Section, 4:1 15 In | E77: =IF('2) Raw'!$E65="","",'2) Raw'!G65) -> 8 | F77: =IF('2) Raw'!$E65="","",'2) Raw'!H65) -> EACH | H77: =IF('2) Raw'!$E65="","",'2) Raw'!I65) -> 1250 | I77: =IF('2) Raw'!$E65="","",'2) Raw'!J65) -> 10000 | J77: 0.004302688731 | K77: 28 | N77: =IF('2) Raw'!$E65="","",'2) Raw'!K65) -> 1250 | O77: =IF('2) Raw'!$E65="","",'2) Raw'!L65) -> 10000 | P77: 0.004302688731 | Q77: 28 | R77: =IF('2) Raw'!$E65="","",'2) Raw'!M65) -> 2 | T77: =IF('2) Raw'!$E65="","",'2) Raw'!O65) -> 590.14 | U77: =IF('2) Raw'!$E65="","",'2) Raw'!P65) -> 4721.12 | V77: 0.00198384277 | W77: 48 | X77: =IF('2) Raw'!$E65="","",'2) Raw'!Q65) -> 20 | Z77: =IF('2) Raw'!$E65="","",'2) Raw'!S65) -> 523.26 | AA77: =IF('2) Raw'!$E65="","",'2) Raw'!T65) -> 4186.08 | AB77: 0.001707516777 | AC77: 48 | AD77: =IF('2) Raw'!$E65="","",'2) Raw'!U65) -> 54 | AE77: 10000 | AF77: 10000 | AG77: 4721.12 | AH77: 4186.08 | AI77: =MIN(IF(AF77:AH77=0,"",AF77:AH77)) -> 4186.08 | AJ77: 6302.4 | AK77: =IF(E77="","",VLOOKUP(A77,List!$A$2:$D$186,2,FALSE)) -> Structures | AL77: =IF(E77="","",VLOOKUP(VALUE(B77),List!$C$2:$D$186,2,FALSE)) -> Pipe Culverts, And Storm And Sanitary Sewers | AM77: 787.8 | AO77: =IF('2) Raw'!$X65="","",'2) Raw'!X65) -> 64
A78: =IF(C78="","",LEFT(C78,1)*100) -> 700 | B78: =IF(C78="","",LEFT(C78,3)) -> 715 | C78: =IF('2) Raw'!E66="","",'2) Raw'!E66) -> 715-05169 | D78: =IF('2) Raw'!$E66="","",PROPER('2) Raw'!F66)) -> Pipe, Type 3 Circular 15 In | E78: =IF('2) Raw'!$E66="","",'2) Raw'!G66) -> 176 | F78: =IF('2) Raw'!$E66="","",'2) Raw'!H66) -> L.F. | H78: =IF('2) Raw'!$E66="","",'2) Raw'!I66) -> 34.14 | I78: =IF('2) Raw'!$E66="","",'2) Raw'!J66) -> 6008.64 | J78: 0.002585330762 | K78: =IF(J78="","",RANK(J78,$J$14:$J$999)) -> 37 | N78: =IF('2) Raw'!$E66="","",'2) Raw'!K66) -> 34.14 | O78: =IF('2) Raw'!$E66="","",'2) Raw'!L66) -> 6008.64 | P78: 0.002585330762 | Q78: =IF(P78="","",RANK(P78,$P$14:$P$999)) -> 37 | R78: =IF('2) Raw'!$E66="","",'2) Raw'!M66) -> 9 | T78: =IF('2) Raw'!$E66="","",'2) Raw'!O66) -> 30.32 | U78: =IF('2) Raw'!$E66="","",'2) Raw'!P66) -> 5336.32 | V78: 0.002242353477 | W78: =IF(V78="","",RANK(V78,$V$14:$V$999)) -> 42 | X78: =IF('2) Raw'!$E66="","",'2) Raw'!Q66) -> 108 | Z78: =IF('2) Raw'!$E66="","",'2) Raw'!S66) -> 32.43 | AA78: =IF('2) Raw'!$E66="","",'2) Raw'!T66) -> 5707.68 | AB78: 0.002328182776 | AC78: =IF(AB78="","",RANK(AB78,$AB$14:$AB$999)) -> 39 | AD78: =IF('2) Raw'!$E66="","",'2) Raw'!U66) -> 299 | AE78: 6008.64 | AF78: 6008.64 | AG78: 5336.32 | AH78: 5707.68 | AI78: =MIN(IF(AF78:AH78=0,"",AF78:AH78)) -> 5336.32 | AJ78: 5684.213333 | AK78: =IF(E78="","",VLOOKUP(A78,List!$A$2:$D$186,2,FALSE)) -> Structures | AL78: =IF(E78="","",VLOOKUP(VALUE(B78),List!$C$2:$D$186,2,FALSE)) -> Pipe Culverts, And Storm And Sanitary Sewers | AM78: 32.29666667 | AO78: =IF('2) Raw'!$X66="","",'2) Raw'!X66) -> 65
A79: 700 | B79: 715 | C79: =IF('2) Raw'!E67="","",'2) Raw'!E67) -> 715-05244 | D79: =IF('2) Raw'!$E67="","",PROPER('2) Raw'!F67)) -> Pipe, Type 1 Deformed Min Area 11.6 Sf | E79: =IF('2) Raw'!$E67="","",'2) Raw'!G67) -> 50 | F79: =IF('2) Raw'!$E67="","",'2) Raw'!H67) -> L.F. | H79: =IF('2) Raw'!$E67="","",'2) Raw'!I67) -> 114.83 | I79: =IF('2) Raw'!$E67="","",'2) Raw'!J67) -> 5741.5 | J79: =IF(OR(I79="",$I$2=0),"",I79/$I$2) -> 0.002470388735 | K79: 39 | N79: =IF('2) Raw'!$E67="","",'2) Raw'!K67) -> 114.83 | O79: =IF('2) Raw'!$E67="","",'2) Raw'!L67) -> 5741.5 | P79: =IF(OR(O79="",O79=0),"",O79/$O$2) -> 0.002470388735 | Q79: 39 | R79: =IF('2) Raw'!$E67="","",'2) Raw'!M67) -> 0 | T79: =IF('2) Raw'!$E67="","",'2) Raw'!O67) -> 114.83 | U79: =IF('2) Raw'!$E67="","",'2) Raw'!P67) -> 5741.5 | V79: =IF(OR(U79="",$U$2=0),"",U79/$U$2) -> 0.002412612529 | W79: 39 | X79: =IF('2) Raw'!$E67="","",'2) Raw'!Q67) -> 3 | Z79: =IF('2) Raw'!$E67="","",'2) Raw'!S67) -> 135.13 | AA79: =IF('2) Raw'!$E67="","",'2) Raw'!T67) -> 6756.5 | AB79: =IF(OR(AA79="",$AA$2=0),"",AA79/$AA$2) -> 0.002756000149 | AC79: 34 | AD79: =IF('2) Raw'!$E67="","",'2) Raw'!U67) -> 6 | AE79: =IF(E79="","",MAX(O79,U79,AA79)) -> 6756.5 | AF79: =O79 -> 5741.5 | AG79: =U79 -> 5741.5 | AH79: =AA79 -> 6756.5 | AI79: =MIN(IF(AF79:AH79=0,"",AF79:AH79)) -> 5741.5 | AJ79: =IF(E79="","",AVERAGE(O79,U79,AA79)) -> 6079.833333 | AK79: =IF(E79="","",VLOOKUP(A79,List!$A$2:$D$186,2,FALSE)) -> Structures | AL79: =IF(E79="","",VLOOKUP(VALUE(B79),List!$C$2:$D$186,2,FALSE)) -> Pipe Culverts, And Storm And Sanitary Sewers | AM79: =IF(E79="","",IF(AND($U$2=0,$AA$2=0),N79,IF($AA$2=0,AVERAGE(N79,T79),AVERAGE(N79,T79,Z79)))) -> 121.5966667 | AN79: =IF(E79="","",IF(OR(R79=0,X79=0,AD79=0),C79,"")) -> 715-05244 | AO79: =IF('2) Raw'!$X67="","",'2) Raw'!X67) -> 66
A80: 700 | B80: 715 | C80: =IF('2) Raw'!E68="","",'2) Raw'!E68) -> 715-05407 | D80: =IF('2) Raw'!$E68="","",PROPER('2) Raw'!F68)) -> Pipe, End Bent Drain, 6 In | E80: =IF('2) Raw'!$E68="","",'2) Raw'!G68) -> 240 | F80: =IF('2) Raw'!$E68="","",'2) Raw'!H68) -> L.F. | H80: =IF('2) Raw'!$E68="","",'2) Raw'!I68) -> 12.81 | I80: =IF('2) Raw'!$E68="","",'2) Raw'!J68) -> 3074.4 | J80: 0.001322818623 | K80: 51 | N80: =IF('2) Raw'!$E68="","",'2) Raw'!K68) -> 12.81 | O80: =IF('2) Raw'!$E68="","",'2) Raw'!L68) -> 3074.4 | P80: 0.001322818623 | Q80: 51 | R80: =IF('2) Raw'!$E68="","",'2) Raw'!M68) -> 22 | T80: =IF('2) Raw'!$E68="","",'2) Raw'!O68) -> 11.22 | U80: =IF('2) Raw'!$E68="","",'2) Raw'!P68) -> 2692.8 | V80: 0.001131530614 | W80: 54 | X80: =IF('2) Raw'!$E68="","",'2) Raw'!Q68) -> 86 | Z80: =IF('2) Raw'!$E68="","",'2) Raw'!S68) -> 10.99 | AA80: =IF('2) Raw'!$E68="","",'2) Raw'!T68) -> 2637.6 | AB80: 0.001075886331 | AC80: 54 | AD80: =IF('2) Raw'!$E68="","",'2) Raw'!U68) -> 254 | AE80: 3074.4 | AF80: 3074.4 | AG80: 2692.8 | AH80: 2637.6 | AI80: =MIN(IF(AF80:AH80=0,"",AF80:AH80)) -> 2637.6 | AJ80: 2801.6 | AK80: =IF(E80="","",VLOOKUP(A80,List!$A$2:$D$186,2,FALSE)) -> Structures | AL80: =IF(E80="","",VLOOKUP(VALUE(B80),List!$C$2:$D$186,2,FALSE)) -> Pipe Culverts, And Storm And Sanitary Sewers | AM80: 11.67333333 | AO80: =IF('2) Raw'!$X68="","",'2) Raw'!X68) -> 67
A81: 700 | B81: 715 | C81: =IF('2) Raw'!E69="","",'2) Raw'!E69) -> 715-07107 | D81: =IF('2) Raw'!$E69="","",PROPER('2) Raw'!F69)) -> Pipe End Section, Min Area 11.6 Sf | E81: =IF('2) Raw'!$E69="","",'2) Raw'!G69) -> 2 | F81: =IF('2) Raw'!$E69="","",'2) Raw'!H69) -> EACH | H81: =IF('2) Raw'!$E69="","",'2) Raw'!I69) -> 1390 | I81: =IF('2) Raw'!$E69="","",'2) Raw'!J69) -> 2780 | J81: 0.001196147467 | K81: 52 | N81: =IF('2) Raw'!$E69="","",'2) Raw'!K69) -> 1390 | O81: =IF('2) Raw'!$E69="","",'2) Raw'!L69) -> 2780 | P81: 0.001196147467 | Q81: 52 | R81: =IF('2) Raw'!$E69="","",'2) Raw'!M69) -> 4 | T81: =IF('2) Raw'!$E69="","",'2) Raw'!O69) -> 1336.91 | U81: =IF('2) Raw'!$E69="","",'2) Raw'!P69) -> 2673.82 | V81: 0.001123555104 | W81: 55 | X81: =IF('2) Raw'!$E69="","",'2) Raw'!Q69) -> 6 | Z81: =IF('2) Raw'!$E69="","",'2) Raw'!S69) -> 1336.91 | AA81: =IF('2) Raw'!$E69="","",'2) Raw'!T69) -> 2673.82 | AB81: 0.001090660596 | AC81: 53 | AD81: =IF('2) Raw'!$E69="","",'2) Raw'!U69) -> 6 | AE81: 2780 | AF81: 2780 | AG81: 2673.82 | AH81: 2673.82 | AI81: =MIN(IF(AF81:AH81=0,"",AF81:AH81)) -> 2673.82 | AJ81: 2709.213333 | AK81: =IF(E81="","",VLOOKUP(A81,List!$A$2:$D$186,2,FALSE)) -> Structures | AL81: =IF(E81="","",VLOOKUP(VALUE(B81),List!$C$2:$D$186,2,FALSE)) -> Pipe Culverts, And Storm And Sanitary Sewers | AM81: 1354.606667 | AO81: =IF('2) Raw'!$X69="","",'2) Raw'!X69) -> 68
A82: 700 | B82: 715 | C82: =IF('2) Raw'!E70="","",'2) Raw'!E70) -> 715-08305 | D82: =IF('2) Raw'!$E70="","",PROPER('2) Raw'!F70)) -> Hma For Structure Installation, Type B | E82: =IF('2) Raw'!$E70="","",'2) Raw'!G70) -> 38.2 | F82: =IF('2) Raw'!$E70="","",'2) Raw'!H70) -> TON | H82: =IF('2) Raw'!$E70="","",'2) Raw'!I70) -> 145.84 | I82: =IF('2) Raw'!$E70="","",'2) Raw'!J70) -> 5571.09 | J82: 0.002397066616 | K82: 42 | N82: =IF('2) Raw'!$E70="","",'2) Raw'!K70) -> 145.84 | O82: =IF('2) Raw'!$E70="","",'2) Raw'!L70) -> 5571.09 | P82: 0.002397066616 | Q82: 42 | R82: =IF('2) Raw'!$E70="","",'2) Raw'!M70) -> 7 | T82: =IF('2) Raw'!$E70="","",'2) Raw'!O70) -> 128.3 | U82: =IF('2) Raw'!$E70="","",'2) Raw'!P70) -> 4901.06 | V82: 0.002059454631 | W82: 45 | X82: =IF('2) Raw'!$E70="","",'2) Raw'!Q70) -> 33 | Z82: =IF('2) Raw'!$E70="","",'2) Raw'!S70) -> 135.21 | AA82: =IF('2) Raw'!$E70="","",'2) Raw'!T70) -> 5165.02 | AB82: 0.002106829851 | AC82: 44 | AD82: =IF('2) Raw'!$E70="","",'2) Raw'!U70) -> 92 | AE82: 5571.09 | AF82: 5571.09 | AG82: 4901.06 | AH82: 5165.02 | AI82: =MIN(IF(AF82:AH82=0,"",AF82:AH82)) -> 4901.06 | AJ82: 5212.39 | AK82: =IF(E82="","",VLOOKUP(A82,List!$A$2:$D$186,2,FALSE)) -> Structures | AL82: =IF(E82="","",VLOOKUP(VALUE(B82),List!$C$2:$D$186,2,FALSE)) -> Pipe Culverts, And Storm And Sanitary Sewers | AM82: 136.45 | AO82: =IF('2) Raw'!$X70="","",'2) Raw'!X70) -> 69
A83: 700 | B83: 715 | C83: =IF('2) Raw'!E71="","",'2) Raw'!E71) -> 715-09064 | D83: =IF('2) Raw'!$E71="","",PROPER('2) Raw'!F71)) -> Video Inspection For Pipe | E83: =IF('2) Raw'!$E71="","",'2) Raw'!G71) -> 226 | F83: =IF('2) Raw'!$E71="","",'2) Raw'!H71) -> L.F. | H83: =IF('2) Raw'!$E71="","",'2) Raw'!I71) -> 3.75 | I83: =IF('2) Raw'!$E71="","",'2) Raw'!J71) -> 847.5 | J83: 0.0003646528699 | K83: 69 | N83: =IF('2) Raw'!$E71="","",'2) Raw'!K71) -> 3.75 | O83: =IF('2) Raw'!$E71="","",'2) Raw'!L71) -> 847.5 | P83: 0.0003646528699 | Q83: 69 | R83: =IF('2) Raw'!$E71="","",'2) Raw'!M71) -> 1 | T83: =IF('2) Raw'!$E71="","",'2) Raw'!O71) -> 7.26 | U83: =IF('2) Raw'!$E71="","",'2) Raw'!P71) -> 1640.76 | V83: 0.0006894571337 | W83: 61 | X83: =IF('2) Raw'!$E71="","",'2) Raw'!Q71) -> 17 | Z83: =IF('2) Raw'!$E71="","",'2) Raw'!S71) -> 6.6 | AA83: =IF('2) Raw'!$E71="","",'2) Raw'!T71) -> 1491.6 | AB83: 0.0006084288939 | AC83: 63 | AD83: =IF('2) Raw'!$E71="","",'2) Raw'!U71) -> 52 | AE83: 1640.76 | AF83: 847.5 | AG83: 1640.76 | AH83: 1491.6 | AI83: =MIN(IF(AF83:AH83=0,"",AF83:AH83)) -> 847.5 | AJ83: 1326.62 | AK83: =IF(E83="","",VLOOKUP(A83,List!$A$2:$D$186,2,FALSE)) -> Structures | AL83: =IF(E83="","",VLOOKUP(VALUE(B83),List!$C$2:$D$186,2,FALSE)) -> Pipe Culverts, And Storm And Sanitary Sewers | AM83: 5.87 | AO83: =IF('2) Raw'!$X71="","",'2) Raw'!X71) -> 70
A84: 800 | B84: 801 | C84: =IF('2) Raw'!E72="","",'2) Raw'!E72) -> 801-03290 | D84: =IF('2) Raw'!$E72="","",PROPER('2) Raw'!F72)) -> Construction Sign, C | E84: =IF('2) Raw'!$E72="","",'2) Raw'!G72) -> 2 | F84: =IF('2) Raw'!$E72="","",'2) Raw'!H72) -> EACH | H84: =IF('2) Raw'!$E72="","",'2) Raw'!I72) -> 155.03 | I84: =IF('2) Raw'!$E72="","",'2) Raw'!J72) -> 310.06 | J84: 0.0001334091668 | K84: 74 | N84: =IF('2) Raw'!$E72="","",'2) Raw'!K72) -> 155.03 | O84: =IF('2) Raw'!$E72="","",'2) Raw'!L72) -> 310.06 | P84: 0.0001334091668 | Q84: 74 | R84: =IF('2) Raw'!$E72="","",'2) Raw'!M72) -> 104 | T84: =IF('2) Raw'!$E72="","",'2) Raw'!O72) -> 220.49 | U84: =IF('2) Raw'!$E72="","",'2) Raw'!P72) -> 440.98 | V84: 0.000185302425 | W84: 73 | X84: =IF('2) Raw'!$E72="","",'2) Raw'!Q72) -> 483 | Z84: =IF('2) Raw'!$E72="","",'2) Raw'!S72) -> 202.68 | AA84: =IF('2) Raw'!$E72="","",'2) Raw'!T72) -> 405.36 | AB84: 0.0001653477718 | AC84: 72 | AD84: =IF('2) Raw'!$E72="","",'2) Raw'!U72) -> 2669 | AE84: 440.98 | AF84: 310.06 | AG84: 440.98 | AH84: 405.36 | AI84: =MIN(IF(AF84:AH84=0,"",AF84:AH84)) -> 310.06 | AJ84: 385.4666667 | AK84: =IF(E84="","",VLOOKUP(A84,List!$A$2:$D$186,2,FALSE)) -> Traffic Control Devices And Lighting | AL84: =IF(E84="","",VLOOKUP(VALUE(B84),List!$C$2:$D$186,2,FALSE)) -> Traffic Controls For Construction And Maintenance Operations | AM84: 192.7333333 | AO84: =IF('2) Raw'!$X72="","",'2) Raw'!X72) -> 71
A85: 800 | B85: 801 | C85: =IF('2) Raw'!E73="","",'2) Raw'!E73) -> 801-06207 | D85: =IF('2) Raw'!$E73="","",PROPER('2) Raw'!F73)) -> Temporary Pavement Marking, Removable, 4 In | E85: =IF('2) Raw'!$E73="","",'2) Raw'!G73) -> 2280 | F85: =IF('2) Raw'!$E73="","",'2) Raw'!H73) -> L.F. | H85: =IF('2) Raw'!$E73="","",'2) Raw'!I73) -> 1.03 | I85: =IF('2) Raw'!$E73="","",'2) Raw'!J73) -> 2348.4 | J85: 0.001010443422 | K85: 54 | N85: =IF('2) Raw'!$E73="","",'2) Raw'!K73) -> 1.03 | O85: =IF('2) Raw'!$E73="","",'2) Raw'!L73) -> 2348.4 | P85: 0.001010443422 | Q85: 54 | R85: =IF('2) Raw'!$E73="","",'2) Raw'!M73) -> 15 | T85: =IF('2) Raw'!$E73="","",'2) Raw'!O73) -> 1.1 | U85: =IF('2) Raw'!$E73="","",'2) Raw'!P73) -> 2508 | V85: 0.001053876552 | W85: 57 | X85: =IF('2) Raw'!$E73="","",'2) Raw'!Q73) -> 102 | Z85: =IF('2) Raw'!$E73="","",'2) Raw'!S73) -> 1.08 | AA85: =IF('2) Raw'!$E73="","",'2) Raw'!T73) -> 2462.4 | AB85: 0.001004421633 | AC85: 56 | AD85: =IF('2) Raw'!$E73="","",'2) Raw'!U73) -> 607 | AE85: 2508 | AF85: 2348.4 | AG85: 2508 | AH85: 2462.4 | AI85: =MIN(IF(AF85:AH85=0,"",AF85:AH85)) -> 2348.4 | AJ85: 2439.6 | AK85: =IF(E85="","",VLOOKUP(A85,List!$A$2:$D$186,2,FALSE)) -> Traffic Control Devices And Lighting | AL85: =IF(E85="","",VLOOKUP(VALUE(B85),List!$C$2:$D$186,2,FALSE)) -> Traffic Controls For Construction And Maintenance Operations | AM85: 1.07 | AO85: =IF('2) Raw'!$X73="","",'2) Raw'!X73) -> 72
A86: 800 | B86: 801 | C86: =IF('2) Raw'!E74="","",'2) Raw'!E74) -> 801-06640 | D86: =IF('2) Raw'!$E74="","",PROPER('2) Raw'!F74)) -> Construction Sign, A | E86: =IF('2) Raw'!$E74="","",'2) Raw'!G74) -> 18 | F86: =IF('2) Raw'!$E74="","",'2) Raw'!H74) -> EACH | H86: =IF('2) Raw'!$E74="","",'2) Raw'!I74) -> 123.84 | I86: =IF('2) Raw'!$E74="","",'2) Raw'!J74) -> 2229.12 | J86: 0.0009591209504 | K86: 56 | N86: =IF('2) Raw'!$E74="","",'2) Raw'!K74) -> 123.84 | O86: =IF('2) Raw'!$E74="","",'2) Raw'!L74) -> 2229.12 | P86: 0.0009591209504 | Q86: 56 | R86: =IF('2) Raw'!$E74="","",'2) Raw'!M74) -> 104 | T86: =IF('2) Raw'!$E74="","",'2) Raw'!O74) -> 154.88 | U86: =IF('2) Raw'!$E74="","",'2) Raw'!P74) -> 2787.84 | V86: 0.001171466988 | W86: 53 | X86: =IF('2) Raw'!$E74="","",'2) Raw'!Q74) -> 483 | Z86: =IF('2) Raw'!$E74="","",'2) Raw'!S74) -> 134.66 | AA86: =IF('2) Raw'!$E74="","",'2) Raw'!T74) -> 2423.88 | AB86: 0.0009887091897 | AC86: 57 | AD86: =IF('2) Raw'!$E74="","",'2) Raw'!U74) -> 2444 | AE86: 2787.84 | AF86: 2229.12 | AG86: 2787.84 | AH86: 2423.88 | AI86: =MIN(IF(AF86:AH86=0,"",AF86:AH86)) -> 2229.12 | AJ86: 2480.28 | AK86: =IF(E86="","",VLOOKUP(A86,List!$A$2:$D$186,2,FALSE)) -> Traffic Control Devices And Lighting | AL86: =IF(E86="","",VLOOKUP(VALUE(B86),List!$C$2:$D$186,2,FALSE)) -> Traffic Controls For Construction And Maintenance Operations | AM86: 137.7933333 | AO86: =IF('2) Raw'!$X74="","",'2) Raw'!X74) -> 73
A87: 800 | B87: 801 | C87: =IF('2) Raw'!E75="","",'2) Raw'!E75) -> 801-06645 | D87: =IF('2) Raw'!$E75="","",PROPER('2) Raw'!F75)) -> Construction Sign, B | E87: =IF('2) Raw'!$E75="","",'2) Raw'!G75) -> 2 | F87: =IF('2) Raw'!$E75="","",'2) Raw'!H75) -> EACH | H87: =IF('2) Raw'!$E75="","",'2) Raw'!I75) -> 48.15 | I87: =IF('2) Raw'!$E75="","",'2) Raw'!J75) -> 96.3 | J87: 4.143489248e-05 | K87: 75 | N87: =IF('2) Raw'!$E75="","",'2) Raw'!K75) -> 48.15 | O87: =IF('2) Raw'!$E75="","",'2) Raw'!L75) -> 96.3 | P87: 4.143489248e-05 | Q87: 75 | R87: =IF('2) Raw'!$E75="","",'2) Raw'!M75) -> 34 | T87: =IF('2) Raw'!$E75="","",'2) Raw'!O75) -> 75.33 | U87: =IF('2) Raw'!$E75="","",'2) Raw'!P75) -> 150.66 | V87: 6.330823019e-05 | W87: 75 | X87: =IF('2) Raw'!$E75="","",'2) Raw'!Q75) -> 162 | Z87: =IF('2) Raw'!$E75="","",'2) Raw'!S75) -> 68.11 | AA87: =IF('2) Raw'!$E75="","",'2) Raw'!T75) -> 136.22 | AB87: 5.556461781e-05 | AC87: 74 | AD87: =IF('2) Raw'!$E75="","",'2) Raw'!U75) -> 622 | AE87: 150.66 | AF87: 96.3 | AG87: 150.66 | AH87: 136.22 | AI87: =MIN(IF(AF87:AH87=0,"",AF87:AH87)) -> 96.3 | AJ87: 127.7266667 | AK87: =IF(E87="","",VLOOKUP(A87,List!$A$2:$D$186,2,FALSE)) -> Traffic Control Devices And Lighting | AL87: =IF(E87="","",VLOOKUP(VALUE(B87),List!$C$2:$D$186,2,FALSE)) -> Traffic Controls For Construction And Maintenance Operations | AM87: 63.86333333 | AO87: =IF('2) Raw'!$X75="","",'2) Raw'!X75) -> 74
A88: 800 | B88: 801 | C88: =IF('2) Raw'!E76="","",'2) Raw'!E76) -> 801-06710 | D88: =IF('2) Raw'!$E76="","",PROPER('2) Raw'!F76)) -> Flashing Arrow Sign | E88: =IF('2) Raw'!$E76="","",'2) Raw'!G76) -> 120 | F88: =IF('2) Raw'!$E76="","",'2) Raw'!H76) -> DAY | H88: =IF('2) Raw'!$E76="","",'2) Raw'!I76) -> 14.2 | I88: =IF('2) Raw'!$E76="","",'2) Raw'!J76) -> 1704 | J88: 0.0007331781597 | K88: 61 | N88: =IF('2) Raw'!$E76="","",'2) Raw'!K76) -> 14.2 | O88: =IF('2) Raw'!$E76="","",'2) Raw'!L76) -> 1704 | P88: 0.0007331781597 | Q88: 61 | R88: =IF('2) Raw'!$E76="","",'2) Raw'!M76) -> 26 | T88: =IF('2) Raw'!$E76="","",'2) Raw'!O76) -> 12.22 | U88: =IF('2) Raw'!$E76="","",'2) Raw'!P76) -> 1466.4 | V88: 0.0006161900222 | W88: 63 | X88: =IF('2) Raw'!$E76="","",'2) Raw'!Q76) -> 95 | Z88: =IF('2) Raw'!$E76="","",'2) Raw'!S76) -> 11.49 | AA88: =IF('2) Raw'!$E76="","",'2) Raw'!T76) -> 1378.8 | AB88: 0.0005624173766 | AC88: 65 | AD88: =IF('2) Raw'!$E76="","",'2) Raw'!U76) -> 488 | AE88: 1704 | AF88: 1704 | AG88: 1466.4 | AH88: 1378.8 | AI88: =MIN(IF(AF88:AH88=0,"",AF88:AH88)) -> 1378.8 | AJ88: 1516.4 | AK88: =IF(E88="","",VLOOKUP(A88,List!$A$2:$D$186,2,FALSE)) -> Traffic Control Devices And Lighting | AL88: =IF(E88="","",VLOOKUP(VALUE(B88),List!$C$2:$D$186,2,FALSE)) -> Traffic Controls For Construction And Maintenance Operations | AM88: 12.63666667 | AO88: =IF('2) Raw'!$X76="","",'2) Raw'!X76) -> 75
A89: 800 | B89: 801 | C89: =IF('2) Raw'!E77="","",'2) Raw'!E77) -> 801-06775 | D89: =IF('2) Raw'!$E77="","",PROPER('2) Raw'!F77)) -> Maintaining Traffic | E89: =IF('2) Raw'!$E77="","",'2) Raw'!G77) -> 1 | F89: =IF('2) Raw'!$E77="","",'2) Raw'!H77) -> L.S. | H89: =IF('2) Raw'!$E77="","",'2) Raw'!I77) -> 24850.93 | I89: =IF('2) Raw'!$E77="","",'2) Raw'!J77) -> 24850.93 | J89: 0.01069258165 | K89: 13 | N89: =IF('2) Raw'!$E77="","",'2) Raw'!K77) -> 24850.93 | O89: =IF('2) Raw'!$E77="","",'2) Raw'!L77) -> 24850.93 | P89: 0.01069258165 | Q89: 13 | R89: =IF('2) Raw'!$E77="","",'2) Raw'!M77) -> 125 | T89: =IF('2) Raw'!$E77="","",'2) Raw'!O77) -> 27443.21 | U89: =IF('2) Raw'!$E77="","",'2) Raw'!P77) -> 27443.21 | V89: 0.01153180045 | W89: 13 | X89: =IF('2) Raw'!$E77="","",'2) Raw'!Q77) -> 480 | Z89: =IF('2) Raw'!$E77="","",'2) Raw'!S77) -> 36965.59 | AA89: =IF('2) Raw'!$E77="","",'2) Raw'!T77) -> 36965.59 | AB89: 0.01507839437 | AC89: 11 | AD89: =IF('2) Raw'!$E77="","",'2) Raw'!U77) -> 2273 | AE89: 36965.59 | AF89: 24850.93 | AG89: 27443.21 | AH89: 36965.59 | AI89: =MIN(IF(AF89:AH89=0,"",AF89:AH89)) -> 24850.93 | AJ89: 29753.24333 | AK89: =IF(E89="","",VLOOKUP(A89,List!$A$2:$D$186,2,FALSE)) -> Traffic Control Devices And Lighting | AL89: =IF(E89="","",VLOOKUP(VALUE(B89),List!$C$2:$D$186,2,FALSE)) -> Traffic Controls For Construction And Maintenance Operations | AM89: 29753.24333 | AO89: =IF('2) Raw'!$X77="","",'2) Raw'!X77) -> 76
A90: 800 | B90: 801 | C90: =IF('2) Raw'!E78="","",'2) Raw'!E78) -> 801-07023 | D90: =IF('2) Raw'!$E78="","",PROPER('2) Raw'!F78)) -> Energy Absorbing Terminal, Cz, Tl-2 | E90: =IF('2) Raw'!$E78="","",'2) Raw'!G78) -> 1 | F90: =IF('2) Raw'!$E78="","",'2) Raw'!H78) -> EACH | H90: =IF('2) Raw'!$E78="","",'2) Raw'!I78) -> 6300 | I90: =IF('2) Raw'!$E78="","",'2) Raw'!J78) -> 6300 | J90: 0.0027106939 | K90: 33 | N90: =IF('2) Raw'!$E78="","",'2) Raw'!K78) -> 6300 | O90: =IF('2) Raw'!$E78="","",'2) Raw'!L78) -> 6300 | P90: 0.0027106939 | Q90: 33 | R90: =IF('2) Raw'!$E78="","",'2) Raw'!M78) -> 1 | T90: =IF('2) Raw'!$E78="","",'2) Raw'!O78) -> 5475.04 | U90: =IF('2) Raw'!$E78="","",'2) Raw'!P78) -> 5475.04 | V90: 0.002300644448 | W90: 41 | X90: =IF('2) Raw'!$E78="","",'2) Raw'!Q78) -> 29 | Z90: =IF('2) Raw'!$E78="","",'2) Raw'!S78) -> 5187.57 | AA90: =IF('2) Raw'!$E78="","",'2) Raw'!T78) -> 5187.57 | AB90: 0.002116028075 | AC90: 43 | AD90: =IF('2) Raw'!$E78="","",'2) Raw'!U78) -> 101 | AE90: 6300 | AF90: 6300 | AG90: 5475.04 | AH90: 5187.57 | AI90: =MIN(IF(AF90:AH90=0,"",AF90:AH90)) -> 5187.57 | AJ90: 5654.203333 | AK90: =IF(E90="","",VLOOKUP(A90,List!$A$2:$D$186,2,FALSE)) -> Traffic Control Devices And Lighting | AL90: =IF(E90="","",VLOOKUP(VALUE(B90),List!$C$2:$D$186,2,FALSE)) -> Traffic Controls For Construction And Maintenance Operations | AM90: 5654.203333 | AO90: =IF('2) Raw'!$X78="","",'2) Raw'!X78) -> 77
A91: 800 | B91: 801 | C91: =IF('2) Raw'!E79="","",'2) Raw'!E79) -> 801-08401 | D91: =IF('2) Raw'!$E79="","",PROPER('2) Raw'!F79)) -> Temporary Traffic Barrier, Type 2 | E91: =IF('2) Raw'!$E79="","",'2) Raw'!G79) -> 300 | F91: =IF('2) Raw'!$E79="","",'2) Raw'!H79) -> L.F. | H91: =IF('2) Raw'!$E79="","",'2) Raw'!I79) -> 31.58 | I91: =IF('2) Raw'!$E79="","",'2) Raw'!J79) -> 9474 | J91: 0.004076367304 | K91: 29 | N91: =IF('2) Raw'!$E79="","",'2) Raw'!K79) -> 31.58 | O91: =IF('2) Raw'!$E79="","",'2) Raw'!L79) -> 9474 | P91: 0.004076367304 | Q91: 29 | R91: =IF('2) Raw'!$E79="","",'2) Raw'!M79) -> 13 | T91: =IF('2) Raw'!$E79="","",'2) Raw'!O79) -> 31.62 | U91: =IF('2) Raw'!$E79="","",'2) Raw'!P79) -> 9486 | V91: 0.003986073753 | W91: 29 | X91: =IF('2) Raw'!$E79="","",'2) Raw'!Q79) -> 41 | Z91: =IF('2) Raw'!$E79="","",'2) Raw'!S79) -> 33.81 | AA91: =IF('2) Raw'!$E79="","",'2) Raw'!T79) -> 10143 | AB91: 0.004137365427 | AC91: 28 | AD91: =IF('2) Raw'!$E79="","",'2) Raw'!U79) -> 89 | AE91: 10143 | AF91: 9474 | AG91: 9486 | AH91: 10143 | AI91: =MIN(IF(AF91:AH91=0,"",AF91:AH91)) -> 9474 | AJ91: 9701 | AK91: =IF(E91="","",VLOOKUP(A91,List!$A$2:$D$186,2,FALSE)) -> Traffic Control Devices And Lighting | AL91: =IF(E91="","",VLOOKUP(VALUE(B91),List!$C$2:$D$186,2,FALSE)) -> Traffic Controls For Construction And Maintenance Operations | AM91: 32.33666667 | AO91: =IF('2) Raw'!$X79="","",'2) Raw'!X79) -> 78
A92: 800 | B92: 801 | C92: =IF('2) Raw'!E80="","",'2) Raw'!E80) -> 801-08508 | D92: =IF('2) Raw'!$E80="","",PROPER('2) Raw'!F80)) -> Temporary Traffic Barrier, Type 2, Anchored | E92: =IF('2) Raw'!$E80="","",'2) Raw'!G80) -> 150 | F92: =IF('2) Raw'!$E80="","",'2) Raw'!H80) -> L.F. | H92: =IF('2) Raw'!$E80="","",'2) Raw'!I80) -> 38 | I92: =IF('2) Raw'!$E80="","",'2) Raw'!J80) -> 5700 | J92: 0.002452532577 | K92: 41 | N92: =IF('2) Raw'!$E80="","",'2) Raw'!K80) -> 38 | O92: =IF('2) Raw'!$E80="","",'2) Raw'!L80) -> 5700 | P92: 0.002452532577 | Q92: 41 | R92: =IF('2) Raw'!$E80="","",'2) Raw'!M80) -> 1 | T92: =IF('2) Raw'!$E80="","",'2) Raw'!O80) -> 47.97 | U92: =IF('2) Raw'!$E80="","",'2) Raw'!P80) -> 7195.5 | V92: 0.003023591997 | W92: 33 | X92: =IF('2) Raw'!$E80="","",'2) Raw'!Q80) -> 21 | Z92: =IF('2) Raw'!$E80="","",'2) Raw'!S80) -> 42.67 | AA92: =IF('2) Raw'!$E80="","",'2) Raw'!T80) -> 6400.5 | AB92: 0.002610786495 | AC92: 35 | AD92: =IF('2) Raw'!$E80="","",'2) Raw'!U80) -> 65 | AE92: 7195.5 | AF92: 5700 | AG92: 7195.5 | AH92: 6400.5 | AI92: =MIN(IF(AF92:AH92=0,"",AF92:AH92)) -> 5700 | AJ92: 6432 | AK92: =IF(E92="","",VLOOKUP(A92,List!$A$2:$D$186,2,FALSE)) -> Traffic Control Devices And Lighting | AL92: =IF(E92="","",VLOOKUP(VALUE(B92),List!$C$2:$D$186,2,FALSE)) -> Traffic Controls For Construction And Maintenance Operations | AM92: 42.88 | AO92: =IF('2) Raw'!$X80="","",'2) Raw'!X80) -> 79
A93: 800 | B93: 808 | C93: =IF('2) Raw'!E81="","",'2) Raw'!E81) -> 808-10033 | D93: =IF('2) Raw'!$E81="","",PROPER('2) Raw'!F81)) -> Line, Multi-Comp, Solid, White, 4 In | E93: =IF('2) Raw'!$E81="","",'2) Raw'!G81) -> 200 | F93: =IF('2) Raw'!$E81="","",'2) Raw'!H81) -> L.F. | H93: =IF('2) Raw'!$E81="","",'2) Raw'!I81) -> 4.5 | I93: =IF('2) Raw'!$E81="","",'2) Raw'!J81) -> 900 | J93: 0.0003872419858 | K93: 67 | N93: =IF('2) Raw'!$E81="","",'2) Raw'!K81) -> 4.5 | O93: =IF('2) Raw'!$E81="","",'2) Raw'!L81) -> 900 | P93: 0.0003872419858 | Q93: 67 | R93: =IF('2) Raw'!$E81="","",'2) Raw'!M81) -> 1 | T93: =IF('2) Raw'!$E81="","",'2) Raw'!O81) -> 2.34 | U93: =IF('2) Raw'!$E81="","",'2) Raw'!P81) -> 468 | V93: 0.0001966563901 | W93: 71 | X93: =IF('2) Raw'!$E81="","",'2) Raw'!Q81) -> 15 | Z93: =IF('2) Raw'!$E81="","",'2) Raw'!S81) -> 2.64 | AA93: =IF('2) Raw'!$E81="","",'2) Raw'!T81) -> 528 | AB93: 0.0002153730598 | AC93: 70 | AD93: =IF('2) Raw'!$E81="","",'2) Raw'!U81) -> 27 | AE93: 900 | AF93: 900 | AG93: 468 | AH93: 528 | AI93: =MIN(IF(AF93:AH93=0,"",AF93:AH93)) -> 468 | AJ93: 632 | AK93: =IF(E93="","",VLOOKUP(A93,List!$A$2:$D$186,2,FALSE)) -> Traffic Control Devices And Lighting | AL93: =IF(E93="","",VLOOKUP(VALUE(B93),List!$C$2:$D$186,2,FALSE)) -> Pavement Traffic Markings | AM93: 3.16 | AO93: =IF('2) Raw'!$X81="","",'2) Raw'!X81) -> 80
A94: 800 | B94: 808 | C94: =IF('2) Raw'!E82="","",'2) Raw'!E82) -> 808-10034 | D94: =IF('2) Raw'!$E82="","",PROPER('2) Raw'!F82)) -> Line, Multi-Comp, Solid, Yellow, 4 In | E94: =IF('2) Raw'!$E82="","",'2) Raw'!G82) -> 200 | F94: =IF('2) Raw'!$E82="","",'2) Raw'!H82) -> L.F. | H94: =IF('2) Raw'!$E82="","",'2) Raw'!I82) -> 4.5 | I94: =IF('2) Raw'!$E82="","",'2) Raw'!J82) -> 900 | J94: 0.0003872419858 | K94: 67 | N94: =IF('2) Raw'!$E82="","",'2) Raw'!K82) -> 4.5 | O94: =IF('2) Raw'!$E82="","",'2) Raw'!L82) -> 900 | P94: 0.0003872419858 | Q94: 67 | R94: =IF('2) Raw'!$E82="","",'2) Raw'!M82) -> 1 | T94: =IF('2) Raw'!$E82="","",'2) Raw'!O82) -> 4.76 | U94: =IF('2) Raw'!$E82="","",'2) Raw'!P82) -> 952 | V94: 0.0004000360755 | W94: 68 | X94: =IF('2) Raw'!$E82="","",'2) Raw'!Q82) -> 12 | Z94: =IF('2) Raw'!$E82="","",'2) Raw'!S82) -> 3.73 | AA94: =IF('2) Raw'!$E82="","",'2) Raw'!T82) -> 746 | AB94: 0.0003042960277 | AC94: 69 | AD94: =IF('2) Raw'!$E82="","",'2) Raw'!U82) -> 21 | AE94: 952 | AF94: 900 | AG94: 952 | AH94: 746 | AI94: =MIN(IF(AF94:AH94=0,"",AF94:AH94)) -> 746 | AJ94: 866 | AK94: =IF(E94="","",VLOOKUP(A94,List!$A$2:$D$186,2,FALSE)) -> Traffic Control Devices And Lighting | AL94: =IF(E94="","",VLOOKUP(VALUE(B94),List!$C$2:$D$186,2,FALSE)) -> Pavement Traffic Markings | AM94: 4.33 | AO94: =IF('2) Raw'!$X82="","",'2) Raw'!X82) -> 81
C95: =IF('2) Raw'!E83="","",'2) Raw'!E83) ->  | D95: =IF('2) Raw'!$E83="","",PROPER('2) Raw'!F83)) ->  | E95: =IF('2) Raw'!$E83="","",'2) Raw'!G83) ->  | F95: =IF('2) Raw'!$E83="","",'2) Raw'!H83) ->  | H95: =IF('2) Raw'!$E83="","",'2) Raw'!I83) ->  | I95: =IF('2) Raw'!$E83="","",'2) Raw'!J83) ->  | N95: =IF('2) Raw'!$E83="","",'2) Raw'!K83) ->  | O95: =IF('2) Raw'!$E83="","",'2) Raw'!L83) ->  | R95: =IF('2) Raw'!$E83="","",'2) Raw'!M83) ->  | T95: =IF('2) Raw'!$E83="","",'2) Raw'!O83) ->  | U95: =IF('2) Raw'!$E83="","",'2) Raw'!P83) ->  | X95: =IF('2) Raw'!$E83="","",'2) Raw'!Q83) ->  | Z95: =IF('2) Raw'!$E83="","",'2) Raw'!S83) ->  | AA95: =IF('2) Raw'!$E83="","",'2) Raw'!T83) ->  | AD95: =IF('2) Raw'!$E83="","",'2) Raw'!U83) ->  | AI95: =MIN(IF(AF95:AH95=0,"",AF95:AH95)) -> 0 | AK95: =IF(E95="","",VLOOKUP(A95,List!$A$2:$D$186,2,FALSE)) ->  | AL95: =IF(E95="","",VLOOKUP(VALUE(B95),List!$C$2:$D$186,2,FALSE)) ->  | AO95: =IF('2) Raw'!$X83="","",'2) Raw'!X83) -> 
C96: =IF('2) Raw'!E84="","",'2) Raw'!E84) ->  | D96: =IF('2) Raw'!$E84="","",PROPER('2) Raw'!F84)) ->  | E96: =IF('2) Raw'!$E84="","",'2) Raw'!G84) ->  | F96: =IF('2) Raw'!$E84="","",'2) Raw'!H84) ->  | H96: =IF('2) Raw'!$E84="","",'2) Raw'!I84) ->  | I96: =IF('2) Raw'!$E84="","",'2) Raw'!J84) ->  | N96: =IF('2) Raw'!$E84="","",'2) Raw'!K84) ->  | O96: =IF('2) Raw'!$E84="","",'2) Raw'!L84) ->  | R96: =IF('2) Raw'!$E84="","",'2) Raw'!M84) ->  | T96: =IF('2) Raw'!$E84="","",'2) Raw'!O84) ->  | U96: =IF('2) Raw'!$E84="","",'2) Raw'!P84) ->  | X96: =IF('2) Raw'!$E84="","",'2) Raw'!Q84) ->  | Z96: =IF('2) Raw'!$E84="","",'2) Raw'!S84) ->  | AA96: =IF('2) Raw'!$E84="","",'2) Raw'!T84) ->  | AD96: =IF('2) Raw'!$E84="","",'2) Raw'!U84) ->  | AI96: =MIN(IF(AF96:AH96=0,"",AF96:AH96)) -> 0 | AK96: =IF(E96="","",VLOOKUP(A96,List!$A$2:$D$186,2,FALSE)) ->  | AL96: =IF(E96="","",VLOOKUP(VALUE(B96),List!$C$2:$D$186,2,FALSE)) ->  | AO96: =IF('2) Raw'!$X84="","",'2) Raw'!X84) -> 
C97: =IF('2) Raw'!E85="","",'2) Raw'!E85) ->  | D97: =IF('2) Raw'!$E85="","",PROPER('2) Raw'!F85)) ->  | E97: =IF('2) Raw'!$E85="","",'2) Raw'!G85) ->  | F97: =IF('2) Raw'!$E85="","",'2) Raw'!H85) ->  | H97: =IF('2) Raw'!$E85="","",'2) Raw'!I85) ->  | I97: =IF('2) Raw'!$E85="","",'2) Raw'!J85) ->  | N97: =IF('2) Raw'!$E85="","",'2) Raw'!K85) ->  | O97: =IF('2) Raw'!$E85="","",'2) Raw'!L85) ->  | R97: =IF('2) Raw'!$E85="","",'2) Raw'!M85) ->  | T97: =IF('2) Raw'!$E85="","",'2) Raw'!O85) ->  | U97: =IF('2) Raw'!$E85="","",'2) Raw'!P85) ->  | X97: =IF('2) Raw'!$E85="","",'2) Raw'!Q85) ->  | Z97: =IF('2) Raw'!$E85="","",'2) Raw'!S85) ->  | AA97: =IF('2) Raw'!$E85="","",'2) Raw'!T85) ->  | AD97: =IF('2) Raw'!$E85="","",'2) Raw'!U85) ->  | AI97: =MIN(IF(AF97:AH97=0,"",AF97:AH97)) -> 0 | AK97: =IF(E97="","",VLOOKUP(A97,List!$A$2:$D$186,2,FALSE)) ->  | AL97: =IF(E97="","",VLOOKUP(VALUE(B97),List!$C$2:$D$186,2,FALSE)) ->  | AO97: =IF('2) Raw'!$X85="","",'2) Raw'!X85) -> 
C98: =IF('2) Raw'!E86="","",'2) Raw'!E86) ->  | D98: =IF('2) Raw'!$E86="","",PROPER('2) Raw'!F86)) ->  | E98: =IF('2) Raw'!$E86="","",'2) Raw'!G86) ->  | F98: =IF('2) Raw'!$E86="","",'2) Raw'!H86) ->  | H98: =IF('2) Raw'!$E86="","",'2) Raw'!I86) ->  | I98: =IF('2) Raw'!$E86="","",'2) Raw'!J86) ->  | N98: =IF('2) Raw'!$E86="","",'2) Raw'!K86) ->  | O98: =IF('2) Raw'!$E86="","",'2) Raw'!L86) ->  | R98: =IF('2) Raw'!$E86="","",'2) Raw'!M86) ->  | T98: =IF('2) Raw'!$E86="","",'2) Raw'!O86) ->  | U98: =IF('2) Raw'!$E86="","",'2) Raw'!P86) ->  | X98: =IF('2) Raw'!$E86="","",'2) Raw'!Q86) ->  | Z98: =IF('2) Raw'!$E86="","",'2) Raw'!S86) ->  | AA98: =IF('2) Raw'!$E86="","",'2) Raw'!T86) ->  | AD98: =IF('2) Raw'!$E86="","",'2) Raw'!U86) ->  | AI98: =MIN(IF(AF98:AH98=0,"",AF98:AH98)) -> 0 | AK98: =IF(E98="","",VLOOKUP(A98,List!$A$2:$D$186,2,FALSE)) ->  | AL98: =IF(E98="","",VLOOKUP(VALUE(B98),List!$C$2:$D$186,2,FALSE)) ->  | AO98: =IF('2) Raw'!$X86="","",'2) Raw'!X86) -> 
C99: =IF('2) Raw'!E87="","",'2) Raw'!E87) ->  | D99: =IF('2) Raw'!$E87="","",PROPER('2) Raw'!F87)) ->  | E99: =IF('2) Raw'!$E87="","",'2) Raw'!G87) ->  | F99: =IF('2) Raw'!$E87="","",'2) Raw'!H87) ->  | H99: =IF('2) Raw'!$E87="","",'2) Raw'!I87) ->  | I99: =IF('2) Raw'!$E87="","",'2) Raw'!J87) ->  | N99: =IF('2) Raw'!$E87="","",'2) Raw'!K87) ->  | O99: =IF('2) Raw'!$E87="","",'2) Raw'!L87) ->  | R99: =IF('2) Raw'!$E87="","",'2) Raw'!M87) ->  | T99: =IF('2) Raw'!$E87="","",'2) Raw'!O87) ->  | U99: =IF('2) Raw'!$E87="","",'2) Raw'!P87) ->  | X99: =IF('2) Raw'!$E87="","",'2) Raw'!Q87) ->  | Z99: =IF('2) Raw'!$E87="","",'2) Raw'!S87) ->  | AA99: =IF('2) Raw'!$E87="","",'2) Raw'!T87) ->  | AD99: =IF('2) Raw'!$E87="","",'2) Raw'!U87) ->  | AI99: =MIN(IF(AF99:AH99=0,"",AF99:AH99)) -> 0 | AK99: =IF(E99="","",VLOOKUP(A99,List!$A$2:$D$186,2,FALSE)) ->  | AL99: =IF(E99="","",VLOOKUP(VALUE(B99),List!$C$2:$D$186,2,FALSE)) ->  | AO99: =IF('2) Raw'!$X87="","",'2) Raw'!X87) -> 
C100: =IF('2) Raw'!E88="","",'2) Raw'!E88) ->  | D100: =IF('2) Raw'!$E88="","",PROPER('2) Raw'!F88)) ->  | E100: =IF('2) Raw'!$E88="","",'2) Raw'!G88) ->  | F100: =IF('2) Raw'!$E88="","",'2) Raw'!H88) ->  | H100: =IF('2) Raw'!$E88="","",'2) Raw'!I88) ->  | I100: =IF('2) Raw'!$E88="","",'2) Raw'!J88) ->  | N100: =IF('2) Raw'!$E88="","",'2) Raw'!K88) ->  | O100: =IF('2) Raw'!$E88="","",'2) Raw'!L88) ->  | R100: =IF('2) Raw'!$E88="","",'2) Raw'!M88) ->  | T100: =IF('2) Raw'!$E88="","",'2) Raw'!O88) ->  | U100: =IF('2) Raw'!$E88="","",'2) Raw'!P88) ->  | X100: =IF('2) Raw'!$E88="","",'2) Raw'!Q88) ->  | Z100: =IF('2) Raw'!$E88="","",'2) Raw'!S88) ->  | AA100: =IF('2) Raw'!$E88="","",'2) Raw'!T88) ->  | AD100: =IF('2) Raw'!$E88="","",'2) Raw'!U88) ->  | AI100: =MIN(IF(AF100:AH100=0,"",AF100:AH100)) -> 0 | AK100: =IF(E100="","",VLOOKUP(A100,List!$A$2:$D$186,2,FALSE)) ->  | AL100: =IF(E100="","",VLOOKUP(VALUE(B100),List!$C$2:$D$186,2,FALSE)) ->  | AO100: =IF('2) Raw'!$X88="","",'2) Raw'!X88) -> 
C101: =IF('2) Raw'!E89="","",'2) Raw'!E89) ->  | D101: =IF('2) Raw'!$E89="","",PROPER('2) Raw'!F89)) ->  | E101: =IF('2) Raw'!$E89="","",'2) Raw'!G89) ->  | F101: =IF('2) Raw'!$E89="","",'2) Raw'!H89) ->  | H101: =IF('2) Raw'!$E89="","",'2) Raw'!I89) ->  | I101: =IF('2) Raw'!$E89="","",'2) Raw'!J89) ->  | N101: =IF('2) Raw'!$E89="","",'2) Raw'!K89) ->  | O101: =IF('2) Raw'!$E89="","",'2) Raw'!L89) ->  | R101: =IF('2) Raw'!$E89="","",'2) Raw'!M89) ->  | T101: =IF('2) Raw'!$E89="","",'2) Raw'!O89) ->  | U101: =IF('2) Raw'!$E89="","",'2) Raw'!P89) ->  | X101: =IF('2) Raw'!$E89="","",'2) Raw'!Q89) ->  | Z101: =IF('2) Raw'!$E89="","",'2) Raw'!S89) ->  | AA101: =IF('2) Raw'!$E89="","",'2) Raw'!T89) ->  | AD101: =IF('2) Raw'!$E89="","",'2) Raw'!U89) ->  | AI101: =MIN(IF(AF101:AH101=0,"",AF101:AH101)) -> 0 | AK101: =IF(E101="","",VLOOKUP(A101,List!$A$2:$D$186,2,FALSE)) ->  | AL101: =IF(E101="","",VLOOKUP(VALUE(B101),List!$C$2:$D$186,2,FALSE)) ->  | AO101: =IF('2) Raw'!$X89="","",'2) Raw'!X89) -> 
C102: =IF('2) Raw'!E90="","",'2) Raw'!E90) ->  | D102: =IF('2) Raw'!$E90="","",PROPER('2) Raw'!F90)) ->  | E102: =IF('2) Raw'!$E90="","",'2) Raw'!G90) ->  | F102: =IF('2) Raw'!$E90="","",'2) Raw'!H90) ->  | H102: =IF('2) Raw'!$E90="","",'2) Raw'!I90) ->  | I102: =IF('2) Raw'!$E90="","",'2) Raw'!J90) ->  | N102: =IF('2) Raw'!$E90="","",'2) Raw'!K90) ->  | O102: =IF('2) Raw'!$E90="","",'2) Raw'!L90) ->  | R102: =IF('2) Raw'!$E90="","",'2) Raw'!M90) ->  | T102: =IF('2) Raw'!$E90="","",'2) Raw'!O90) ->  | U102: =IF('2) Raw'!$E90="","",'2) Raw'!P90) ->  | X102: =IF('2) Raw'!$E90="","",'2) Raw'!Q90) ->  | Z102: =IF('2) Raw'!$E90="","",'2) Raw'!S90) ->  | AA102: =IF('2) Raw'!$E90="","",'2) Raw'!T90) ->  | AD102: =IF('2) Raw'!$E90="","",'2) Raw'!U90) ->  | AI102: =MIN(IF(AF102:AH102=0,"",AF102:AH102)) -> 0 | AK102: =IF(E102="","",VLOOKUP(A102,List!$A$2:$D$186,2,FALSE)) ->  | AL102: =IF(E102="","",VLOOKUP(VALUE(B102),List!$C$2:$D$186,2,FALSE)) ->  | AO102: =IF('2) Raw'!$X90="","",'2) Raw'!X90) -> 
C103: =IF('2) Raw'!E91="","",'2) Raw'!E91) ->  | D103: =IF('2) Raw'!$E91="","",PROPER('2) Raw'!F91)) ->  | E103: =IF('2) Raw'!$E91="","",'2) Raw'!G91) ->  | F103: =IF('2) Raw'!$E91="","",'2) Raw'!H91) ->  | H103: =IF('2) Raw'!$E91="","",'2) Raw'!I91) ->  | I103: =IF('2) Raw'!$E91="","",'2) Raw'!J91) ->  | N103: =IF('2) Raw'!$E91="","",'2) Raw'!K91) ->  | O103: =IF('2) Raw'!$E91="","",'2) Raw'!L91) ->  | R103: =IF('2) Raw'!$E91="","",'2) Raw'!M91) ->  | T103: =IF('2) Raw'!$E91="","",'2) Raw'!O91) ->  | U103: =IF('2) Raw'!$E91="","",'2) Raw'!P91) ->  | X103: =IF('2) Raw'!$E91="","",'2) Raw'!Q91) ->  | Z103: =IF('2) Raw'!$E91="","",'2) Raw'!S91) ->  | AA103: =IF('2) Raw'!$E91="","",'2) Raw'!T91) ->  | AD103: =IF('2) Raw'!$E91="","",'2) Raw'!U91) ->  | AI103: =MIN(IF(AF103:AH103=0,"",AF103:AH103)) -> 0 | AK103: =IF(E103="","",VLOOKUP(A103,List!$A$2:$D$186,2,FALSE)) ->  | AL103: =IF(E103="","",VLOOKUP(VALUE(B103),List!$C$2:$D$186,2,FALSE)) ->  | AO103: =IF('2) Raw'!$X91="","",'2) Raw'!X91) -> 
C104: =IF('2) Raw'!E92="","",'2) Raw'!E92) ->  | D104: =IF('2) Raw'!$E92="","",PROPER('2) Raw'!F92)) ->  | E104: =IF('2) Raw'!$E92="","",'2) Raw'!G92) ->  | F104: =IF('2) Raw'!$E92="","",'2) Raw'!H92) ->  | H104: =IF('2) Raw'!$E92="","",'2) Raw'!I92) ->  | I104: =IF('2) Raw'!$E92="","",'2) Raw'!J92) ->  | N104: =IF('2) Raw'!$E92="","",'2) Raw'!K92) ->  | O104: =IF('2) Raw'!$E92="","",'2) Raw'!L92) ->  | R104: =IF('2) Raw'!$E92="","",'2) Raw'!M92) ->  | T104: =IF('2) Raw'!$E92="","",'2) Raw'!O92) ->  | U104: =IF('2) Raw'!$E92="","",'2) Raw'!P92) ->  | X104: =IF('2) Raw'!$E92="","",'2) Raw'!Q92) ->  | Z104: =IF('2) Raw'!$E92="","",'2) Raw'!S92) ->  | AA104: =IF('2) Raw'!$E92="","",'2) Raw'!T92) ->  | AD104: =IF('2) Raw'!$E92="","",'2) Raw'!U92) ->  | AI104: =MIN(IF(AF104:AH104=0,"",AF104:AH104)) -> 0 | AK104: =IF(E104="","",VLOOKUP(A104,List!$A$2:$D$186,2,FALSE)) ->  | AL104: =IF(E104="","",VLOOKUP(VALUE(B104),List!$C$2:$D$186,2,FALSE)) ->  | AO104: =IF('2) Raw'!$X92="","",'2) Raw'!X92) -> 
C105: =IF('2) Raw'!E93="","",'2) Raw'!E93) ->  | D105: =IF('2) Raw'!$E93="","",PROPER('2) Raw'!F93)) ->  | E105: =IF('2) Raw'!$E93="","",'2) Raw'!G93) ->  | F105: =IF('2) Raw'!$E93="","",'2) Raw'!H93) ->  | H105: =IF('2) Raw'!$E93="","",'2) Raw'!I93) ->  | I105: =IF('2) Raw'!$E93="","",'2) Raw'!J93) ->  | N105: =IF('2) Raw'!$E93="","",'2) Raw'!K93) ->  | O105: =IF('2) Raw'!$E93="","",'2) Raw'!L93) ->  | R105: =IF('2) Raw'!$E93="","",'2) Raw'!M93) ->  | T105: =IF('2) Raw'!$E93="","",'2) Raw'!O93) ->  | U105: =IF('2) Raw'!$E93="","",'2) Raw'!P93) ->  | X105: =IF('2) Raw'!$E93="","",'2) Raw'!Q93) ->  | Z105: =IF('2) Raw'!$E93="","",'2) Raw'!S93) ->  | AA105: =IF('2) Raw'!$E93="","",'2) Raw'!T93) ->  | AD105: =IF('2) Raw'!$E93="","",'2) Raw'!U93) ->  | AI105: =MIN(IF(AF105:AH105=0,"",AF105:AH105)) -> 0 | AK105: =IF(E105="","",VLOOKUP(A105,List!$A$2:$D$186,2,FALSE)) ->  | AL105: =IF(E105="","",VLOOKUP(VALUE(B105),List!$C$2:$D$186,2,FALSE)) ->  | AO105: =IF('2) Raw'!$X93="","",'2) Raw'!X93) -> 
C106: =IF('2) Raw'!E94="","",'2) Raw'!E94) ->  | D106: =IF('2) Raw'!$E94="","",PROPER('2) Raw'!F94)) ->  | E106: =IF('2) Raw'!$E94="","",'2) Raw'!G94) ->  | F106: =IF('2) Raw'!$E94="","",'2) Raw'!H94) ->  | H106: =IF('2) Raw'!$E94="","",'2) Raw'!I94) ->  | I106: =IF('2) Raw'!$E94="","",'2) Raw'!J94) ->  | N106: =IF('2) Raw'!$E94="","",'2) Raw'!K94) ->  | O106: =IF('2) Raw'!$E94="","",'2) Raw'!L94) ->  | R106: =IF('2) Raw'!$E94="","",'2) Raw'!M94) ->  | T106: =IF('2) Raw'!$E94="","",'2) Raw'!O94) ->  | U106: =IF('2) Raw'!$E94="","",'2) Raw'!P94) ->  | X106: =IF('2) Raw'!$E94="","",'2) Raw'!Q94) ->  | Z106: =IF('2) Raw'!$E94="","",'2) Raw'!S94) ->  | AA106: =IF('2) Raw'!$E94="","",'2) Raw'!T94) ->  | AD106: =IF('2) Raw'!$E94="","",'2) Raw'!U94) ->  | AI106: =MIN(IF(AF106:AH106=0,"",AF106:AH106)) -> 0 | AK106: =IF(E106="","",VLOOKUP(A106,List!$A$2:$D$186,2,FALSE)) ->  | AL106: =IF(E106="","",VLOOKUP(VALUE(B106),List!$C$2:$D$186,2,FALSE)) ->  | AO106: =IF('2) Raw'!$X94="","",'2) Raw'!X94) -> 
C107: =IF('2) Raw'!E95="","",'2) Raw'!E95) ->  | D107: =IF('2) Raw'!$E95="","",PROPER('2) Raw'!F95)) ->  | E107: =IF('2) Raw'!$E95="","",'2) Raw'!G95) ->  | F107: =IF('2) Raw'!$E95="","",'2) Raw'!H95) ->  | H107: =IF('2) Raw'!$E95="","",'2) Raw'!I95) ->  | I107: =IF('2) Raw'!$E95="","",'2) Raw'!J95) ->  | N107: =IF('2) Raw'!$E95="","",'2) Raw'!K95) ->  | O107: =IF('2) Raw'!$E95="","",'2) Raw'!L95) ->  | R107: =IF('2) Raw'!$E95="","",'2) Raw'!M95) ->  | T107: =IF('2) Raw'!$E95="","",'2) Raw'!O95) ->  | U107: =IF('2) Raw'!$E95="","",'2) Raw'!P95) ->  | X107: =IF('2) Raw'!$E95="","",'2) Raw'!Q95) ->  | Z107: =IF('2) Raw'!$E95="","",'2) Raw'!S95) ->  | AA107: =IF('2) Raw'!$E95="","",'2) Raw'!T95) ->  | AD107: =IF('2) Raw'!$E95="","",'2) Raw'!U95) ->  | AI107: =MIN(IF(AF107:AH107=0,"",AF107:AH107)) -> 0 | AK107: =IF(E107="","",VLOOKUP(A107,List!$A$2:$D$186,2,FALSE)) ->  | AL107: =IF(E107="","",VLOOKUP(VALUE(B107),List!$C$2:$D$186,2,FALSE)) ->  | AO107: =IF('2) Raw'!$X95="","",'2) Raw'!X95) -> 
C108: =IF('2) Raw'!E96="","",'2) Raw'!E96) ->  | D108: =IF('2) Raw'!$E96="","",PROPER('2) Raw'!F96)) ->  | E108: =IF('2) Raw'!$E96="","",'2) Raw'!G96) ->  | F108: =IF('2) Raw'!$E96="","",'2) Raw'!H96) ->  | H108: =IF('2) Raw'!$E96="","",'2) Raw'!I96) ->  | I108: =IF('2) Raw'!$E96="","",'2) Raw'!J96) ->  | N108: =IF('2) Raw'!$E96="","",'2) Raw'!K96) ->  | O108: =IF('2) Raw'!$E96="","",'2) Raw'!L96) ->  | R108: =IF('2) Raw'!$E96="","",'2) Raw'!M96) ->  | T108: =IF('2) Raw'!$E96="","",'2) Raw'!O96) ->  | U108: =IF('2) Raw'!$E96="","",'2) Raw'!P96) ->  | X108: =IF('2) Raw'!$E96="","",'2) Raw'!Q96) ->  | Z108: =IF('2) Raw'!$E96="","",'2) Raw'!S96) ->  | AA108: =IF('2) Raw'!$E96="","",'2) Raw'!T96) ->  | AD108: =IF('2) Raw'!$E96="","",'2) Raw'!U96) ->  | AI108: =MIN(IF(AF108:AH108=0,"",AF108:AH108)) -> 0 | AK108: =IF(E108="","",VLOOKUP(A108,List!$A$2:$D$186,2,FALSE)) ->  | AL108: =IF(E108="","",VLOOKUP(VALUE(B108),List!$C$2:$D$186,2,FALSE)) ->  | AO108: =IF('2) Raw'!$X96="","",'2) Raw'!X96) -> 
C109: =IF('2) Raw'!E97="","",'2) Raw'!E97) ->  | D109: =IF('2) Raw'!$E97="","",PROPER('2) Raw'!F97)) ->  | E109: =IF('2) Raw'!$E97="","",'2) Raw'!G97) ->  | F109: =IF('2) Raw'!$E97="","",'2) Raw'!H97) ->  | H109: =IF('2) Raw'!$E97="","",'2) Raw'!I97) ->  | I109: =IF('2) Raw'!$E97="","",'2) Raw'!J97) ->  | N109: =IF('2) Raw'!$E97="","",'2) Raw'!K97) ->  | O109: =IF('2) Raw'!$E97="","",'2) Raw'!L97) ->  | R109: =IF('2) Raw'!$E97="","",'2) Raw'!M97) ->  | T109: =IF('2) Raw'!$E97="","",'2) Raw'!O97) ->  | U109: =IF('2) Raw'!$E97="","",'2) Raw'!P97) ->  | X109: =IF('2) Raw'!$E97="","",'2) Raw'!Q97) ->  | Z109: =IF('2) Raw'!$E97="","",'2) Raw'!S97) ->  | AA109: =IF('2) Raw'!$E97="","",'2) Raw'!T97) ->  | AD109: =IF('2) Raw'!$E97="","",'2) Raw'!U97) ->  | AI109: =MIN(IF(AF109:AH109=0,"",AF109:AH109)) -> 0 | AK109: =IF(E109="","",VLOOKUP(A109,List!$A$2:$D$186,2,FALSE)) ->  | AL109: =IF(E109="","",VLOOKUP(VALUE(B109),List!$C$2:$D$186,2,FALSE)) ->  | AO109: =IF('2) Raw'!$X97="","",'2) Raw'!X97) -> 
A110: =IF(C110="","",LEFT(C110,1)*100) ->  | B110: =IF(C110="","",LEFT(C110,3)) ->  | C110: =IF('2) Raw'!E98="","",'2) Raw'!E98) ->  | D110: =IF('2) Raw'!$E98="","",PROPER('2) Raw'!F98)) ->  | E110: =IF('2) Raw'!$E98="","",'2) Raw'!G98) ->  | F110: =IF('2) Raw'!$E98="","",'2) Raw'!H98) ->  | H110: =IF('2) Raw'!$E98="","",'2) Raw'!I98) ->  | I110: =IF('2) Raw'!$E98="","",'2) Raw'!J98) ->  | N110: =IF('2) Raw'!$E98="","",'2) Raw'!K98) ->  | O110: =IF('2) Raw'!$E98="","",'2) Raw'!L98) ->  | R110: =IF('2) Raw'!$E98="","",'2) Raw'!M98) ->  | T110: =IF('2) Raw'!$E98="","",'2) Raw'!O98) ->  | U110: =IF('2) Raw'!$E98="","",'2) Raw'!P98) ->  | X110: =IF('2) Raw'!$E98="","",'2) Raw'!Q98) ->  | Z110: =IF('2) Raw'!$E98="","",'2) Raw'!S98) ->  | AA110: =IF('2) Raw'!$E98="","",'2) Raw'!T98) ->  | AD110: =IF('2) Raw'!$E98="","",'2) Raw'!U98) ->  | AI110: =MIN(IF(AF110:AH110=0,"",AF110:AH110)) -> 0 | AK110: =IF(E110="","",VLOOKUP(A110,List!$A$2:$D$186,2,FALSE)) ->  | AL110: =IF(E110="","",VLOOKUP(VALUE(B110),List!$C$2:$D$186,2,FALSE)) ->  | AO110: =IF('2) Raw'!$X98="","",'2) Raw'!X98) -> 
C111: =IF('2) Raw'!E99="","",'2) Raw'!E99) ->  | D111: =IF('2) Raw'!$E99="","",PROPER('2) Raw'!F99)) ->  | E111: =IF('2) Raw'!$E99="","",'2) Raw'!G99) ->  | F111: =IF('2) Raw'!$E99="","",'2) Raw'!H99) ->  | H111: =IF('2) Raw'!$E99="","",'2) Raw'!I99) ->  | I111: =IF('2) Raw'!$E99="","",'2) Raw'!J99) ->  | N111: =IF('2) Raw'!$E99="","",'2) Raw'!K99) ->  | O111: =IF('2) Raw'!$E99="","",'2) Raw'!L99) ->  | R111: =IF('2) Raw'!$E99="","",'2) Raw'!M99) ->  | T111: =IF('2) Raw'!$E99="","",'2) Raw'!O99) ->  | U111: =IF('2) Raw'!$E99="","",'2) Raw'!P99) ->  | X111: =IF('2) Raw'!$E99="","",'2) Raw'!Q99) ->  | Z111: =IF('2) Raw'!$E99="","",'2) Raw'!S99) ->  | AA111: =IF('2) Raw'!$E99="","",'2) Raw'!T99) ->  | AD111: =IF('2) Raw'!$E99="","",'2) Raw'!U99) ->  | AI111: =MIN(IF(AF111:AH111=0,"",AF111:AH111)) -> 0 | AK111: =IF(E111="","",VLOOKUP(A111,List!$A$2:$D$186,2,FALSE)) ->  | AL111: =IF(E111="","",VLOOKUP(VALUE(B111),List!$C$2:$D$186,2,FALSE)) ->  | AO111: =IF('2) Raw'!$X99="","",'2) Raw'!X99) -> 
C112: =IF('2) Raw'!E100="","",'2) Raw'!E100) ->  | D112: =IF('2) Raw'!$E100="","",PROPER('2) Raw'!F100)) ->  | E112: =IF('2) Raw'!$E100="","",'2) Raw'!G100) ->  | F112: =IF('2) Raw'!$E100="","",'2) Raw'!H100) ->  | H112: =IF('2) Raw'!$E100="","",'2) Raw'!I100) ->  | I112: =IF('2) Raw'!$E100="","",'2) Raw'!J100) ->  | N112: =IF('2) Raw'!$E100="","",'2) Raw'!K100) ->  | O112: =IF('2) Raw'!$E100="","",'2) Raw'!L100) ->  | R112: =IF('2) Raw'!$E100="","",'2) Raw'!M100) ->  | T112: =IF('2) Raw'!$E100="","",'2) Raw'!O100) ->  | U112: =IF('2) Raw'!$E100="","",'2) Raw'!P100) ->  | X112: =IF('2) Raw'!$E100="","",'2) Raw'!Q100) ->  | Z112: =IF('2) Raw'!$E100="","",'2) Raw'!S100) ->  | AA112: =IF('2) Raw'!$E100="","",'2) Raw'!T100) ->  | AD112: =IF('2) Raw'!$E100="","",'2) Raw'!U100) ->  | AI112: =MIN(IF(AF112:AH112=0,"",AF112:AH112)) -> 0 | AK112: =IF(E112="","",VLOOKUP(A112,List!$A$2:$D$186,2,FALSE)) ->  | AL112: =IF(E112="","",VLOOKUP(VALUE(B112),List!$C$2:$D$186,2,FALSE)) ->  | AO112: =IF('2) Raw'!$X100="","",'2) Raw'!X100) -> 
C113: =IF('2) Raw'!E101="","",'2) Raw'!E101) ->  | D113: =IF('2) Raw'!$E101="","",PROPER('2) Raw'!F101)) ->  | E113: =IF('2) Raw'!$E101="","",'2) Raw'!G101) ->  | F113: =IF('2) Raw'!$E101="","",'2) Raw'!H101) ->  | H113: =IF('2) Raw'!$E101="","",'2) Raw'!I101) ->  | I113: =IF('2) Raw'!$E101="","",'2) Raw'!J101) ->  | N113: =IF('2) Raw'!$E101="","",'2) Raw'!K101) ->  | O113: =IF('2) Raw'!$E101="","",'2) Raw'!L101) ->  | R113: =IF('2) Raw'!$E101="","",'2) Raw'!M101) ->  | T113: =IF('2) Raw'!$E101="","",'2) Raw'!O101) ->  | U113: =IF('2) Raw'!$E101="","",'2) Raw'!P101) ->  | X113: =IF('2) Raw'!$E101="","",'2) Raw'!Q101) ->  | Z113: =IF('2) Raw'!$E101="","",'2) Raw'!S101) ->  | AA113: =IF('2) Raw'!$E101="","",'2) Raw'!T101) ->  | AD113: =IF('2) Raw'!$E101="","",'2) Raw'!U101) ->  | AI113: =MIN(IF(AF113:AH113=0,"",AF113:AH113)) -> 0 | AK113: =IF(E113="","",VLOOKUP(A113,List!$A$2:$D$186,2,FALSE)) ->  | AL113: =IF(E113="","",VLOOKUP(VALUE(B113),List!$C$2:$D$186,2,FALSE)) ->  | AO113: =IF('2) Raw'!$X101="","",'2) Raw'!X101) -> 
C114: =IF('2) Raw'!E102="","",'2) Raw'!E102) ->  | D114: =IF('2) Raw'!$E102="","",PROPER('2) Raw'!F102)) ->  | E114: =IF('2) Raw'!$E102="","",'2) Raw'!G102) ->  | F114: =IF('2) Raw'!$E102="","",'2) Raw'!H102) ->  | H114: =IF('2) Raw'!$E102="","",'2) Raw'!I102) ->  | I114: =IF('2) Raw'!$E102="","",'2) Raw'!J102) ->  | N114: =IF('2) Raw'!$E102="","",'2) Raw'!K102) ->  | O114: =IF('2) Raw'!$E102="","",'2) Raw'!L102) ->  | R114: =IF('2) Raw'!$E102="","",'2) Raw'!M102) ->  | T114: =IF('2) Raw'!$E102="","",'2) Raw'!O102) ->  | U114: =IF('2) Raw'!$E102="","",'2) Raw'!P102) ->  | X114: =IF('2) Raw'!$E102="","",'2) Raw'!Q102) ->  | Z114: =IF('2) Raw'!$E102="","",'2) Raw'!S102) ->  | AA114: =IF('2) Raw'!$E102="","",'2) Raw'!T102) ->  | AD114: =IF('2) Raw'!$E102="","",'2) Raw'!U102) ->  | AI114: =MIN(IF(AF114:AH114=0,"",AF114:AH114)) -> 0 | AK114: =IF(E114="","",VLOOKUP(A114,List!$A$2:$D$186,2,FALSE)) ->  | AL114: =IF(E114="","",VLOOKUP(VALUE(B114),List!$C$2:$D$186,2,FALSE)) ->  | AO114: =IF('2) Raw'!$X102="","",'2) Raw'!X102) -> 
C115: =IF('2) Raw'!E103="","",'2) Raw'!E103) ->  | D115: =IF('2) Raw'!$E103="","",PROPER('2) Raw'!F103)) ->  | E115: =IF('2) Raw'!$E103="","",'2) Raw'!G103) ->  | F115: =IF('2) Raw'!$E103="","",'2) Raw'!H103) ->  | H115: =IF('2) Raw'!$E103="","",'2) Raw'!I103) ->  | I115: =IF('2) Raw'!$E103="","",'2) Raw'!J103) ->  | N115: =IF('2) Raw'!$E103="","",'2) Raw'!K103) ->  | O115: =IF('2) Raw'!$E103="","",'2) Raw'!L103) ->  | R115: =IF('2) Raw'!$E103="","",'2) Raw'!M103) ->  | T115: =IF('2) Raw'!$E103="","",'2) Raw'!O103) ->  | U115: =IF('2) Raw'!$E103="","",'2) Raw'!P103) ->  | X115: =IF('2) Raw'!$E103="","",'2) Raw'!Q103) ->  | Z115: =IF('2) Raw'!$E103="","",'2) Raw'!S103) ->  | AA115: =IF('2) Raw'!$E103="","",'2) Raw'!T103) ->  | AD115: =IF('2) Raw'!$E103="","",'2) Raw'!U103) ->  | AI115: =MIN(IF(AF115:AH115=0,"",AF115:AH115)) -> 0 | AK115: =IF(E115="","",VLOOKUP(A115,List!$A$2:$D$186,2,FALSE)) ->  | AL115: =IF(E115="","",VLOOKUP(VALUE(B115),List!$C$2:$D$186,2,FALSE)) ->  | AO115: =IF('2) Raw'!$X103="","",'2) Raw'!X103) -> 
C116: =IF('2) Raw'!E104="","",'2) Raw'!E104) ->  | D116: =IF('2) Raw'!$E104="","",PROPER('2) Raw'!F104)) ->  | E116: =IF('2) Raw'!$E104="","",'2) Raw'!G104) ->  | F116: =IF('2) Raw'!$E104="","",'2) Raw'!H104) ->  | H116: =IF('2) Raw'!$E104="","",'2) Raw'!I104) ->  | I116: =IF('2) Raw'!$E104="","",'2) Raw'!J104) ->  | N116: =IF('2) Raw'!$E104="","",'2) Raw'!K104) ->  | O116: =IF('2) Raw'!$E104="","",'2) Raw'!L104) ->  | R116: =IF('2) Raw'!$E104="","",'2) Raw'!M104) ->  | T116: =IF('2) Raw'!$E104="","",'2) Raw'!O104) ->  | U116: =IF('2) Raw'!$E104="","",'2) Raw'!P104) ->  | X116: =IF('2) Raw'!$E104="","",'2) Raw'!Q104) ->  | Z116: =IF('2) Raw'!$E104="","",'2) Raw'!S104) ->  | AA116: =IF('2) Raw'!$E104="","",'2) Raw'!T104) ->  | AD116: =IF('2) Raw'!$E104="","",'2) Raw'!U104) ->  | AI116: =MIN(IF(AF116:AH116=0,"",AF116:AH116)) -> 0 | AK116: =IF(E116="","",VLOOKUP(A116,List!$A$2:$D$186,2,FALSE)) ->  | AL116: =IF(E116="","",VLOOKUP(VALUE(B116),List!$C$2:$D$186,2,FALSE)) ->  | AO116: =IF('2) Raw'!$X104="","",'2) Raw'!X104) -> 
C117: =IF('2) Raw'!E105="","",'2) Raw'!E105) ->  | D117: =IF('2) Raw'!$E105="","",PROPER('2) Raw'!F105)) ->  | E117: =IF('2) Raw'!$E105="","",'2) Raw'!G105) ->  | F117: =IF('2) Raw'!$E105="","",'2) Raw'!H105) ->  | H117: =IF('2) Raw'!$E105="","",'2) Raw'!I105) ->  | I117: =IF('2) Raw'!$E105="","",'2) Raw'!J105) ->  | N117: =IF('2) Raw'!$E105="","",'2) Raw'!K105) ->  | O117: =IF('2) Raw'!$E105="","",'2) Raw'!L105) ->  | R117: =IF('2) Raw'!$E105="","",'2) Raw'!M105) ->  | T117: =IF('2) Raw'!$E105="","",'2) Raw'!O105) ->  | U117: =IF('2) Raw'!$E105="","",'2) Raw'!P105) ->  | X117: =IF('2) Raw'!$E105="","",'2) Raw'!Q105) ->  | Z117: =IF('2) Raw'!$E105="","",'2) Raw'!S105) ->  | AA117: =IF('2) Raw'!$E105="","",'2) Raw'!T105) ->  | AD117: =IF('2) Raw'!$E105="","",'2) Raw'!U105) ->  | AI117: =MIN(IF(AF117:AH117=0,"",AF117:AH117)) -> 0 | AK117: =IF(E117="","",VLOOKUP(A117,List!$A$2:$D$186,2,FALSE)) ->  | AL117: =IF(E117="","",VLOOKUP(VALUE(B117),List!$C$2:$D$186,2,FALSE)) ->  | AO117: =IF('2) Raw'!$X105="","",'2) Raw'!X105) -> 
C118: =IF('2) Raw'!E106="","",'2) Raw'!E106) ->  | D118: =IF('2) Raw'!$E106="","",PROPER('2) Raw'!F106)) ->  | E118: =IF('2) Raw'!$E106="","",'2) Raw'!G106) ->  | F118: =IF('2) Raw'!$E106="","",'2) Raw'!H106) ->  | H118: =IF('2) Raw'!$E106="","",'2) Raw'!I106) ->  | I118: =IF('2) Raw'!$E106="","",'2) Raw'!J106) ->  | N118: =IF('2) Raw'!$E106="","",'2) Raw'!K106) ->  | O118: =IF('2) Raw'!$E106="","",'2) Raw'!L106) ->  | R118: =IF('2) Raw'!$E106="","",'2) Raw'!M106) ->  | T118: =IF('2) Raw'!$E106="","",'2) Raw'!O106) ->  | U118: =IF('2) Raw'!$E106="","",'2) Raw'!P106) ->  | X118: =IF('2) Raw'!$E106="","",'2) Raw'!Q106) ->  | Z118: =IF('2) Raw'!$E106="","",'2) Raw'!S106) ->  | AA118: =IF('2) Raw'!$E106="","",'2) Raw'!T106) ->  | AD118: =IF('2) Raw'!$E106="","",'2) Raw'!U106) ->  | AI118: =MIN(IF(AF118:AH118=0,"",AF118:AH118)) -> 0 | AK118: =IF(E118="","",VLOOKUP(A118,List!$A$2:$D$186,2,FALSE)) ->  | AL118: =IF(E118="","",VLOOKUP(VALUE(B118),List!$C$2:$D$186,2,FALSE)) ->  | AO118: =IF('2) Raw'!$X106="","",'2) Raw'!X106) -> 
C119: =IF('2) Raw'!E107="","",'2) Raw'!E107) ->  | D119: =IF('2) Raw'!$E107="","",PROPER('2) Raw'!F107)) ->  | E119: =IF('2) Raw'!$E107="","",'2) Raw'!G107) ->  | F119: =IF('2) Raw'!$E107="","",'2) Raw'!H107) ->  | H119: =IF('2) Raw'!$E107="","",'2) Raw'!I107) ->  | I119: =IF('2) Raw'!$E107="","",'2) Raw'!J107) ->  | N119: =IF('2) Raw'!$E107="","",'2) Raw'!K107) ->  | O119: =IF('2) Raw'!$E107="","",'2) Raw'!L107) ->  | R119: =IF('2) Raw'!$E107="","",'2) Raw'!M107) ->  | T119: =IF('2) Raw'!$E107="","",'2) Raw'!O107) ->  | U119: =IF('2) Raw'!$E107="","",'2) Raw'!P107) ->  | X119: =IF('2) Raw'!$E107="","",'2) Raw'!Q107) ->  | Z119: =IF('2) Raw'!$E107="","",'2) Raw'!S107) ->  | AA119: =IF('2) Raw'!$E107="","",'2) Raw'!T107) ->  | AD119: =IF('2) Raw'!$E107="","",'2) Raw'!U107) ->  | AI119: =MIN(IF(AF119:AH119=0,"",AF119:AH119)) -> 0 | AK119: =IF(E119="","",VLOOKUP(A119,List!$A$2:$D$186,2,FALSE)) ->  | AL119: =IF(E119="","",VLOOKUP(VALUE(B119),List!$C$2:$D$186,2,FALSE)) ->  | AO119: =IF('2) Raw'!$X107="","",'2) Raw'!X107) -> 
C120: =IF('2) Raw'!E108="","",'2) Raw'!E108) ->  | D120: =IF('2) Raw'!$E108="","",PROPER('2) Raw'!F108)) ->  | E120: =IF('2) Raw'!$E108="","",'2) Raw'!G108) ->  | F120: =IF('2) Raw'!$E108="","",'2) Raw'!H108) ->  | H120: =IF('2) Raw'!$E108="","",'2) Raw'!I108) ->  | I120: =IF('2) Raw'!$E108="","",'2) Raw'!J108) ->  | K120: =IF(J120="","",RANK(J120,$J$14:$J$999)) ->  | N120: =IF('2) Raw'!$E108="","",'2) Raw'!K108) ->  | O120: =IF('2) Raw'!$E108="","",'2) Raw'!L108) ->  | Q120: =IF(P120="","",RANK(P120,$P$14:$P$999)) ->  | R120: =IF('2) Raw'!$E109="","",'2) Raw'!M109) ->  | T120: =IF('2) Raw'!$E108="","",'2) Raw'!O108) ->  | U120: =IF('2) Raw'!$E108="","",'2) Raw'!P108) ->  | V120: =IF(OR(U120="",$U$2=0),"",U120/$U$2) ->  | W120: =IF(V120="","",RANK(V120,$V$14:$V$999)) ->  | X120: =IF('2) Raw'!$E109="","",'2) Raw'!Q109) ->  | Z120: =IF('2) Raw'!$E108="","",'2) Raw'!S108) ->  | AA120: =IF('2) Raw'!$E108="","",'2) Raw'!T108) ->  | AB120: =IF(OR(AA120="",$AA$2=0),"",AA120/$AA$2) ->  | AC120: =IF(AB120="","",RANK(AB120,$AB$14:$AB$999)) ->  | AD120: =IF('2) Raw'!$E109="","",'2) Raw'!U109) ->  | AE120: =IF(E120="","",MAX(O120,U120,AA120)) ->  | AF120: =O120 ->  | AG120: =U120 ->  | AH120: =AA120 ->  | AI120: =MIN(IF(AF120:AH120=0,"",AF120:AH120)) -> 0 | AK120: =IF(E120="","",VLOOKUP(A120,List!$A$2:$D$186,2,FALSE)) ->  | AL120: =IF(E120="","",VLOOKUP(VALUE(B120),List!$C$2:$D$186,2,FALSE)) ->  | AO120: =IF('2) Raw'!$X108="","",'2) Raw'!X108) -> 
C121: =IF('2) Raw'!E109="","",'2) Raw'!E109) ->  | D121: =IF('2) Raw'!$E109="","",PROPER('2) Raw'!F109)) ->  | E121: =IF('2) Raw'!$E109="","",'2) Raw'!G109) ->  | F121: =IF('2) Raw'!$E109="","",'2) Raw'!H109) ->  | H121: =IF('2) Raw'!$E109="","",'2) Raw'!I109) ->  | I121: =IF('2) Raw'!$E109="","",'2) Raw'!J109) ->  | N121: =IF('2) Raw'!$E109="","",'2) Raw'!K109) ->  | O121: =IF('2) Raw'!$E109="","",'2) Raw'!L109) ->  | R121: =IF('2) Raw'!$E110="","",'2) Raw'!M110) ->  | T121: =IF('2) Raw'!$E109="","",'2) Raw'!O109) ->  | U121: =IF('2) Raw'!$E109="","",'2) Raw'!P109) ->  | X121: =IF('2) Raw'!$E110="","",'2) Raw'!Q110) ->  | Z121: =IF('2) Raw'!$E109="","",'2) Raw'!S109) ->  | AA121: =IF('2) Raw'!$E109="","",'2) Raw'!T109) ->  | AD121: =IF('2) Raw'!$E110="","",'2) Raw'!U110) ->  | AI121: =MIN(IF(AF121:AH121=0,"",AF121:AH121)) -> 0 | AK121: =IF(E121="","",VLOOKUP(A121,List!$A$2:$D$186,2,FALSE)) ->  | AL121: =IF(E121="","",VLOOKUP(VALUE(B121),List!$C$2:$D$186,2,FALSE)) ->  | AO121: =IF('2) Raw'!$X109="","",'2) Raw'!X109) -> 
A122: =IF(C122="","",LEFT(C122,1)*100) ->  | B122: =IF(C122="","",LEFT(C122,3)) ->  | C122: =IF('2) Raw'!E110="","",'2) Raw'!E110) ->  | D122: =IF('2) Raw'!$E110="","",PROPER('2) Raw'!F110)) ->  | E122: =IF('2) Raw'!$E110="","",'2) Raw'!G110) ->  | F122: =IF('2) Raw'!$E110="","",'2) Raw'!H110) ->  | H122: =IF('2) Raw'!$E110="","",'2) Raw'!I110) ->  | I122: =IF('2) Raw'!$E110="","",'2) Raw'!J110) ->  | K122: =IF(J122="","",RANK(J122,$J$14:$J$999)) ->  | N122: =IF('2) Raw'!$E110="","",'2) Raw'!K110) ->  | O122: =IF('2) Raw'!$E110="","",'2) Raw'!L110) ->  | Q122: =IF(P122="","",RANK(P122,$P$14:$P$999)) ->  | R122: =IF('2) Raw'!$E111="","",'2) Raw'!M111) ->  | T122: =IF('2) Raw'!$E110="","",'2) Raw'!O110) ->  | U122: =IF('2) Raw'!$E110="","",'2) Raw'!P110) ->  | V122: =IF(OR(U122="",$U$2=0),"",U122/$U$2) ->  | W122: =IF(V122="","",RANK(V122,$V$14:$V$999)) ->  | X122: =IF('2) Raw'!$E111="","",'2) Raw'!Q111) ->  | Z122: =IF('2) Raw'!$E110="","",'2) Raw'!S110) ->  | AA122: =IF('2) Raw'!$E110="","",'2) Raw'!T110) ->  | AB122: =IF(OR(AA122="",$AA$2=0),"",AA122/$AA$2) ->  | AC122: =IF(AB122="","",RANK(AB122,$AB$14:$AB$999)) ->  | AD122: =IF('2) Raw'!$E111="","",'2) Raw'!U111) ->  | AE122: =IF(E122="","",MAX(O122,U122,AA122)) ->  | AF122: =O122 ->  | AG122: =U122 ->  | AH122: =AA122 ->  | AI122: =MIN(IF(AF122:AH122=0,"",AF122:AH122)) -> 0 | AK122: =IF(E122="","",VLOOKUP(A122,List!$A$2:$D$186,2,FALSE)) ->  | AL122: =IF(E122="","",VLOOKUP(VALUE(B122),List!$C$2:$D$186,2,FALSE)) ->  | AO122: =IF('2) Raw'!$X110="","",'2) Raw'!X110) -> 
C123: =IF('2) Raw'!E111="","",'2) Raw'!E111) ->  | D123: =IF('2) Raw'!$E111="","",PROPER('2) Raw'!F111)) ->  | E123: =IF('2) Raw'!$E111="","",'2) Raw'!G111) ->  | F123: =IF('2) Raw'!$E111="","",'2) Raw'!H111) ->  | H123: =IF('2) Raw'!$E111="","",'2) Raw'!I111) ->  | I123: =IF('2) Raw'!$E111="","",'2) Raw'!J111) ->  | N123: =IF('2) Raw'!$E111="","",'2) Raw'!K111) ->  | O123: =IF('2) Raw'!$E111="","",'2) Raw'!L111) ->  | R123: =IF('2) Raw'!$E112="","",'2) Raw'!M112) ->  | T123: =IF('2) Raw'!$E111="","",'2) Raw'!O111) ->  | U123: =IF('2) Raw'!$E111="","",'2) Raw'!P111) ->  | X123: =IF('2) Raw'!$E112="","",'2) Raw'!Q112) ->  | Z123: =IF('2) Raw'!$E111="","",'2) Raw'!S111) ->  | AA123: =IF('2) Raw'!$E111="","",'2) Raw'!T111) ->  | AD123: =IF('2) Raw'!$E112="","",'2) Raw'!U112) ->  | AI123: =MIN(IF(AF123:AH123=0,"",AF123:AH123)) -> 0 | AK123: =IF(E123="","",VLOOKUP(A123,List!$A$2:$D$186,2,FALSE)) ->  | AL123: =IF(E123="","",VLOOKUP(VALUE(B123),List!$C$2:$D$186,2,FALSE)) ->  | AO123: =IF('2) Raw'!$X111="","",'2) Raw'!X111) -> 
C124: =IF('2) Raw'!E112="","",'2) Raw'!E112) ->  | D124: =IF('2) Raw'!$E112="","",PROPER('2) Raw'!F112)) ->  | E124: =IF('2) Raw'!$E112="","",'2) Raw'!G112) ->  | F124: =IF('2) Raw'!$E112="","",'2) Raw'!H112) ->  | H124: =IF('2) Raw'!$E112="","",'2) Raw'!I112) ->  | I124: =IF('2) Raw'!$E112="","",'2) Raw'!J112) ->  | N124: =IF('2) Raw'!$E112="","",'2) Raw'!K112) ->  | O124: =IF('2) Raw'!$E112="","",'2) Raw'!L112) ->  | R124: =IF('2) Raw'!$E113="","",'2) Raw'!M113) ->  | T124: =IF('2) Raw'!$E112="","",'2) Raw'!O112) ->  | U124: =IF('2) Raw'!$E112="","",'2) Raw'!P112) ->  | X124: =IF('2) Raw'!$E113="","",'2) Raw'!Q113) ->  | Z124: =IF('2) Raw'!$E112="","",'2) Raw'!S112) ->  | AA124: =IF('2) Raw'!$E112="","",'2) Raw'!T112) ->  | AD124: =IF('2) Raw'!$E113="","",'2) Raw'!U113) ->  | AI124: =MIN(IF(AF124:AH124=0,"",AF124:AH124)) -> 0 | AK124: =IF(E124="","",VLOOKUP(A124,List!$A$2:$D$186,2,FALSE)) ->  | AL124: =IF(E124="","",VLOOKUP(VALUE(B124),List!$C$2:$D$186,2,FALSE)) ->  | AO124: =IF('2) Raw'!$X112="","",'2) Raw'!X112) -> 
C125: =IF('2) Raw'!E113="","",'2) Raw'!E113) ->  | D125: =IF('2) Raw'!$E113="","",PROPER('2) Raw'!F113)) ->  | E125: =IF('2) Raw'!$E113="","",'2) Raw'!G113) ->  | F125: =IF('2) Raw'!$E113="","",'2) Raw'!H113) ->  | H125: =IF('2) Raw'!$E113="","",'2) Raw'!I113) ->  | I125: =IF('2) Raw'!$E113="","",'2) Raw'!J113) ->  | N125: =IF('2) Raw'!$E113="","",'2) Raw'!K113) ->  | O125: =IF('2) Raw'!$E113="","",'2) Raw'!L113) ->  | R125: =IF('2) Raw'!$E114="","",'2) Raw'!M114) ->  | T125: =IF('2) Raw'!$E113="","",'2) Raw'!O113) ->  | U125: =IF('2) Raw'!$E113="","",'2) Raw'!P113) ->  | X125: =IF('2) Raw'!$E114="","",'2) Raw'!Q114) ->  | Z125: =IF('2) Raw'!$E113="","",'2) Raw'!S113) ->  | AA125: =IF('2) Raw'!$E113="","",'2) Raw'!T113) ->  | AD125: =IF('2) Raw'!$E114="","",'2) Raw'!U114) ->  | AI125: =MIN(IF(AF125:AH125=0,"",AF125:AH125)) -> 0 | AK125: =IF(E125="","",VLOOKUP(A125,List!$A$2:$D$186,2,FALSE)) ->  | AL125: =IF(E125="","",VLOOKUP(VALUE(B125),List!$C$2:$D$186,2,FALSE)) ->  | AO125: =IF('2) Raw'!$X113="","",'2) Raw'!X113) -> 
C126: =IF('2) Raw'!E114="","",'2) Raw'!E114) ->  | D126: =IF('2) Raw'!$E114="","",PROPER('2) Raw'!F114)) ->  | E126: =IF('2) Raw'!$E114="","",'2) Raw'!G114) ->  | F126: =IF('2) Raw'!$E114="","",'2) Raw'!H114) ->  | H126: =IF('2) Raw'!$E114="","",'2) Raw'!I114) ->  | I126: =IF('2) Raw'!$E114="","",'2) Raw'!J114) ->  | N126: =IF('2) Raw'!$E114="","",'2) Raw'!K114) ->  | O126: =IF('2) Raw'!$E114="","",'2) Raw'!L114) ->  | R126: =IF('2) Raw'!$E115="","",'2) Raw'!M115) ->  | T126: =IF('2) Raw'!$E114="","",'2) Raw'!O114) ->  | U126: =IF('2) Raw'!$E114="","",'2) Raw'!P114) ->  | X126: =IF('2) Raw'!$E115="","",'2) Raw'!Q115) ->  | Z126: =IF('2) Raw'!$E114="","",'2) Raw'!S114) ->  | AA126: =IF('2) Raw'!$E114="","",'2) Raw'!T114) ->  | AD126: =IF('2) Raw'!$E115="","",'2) Raw'!U115) ->  | AI126: =MIN(IF(AF126:AH126=0,"",AF126:AH126)) -> 0 | AK126: =IF(E126="","",VLOOKUP(A126,List!$A$2:$D$186,2,FALSE)) ->  | AL126: =IF(E126="","",VLOOKUP(VALUE(B126),List!$C$2:$D$186,2,FALSE)) ->  | AO126: =IF('2) Raw'!$X114="","",'2) Raw'!X114) -> 
C127: =IF('2) Raw'!E115="","",'2) Raw'!E115) ->  | D127: =IF('2) Raw'!$E115="","",PROPER('2) Raw'!F115)) ->  | E127: =IF('2) Raw'!$E115="","",'2) Raw'!G115) ->  | F127: =IF('2) Raw'!$E115="","",'2) Raw'!H115) ->  | H127: =IF('2) Raw'!$E115="","",'2) Raw'!I115) ->  | I127: =IF('2) Raw'!$E115="","",'2) Raw'!J115) ->  | N127: =IF('2) Raw'!$E115="","",'2) Raw'!K115) ->  | O127: =IF('2) Raw'!$E115="","",'2) Raw'!L115) ->  | R127: =IF('2) Raw'!$E116="","",'2) Raw'!M116) ->  | T127: =IF('2) Raw'!$E115="","",'2) Raw'!O115) ->  | U127: =IF('2) Raw'!$E115="","",'2) Raw'!P115) ->  | X127: =IF('2) Raw'!$E116="","",'2) Raw'!Q116) ->  | Z127: =IF('2) Raw'!$E115="","",'2) Raw'!S115) ->  | AA127: =IF('2) Raw'!$E115="","",'2) Raw'!T115) ->  | AD127: =IF('2) Raw'!$E116="","",'2) Raw'!U116) ->  | AI127: =MIN(IF(AF127:AH127=0,"",AF127:AH127)) -> 0 | AK127: =IF(E127="","",VLOOKUP(A127,List!$A$2:$D$186,2,FALSE)) ->  | AL127: =IF(E127="","",VLOOKUP(VALUE(B127),List!$C$2:$D$186,2,FALSE)) ->  | AO127: =IF('2) Raw'!$X115="","",'2) Raw'!X115) -> 
C128: =IF('2) Raw'!E116="","",'2) Raw'!E116) ->  | D128: =IF('2) Raw'!$E116="","",PROPER('2) Raw'!F116)) ->  | E128: =IF('2) Raw'!$E116="","",'2) Raw'!G116) ->  | F128: =IF('2) Raw'!$E116="","",'2) Raw'!H116) ->  | H128: =IF('2) Raw'!$E116="","",'2) Raw'!I116) ->  | I128: =IF('2) Raw'!$E116="","",'2) Raw'!J116) ->  | N128: =IF('2) Raw'!$E116="","",'2) Raw'!K116) ->  | O128: =IF('2) Raw'!$E116="","",'2) Raw'!L116) ->  | R128: =IF('2) Raw'!$E117="","",'2) Raw'!M117) ->  | T128: =IF('2) Raw'!$E116="","",'2) Raw'!O116) ->  | U128: =IF('2) Raw'!$E116="","",'2) Raw'!P116) ->  | X128: =IF('2) Raw'!$E117="","",'2) Raw'!Q117) ->  | Z128: =IF('2) Raw'!$E116="","",'2) Raw'!S116) ->  | AA128: =IF('2) Raw'!$E116="","",'2) Raw'!T116) ->  | AD128: =IF('2) Raw'!$E117="","",'2) Raw'!U117) ->  | AI128: =MIN(IF(AF128:AH128=0,"",AF128:AH128)) -> 0 | AK128: =IF(E128="","",VLOOKUP(A128,List!$A$2:$D$186,2,FALSE)) ->  | AL128: =IF(E128="","",VLOOKUP(VALUE(B128),List!$C$2:$D$186,2,FALSE)) ->  | AO128: =IF('2) Raw'!$X116="","",'2) Raw'!X116) -> 
C129: =IF('2) Raw'!E117="","",'2) Raw'!E117) ->  | D129: =IF('2) Raw'!$E117="","",PROPER('2) Raw'!F117)) ->  | E129: =IF('2) Raw'!$E117="","",'2) Raw'!G117) ->  | F129: =IF('2) Raw'!$E117="","",'2) Raw'!H117) ->  | H129: =IF('2) Raw'!$E117="","",'2) Raw'!I117) ->  | I129: =IF('2) Raw'!$E117="","",'2) Raw'!J117) ->  | N129: =IF('2) Raw'!$E117="","",'2) Raw'!K117) ->  | O129: =IF('2) Raw'!$E117="","",'2) Raw'!L117) ->  | R129: =IF('2) Raw'!$E118="","",'2) Raw'!M118) ->  | T129: =IF('2) Raw'!$E117="","",'2) Raw'!O117) ->  | U129: =IF('2) Raw'!$E117="","",'2) Raw'!P117) ->  | X129: =IF('2) Raw'!$E118="","",'2) Raw'!Q118) ->  | Z129: =IF('2) Raw'!$E117="","",'2) Raw'!S117) ->  | AA129: =IF('2) Raw'!$E117="","",'2) Raw'!T117) ->  | AD129: =IF('2) Raw'!$E118="","",'2) Raw'!U118) ->  | AI129: =MIN(IF(AF129:AH129=0,"",AF129:AH129)) -> 0 | AK129: =IF(E129="","",VLOOKUP(A129,List!$A$2:$D$186,2,FALSE)) ->  | AL129: =IF(E129="","",VLOOKUP(VALUE(B129),List!$C$2:$D$186,2,FALSE)) ->  | AO129: =IF('2) Raw'!$X117="","",'2) Raw'!X117) -> 
C130: =IF('2) Raw'!E118="","",'2) Raw'!E118) ->  | D130: =IF('2) Raw'!$E118="","",PROPER('2) Raw'!F118)) ->  | E130: =IF('2) Raw'!$E118="","",'2) Raw'!G118) ->  | F130: =IF('2) Raw'!$E118="","",'2) Raw'!H118) ->  | H130: =IF('2) Raw'!$E118="","",'2) Raw'!I118) ->  | I130: =IF('2) Raw'!$E118="","",'2) Raw'!J118) ->  | N130: =IF('2) Raw'!$E118="","",'2) Raw'!K118) ->  | O130: =IF('2) Raw'!$E118="","",'2) Raw'!L118) ->  | R130: =IF('2) Raw'!$E119="","",'2) Raw'!M119) ->  | T130: =IF('2) Raw'!$E118="","",'2) Raw'!O118) ->  | U130: =IF('2) Raw'!$E118="","",'2) Raw'!P118) ->  | X130: =IF('2) Raw'!$E119="","",'2) Raw'!Q119) ->  | Z130: =IF('2) Raw'!$E118="","",'2) Raw'!S118) ->  | AA130: =IF('2) Raw'!$E118="","",'2) Raw'!T118) ->  | AD130: =IF('2) Raw'!$E119="","",'2) Raw'!U119) ->  | AI130: =MIN(IF(AF130:AH130=0,"",AF130:AH130)) -> 0 | AK130: =IF(E130="","",VLOOKUP(A130,List!$A$2:$D$186,2,FALSE)) ->  | AL130: =IF(E130="","",VLOOKUP(VALUE(B130),List!$C$2:$D$186,2,FALSE)) ->  | AO130: =IF('2) Raw'!$X118="","",'2) Raw'!X118) -> 
C131: =IF('2) Raw'!E119="","",'2) Raw'!E119) ->  | D131: =IF('2) Raw'!$E119="","",PROPER('2) Raw'!F119)) ->  | E131: =IF('2) Raw'!$E119="","",'2) Raw'!G119) ->  | F131: =IF('2) Raw'!$E119="","",'2) Raw'!H119) ->  | H131: =IF('2) Raw'!$E119="","",'2) Raw'!I119) ->  | I131: =IF('2) Raw'!$E119="","",'2) Raw'!J119) ->  | N131: =IF('2) Raw'!$E119="","",'2) Raw'!K119) ->  | O131: =IF('2) Raw'!$E119="","",'2) Raw'!L119) ->  | R131: =IF('2) Raw'!$E120="","",'2) Raw'!M120) ->  | T131: =IF('2) Raw'!$E119="","",'2) Raw'!O119) ->  | U131: =IF('2) Raw'!$E119="","",'2) Raw'!P119) ->  | X131: =IF('2) Raw'!$E120="","",'2) Raw'!Q120) ->  | Z131: =IF('2) Raw'!$E119="","",'2) Raw'!S119) ->  | AA131: =IF('2) Raw'!$E119="","",'2) Raw'!T119) ->  | AD131: =IF('2) Raw'!$E120="","",'2) Raw'!U120) ->  | AI131: =MIN(IF(AF131:AH131=0,"",AF131:AH131)) -> 0 | AK131: =IF(E131="","",VLOOKUP(A131,List!$A$2:$D$186,2,FALSE)) ->  | AL131: =IF(E131="","",VLOOKUP(VALUE(B131),List!$C$2:$D$186,2,FALSE)) ->  | AO131: =IF('2) Raw'!$X119="","",'2) Raw'!X119) -> 
C132: =IF('2) Raw'!E120="","",'2) Raw'!E120) ->  | D132: =IF('2) Raw'!$E120="","",PROPER('2) Raw'!F120)) ->  | E132: =IF('2) Raw'!$E120="","",'2) Raw'!G120) ->  | F132: =IF('2) Raw'!$E120="","",'2) Raw'!H120) ->  | H132: =IF('2) Raw'!$E120="","",'2) Raw'!I120) ->  | I132: =IF('2) Raw'!$E120="","",'2) Raw'!J120) ->  | N132: =IF('2) Raw'!$E120="","",'2) Raw'!K120) ->  | O132: =IF('2) Raw'!$E120="","",'2) Raw'!L120) ->  | R132: =IF('2) Raw'!$E121="","",'2) Raw'!M121) ->  | T132: =IF('2) Raw'!$E120="","",'2) Raw'!O120) ->  | U132: =IF('2) Raw'!$E120="","",'2) Raw'!P120) ->  | X132: =IF('2) Raw'!$E121="","",'2) Raw'!Q121) ->  | Z132: =IF('2) Raw'!$E120="","",'2) Raw'!S120) ->  | AA132: =IF('2) Raw'!$E120="","",'2) Raw'!T120) ->  | AD132: =IF('2) Raw'!$E121="","",'2) Raw'!U121) ->  | AI132: =MIN(IF(AF132:AH132=0,"",AF132:AH132)) -> 0 | AK132: =IF(E132="","",VLOOKUP(A132,List!$A$2:$D$186,2,FALSE)) ->  | AL132: =IF(E132="","",VLOOKUP(VALUE(B132),List!$C$2:$D$186,2,FALSE)) ->  | AO132: =IF('2) Raw'!$X120="","",'2) Raw'!X120) -> 
C133: =IF('2) Raw'!E121="","",'2) Raw'!E121) ->  | D133: =IF('2) Raw'!$E121="","",PROPER('2) Raw'!F121)) ->  | E133: =IF('2) Raw'!$E121="","",'2) Raw'!G121) ->  | F133: =IF('2) Raw'!$E121="","",'2) Raw'!H121) ->  | H133: =IF('2) Raw'!$E121="","",'2) Raw'!I121) ->  | I133: =IF('2) Raw'!$E121="","",'2) Raw'!J121) ->  | N133: =IF('2) Raw'!$E121="","",'2) Raw'!K121) ->  | O133: =IF('2) Raw'!$E121="","",'2) Raw'!L121) ->  | R133: =IF('2) Raw'!$E122="","",'2) Raw'!M122) ->  | T133: =IF('2) Raw'!$E121="","",'2) Raw'!O121) ->  | U133: =IF('2) Raw'!$E121="","",'2) Raw'!P121) ->  | X133: =IF('2) Raw'!$E122="","",'2) Raw'!Q122) ->  | Z133: =IF('2) Raw'!$E121="","",'2) Raw'!S121) ->  | AA133: =IF('2) Raw'!$E121="","",'2) Raw'!T121) ->  | AD133: =IF('2) Raw'!$E122="","",'2) Raw'!U122) ->  | AI133: =MIN(IF(AF133:AH133=0,"",AF133:AH133)) -> 0 | AK133: =IF(E133="","",VLOOKUP(A133,List!$A$2:$D$186,2,FALSE)) ->  | AL133: =IF(E133="","",VLOOKUP(VALUE(B133),List!$C$2:$D$186,2,FALSE)) ->  | AO133: =IF('2) Raw'!$X121="","",'2) Raw'!X121) -> 
C134: =IF('2) Raw'!E122="","",'2) Raw'!E122) ->  | D134: =IF('2) Raw'!$E122="","",PROPER('2) Raw'!F122)) ->  | E134: =IF('2) Raw'!$E122="","",'2) Raw'!G122) ->  | F134: =IF('2) Raw'!$E122="","",'2) Raw'!H122) ->  | H134: =IF('2) Raw'!$E122="","",'2) Raw'!I122) ->  | I134: =IF('2) Raw'!$E122="","",'2) Raw'!J122) ->  | N134: =IF('2) Raw'!$E122="","",'2) Raw'!K122) ->  | O134: =IF('2) Raw'!$E122="","",'2) Raw'!L122) ->  | R134: =IF('2) Raw'!$E123="","",'2) Raw'!M123) ->  | T134: =IF('2) Raw'!$E122="","",'2) Raw'!O122) ->  | U134: =IF('2) Raw'!$E122="","",'2) Raw'!P122) ->  | X134: =IF('2) Raw'!$E123="","",'2) Raw'!Q123) ->  | Z134: =IF('2) Raw'!$E122="","",'2) Raw'!S122) ->  | AA134: =IF('2) Raw'!$E122="","",'2) Raw'!T122) ->  | AD134: =IF('2) Raw'!$E123="","",'2) Raw'!U123) ->  | AI134: =MIN(IF(AF134:AH134=0,"",AF134:AH134)) -> 0 | AK134: =IF(E134="","",VLOOKUP(A134,List!$A$2:$D$186,2,FALSE)) ->  | AL134: =IF(E134="","",VLOOKUP(VALUE(B134),List!$C$2:$D$186,2,FALSE)) ->  | AO134: =IF('2) Raw'!$X122="","",'2) Raw'!X122) -> 
C135: =IF('2) Raw'!E123="","",'2) Raw'!E123) ->  | D135: =IF('2) Raw'!$E123="","",PROPER('2) Raw'!F123)) ->  | E135: =IF('2) Raw'!$E123="","",'2) Raw'!G123) ->  | F135: =IF('2) Raw'!$E123="","",'2) Raw'!H123) ->  | H135: =IF('2) Raw'!$E123="","",'2) Raw'!I123) ->  | I135: =IF('2) Raw'!$E123="","",'2) Raw'!J123) ->  | N135: =IF('2) Raw'!$E123="","",'2) Raw'!K123) ->  | O135: =IF('2) Raw'!$E123="","",'2) Raw'!L123) ->  | R135: =IF('2) Raw'!$E124="","",'2) Raw'!M124) ->  | T135: =IF('2) Raw'!$E123="","",'2) Raw'!O123) ->  | U135: =IF('2) Raw'!$E123="","",'2) Raw'!P123) ->  | X135: =IF('2) Raw'!$E124="","",'2) Raw'!Q124) ->  | Z135: =IF('2) Raw'!$E123="","",'2) Raw'!S123) ->  | AA135: =IF('2) Raw'!$E123="","",'2) Raw'!T123) ->  | AD135: =IF('2) Raw'!$E124="","",'2) Raw'!U124) ->  | AI135: =MIN(IF(AF135:AH135=0,"",AF135:AH135)) -> 0 | AK135: =IF(E135="","",VLOOKUP(A135,List!$A$2:$D$186,2,FALSE)) ->  | AL135: =IF(E135="","",VLOOKUP(VALUE(B135),List!$C$2:$D$186,2,FALSE)) ->  | AO135: =IF('2) Raw'!$X123="","",'2) Raw'!X123) -> 
C136: =IF('2) Raw'!E124="","",'2) Raw'!E124) ->  | D136: =IF('2) Raw'!$E124="","",PROPER('2) Raw'!F124)) ->  | E136: =IF('2) Raw'!$E124="","",'2) Raw'!G124) ->  | F136: =IF('2) Raw'!$E124="","",'2) Raw'!H124) ->  | H136: =IF('2) Raw'!$E124="","",'2) Raw'!I124) ->  | I136: =IF('2) Raw'!$E124="","",'2) Raw'!J124) ->  | N136: =IF('2) Raw'!$E124="","",'2) Raw'!K124) ->  | O136: =IF('2) Raw'!$E124="","",'2) Raw'!L124) ->  | R136: =IF('2) Raw'!$E125="","",'2) Raw'!M125) ->  | T136: =IF('2) Raw'!$E124="","",'2) Raw'!O124) ->  | U136: =IF('2) Raw'!$E124="","",'2) Raw'!P124) ->  | X136: =IF('2) Raw'!$E125="","",'2) Raw'!Q125) ->  | Z136: =IF('2) Raw'!$E124="","",'2) Raw'!S124) ->  | AA136: =IF('2) Raw'!$E124="","",'2) Raw'!T124) ->  | AD136: =IF('2) Raw'!$E125="","",'2) Raw'!U125) ->  | AI136: =MIN(IF(AF136:AH136=0,"",AF136:AH136)) -> 0 | AK136: =IF(E136="","",VLOOKUP(A136,List!$A$2:$D$186,2,FALSE)) ->  | AL136: =IF(E136="","",VLOOKUP(VALUE(B136),List!$C$2:$D$186,2,FALSE)) ->  | AO136: =IF('2) Raw'!$X124="","",'2) Raw'!X124) -> 
C137: =IF('2) Raw'!E125="","",'2) Raw'!E125) ->  | D137: =IF('2) Raw'!$E125="","",PROPER('2) Raw'!F125)) ->  | E137: =IF('2) Raw'!$E125="","",'2) Raw'!G125) ->  | F137: =IF('2) Raw'!$E125="","",'2) Raw'!H125) ->  | H137: =IF('2) Raw'!$E125="","",'2) Raw'!I125) ->  | I137: =IF('2) Raw'!$E125="","",'2) Raw'!J125) ->  | N137: =IF('2) Raw'!$E125="","",'2) Raw'!K125) ->  | O137: =IF('2) Raw'!$E125="","",'2) Raw'!L125) ->  | R137: =IF('2) Raw'!$E126="","",'2) Raw'!M126) ->  | T137: =IF('2) Raw'!$E125="","",'2) Raw'!O125) ->  | U137: =IF('2) Raw'!$E125="","",'2) Raw'!P125) ->  | X137: =IF('2) Raw'!$E126="","",'2) Raw'!Q126) ->  | Z137: =IF('2) Raw'!$E125="","",'2) Raw'!S125) ->  | AA137: =IF('2) Raw'!$E125="","",'2) Raw'!T125) ->  | AD137: =IF('2) Raw'!$E126="","",'2) Raw'!U126) ->  | AI137: =MIN(IF(AF137:AH137=0,"",AF137:AH137)) -> 0 | AK137: =IF(E137="","",VLOOKUP(A137,List!$A$2:$D$186,2,FALSE)) ->  | AL137: =IF(E137="","",VLOOKUP(VALUE(B137),List!$C$2:$D$186,2,FALSE)) ->  | AO137: =IF('2) Raw'!$X125="","",'2) Raw'!X125) -> 
C138: =IF('2) Raw'!E126="","",'2) Raw'!E126) ->  | D138: =IF('2) Raw'!$E126="","",PROPER('2) Raw'!F126)) ->  | E138: =IF('2) Raw'!$E126="","",'2) Raw'!G126) ->  | F138: =IF('2) Raw'!$E126="","",'2) Raw'!H126) ->  | H138: =IF('2) Raw'!$E126="","",'2) Raw'!I126) ->  | I138: =IF('2) Raw'!$E126="","",'2) Raw'!J126) ->  | N138: =IF('2) Raw'!$E126="","",'2) Raw'!K126) ->  | O138: =IF('2) Raw'!$E126="","",'2) Raw'!L126) ->  | R138: =IF('2) Raw'!$E127="","",'2) Raw'!M127) ->  | T138: =IF('2) Raw'!$E126="","",'2) Raw'!O126) ->  | U138: =IF('2) Raw'!$E126="","",'2) Raw'!P126) ->  | X138: =IF('2) Raw'!$E127="","",'2) Raw'!Q127) ->  | Z138: =IF('2) Raw'!$E126="","",'2) Raw'!S126) ->  | AA138: =IF('2) Raw'!$E126="","",'2) Raw'!T126) ->  | AD138: =IF('2) Raw'!$E127="","",'2) Raw'!U127) ->  | AI138: =MIN(IF(AF138:AH138=0,"",AF138:AH138)) -> 0 | AK138: =IF(E138="","",VLOOKUP(A138,List!$A$2:$D$186,2,FALSE)) ->  | AL138: =IF(E138="","",VLOOKUP(VALUE(B138),List!$C$2:$D$186,2,FALSE)) ->  | AO138: =IF('2) Raw'!$X126="","",'2) Raw'!X126) -> 
C139: =IF('2) Raw'!E127="","",'2) Raw'!E127) ->  | D139: =IF('2) Raw'!$E127="","",PROPER('2) Raw'!F127)) ->  | E139: =IF('2) Raw'!$E127="","",'2) Raw'!G127) ->  | F139: =IF('2) Raw'!$E127="","",'2) Raw'!H127) ->  | H139: =IF('2) Raw'!$E127="","",'2) Raw'!I127) ->  | I139: =IF('2) Raw'!$E127="","",'2) Raw'!J127) ->  | N139: =IF('2) Raw'!$E127="","",'2) Raw'!K127) ->  | O139: =IF('2) Raw'!$E127="","",'2) Raw'!L127) ->  | R139: =IF('2) Raw'!$E128="","",'2) Raw'!M128) ->  | T139: =IF('2) Raw'!$E127="","",'2) Raw'!O127) ->  | U139: =IF('2) Raw'!$E127="","",'2) Raw'!P127) ->  | X139: =IF('2) Raw'!$E128="","",'2) Raw'!Q128) ->  | Z139: =IF('2) Raw'!$E127="","",'2) Raw'!S127) ->  | AA139: =IF('2) Raw'!$E127="","",'2) Raw'!T127) ->  | AD139: =IF('2) Raw'!$E128="","",'2) Raw'!U128) ->  | AI139: =MIN(IF(AF139:AH139=0,"",AF139:AH139)) -> 0 | AK139: =IF(E139="","",VLOOKUP(A139,List!$A$2:$D$186,2,FALSE)) ->  | AL139: =IF(E139="","",VLOOKUP(VALUE(B139),List!$C$2:$D$186,2,FALSE)) ->  | AO139: =IF('2) Raw'!$X127="","",'2) Raw'!X127) -> 
C140: =IF('2) Raw'!E128="","",'2) Raw'!E128) ->  | D140: =IF('2) Raw'!$E128="","",PROPER('2) Raw'!F128)) ->  | E140: =IF('2) Raw'!$E128="","",'2) Raw'!G128) ->  | F140: =IF('2) Raw'!$E128="","",'2) Raw'!H128) ->  | H140: =IF('2) Raw'!$E128="","",'2) Raw'!I128) ->  | I140: =IF('2) Raw'!$E128="","",'2) Raw'!J128) ->  | N140: =IF('2) Raw'!$E128="","",'2) Raw'!K128) ->  | O140: =IF('2) Raw'!$E128="","",'2) Raw'!L128) ->  | R140: =IF('2) Raw'!$E129="","",'2) Raw'!M129) ->  | T140: =IF('2) Raw'!$E128="","",'2) Raw'!O128) ->  | U140: =IF('2) Raw'!$E128="","",'2) Raw'!P128) ->  | X140: =IF('2) Raw'!$E129="","",'2) Raw'!Q129) ->  | Z140: =IF('2) Raw'!$E128="","",'2) Raw'!S128) ->  | AA140: =IF('2) Raw'!$E128="","",'2) Raw'!T128) ->  | AD140: =IF('2) Raw'!$E129="","",'2) Raw'!U129) ->  | AI140: =MIN(IF(AF140:AH140=0,"",AF140:AH140)) -> 0 | AK140: =IF(E140="","",VLOOKUP(A140,List!$A$2:$D$186,2,FALSE)) ->  | AL140: =IF(E140="","",VLOOKUP(VALUE(B140),List!$C$2:$D$186,2,FALSE)) ->  | AO140: =IF('2) Raw'!$X128="","",'2) Raw'!X128) -> 
C141: =IF('2) Raw'!E129="","",'2) Raw'!E129) ->  | D141: =IF('2) Raw'!$E129="","",PROPER('2) Raw'!F129)) ->  | E141: =IF('2) Raw'!$E129="","",'2) Raw'!G129) ->  | F141: =IF('2) Raw'!$E129="","",'2) Raw'!H129) ->  | H141: =IF('2) Raw'!$E129="","",'2) Raw'!I129) ->  | I141: =IF('2) Raw'!$E129="","",'2) Raw'!J129) ->  | N141: =IF('2) Raw'!$E129="","",'2) Raw'!K129) ->  | O141: =IF('2) Raw'!$E129="","",'2) Raw'!L129) ->  | R141: =IF('2) Raw'!$E130="","",'2) Raw'!M130) ->  | T141: =IF('2) Raw'!$E129="","",'2) Raw'!O129) ->  | U141: =IF('2) Raw'!$E129="","",'2) Raw'!P129) ->  | X141: =IF('2) Raw'!$E130="","",'2) Raw'!Q130) ->  | Z141: =IF('2) Raw'!$E129="","",'2) Raw'!S129) ->  | AA141: =IF('2) Raw'!$E129="","",'2) Raw'!T129) ->  | AD141: =IF('2) Raw'!$E130="","",'2) Raw'!U130) ->  | AI141: =MIN(IF(AF141:AH141=0,"",AF141:AH141)) -> 0 | AK141: =IF(E141="","",VLOOKUP(A141,List!$A$2:$D$186,2,FALSE)) ->  | AL141: =IF(E141="","",VLOOKUP(VALUE(B141),List!$C$2:$D$186,2,FALSE)) ->  | AO141: =IF('2) Raw'!$X129="","",'2) Raw'!X129) -> 
C142: =IF('2) Raw'!E130="","",'2) Raw'!E130) ->  | D142: =IF('2) Raw'!$E130="","",PROPER('2) Raw'!F130)) ->  | E142: =IF('2) Raw'!$E130="","",'2) Raw'!G130) ->  | F142: =IF('2) Raw'!$E130="","",'2) Raw'!H130) ->  | H142: =IF('2) Raw'!$E130="","",'2) Raw'!I130) ->  | I142: =IF('2) Raw'!$E130="","",'2) Raw'!J130) ->  | N142: =IF('2) Raw'!$E130="","",'2) Raw'!K130) ->  | O142: =IF('2) Raw'!$E130="","",'2) Raw'!L130) ->  | R142: =IF('2) Raw'!$E131="","",'2) Raw'!M131) ->  | T142: =IF('2) Raw'!$E130="","",'2) Raw'!O130) ->  | U142: =IF('2) Raw'!$E130="","",'2) Raw'!P130) ->  | X142: =IF('2) Raw'!$E131="","",'2) Raw'!Q131) ->  | Z142: =IF('2) Raw'!$E130="","",'2) Raw'!S130) ->  | AA142: =IF('2) Raw'!$E130="","",'2) Raw'!T130) ->  | AD142: =IF('2) Raw'!$E131="","",'2) Raw'!U131) ->  | AI142: =MIN(IF(AF142:AH142=0,"",AF142:AH142)) -> 0 | AK142: =IF(E142="","",VLOOKUP(A142,List!$A$2:$D$186,2,FALSE)) ->  | AL142: =IF(E142="","",VLOOKUP(VALUE(B142),List!$C$2:$D$186,2,FALSE)) ->  | AO142: =IF('2) Raw'!$X130="","",'2) Raw'!X130) -> 
C143: =IF('2) Raw'!E131="","",'2) Raw'!E131) ->  | D143: =IF('2) Raw'!$E131="","",PROPER('2) Raw'!F131)) ->  | E143: =IF('2) Raw'!$E131="","",'2) Raw'!G131) ->  | F143: =IF('2) Raw'!$E131="","",'2) Raw'!H131) ->  | H143: =IF('2) Raw'!$E131="","",'2) Raw'!I131) ->  | I143: =IF('2) Raw'!$E131="","",'2) Raw'!J131) ->  | J143: =IF(OR(I143="",$I$2=0),"",I143/$I$2) ->  | N143: =IF('2) Raw'!$E131="","",'2) Raw'!K131) ->  | O143: =IF('2) Raw'!$E131="","",'2) Raw'!L131) ->  | P143: =IF(OR(O143="",O143=0),"",O143/$O$2) ->  | R143: =IF('2) Raw'!$E132="","",'2) Raw'!M132) ->  | T143: =IF('2) Raw'!$E131="","",'2) Raw'!O131) ->  | U143: =IF('2) Raw'!$E131="","",'2) Raw'!P131) ->  | X143: =IF('2) Raw'!$E132="","",'2) Raw'!Q132) ->  | Z143: =IF('2) Raw'!$E131="","",'2) Raw'!S131) ->  | AA143: =IF('2) Raw'!$E131="","",'2) Raw'!T131) ->  | AD143: =IF('2) Raw'!$E132="","",'2) Raw'!U132) ->  | AI143: =MIN(IF(AF143:AH143=0,"",AF143:AH143)) -> 0 | AJ143: =IF(E143="","",AVERAGE(O143,U143,AA143)) ->  | AK143: =IF(E143="","",VLOOKUP(A143,List!$A$2:$D$186,2,FALSE)) ->  | AL143: =IF(E143="","",VLOOKUP(VALUE(B143),List!$C$2:$D$186,2,FALSE)) ->  | AM143: =IF(E143="","",IF(AND($U$2=0,$AA$2=0),N143,IF($AA$2=0,AVERAGE(N143,T143),AVERAGE(N143,T143,Z143)))) ->  | AN143: =IF(E143="","",IF(OR(R143=0,X143=0,AD143=0),C143,"")) ->  | AO143: =IF('2) Raw'!$X131="","",'2) Raw'!X131) -> 
C144: =IF('2) Raw'!E132="","",'2) Raw'!E132) ->  | D144: =IF('2) Raw'!$E132="","",PROPER('2) Raw'!F132)) ->  | E144: =IF('2) Raw'!$E132="","",'2) Raw'!G132) ->  | F144: =IF('2) Raw'!$E132="","",'2) Raw'!H132) ->  | H144: =IF('2) Raw'!$E132="","",'2) Raw'!I132) ->  | I144: =IF('2) Raw'!$E132="","",'2) Raw'!J132) ->  | N144: =IF('2) Raw'!$E132="","",'2) Raw'!K132) ->  | O144: =IF('2) Raw'!$E132="","",'2) Raw'!L132) ->  | R144: =IF('2) Raw'!$E133="","",'2) Raw'!M133) ->  | T144: =IF('2) Raw'!$E132="","",'2) Raw'!O132) ->  | U144: =IF('2) Raw'!$E132="","",'2) Raw'!P132) ->  | X144: =IF('2) Raw'!$E133="","",'2) Raw'!Q133) ->  | Z144: =IF('2) Raw'!$E132="","",'2) Raw'!S132) ->  | AA144: =IF('2) Raw'!$E132="","",'2) Raw'!T132) ->  | AD144: =IF('2) Raw'!$E133="","",'2) Raw'!U133) ->  | AI144: =MIN(IF(AF144:AH144=0,"",AF144:AH144)) -> 0 | AK144: =IF(E144="","",VLOOKUP(A144,List!$A$2:$D$186,2,FALSE)) ->  | AL144: =IF(E144="","",VLOOKUP(VALUE(B144),List!$C$2:$D$186,2,FALSE)) ->  | AO144: =IF('2) Raw'!$X132="","",'2) Raw'!X132) -> 
C145: =IF('2) Raw'!E133="","",'2) Raw'!E133) ->  | D145: =IF('2) Raw'!$E133="","",PROPER('2) Raw'!F133)) ->  | E145: =IF('2) Raw'!$E133="","",'2) Raw'!G133) ->  | F145: =IF('2) Raw'!$E133="","",'2) Raw'!H133) ->  | H145: =IF('2) Raw'!$E133="","",'2) Raw'!I133) ->  | I145: =IF('2) Raw'!$E133="","",'2) Raw'!J133) ->  | N145: =IF('2) Raw'!$E133="","",'2) Raw'!K133) ->  | O145: =IF('2) Raw'!$E133="","",'2) Raw'!L133) ->  | R145: =IF('2) Raw'!$E134="","",'2) Raw'!M134) ->  | T145: =IF('2) Raw'!$E133="","",'2) Raw'!O133) ->  | U145: =IF('2) Raw'!$E133="","",'2) Raw'!P133) ->  | X145: =IF('2) Raw'!$E134="","",'2) Raw'!Q134) ->  | Z145: =IF('2) Raw'!$E133="","",'2) Raw'!S133) ->  | AA145: =IF('2) Raw'!$E133="","",'2) Raw'!T133) ->  | AD145: =IF('2) Raw'!$E134="","",'2) Raw'!U134) ->  | AI145: =MIN(IF(AF145:AH145=0,"",AF145:AH145)) -> 0 | AK145: =IF(E145="","",VLOOKUP(A145,List!$A$2:$D$186,2,FALSE)) ->  | AL145: =IF(E145="","",VLOOKUP(VALUE(B145),List!$C$2:$D$186,2,FALSE)) ->  | AO145: =IF('2) Raw'!$X133="","",'2) Raw'!X133) -> 
C146: =IF('2) Raw'!E134="","",'2) Raw'!E134) ->  | D146: =IF('2) Raw'!$E134="","",PROPER('2) Raw'!F134)) ->  | E146: =IF('2) Raw'!$E134="","",'2) Raw'!G134) ->  | F146: =IF('2) Raw'!$E134="","",'2) Raw'!H134) ->  | H146: =IF('2) Raw'!$E134="","",'2) Raw'!I134) ->  | I146: =IF('2) Raw'!$E134="","",'2) Raw'!J134) ->  | N146: =IF('2) Raw'!$E134="","",'2) Raw'!K134) ->  | O146: =IF('2) Raw'!$E134="","",'2) Raw'!L134) ->  | R146: =IF('2) Raw'!$E135="","",'2) Raw'!M135) ->  | T146: =IF('2) Raw'!$E134="","",'2) Raw'!O134) ->  | U146: =IF('2) Raw'!$E134="","",'2) Raw'!P134) ->  | X146: =IF('2) Raw'!$E135="","",'2) Raw'!Q135) ->  | Z146: =IF('2) Raw'!$E134="","",'2) Raw'!S134) ->  | AA146: =IF('2) Raw'!$E134="","",'2) Raw'!T134) ->  | AD146: =IF('2) Raw'!$E135="","",'2) Raw'!U135) ->  | AI146: =MIN(IF(AF146:AH146=0,"",AF146:AH146)) -> 0 | AK146: =IF(E146="","",VLOOKUP(A146,List!$A$2:$D$186,2,FALSE)) ->  | AL146: =IF(E146="","",VLOOKUP(VALUE(B146),List!$C$2:$D$186,2,FALSE)) ->  | AO146: =IF('2) Raw'!$X134="","",'2) Raw'!X134) -> 
C147: =IF('2) Raw'!E135="","",'2) Raw'!E135) ->  | D147: =IF('2) Raw'!$E135="","",PROPER('2) Raw'!F135)) ->  | E147: =IF('2) Raw'!$E135="","",'2) Raw'!G135) ->  | F147: =IF('2) Raw'!$E135="","",'2) Raw'!H135) ->  | H147: =IF('2) Raw'!$E135="","",'2) Raw'!I135) ->  | I147: =IF('2) Raw'!$E135="","",'2) Raw'!J135) ->  | N147: =IF('2) Raw'!$E135="","",'2) Raw'!K135) ->  | O147: =IF('2) Raw'!$E135="","",'2) Raw'!L135) ->  | R147: =IF('2) Raw'!$E136="","",'2) Raw'!M136) ->  | T147: =IF('2) Raw'!$E135="","",'2) Raw'!O135) ->  | U147: =IF('2) Raw'!$E135="","",'2) Raw'!P135) ->  | X147: =IF('2) Raw'!$E136="","",'2) Raw'!Q136) ->  | Z147: =IF('2) Raw'!$E135="","",'2) Raw'!S135) ->  | AA147: =IF('2) Raw'!$E135="","",'2) Raw'!T135) ->  | AD147: =IF('2) Raw'!$E136="","",'2) Raw'!U136) ->  | AI147: =MIN(IF(AF147:AH147=0,"",AF147:AH147)) -> 0 | AK147: =IF(E147="","",VLOOKUP(A147,List!$A$2:$D$186,2,FALSE)) ->  | AL147: =IF(E147="","",VLOOKUP(VALUE(B147),List!$C$2:$D$186,2,FALSE)) ->  | AO147: =IF('2) Raw'!$X135="","",'2) Raw'!X135) -> 
C148: =IF('2) Raw'!E136="","",'2) Raw'!E136) ->  | D148: =IF('2) Raw'!$E136="","",PROPER('2) Raw'!F136)) ->  | E148: =IF('2) Raw'!$E136="","",'2) Raw'!G136) ->  | F148: =IF('2) Raw'!$E136="","",'2) Raw'!H136) ->  | H148: =IF('2) Raw'!$E136="","",'2) Raw'!I136) ->  | I148: =IF('2) Raw'!$E136="","",'2) Raw'!J136) ->  | N148: =IF('2) Raw'!$E136="","",'2) Raw'!K136) ->  | O148: =IF('2) Raw'!$E136="","",'2) Raw'!L136) ->  | R148: =IF('2) Raw'!$E137="","",'2) Raw'!M137) ->  | T148: =IF('2) Raw'!$E136="","",'2) Raw'!O136) ->  | U148: =IF('2) Raw'!$E136="","",'2) Raw'!P136) ->  | X148: =IF('2) Raw'!$E137="","",'2) Raw'!Q137) ->  | Z148: =IF('2) Raw'!$E136="","",'2) Raw'!S136) ->  | AA148: =IF('2) Raw'!$E136="","",'2) Raw'!T136) ->  | AD148: =IF('2) Raw'!$E137="","",'2) Raw'!U137) ->  | AI148: =MIN(IF(AF148:AH148=0,"",AF148:AH148)) -> 0 | AK148: =IF(E148="","",VLOOKUP(A148,List!$A$2:$D$186,2,FALSE)) ->  | AL148: =IF(E148="","",VLOOKUP(VALUE(B148),List!$C$2:$D$186,2,FALSE)) ->  | AO148: =IF('2) Raw'!$X136="","",'2) Raw'!X136) -> 
C149: =IF('2) Raw'!E137="","",'2) Raw'!E137) ->  | D149: =IF('2) Raw'!$E137="","",PROPER('2) Raw'!F137)) ->  | E149: =IF('2) Raw'!$E137="","",'2) Raw'!G137) ->  | F149: =IF('2) Raw'!$E137="","",'2) Raw'!H137) ->  | H149: =IF('2) Raw'!$E137="","",'2) Raw'!I137) ->  | I149: =IF('2) Raw'!$E137="","",'2) Raw'!J137) ->  | N149: =IF('2) Raw'!$E137="","",'2) Raw'!K137) ->  | O149: =IF('2) Raw'!$E137="","",'2) Raw'!L137) ->  | R149: =IF('2) Raw'!$E138="","",'2) Raw'!M138) ->  | T149: =IF('2) Raw'!$E137="","",'2) Raw'!O137) ->  | U149: =IF('2) Raw'!$E137="","",'2) Raw'!P137) ->  | X149: =IF('2) Raw'!$E138="","",'2) Raw'!Q138) ->  | Z149: =IF('2) Raw'!$E137="","",'2) Raw'!S137) ->  | AA149: =IF('2) Raw'!$E137="","",'2) Raw'!T137) ->  | AD149: =IF('2) Raw'!$E138="","",'2) Raw'!U138) ->  | AI149: =MIN(IF(AF149:AH149=0,"",AF149:AH149)) -> 0 | AK149: =IF(E149="","",VLOOKUP(A149,List!$A$2:$D$186,2,FALSE)) ->  | AL149: =IF(E149="","",VLOOKUP(VALUE(B149),List!$C$2:$D$186,2,FALSE)) ->  | AO149: =IF('2) Raw'!$X137="","",'2) Raw'!X137) -> 
C150: =IF('2) Raw'!E138="","",'2) Raw'!E138) ->  | D150: =IF('2) Raw'!$E138="","",PROPER('2) Raw'!F138)) ->  | E150: =IF('2) Raw'!$E138="","",'2) Raw'!G138) ->  | F150: =IF('2) Raw'!$E138="","",'2) Raw'!H138) ->  | H150: =IF('2) Raw'!$E138="","",'2) Raw'!I138) ->  | I150: =IF('2) Raw'!$E138="","",'2) Raw'!J138) ->  | N150: =IF('2) Raw'!$E138="","",'2) Raw'!K138) ->  | O150: =IF('2) Raw'!$E138="","",'2) Raw'!L138) ->  | R150: =IF('2) Raw'!$E139="","",'2) Raw'!M139) ->  | T150: =IF('2) Raw'!$E138="","",'2) Raw'!O138) ->  | U150: =IF('2) Raw'!$E138="","",'2) Raw'!P138) ->  | X150: =IF('2) Raw'!$E139="","",'2) Raw'!Q139) ->  | Z150: =IF('2) Raw'!$E138="","",'2) Raw'!S138) ->  | AA150: =IF('2) Raw'!$E138="","",'2) Raw'!T138) ->  | AD150: =IF('2) Raw'!$E139="","",'2) Raw'!U139) ->  | AI150: =MIN(IF(AF150:AH150=0,"",AF150:AH150)) -> 0 | AK150: =IF(E150="","",VLOOKUP(A150,List!$A$2:$D$186,2,FALSE)) ->  | AL150: =IF(E150="","",VLOOKUP(VALUE(B150),List!$C$2:$D$186,2,FALSE)) ->  | AO150: =IF('2) Raw'!$X138="","",'2) Raw'!X138) -> 
C151: =IF('2) Raw'!E139="","",'2) Raw'!E139) ->  | D151: =IF('2) Raw'!$E139="","",PROPER('2) Raw'!F139)) ->  | E151: =IF('2) Raw'!$E139="","",'2) Raw'!G139) ->  | F151: =IF('2) Raw'!$E139="","",'2) Raw'!H139) ->  | H151: =IF('2) Raw'!$E139="","",'2) Raw'!I139) ->  | I151: =IF('2) Raw'!$E139="","",'2) Raw'!J139) ->  | N151: =IF('2) Raw'!$E139="","",'2) Raw'!K139) ->  | O151: =IF('2) Raw'!$E139="","",'2) Raw'!L139) ->  | R151: =IF('2) Raw'!$E140="","",'2) Raw'!M140) ->  | T151: =IF('2) Raw'!$E139="","",'2) Raw'!O139) ->  | U151: =IF('2) Raw'!$E139="","",'2) Raw'!P139) ->  | X151: =IF('2) Raw'!$E140="","",'2) Raw'!Q140) ->  | Z151: =IF('2) Raw'!$E139="","",'2) Raw'!S139) ->  | AA151: =IF('2) Raw'!$E139="","",'2) Raw'!T139) ->  | AD151: =IF('2) Raw'!$E140="","",'2) Raw'!U140) ->  | AI151: =MIN(IF(AF151:AH151=0,"",AF151:AH151)) -> 0 | AK151: =IF(E151="","",VLOOKUP(A151,List!$A$2:$D$186,2,FALSE)) ->  | AL151: =IF(E151="","",VLOOKUP(VALUE(B151),List!$C$2:$D$186,2,FALSE)) ->  | AO151: =IF('2) Raw'!$X139="","",'2) Raw'!X139) -> 
C152: =IF('2) Raw'!E140="","",'2) Raw'!E140) ->  | D152: =IF('2) Raw'!$E140="","",PROPER('2) Raw'!F140)) ->  | E152: =IF('2) Raw'!$E140="","",'2) Raw'!G140) ->  | F152: =IF('2) Raw'!$E140="","",'2) Raw'!H140) ->  | H152: =IF('2) Raw'!$E140="","",'2) Raw'!I140) ->  | I152: =IF('2) Raw'!$E140="","",'2) Raw'!J140) ->  | N152: =IF('2) Raw'!$E140="","",'2) Raw'!K140) ->  | O152: =IF('2) Raw'!$E140="","",'2) Raw'!L140) ->  | R152: =IF('2) Raw'!$E141="","",'2) Raw'!M141) ->  | T152: =IF('2) Raw'!$E140="","",'2) Raw'!O140) ->  | U152: =IF('2) Raw'!$E140="","",'2) Raw'!P140) ->  | X152: =IF('2) Raw'!$E141="","",'2) Raw'!Q141) ->  | Z152: =IF('2) Raw'!$E140="","",'2) Raw'!S140) ->  | AA152: =IF('2) Raw'!$E140="","",'2) Raw'!T140) ->  | AD152: =IF('2) Raw'!$E141="","",'2) Raw'!U141) ->  | AI152: =MIN(IF(AF152:AH152=0,"",AF152:AH152)) -> 0 | AK152: =IF(E152="","",VLOOKUP(A152,List!$A$2:$D$186,2,FALSE)) ->  | AL152: =IF(E152="","",VLOOKUP(VALUE(B152),List!$C$2:$D$186,2,FALSE)) ->  | AO152: =IF('2) Raw'!$X140="","",'2) Raw'!X140) -> 
C153: =IF('2) Raw'!E141="","",'2) Raw'!E141) ->  | D153: =IF('2) Raw'!$E141="","",PROPER('2) Raw'!F141)) ->  | E153: =IF('2) Raw'!$E141="","",'2) Raw'!G141) ->  | F153: =IF('2) Raw'!$E141="","",'2) Raw'!H141) ->  | H153: =IF('2) Raw'!$E141="","",'2) Raw'!I141) ->  | I153: =IF('2) Raw'!$E141="","",'2) Raw'!J141) ->  | N153: =IF('2) Raw'!$E141="","",'2) Raw'!K141) ->  | O153: =IF('2) Raw'!$E141="","",'2) Raw'!L141) ->  | R153: =IF('2) Raw'!$E142="","",'2) Raw'!M142) ->  | T153: =IF('2) Raw'!$E141="","",'2) Raw'!O141) ->  | U153: =IF('2) Raw'!$E141="","",'2) Raw'!P141) ->  | X153: =IF('2) Raw'!$E142="","",'2) Raw'!Q142) ->  | Z153: =IF('2) Raw'!$E141="","",'2) Raw'!S141) ->  | AA153: =IF('2) Raw'!$E141="","",'2) Raw'!T141) ->  | AD153: =IF('2) Raw'!$E142="","",'2) Raw'!U142) ->  | AI153: =MIN(IF(AF153:AH153=0,"",AF153:AH153)) -> 0 | AK153: =IF(E153="","",VLOOKUP(A153,List!$A$2:$D$186,2,FALSE)) ->  | AL153: =IF(E153="","",VLOOKUP(VALUE(B153),List!$C$2:$D$186,2,FALSE)) ->  | AO153: =IF('2) Raw'!$X141="","",'2) Raw'!X141) -> 
C154: =IF('2) Raw'!E142="","",'2) Raw'!E142) ->  | D154: =IF('2) Raw'!$E142="","",PROPER('2) Raw'!F142)) ->  | E154: =IF('2) Raw'!$E142="","",'2) Raw'!G142) ->  | F154: =IF('2) Raw'!$E142="","",'2) Raw'!H142) ->  | H154: =IF('2) Raw'!$E142="","",'2) Raw'!I142) ->  | I154: =IF('2) Raw'!$E142="","",'2) Raw'!J142) ->  | N154: =IF('2) Raw'!$E142="","",'2) Raw'!K142) ->  | O154: =IF('2) Raw'!$E142="","",'2) Raw'!L142) ->  | R154: =IF('2) Raw'!$E143="","",'2) Raw'!M143) ->  | T154: =IF('2) Raw'!$E142="","",'2) Raw'!O142) ->  | U154: =IF('2) Raw'!$E142="","",'2) Raw'!P142) ->  | X154: =IF('2) Raw'!$E143="","",'2) Raw'!Q143) ->  | Z154: =IF('2) Raw'!$E142="","",'2) Raw'!S142) ->  | AA154: =IF('2) Raw'!$E142="","",'2) Raw'!T142) ->  | AD154: =IF('2) Raw'!$E143="","",'2) Raw'!U143) ->  | AI154: =MIN(IF(AF154:AH154=0,"",AF154:AH154)) -> 0 | AK154: =IF(E154="","",VLOOKUP(A154,List!$A$2:$D$186,2,FALSE)) ->  | AL154: =IF(E154="","",VLOOKUP(VALUE(B154),List!$C$2:$D$186,2,FALSE)) ->  | AO154: =IF('2) Raw'!$X142="","",'2) Raw'!X142) -> 
C155: =IF('2) Raw'!E143="","",'2) Raw'!E143) ->  | D155: =IF('2) Raw'!$E143="","",PROPER('2) Raw'!F143)) ->  | E155: =IF('2) Raw'!$E143="","",'2) Raw'!G143) ->  | F155: =IF('2) Raw'!$E143="","",'2) Raw'!H143) ->  | H155: =IF('2) Raw'!$E143="","",'2) Raw'!I143) ->  | I155: =IF('2) Raw'!$E143="","",'2) Raw'!J143) ->  | N155: =IF('2) Raw'!$E143="","",'2) Raw'!K143) ->  | O155: =IF('2) Raw'!$E143="","",'2) Raw'!L143) ->  | R155: =IF('2) Raw'!$E144="","",'2) Raw'!M144) ->  | T155: =IF('2) Raw'!$E143="","",'2) Raw'!O143) ->  | U155: =IF('2) Raw'!$E143="","",'2) Raw'!P143) ->  | X155: =IF('2) Raw'!$E144="","",'2) Raw'!Q144) ->  | Z155: =IF('2) Raw'!$E143="","",'2) Raw'!S143) ->  | AA155: =IF('2) Raw'!$E143="","",'2) Raw'!T143) ->  | AD155: =IF('2) Raw'!$E144="","",'2) Raw'!U144) ->  | AI155: =MIN(IF(AF155:AH155=0,"",AF155:AH155)) -> 0 | AK155: =IF(E155="","",VLOOKUP(A155,List!$A$2:$D$186,2,FALSE)) ->  | AL155: =IF(E155="","",VLOOKUP(VALUE(B155),List!$C$2:$D$186,2,FALSE)) ->  | AO155: =IF('2) Raw'!$X143="","",'2) Raw'!X143) -> 
C156: =IF('2) Raw'!E144="","",'2) Raw'!E144) ->  | D156: =IF('2) Raw'!$E144="","",PROPER('2) Raw'!F144)) ->  | E156: =IF('2) Raw'!$E144="","",'2) Raw'!G144) ->  | F156: =IF('2) Raw'!$E144="","",'2) Raw'!H144) ->  | H156: =IF('2) Raw'!$E144="","",'2) Raw'!I144) ->  | I156: =IF('2) Raw'!$E144="","",'2) Raw'!J144) ->  | N156: =IF('2) Raw'!$E144="","",'2) Raw'!K144) ->  | O156: =IF('2) Raw'!$E144="","",'2) Raw'!L144) ->  | R156: =IF('2) Raw'!$E145="","",'2) Raw'!M145) ->  | T156: =IF('2) Raw'!$E144="","",'2) Raw'!O144) ->  | U156: =IF('2) Raw'!$E144="","",'2) Raw'!P144) ->  | X156: =IF('2) Raw'!$E145="","",'2) Raw'!Q145) ->  | Z156: =IF('2) Raw'!$E144="","",'2) Raw'!S144) ->  | AA156: =IF('2) Raw'!$E144="","",'2) Raw'!T144) ->  | AD156: =IF('2) Raw'!$E145="","",'2) Raw'!U145) ->  | AI156: =MIN(IF(AF156:AH156=0,"",AF156:AH156)) -> 0 | AK156: =IF(E156="","",VLOOKUP(A156,List!$A$2:$D$186,2,FALSE)) ->  | AL156: =IF(E156="","",VLOOKUP(VALUE(B156),List!$C$2:$D$186,2,FALSE)) ->  | AO156: =IF('2) Raw'!$X144="","",'2) Raw'!X144) -> 
C157: =IF('2) Raw'!E145="","",'2) Raw'!E145) ->  | D157: =IF('2) Raw'!$E145="","",PROPER('2) Raw'!F145)) ->  | E157: =IF('2) Raw'!$E145="","",'2) Raw'!G145) ->  | F157: =IF('2) Raw'!$E145="","",'2) Raw'!H145) ->  | H157: =IF('2) Raw'!$E145="","",'2) Raw'!I145) ->  | I157: =IF('2) Raw'!$E145="","",'2) Raw'!J145) ->  | N157: =IF('2) Raw'!$E145="","",'2) Raw'!K145) ->  | O157: =IF('2) Raw'!$E145="","",'2) Raw'!L145) ->  | R157: =IF('2) Raw'!$E146="","",'2) Raw'!M146) ->  | T157: =IF('2) Raw'!$E145="","",'2) Raw'!O145) ->  | U157: =IF('2) Raw'!$E145="","",'2) Raw'!P145) ->  | X157: =IF('2) Raw'!$E146="","",'2) Raw'!Q146) ->  | Z157: =IF('2) Raw'!$E145="","",'2) Raw'!S145) ->  | AA157: =IF('2) Raw'!$E145="","",'2) Raw'!T145) ->  | AD157: =IF('2) Raw'!$E146="","",'2) Raw'!U146) ->  | AI157: =MIN(IF(AF157:AH157=0,"",AF157:AH157)) -> 0 | AK157: =IF(E157="","",VLOOKUP(A157,List!$A$2:$D$186,2,FALSE)) ->  | AL157: =IF(E157="","",VLOOKUP(VALUE(B157),List!$C$2:$D$186,2,FALSE)) ->  | AO157: =IF('2) Raw'!$X145="","",'2) Raw'!X145) -> 
C158: =IF('2) Raw'!E146="","",'2) Raw'!E146) ->  | D158: =IF('2) Raw'!$E146="","",PROPER('2) Raw'!F146)) ->  | E158: =IF('2) Raw'!$E146="","",'2) Raw'!G146) ->  | F158: =IF('2) Raw'!$E146="","",'2) Raw'!H146) ->  | H158: =IF('2) Raw'!$E146="","",'2) Raw'!I146) ->  | I158: =IF('2) Raw'!$E146="","",'2) Raw'!J146) ->  | N158: =IF('2) Raw'!$E146="","",'2) Raw'!K146) ->  | O158: =IF('2) Raw'!$E146="","",'2) Raw'!L146) ->  | R158: =IF('2) Raw'!$E147="","",'2) Raw'!M147) ->  | T158: =IF('2) Raw'!$E146="","",'2) Raw'!O146) ->  | U158: =IF('2) Raw'!$E146="","",'2) Raw'!P146) ->  | X158: =IF('2) Raw'!$E147="","",'2) Raw'!Q147) ->  | Z158: =IF('2) Raw'!$E146="","",'2) Raw'!S146) ->  | AA158: =IF('2) Raw'!$E146="","",'2) Raw'!T146) ->  | AD158: =IF('2) Raw'!$E147="","",'2) Raw'!U147) ->  | AI158: =MIN(IF(AF158:AH158=0,"",AF158:AH158)) -> 0 | AK158: =IF(E158="","",VLOOKUP(A158,List!$A$2:$D$186,2,FALSE)) ->  | AL158: =IF(E158="","",VLOOKUP(VALUE(B158),List!$C$2:$D$186,2,FALSE)) ->  | AO158: =IF('2) Raw'!$X146="","",'2) Raw'!X146) -> 
C159: =IF('2) Raw'!E147="","",'2) Raw'!E147) ->  | D159: =IF('2) Raw'!$E147="","",PROPER('2) Raw'!F147)) ->  | E159: =IF('2) Raw'!$E147="","",'2) Raw'!G147) ->  | F159: =IF('2) Raw'!$E147="","",'2) Raw'!H147) ->  | H159: =IF('2) Raw'!$E147="","",'2) Raw'!I147) ->  | I159: =IF('2) Raw'!$E147="","",'2) Raw'!J147) ->  | N159: =IF('2) Raw'!$E147="","",'2) Raw'!K147) ->  | O159: =IF('2) Raw'!$E147="","",'2) Raw'!L147) ->  | R159: =IF('2) Raw'!$E148="","",'2) Raw'!M148) ->  | T159: =IF('2) Raw'!$E147="","",'2) Raw'!O147) ->  | U159: =IF('2) Raw'!$E147="","",'2) Raw'!P147) ->  | X159: =IF('2) Raw'!$E148="","",'2) Raw'!Q148) ->  | Z159: =IF('2) Raw'!$E147="","",'2) Raw'!S147) ->  | AA159: =IF('2) Raw'!$E147="","",'2) Raw'!T147) ->  | AD159: =IF('2) Raw'!$E148="","",'2) Raw'!U148) ->  | AI159: =MIN(IF(AF159:AH159=0,"",AF159:AH159)) -> 0 | AK159: =IF(E159="","",VLOOKUP(A159,List!$A$2:$D$186,2,FALSE)) ->  | AL159: =IF(E159="","",VLOOKUP(VALUE(B159),List!$C$2:$D$186,2,FALSE)) ->  | AO159: =IF('2) Raw'!$X147="","",'2) Raw'!X147) -> 
C160: =IF('2) Raw'!E148="","",'2) Raw'!E148) ->  | D160: =IF('2) Raw'!$E148="","",PROPER('2) Raw'!F148)) ->  | E160: =IF('2) Raw'!$E148="","",'2) Raw'!G148) ->  | F160: =IF('2) Raw'!$E148="","",'2) Raw'!H148) ->  | H160: =IF('2) Raw'!$E148="","",'2) Raw'!I148) ->  | I160: =IF('2) Raw'!$E148="","",'2) Raw'!J148) ->  | N160: =IF('2) Raw'!$E148="","",'2) Raw'!K148) ->  | O160: =IF('2) Raw'!$E148="","",'2) Raw'!L148) ->  | R160: =IF('2) Raw'!$E149="","",'2) Raw'!M149) ->  | T160: =IF('2) Raw'!$E148="","",'2) Raw'!O148) ->  | U160: =IF('2) Raw'!$E148="","",'2) Raw'!P148) ->  | X160: =IF('2) Raw'!$E149="","",'2) Raw'!Q149) ->  | Z160: =IF('2) Raw'!$E148="","",'2) Raw'!S148) ->  | AA160: =IF('2) Raw'!$E148="","",'2) Raw'!T148) ->  | AD160: =IF('2) Raw'!$E149="","",'2) Raw'!U149) ->  | AI160: =MIN(IF(AF160:AH160=0,"",AF160:AH160)) -> 0 | AK160: =IF(E160="","",VLOOKUP(A160,List!$A$2:$D$186,2,FALSE)) ->  | AL160: =IF(E160="","",VLOOKUP(VALUE(B160),List!$C$2:$D$186,2,FALSE)) ->  | AO160: =IF('2) Raw'!$X148="","",'2) Raw'!X148) -> 
C161: =IF('2) Raw'!E149="","",'2) Raw'!E149) ->  | D161: =IF('2) Raw'!$E149="","",PROPER('2) Raw'!F149)) ->  | E161: =IF('2) Raw'!$E149="","",'2) Raw'!G149) ->  | F161: =IF('2) Raw'!$E149="","",'2) Raw'!H149) ->  | H161: =IF('2) Raw'!$E149="","",'2) Raw'!I149) ->  | I161: =IF('2) Raw'!$E149="","",'2) Raw'!J149) ->  | N161: =IF('2) Raw'!$E149="","",'2) Raw'!K149) ->  | O161: =IF('2) Raw'!$E149="","",'2) Raw'!L149) ->  | R161: =IF('2) Raw'!$E150="","",'2) Raw'!M150) ->  | T161: =IF('2) Raw'!$E149="","",'2) Raw'!O149) ->  | U161: =IF('2) Raw'!$E149="","",'2) Raw'!P149) ->  | X161: =IF('2) Raw'!$E150="","",'2) Raw'!Q150) ->  | Z161: =IF('2) Raw'!$E149="","",'2) Raw'!S149) ->  | AA161: =IF('2) Raw'!$E149="","",'2) Raw'!T149) ->  | AD161: =IF('2) Raw'!$E150="","",'2) Raw'!U150) ->  | AI161: =MIN(IF(AF161:AH161=0,"",AF161:AH161)) -> 0 | AK161: =IF(E161="","",VLOOKUP(A161,List!$A$2:$D$186,2,FALSE)) ->  | AL161: =IF(E161="","",VLOOKUP(VALUE(B161),List!$C$2:$D$186,2,FALSE)) ->  | AO161: =IF('2) Raw'!$X149="","",'2) Raw'!X149) -> 
C162: =IF('2) Raw'!E150="","",'2) Raw'!E150) ->  | D162: =IF('2) Raw'!$E150="","",PROPER('2) Raw'!F150)) ->  | E162: =IF('2) Raw'!$E150="","",'2) Raw'!G150) ->  | F162: =IF('2) Raw'!$E150="","",'2) Raw'!H150) ->  | H162: =IF('2) Raw'!$E150="","",'2) Raw'!I150) ->  | I162: =IF('2) Raw'!$E150="","",'2) Raw'!J150) ->  | N162: =IF('2) Raw'!$E150="","",'2) Raw'!K150) ->  | O162: =IF('2) Raw'!$E150="","",'2) Raw'!L150) ->  | R162: =IF('2) Raw'!$E151="","",'2) Raw'!M151) ->  | T162: =IF('2) Raw'!$E150="","",'2) Raw'!O150) ->  | U162: =IF('2) Raw'!$E150="","",'2) Raw'!P150) ->  | X162: =IF('2) Raw'!$E151="","",'2) Raw'!Q151) ->  | Z162: =IF('2) Raw'!$E150="","",'2) Raw'!S150) ->  | AA162: =IF('2) Raw'!$E150="","",'2) Raw'!T150) ->  | AD162: =IF('2) Raw'!$E151="","",'2) Raw'!U151) ->  | AI162: =MIN(IF(AF162:AH162=0,"",AF162:AH162)) -> 0 | AK162: =IF(E162="","",VLOOKUP(A162,List!$A$2:$D$186,2,FALSE)) ->  | AL162: =IF(E162="","",VLOOKUP(VALUE(B162),List!$C$2:$D$186,2,FALSE)) ->  | AO162: =IF('2) Raw'!$X150="","",'2) Raw'!X150) -> 
C163: =IF('2) Raw'!E151="","",'2) Raw'!E151) ->  | D163: =IF('2) Raw'!$E151="","",PROPER('2) Raw'!F151)) ->  | E163: =IF('2) Raw'!$E151="","",'2) Raw'!G151) ->  | F163: =IF('2) Raw'!$E151="","",'2) Raw'!H151) ->  | H163: =IF('2) Raw'!$E151="","",'2) Raw'!I151) ->  | I163: =IF('2) Raw'!$E151="","",'2) Raw'!J151) ->  | N163: =IF('2) Raw'!$E151="","",'2) Raw'!K151) ->  | O163: =IF('2) Raw'!$E151="","",'2) Raw'!L151) ->  | R163: =IF('2) Raw'!$E152="","",'2) Raw'!M152) ->  | T163: =IF('2) Raw'!$E151="","",'2) Raw'!O151) ->  | U163: =IF('2) Raw'!$E151="","",'2) Raw'!P151) ->  | X163: =IF('2) Raw'!$E152="","",'2) Raw'!Q152) ->  | Z163: =IF('2) Raw'!$E151="","",'2) Raw'!S151) ->  | AA163: =IF('2) Raw'!$E151="","",'2) Raw'!T151) ->  | AD163: =IF('2) Raw'!$E152="","",'2) Raw'!U152) ->  | AI163: =MIN(IF(AF163:AH163=0,"",AF163:AH163)) -> 0 | AK163: =IF(E163="","",VLOOKUP(A163,List!$A$2:$D$186,2,FALSE)) ->  | AL163: =IF(E163="","",VLOOKUP(VALUE(B163),List!$C$2:$D$186,2,FALSE)) ->  | AO163: =IF('2) Raw'!$X151="","",'2) Raw'!X151) -> 
C164: =IF('2) Raw'!E152="","",'2) Raw'!E152) ->  | D164: =IF('2) Raw'!$E152="","",PROPER('2) Raw'!F152)) ->  | E164: =IF('2) Raw'!$E152="","",'2) Raw'!G152) ->  | F164: =IF('2) Raw'!$E152="","",'2) Raw'!H152) ->  | H164: =IF('2) Raw'!$E152="","",'2) Raw'!I152) ->  | I164: =IF('2) Raw'!$E152="","",'2) Raw'!J152) ->  | N164: =IF('2) Raw'!$E152="","",'2) Raw'!K152) ->  | O164: =IF('2) Raw'!$E152="","",'2) Raw'!L152) ->  | R164: =IF('2) Raw'!$E153="","",'2) Raw'!M153) ->  | T164: =IF('2) Raw'!$E152="","",'2) Raw'!O152) ->  | U164: =IF('2) Raw'!$E152="","",'2) Raw'!P152) ->  | X164: =IF('2) Raw'!$E153="","",'2) Raw'!Q153) ->  | Z164: =IF('2) Raw'!$E152="","",'2) Raw'!S152) ->  | AA164: =IF('2) Raw'!$E152="","",'2) Raw'!T152) ->  | AD164: =IF('2) Raw'!$E153="","",'2) Raw'!U153) ->  | AI164: =MIN(IF(AF164:AH164=0,"",AF164:AH164)) -> 0 | AK164: =IF(E164="","",VLOOKUP(A164,List!$A$2:$D$186,2,FALSE)) ->  | AL164: =IF(E164="","",VLOOKUP(VALUE(B164),List!$C$2:$D$186,2,FALSE)) ->  | AO164: =IF('2) Raw'!$X152="","",'2) Raw'!X152) -> 
C165: =IF('2) Raw'!E153="","",'2) Raw'!E153) ->  | D165: =IF('2) Raw'!$E153="","",PROPER('2) Raw'!F153)) ->  | E165: =IF('2) Raw'!$E153="","",'2) Raw'!G153) ->  | F165: =IF('2) Raw'!$E153="","",'2) Raw'!H153) ->  | H165: =IF('2) Raw'!$E153="","",'2) Raw'!I153) ->  | I165: =IF('2) Raw'!$E153="","",'2) Raw'!J153) ->  | N165: =IF('2) Raw'!$E153="","",'2) Raw'!K153) ->  | O165: =IF('2) Raw'!$E153="","",'2) Raw'!L153) ->  | R165: =IF('2) Raw'!$E154="","",'2) Raw'!M154) ->  | T165: =IF('2) Raw'!$E153="","",'2) Raw'!O153) ->  | U165: =IF('2) Raw'!$E153="","",'2) Raw'!P153) ->  | X165: =IF('2) Raw'!$E154="","",'2) Raw'!Q154) ->  | Z165: =IF('2) Raw'!$E153="","",'2) Raw'!S153) ->  | AA165: =IF('2) Raw'!$E153="","",'2) Raw'!T153) ->  | AD165: =IF('2) Raw'!$E154="","",'2) Raw'!U154) ->  | AI165: =MIN(IF(AF165:AH165=0,"",AF165:AH165)) -> 0 | AK165: =IF(E165="","",VLOOKUP(A165,List!$A$2:$D$186,2,FALSE)) ->  | AL165: =IF(E165="","",VLOOKUP(VALUE(B165),List!$C$2:$D$186,2,FALSE)) ->  | AO165: =IF('2) Raw'!$X153="","",'2) Raw'!X153) -> 
C166: =IF('2) Raw'!E154="","",'2) Raw'!E154) ->  | D166: =IF('2) Raw'!$E154="","",PROPER('2) Raw'!F154)) ->  | E166: =IF('2) Raw'!$E154="","",'2) Raw'!G154) ->  | F166: =IF('2) Raw'!$E154="","",'2) Raw'!H154) ->  | H166: =IF('2) Raw'!$E154="","",'2) Raw'!I154) ->  | I166: =IF('2) Raw'!$E154="","",'2) Raw'!J154) ->  | N166: =IF('2) Raw'!$E154="","",'2) Raw'!K154) ->  | O166: =IF('2) Raw'!$E154="","",'2) Raw'!L154) ->  | R166: =IF('2) Raw'!$E155="","",'2) Raw'!M155) ->  | T166: =IF('2) Raw'!$E154="","",'2) Raw'!O154) ->  | U166: =IF('2) Raw'!$E154="","",'2) Raw'!P154) ->  | X166: =IF('2) Raw'!$E155="","",'2) Raw'!Q155) ->  | Z166: =IF('2) Raw'!$E154="","",'2) Raw'!S154) ->  | AA166: =IF('2) Raw'!$E154="","",'2) Raw'!T154) ->  | AD166: =IF('2) Raw'!$E155="","",'2) Raw'!U155) ->  | AI166: =MIN(IF(AF166:AH166=0,"",AF166:AH166)) -> 0 | AK166: =IF(E166="","",VLOOKUP(A166,List!$A$2:$D$186,2,FALSE)) ->  | AL166: =IF(E166="","",VLOOKUP(VALUE(B166),List!$C$2:$D$186,2,FALSE)) ->  | AO166: =IF('2) Raw'!$X154="","",'2) Raw'!X154) -> 
C167: =IF('2) Raw'!E155="","",'2) Raw'!E155) ->  | D167: =IF('2) Raw'!$E155="","",PROPER('2) Raw'!F155)) ->  | E167: =IF('2) Raw'!$E155="","",'2) Raw'!G155) ->  | F167: =IF('2) Raw'!$E155="","",'2) Raw'!H155) ->  | H167: =IF('2) Raw'!$E155="","",'2) Raw'!I155) ->  | I167: =IF('2) Raw'!$E155="","",'2) Raw'!J155) ->  | N167: =IF('2) Raw'!$E155="","",'2) Raw'!K155) ->  | O167: =IF('2) Raw'!$E155="","",'2) Raw'!L155) ->  | R167: =IF('2) Raw'!$E156="","",'2) Raw'!M156) ->  | T167: =IF('2) Raw'!$E155="","",'2) Raw'!O155) ->  | U167: =IF('2) Raw'!$E155="","",'2) Raw'!P155) ->  | X167: =IF('2) Raw'!$E156="","",'2) Raw'!Q156) ->  | Z167: =IF('2) Raw'!$E155="","",'2) Raw'!S155) ->  | AA167: =IF('2) Raw'!$E155="","",'2) Raw'!T155) ->  | AD167: =IF('2) Raw'!$E156="","",'2) Raw'!U156) ->  | AI167: =MIN(IF(AF167:AH167=0,"",AF167:AH167)) -> 0 | AK167: =IF(E167="","",VLOOKUP(A167,List!$A$2:$D$186,2,FALSE)) ->  | AL167: =IF(E167="","",VLOOKUP(VALUE(B167),List!$C$2:$D$186,2,FALSE)) ->  | AO167: =IF('2) Raw'!$X155="","",'2) Raw'!X155) -> 
C168: =IF('2) Raw'!E156="","",'2) Raw'!E156) ->  | D168: =IF('2) Raw'!$E156="","",PROPER('2) Raw'!F156)) ->  | E168: =IF('2) Raw'!$E156="","",'2) Raw'!G156) ->  | F168: =IF('2) Raw'!$E156="","",'2) Raw'!H156) ->  | H168: =IF('2) Raw'!$E156="","",'2) Raw'!I156) ->  | I168: =IF('2) Raw'!$E156="","",'2) Raw'!J156) ->  | N168: =IF('2) Raw'!$E156="","",'2) Raw'!K156) ->  | O168: =IF('2) Raw'!$E156="","",'2) Raw'!L156) ->  | R168: =IF('2) Raw'!$E157="","",'2) Raw'!M157) ->  | T168: =IF('2) Raw'!$E156="","",'2) Raw'!O156) ->  | U168: =IF('2) Raw'!$E156="","",'2) Raw'!P156) ->  | X168: =IF('2) Raw'!$E157="","",'2) Raw'!Q157) ->  | Z168: =IF('2) Raw'!$E156="","",'2) Raw'!S156) ->  | AA168: =IF('2) Raw'!$E156="","",'2) Raw'!T156) ->  | AD168: =IF('2) Raw'!$E157="","",'2) Raw'!U157) ->  | AI168: =MIN(IF(AF168:AH168=0,"",AF168:AH168)) -> 0 | AK168: =IF(E168="","",VLOOKUP(A168,List!$A$2:$D$186,2,FALSE)) ->  | AL168: =IF(E168="","",VLOOKUP(VALUE(B168),List!$C$2:$D$186,2,FALSE)) ->  | AO168: =IF('2) Raw'!$X156="","",'2) Raw'!X156) -> 
A169: =IF(C169="","",LEFT(C169,1)*100) ->  | B169: =IF(C169="","",LEFT(C169,3)) ->  | C169: =IF('2) Raw'!E157="","",'2) Raw'!E157) ->  | D169: =IF('2) Raw'!$E157="","",PROPER('2) Raw'!F157)) ->  | E169: =IF('2) Raw'!$E157="","",'2) Raw'!G157) ->  | F169: =IF('2) Raw'!$E157="","",'2) Raw'!H157) ->  | H169: =IF('2) Raw'!$E157="","",'2) Raw'!I157) ->  | I169: =IF('2) Raw'!$E157="","",'2) Raw'!J157) ->  | K169: =IF(J169="","",RANK(J169,$J$14:$J$999)) ->  | N169: =IF('2) Raw'!$E157="","",'2) Raw'!K157) ->  | O169: =IF('2) Raw'!$E157="","",'2) Raw'!L157) ->  | Q169: =IF(P169="","",RANK(P169,$P$14:$P$999)) ->  | R169: =IF('2) Raw'!$E158="","",'2) Raw'!M158) ->  | T169: =IF('2) Raw'!$E157="","",'2) Raw'!O157) ->  | U169: =IF('2) Raw'!$E157="","",'2) Raw'!P157) ->  | V169: =IF(OR(U169="",$U$2=0),"",U169/$U$2) ->  | W169: =IF(V169="","",RANK(V169,$V$14:$V$999)) ->  | X169: =IF('2) Raw'!$E158="","",'2) Raw'!Q158) ->  | Z169: =IF('2) Raw'!$E157="","",'2) Raw'!S157) ->  | AA169: =IF('2) Raw'!$E157="","",'2) Raw'!T157) ->  | AB169: =IF(OR(AA169="",$AA$2=0),"",AA169/$AA$2) ->  | AC169: =IF(AB169="","",RANK(AB169,$AB$14:$AB$999)) ->  | AD169: =IF('2) Raw'!$E158="","",'2) Raw'!U158) ->  | AE169: =IF(E169="","",MAX(O169,U169,AA169)) ->  | AF169: =O169 ->  | AG169: =U169 ->  | AH169: =AA169 ->  | AI169: =MIN(IF(AF169:AH169=0,"",AF169:AH169)) -> 0 | AK169: =IF(E169="","",VLOOKUP(A169,List!$A$2:$D$186,2,FALSE)) ->  | AL169: =IF(E169="","",VLOOKUP(VALUE(B169),List!$C$2:$D$186,2,FALSE)) ->  | AO169: =IF('2) Raw'!$X157="","",'2) Raw'!X157) -> 
C170: =IF('2) Raw'!E158="","",'2) Raw'!E158) ->  | D170: =IF('2) Raw'!$E158="","",PROPER('2) Raw'!F158)) ->  | E170: =IF('2) Raw'!$E158="","",'2) Raw'!G158) ->  | F170: =IF('2) Raw'!$E158="","",'2) Raw'!H158) ->  | H170: =IF('2) Raw'!$E158="","",'2) Raw'!I158) ->  | I170: =IF('2) Raw'!$E158="","",'2) Raw'!J158) ->  | N170: =IF('2) Raw'!$E158="","",'2) Raw'!K158) ->  | O170: =IF('2) Raw'!$E158="","",'2) Raw'!L158) ->  | R170: =IF('2) Raw'!$E159="","",'2) Raw'!M159) ->  | T170: =IF('2) Raw'!$E158="","",'2) Raw'!O158) ->  | U170: =IF('2) Raw'!$E158="","",'2) Raw'!P158) ->  | X170: =IF('2) Raw'!$E159="","",'2) Raw'!Q159) ->  | Z170: =IF('2) Raw'!$E158="","",'2) Raw'!S158) ->  | AA170: =IF('2) Raw'!$E158="","",'2) Raw'!T158) ->  | AD170: =IF('2) Raw'!$E159="","",'2) Raw'!U159) ->  | AI170: =MIN(IF(AF170:AH170=0,"",AF170:AH170)) -> 0 | AK170: =IF(E170="","",VLOOKUP(A170,List!$A$2:$D$186,2,FALSE)) ->  | AL170: =IF(E170="","",VLOOKUP(VALUE(B170),List!$C$2:$D$186,2,FALSE)) ->  | AO170: =IF('2) Raw'!$X158="","",'2) Raw'!X158) -> 
C171: =IF('2) Raw'!E159="","",'2) Raw'!E159) ->  | D171: =IF('2) Raw'!$E159="","",PROPER('2) Raw'!F159)) ->  | E171: =IF('2) Raw'!$E159="","",'2) Raw'!G159) ->  | F171: =IF('2) Raw'!$E159="","",'2) Raw'!H159) ->  | H171: =IF('2) Raw'!$E159="","",'2) Raw'!I159) ->  | I171: =IF('2) Raw'!$E159="","",'2) Raw'!J159) ->  | N171: =IF('2) Raw'!$E159="","",'2) Raw'!K159) ->  | O171: =IF('2) Raw'!$E159="","",'2) Raw'!L159) ->  | R171: =IF('2) Raw'!$E160="","",'2) Raw'!M160) ->  | T171: =IF('2) Raw'!$E159="","",'2) Raw'!O159) ->  | U171: =IF('2) Raw'!$E159="","",'2) Raw'!P159) ->  | X171: =IF('2) Raw'!$E160="","",'2) Raw'!Q160) ->  | Z171: =IF('2) Raw'!$E159="","",'2) Raw'!S159) ->  | AA171: =IF('2) Raw'!$E159="","",'2) Raw'!T159) ->  | AD171: =IF('2) Raw'!$E160="","",'2) Raw'!U160) ->  | AI171: =MIN(IF(AF171:AH171=0,"",AF171:AH171)) -> 0 | AK171: =IF(E171="","",VLOOKUP(A171,List!$A$2:$D$186,2,FALSE)) ->  | AL171: =IF(E171="","",VLOOKUP(VALUE(B171),List!$C$2:$D$186,2,FALSE)) ->  | AO171: =IF('2) Raw'!$X159="","",'2) Raw'!X159) -> 
C172: =IF('2) Raw'!E160="","",'2) Raw'!E160) ->  | D172: =IF('2) Raw'!$E160="","",PROPER('2) Raw'!F160)) ->  | E172: =IF('2) Raw'!$E160="","",'2) Raw'!G160) ->  | F172: =IF('2) Raw'!$E160="","",'2) Raw'!H160) ->  | H172: =IF('2) Raw'!$E160="","",'2) Raw'!I160) ->  | I172: =IF('2) Raw'!$E160="","",'2) Raw'!J160) ->  | N172: =IF('2) Raw'!$E160="","",'2) Raw'!K160) ->  | O172: =IF('2) Raw'!$E160="","",'2) Raw'!L160) ->  | R172: =IF('2) Raw'!$E161="","",'2) Raw'!M161) ->  | T172: =IF('2) Raw'!$E160="","",'2) Raw'!O160) ->  | U172: =IF('2) Raw'!$E160="","",'2) Raw'!P160) ->  | X172: =IF('2) Raw'!$E161="","",'2) Raw'!Q161) ->  | Z172: =IF('2) Raw'!$E160="","",'2) Raw'!S160) ->  | AA172: =IF('2) Raw'!$E160="","",'2) Raw'!T160) ->  | AD172: =IF('2) Raw'!$E161="","",'2) Raw'!U161) ->  | AI172: =MIN(IF(AF172:AH172=0,"",AF172:AH172)) -> 0 | AK172: =IF(E172="","",VLOOKUP(A172,List!$A$2:$D$186,2,FALSE)) ->  | AL172: =IF(E172="","",VLOOKUP(VALUE(B172),List!$C$2:$D$186,2,FALSE)) ->  | AO172: =IF('2) Raw'!$X160="","",'2) Raw'!X160) -> 
C173: =IF('2) Raw'!E161="","",'2) Raw'!E161) ->  | D173: =IF('2) Raw'!$E161="","",PROPER('2) Raw'!F161)) ->  | E173: =IF('2) Raw'!$E161="","",'2) Raw'!G161) ->  | F173: =IF('2) Raw'!$E161="","",'2) Raw'!H161) ->  | H173: =IF('2) Raw'!$E161="","",'2) Raw'!I161) ->  | I173: =IF('2) Raw'!$E161="","",'2) Raw'!J161) ->  | N173: =IF('2) Raw'!$E161="","",'2) Raw'!K161) ->  | O173: =IF('2) Raw'!$E161="","",'2) Raw'!L161) ->  | R173: =IF('2) Raw'!$E162="","",'2) Raw'!M162) ->  | T173: =IF('2) Raw'!$E161="","",'2) Raw'!O161) ->  | U173: =IF('2) Raw'!$E161="","",'2) Raw'!P161) ->  | X173: =IF('2) Raw'!$E162="","",'2) Raw'!Q162) ->  | Z173: =IF('2) Raw'!$E161="","",'2) Raw'!S161) ->  | AA173: =IF('2) Raw'!$E161="","",'2) Raw'!T161) ->  | AD173: =IF('2) Raw'!$E162="","",'2) Raw'!U162) ->  | AI173: =MIN(IF(AF173:AH173=0,"",AF173:AH173)) -> 0 | AK173: =IF(E173="","",VLOOKUP(A173,List!$A$2:$D$186,2,FALSE)) ->  | AL173: =IF(E173="","",VLOOKUP(VALUE(B173),List!$C$2:$D$186,2,FALSE)) ->  | AO173: =IF('2) Raw'!$X161="","",'2) Raw'!X161) -> 
C174: =IF('2) Raw'!E162="","",'2) Raw'!E162) ->  | D174: =IF('2) Raw'!$E162="","",PROPER('2) Raw'!F162)) ->  | E174: =IF('2) Raw'!$E162="","",'2) Raw'!G162) ->  | F174: =IF('2) Raw'!$E162="","",'2) Raw'!H162) ->  | H174: =IF('2) Raw'!$E162="","",'2) Raw'!I162) ->  | I174: =IF('2) Raw'!$E162="","",'2) Raw'!J162) ->  | N174: =IF('2) Raw'!$E162="","",'2) Raw'!K162) ->  | O174: =IF('2) Raw'!$E162="","",'2) Raw'!L162) ->  | R174: =IF('2) Raw'!$E163="","",'2) Raw'!M163) ->  | T174: =IF('2) Raw'!$E162="","",'2) Raw'!O162) ->  | U174: =IF('2) Raw'!$E162="","",'2) Raw'!P162) ->  | X174: =IF('2) Raw'!$E163="","",'2) Raw'!Q163) ->  | Z174: =IF('2) Raw'!$E162="","",'2) Raw'!S162) ->  | AA174: =IF('2) Raw'!$E162="","",'2) Raw'!T162) ->  | AD174: =IF('2) Raw'!$E163="","",'2) Raw'!U163) ->  | AI174: =MIN(IF(AF174:AH174=0,"",AF174:AH174)) -> 0 | AK174: =IF(E174="","",VLOOKUP(A174,List!$A$2:$D$186,2,FALSE)) ->  | AL174: =IF(E174="","",VLOOKUP(VALUE(B174),List!$C$2:$D$186,2,FALSE)) ->  | AO174: =IF('2) Raw'!$X162="","",'2) Raw'!X162) -> 
C175: =IF('2) Raw'!E163="","",'2) Raw'!E163) ->  | D175: =IF('2) Raw'!$E163="","",PROPER('2) Raw'!F163)) ->  | E175: =IF('2) Raw'!$E163="","",'2) Raw'!G163) ->  | F175: =IF('2) Raw'!$E163="","",'2) Raw'!H163) ->  | H175: =IF('2) Raw'!$E163="","",'2) Raw'!I163) ->  | I175: =IF('2) Raw'!$E163="","",'2) Raw'!J163) ->  | N175: =IF('2) Raw'!$E163="","",'2) Raw'!K163) ->  | O175: =IF('2) Raw'!$E163="","",'2) Raw'!L163) ->  | R175: =IF('2) Raw'!$E164="","",'2) Raw'!M164) ->  | T175: =IF('2) Raw'!$E163="","",'2) Raw'!O163) ->  | U175: =IF('2) Raw'!$E163="","",'2) Raw'!P163) ->  | X175: =IF('2) Raw'!$E164="","",'2) Raw'!Q164) ->  | Z175: =IF('2) Raw'!$E163="","",'2) Raw'!S163) ->  | AA175: =IF('2) Raw'!$E163="","",'2) Raw'!T163) ->  | AD175: =IF('2) Raw'!$E164="","",'2) Raw'!U164) ->  | AI175: =MIN(IF(AF175:AH175=0,"",AF175:AH175)) -> 0 | AK175: =IF(E175="","",VLOOKUP(A175,List!$A$2:$D$186,2,FALSE)) ->  | AL175: =IF(E175="","",VLOOKUP(VALUE(B175),List!$C$2:$D$186,2,FALSE)) ->  | AO175: =IF('2) Raw'!$X163="","",'2) Raw'!X163) -> 
C176: =IF('2) Raw'!E164="","",'2) Raw'!E164) ->  | D176: =IF('2) Raw'!$E164="","",PROPER('2) Raw'!F164)) ->  | E176: =IF('2) Raw'!$E164="","",'2) Raw'!G164) ->  | F176: =IF('2) Raw'!$E164="","",'2) Raw'!H164) ->  | H176: =IF('2) Raw'!$E164="","",'2) Raw'!I164) ->  | I176: =IF('2) Raw'!$E164="","",'2) Raw'!J164) ->  | N176: =IF('2) Raw'!$E164="","",'2) Raw'!K164) ->  | O176: =IF('2) Raw'!$E164="","",'2) Raw'!L164) ->  | R176: =IF('2) Raw'!$E165="","",'2) Raw'!M165) ->  | T176: =IF('2) Raw'!$E164="","",'2) Raw'!O164) ->  | U176: =IF('2) Raw'!$E164="","",'2) Raw'!P164) ->  | X176: =IF('2) Raw'!$E165="","",'2) Raw'!Q165) ->  | Z176: =IF('2) Raw'!$E164="","",'2) Raw'!S164) ->  | AA176: =IF('2) Raw'!$E164="","",'2) Raw'!T164) ->  | AD176: =IF('2) Raw'!$E165="","",'2) Raw'!U165) ->  | AI176: =MIN(IF(AF176:AH176=0,"",AF176:AH176)) -> 0 | AK176: =IF(E176="","",VLOOKUP(A176,List!$A$2:$D$186,2,FALSE)) ->  | AL176: =IF(E176="","",VLOOKUP(VALUE(B176),List!$C$2:$D$186,2,FALSE)) ->  | AO176: =IF('2) Raw'!$X164="","",'2) Raw'!X164) -> 
C177: =IF('2) Raw'!E165="","",'2) Raw'!E165) ->  | D177: =IF('2) Raw'!$E165="","",PROPER('2) Raw'!F165)) ->  | E177: =IF('2) Raw'!$E165="","",'2) Raw'!G165) ->  | F177: =IF('2) Raw'!$E165="","",'2) Raw'!H165) ->  | H177: =IF('2) Raw'!$E165="","",'2) Raw'!I165) ->  | I177: =IF('2) Raw'!$E165="","",'2) Raw'!J165) ->  | N177: =IF('2) Raw'!$E165="","",'2) Raw'!K165) ->  | O177: =IF('2) Raw'!$E165="","",'2) Raw'!L165) ->  | R177: =IF('2) Raw'!$E166="","",'2) Raw'!M166) ->  | T177: =IF('2) Raw'!$E165="","",'2) Raw'!O165) ->  | U177: =IF('2) Raw'!$E165="","",'2) Raw'!P165) ->  | X177: =IF('2) Raw'!$E166="","",'2) Raw'!Q166) ->  | Z177: =IF('2) Raw'!$E165="","",'2) Raw'!S165) ->  | AA177: =IF('2) Raw'!$E165="","",'2) Raw'!T165) ->  | AD177: =IF('2) Raw'!$E166="","",'2) Raw'!U166) ->  | AI177: =MIN(IF(AF177:AH177=0,"",AF177:AH177)) -> 0 | AK177: =IF(E177="","",VLOOKUP(A177,List!$A$2:$D$186,2,FALSE)) ->  | AL177: =IF(E177="","",VLOOKUP(VALUE(B177),List!$C$2:$D$186,2,FALSE)) ->  | AO177: =IF('2) Raw'!$X165="","",'2) Raw'!X165) -> 
C178: =IF('2) Raw'!E166="","",'2) Raw'!E166) ->  | D178: =IF('2) Raw'!$E166="","",PROPER('2) Raw'!F166)) ->  | E178: =IF('2) Raw'!$E166="","",'2) Raw'!G166) ->  | F178: =IF('2) Raw'!$E166="","",'2) Raw'!H166) ->  | H178: =IF('2) Raw'!$E166="","",'2) Raw'!I166) ->  | I178: =IF('2) Raw'!$E166="","",'2) Raw'!J166) ->  | N178: =IF('2) Raw'!$E166="","",'2) Raw'!K166) ->  | O178: =IF('2) Raw'!$E166="","",'2) Raw'!L166) ->  | R178: =IF('2) Raw'!$E167="","",'2) Raw'!M167) ->  | T178: =IF('2) Raw'!$E166="","",'2) Raw'!O166) ->  | U178: =IF('2) Raw'!$E166="","",'2) Raw'!P166) ->  | X178: =IF('2) Raw'!$E167="","",'2) Raw'!Q167) ->  | Z178: =IF('2) Raw'!$E166="","",'2) Raw'!S166) ->  | AA178: =IF('2) Raw'!$E166="","",'2) Raw'!T166) ->  | AD178: =IF('2) Raw'!$E167="","",'2) Raw'!U167) ->  | AI178: =MIN(IF(AF178:AH178=0,"",AF178:AH178)) -> 0 | AK178: =IF(E178="","",VLOOKUP(A178,List!$A$2:$D$186,2,FALSE)) ->  | AL178: =IF(E178="","",VLOOKUP(VALUE(B178),List!$C$2:$D$186,2,FALSE)) ->  | AO178: =IF('2) Raw'!$X166="","",'2) Raw'!X166) -> 
C179: =IF('2) Raw'!E167="","",'2) Raw'!E167) ->  | D179: =IF('2) Raw'!$E167="","",PROPER('2) Raw'!F167)) ->  | E179: =IF('2) Raw'!$E167="","",'2) Raw'!G167) ->  | F179: =IF('2) Raw'!$E167="","",'2) Raw'!H167) ->  | H179: =IF('2) Raw'!$E167="","",'2) Raw'!I167) ->  | I179: =IF('2) Raw'!$E167="","",'2) Raw'!J167) ->  | N179: =IF('2) Raw'!$E167="","",'2) Raw'!K167) ->  | O179: =IF('2) Raw'!$E167="","",'2) Raw'!L167) ->  | R179: =IF('2) Raw'!$E168="","",'2) Raw'!M168) ->  | T179: =IF('2) Raw'!$E167="","",'2) Raw'!O167) ->  | U179: =IF('2) Raw'!$E167="","",'2) Raw'!P167) ->  | X179: =IF('2) Raw'!$E168="","",'2) Raw'!Q168) ->  | Z179: =IF('2) Raw'!$E167="","",'2) Raw'!S167) ->  | AA179: =IF('2) Raw'!$E167="","",'2) Raw'!T167) ->  | AD179: =IF('2) Raw'!$E168="","",'2) Raw'!U168) ->  | AI179: =MIN(IF(AF179:AH179=0,"",AF179:AH179)) -> 0 | AK179: =IF(E179="","",VLOOKUP(A179,List!$A$2:$D$186,2,FALSE)) ->  | AL179: =IF(E179="","",VLOOKUP(VALUE(B179),List!$C$2:$D$186,2,FALSE)) ->  | AO179: =IF('2) Raw'!$X167="","",'2) Raw'!X167) -> 
C180: =IF('2) Raw'!E168="","",'2) Raw'!E168) ->  | D180: =IF('2) Raw'!$E168="","",PROPER('2) Raw'!F168)) ->  | E180: =IF('2) Raw'!$E168="","",'2) Raw'!G168) ->  | F180: =IF('2) Raw'!$E168="","",'2) Raw'!H168) ->  | H180: =IF('2) Raw'!$E168="","",'2) Raw'!I168) ->  | I180: =IF('2) Raw'!$E168="","",'2) Raw'!J168) ->  | N180: =IF('2) Raw'!$E168="","",'2) Raw'!K168) ->  | O180: =IF('2) Raw'!$E168="","",'2) Raw'!L168) ->  | R180: =IF('2) Raw'!$E169="","",'2) Raw'!M169) ->  | T180: =IF('2) Raw'!$E168="","",'2) Raw'!O168) ->  | U180: =IF('2) Raw'!$E168="","",'2) Raw'!P168) ->  | X180: =IF('2) Raw'!$E169="","",'2) Raw'!Q169) ->  | Z180: =IF('2) Raw'!$E168="","",'2) Raw'!S168) ->  | AA180: =IF('2) Raw'!$E168="","",'2) Raw'!T168) ->  | AD180: =IF('2) Raw'!$E169="","",'2) Raw'!U169) ->  | AI180: =MIN(IF(AF180:AH180=0,"",AF180:AH180)) -> 0 | AK180: =IF(E180="","",VLOOKUP(A180,List!$A$2:$D$186,2,FALSE)) ->  | AL180: =IF(E180="","",VLOOKUP(VALUE(B180),List!$C$2:$D$186,2,FALSE)) ->  | AO180: =IF('2) Raw'!$X168="","",'2) Raw'!X168) -> 
C181: =IF('2) Raw'!E169="","",'2) Raw'!E169) ->  | D181: =IF('2) Raw'!$E169="","",PROPER('2) Raw'!F169)) ->  | E181: =IF('2) Raw'!$E169="","",'2) Raw'!G169) ->  | F181: =IF('2) Raw'!$E169="","",'2) Raw'!H169) ->  | H181: =IF('2) Raw'!$E169="","",'2) Raw'!I169) ->  | I181: =IF('2) Raw'!$E169="","",'2) Raw'!J169) ->  | N181: =IF('2) Raw'!$E169="","",'2) Raw'!K169) ->  | O181: =IF('2) Raw'!$E169="","",'2) Raw'!L169) ->  | R181: =IF('2) Raw'!$E170="","",'2) Raw'!M170) ->  | T181: =IF('2) Raw'!$E169="","",'2) Raw'!O169) ->  | U181: =IF('2) Raw'!$E169="","",'2) Raw'!P169) ->  | X181: =IF('2) Raw'!$E170="","",'2) Raw'!Q170) ->  | Z181: =IF('2) Raw'!$E169="","",'2) Raw'!S169) ->  | AA181: =IF('2) Raw'!$E169="","",'2) Raw'!T169) ->  | AD181: =IF('2) Raw'!$E170="","",'2) Raw'!U170) ->  | AI181: =MIN(IF(AF181:AH181=0,"",AF181:AH181)) -> 0 | AK181: =IF(E181="","",VLOOKUP(A181,List!$A$2:$D$186,2,FALSE)) ->  | AL181: =IF(E181="","",VLOOKUP(VALUE(B181),List!$C$2:$D$186,2,FALSE)) ->  | AO181: =IF('2) Raw'!$X169="","",'2) Raw'!X169) -> 
C182: =IF('2) Raw'!E170="","",'2) Raw'!E170) ->  | D182: =IF('2) Raw'!$E170="","",PROPER('2) Raw'!F170)) ->  | E182: =IF('2) Raw'!$E170="","",'2) Raw'!G170) ->  | F182: =IF('2) Raw'!$E170="","",'2) Raw'!H170) ->  | H182: =IF('2) Raw'!$E170="","",'2) Raw'!I170) ->  | I182: =IF('2) Raw'!$E170="","",'2) Raw'!J170) ->  | N182: =IF('2) Raw'!$E170="","",'2) Raw'!K170) ->  | O182: =IF('2) Raw'!$E170="","",'2) Raw'!L170) ->  | R182: =IF('2) Raw'!$E171="","",'2) Raw'!M171) ->  | T182: =IF('2) Raw'!$E170="","",'2) Raw'!O170) ->  | U182: =IF('2) Raw'!$E170="","",'2) Raw'!P170) ->  | X182: =IF('2) Raw'!$E171="","",'2) Raw'!Q171) ->  | Z182: =IF('2) Raw'!$E170="","",'2) Raw'!S170) ->  | AA182: =IF('2) Raw'!$E170="","",'2) Raw'!T170) ->  | AD182: =IF('2) Raw'!$E171="","",'2) Raw'!U171) ->  | AI182: =MIN(IF(AF182:AH182=0,"",AF182:AH182)) -> 0 | AK182: =IF(E182="","",VLOOKUP(A182,List!$A$2:$D$186,2,FALSE)) ->  | AL182: =IF(E182="","",VLOOKUP(VALUE(B182),List!$C$2:$D$186,2,FALSE)) ->  | AO182: =IF('2) Raw'!$X170="","",'2) Raw'!X170) -> 
C183: =IF('2) Raw'!E171="","",'2) Raw'!E171) ->  | D183: =IF('2) Raw'!$E171="","",PROPER('2) Raw'!F171)) ->  | E183: =IF('2) Raw'!$E171="","",'2) Raw'!G171) ->  | F183: =IF('2) Raw'!$E171="","",'2) Raw'!H171) ->  | H183: =IF('2) Raw'!$E171="","",'2) Raw'!I171) ->  | I183: =IF('2) Raw'!$E171="","",'2) Raw'!J171) ->  | N183: =IF('2) Raw'!$E171="","",'2) Raw'!K171) ->  | O183: =IF('2) Raw'!$E171="","",'2) Raw'!L171) ->  | R183: =IF('2) Raw'!$E172="","",'2) Raw'!M172) ->  | T183: =IF('2) Raw'!$E171="","",'2) Raw'!O171) ->  | U183: =IF('2) Raw'!$E171="","",'2) Raw'!P171) ->  | X183: =IF('2) Raw'!$E172="","",'2) Raw'!Q172) ->  | Z183: =IF('2) Raw'!$E171="","",'2) Raw'!S171) ->  | AA183: =IF('2) Raw'!$E171="","",'2) Raw'!T171) ->  | AD183: =IF('2) Raw'!$E172="","",'2) Raw'!U172) ->  | AI183: =MIN(IF(AF183:AH183=0,"",AF183:AH183)) -> 0 | AK183: =IF(E183="","",VLOOKUP(A183,List!$A$2:$D$186,2,FALSE)) ->  | AL183: =IF(E183="","",VLOOKUP(VALUE(B183),List!$C$2:$D$186,2,FALSE)) ->  | AO183: =IF('2) Raw'!$X171="","",'2) Raw'!X171) -> 
C184: =IF('2) Raw'!E172="","",'2) Raw'!E172) ->  | D184: =IF('2) Raw'!$E172="","",PROPER('2) Raw'!F172)) ->  | E184: =IF('2) Raw'!$E172="","",'2) Raw'!G172) ->  | F184: =IF('2) Raw'!$E172="","",'2) Raw'!H172) ->  | H184: =IF('2) Raw'!$E172="","",'2) Raw'!I172) ->  | I184: =IF('2) Raw'!$E172="","",'2) Raw'!J172) ->  | N184: =IF('2) Raw'!$E172="","",'2) Raw'!K172) ->  | O184: =IF('2) Raw'!$E172="","",'2) Raw'!L172) ->  | R184: =IF('2) Raw'!$E173="","",'2) Raw'!M173) ->  | T184: =IF('2) Raw'!$E172="","",'2) Raw'!O172) ->  | U184: =IF('2) Raw'!$E172="","",'2) Raw'!P172) ->  | X184: =IF('2) Raw'!$E173="","",'2) Raw'!Q173) ->  | Z184: =IF('2) Raw'!$E172="","",'2) Raw'!S172) ->  | AA184: =IF('2) Raw'!$E172="","",'2) Raw'!T172) ->  | AD184: =IF('2) Raw'!$E173="","",'2) Raw'!U173) ->  | AI184: =MIN(IF(AF184:AH184=0,"",AF184:AH184)) -> 0 | AK184: =IF(E184="","",VLOOKUP(A184,List!$A$2:$D$186,2,FALSE)) ->  | AL184: =IF(E184="","",VLOOKUP(VALUE(B184),List!$C$2:$D$186,2,FALSE)) ->  | AO184: =IF('2) Raw'!$X172="","",'2) Raw'!X172) -> 
C185: =IF('2) Raw'!E173="","",'2) Raw'!E173) ->  | D185: =IF('2) Raw'!$E173="","",PROPER('2) Raw'!F173)) ->  | E185: =IF('2) Raw'!$E173="","",'2) Raw'!G173) ->  | F185: =IF('2) Raw'!$E173="","",'2) Raw'!H173) ->  | H185: =IF('2) Raw'!$E173="","",'2) Raw'!I173) ->  | I185: =IF('2) Raw'!$E173="","",'2) Raw'!J173) ->  | N185: =IF('2) Raw'!$E173="","",'2) Raw'!K173) ->  | O185: =IF('2) Raw'!$E173="","",'2) Raw'!L173) ->  | R185: =IF('2) Raw'!$E174="","",'2) Raw'!M174) ->  | T185: =IF('2) Raw'!$E173="","",'2) Raw'!O173) ->  | U185: =IF('2) Raw'!$E173="","",'2) Raw'!P173) ->  | X185: =IF('2) Raw'!$E174="","",'2) Raw'!Q174) ->  | Z185: =IF('2) Raw'!$E173="","",'2) Raw'!S173) ->  | AA185: =IF('2) Raw'!$E173="","",'2) Raw'!T173) ->  | AD185: =IF('2) Raw'!$E174="","",'2) Raw'!U174) ->  | AI185: =MIN(IF(AF185:AH185=0,"",AF185:AH185)) -> 0 | AK185: =IF(E185="","",VLOOKUP(A185,List!$A$2:$D$186,2,FALSE)) ->  | AL185: =IF(E185="","",VLOOKUP(VALUE(B185),List!$C$2:$D$186,2,FALSE)) ->  | AO185: =IF('2) Raw'!$X173="","",'2) Raw'!X173) -> 
C186: =IF('2) Raw'!E174="","",'2) Raw'!E174) ->  | D186: =IF('2) Raw'!$E174="","",PROPER('2) Raw'!F174)) ->  | E186: =IF('2) Raw'!$E174="","",'2) Raw'!G174) ->  | F186: =IF('2) Raw'!$E174="","",'2) Raw'!H174) ->  | H186: =IF('2) Raw'!$E174="","",'2) Raw'!I174) ->  | I186: =IF('2) Raw'!$E174="","",'2) Raw'!J174) ->  | N186: =IF('2) Raw'!$E174="","",'2) Raw'!K174) ->  | O186: =IF('2) Raw'!$E174="","",'2) Raw'!L174) ->  | R186: =IF('2) Raw'!$E175="","",'2) Raw'!M175) ->  | T186: =IF('2) Raw'!$E174="","",'2) Raw'!O174) ->  | U186: =IF('2) Raw'!$E174="","",'2) Raw'!P174) ->  | X186: =IF('2) Raw'!$E175="","",'2) Raw'!Q175) ->  | Z186: =IF('2) Raw'!$E174="","",'2) Raw'!S174) ->  | AA186: =IF('2) Raw'!$E174="","",'2) Raw'!T174) ->  | AD186: =IF('2) Raw'!$E175="","",'2) Raw'!U175) ->  | AI186: =MIN(IF(AF186:AH186=0,"",AF186:AH186)) -> 0 | AK186: =IF(E186="","",VLOOKUP(A186,List!$A$2:$D$186,2,FALSE)) ->  | AL186: =IF(E186="","",VLOOKUP(VALUE(B186),List!$C$2:$D$186,2,FALSE)) ->  | AO186: =IF('2) Raw'!$X174="","",'2) Raw'!X174) -> 
C187: =IF('2) Raw'!E175="","",'2) Raw'!E175) ->  | D187: =IF('2) Raw'!$E175="","",PROPER('2) Raw'!F175)) ->  | E187: =IF('2) Raw'!$E175="","",'2) Raw'!G175) ->  | F187: =IF('2) Raw'!$E175="","",'2) Raw'!H175) ->  | H187: =IF('2) Raw'!$E175="","",'2) Raw'!I175) ->  | I187: =IF('2) Raw'!$E175="","",'2) Raw'!J175) ->  | N187: =IF('2) Raw'!$E175="","",'2) Raw'!K175) ->  | O187: =IF('2) Raw'!$E175="","",'2) Raw'!L175) ->  | R187: =IF('2) Raw'!$E176="","",'2) Raw'!M176) ->  | T187: =IF('2) Raw'!$E175="","",'2) Raw'!O175) ->  | U187: =IF('2) Raw'!$E175="","",'2) Raw'!P175) ->  | X187: =IF('2) Raw'!$E176="","",'2) Raw'!Q176) ->  | Z187: =IF('2) Raw'!$E175="","",'2) Raw'!S175) ->  | AA187: =IF('2) Raw'!$E175="","",'2) Raw'!T175) ->  | AD187: =IF('2) Raw'!$E176="","",'2) Raw'!U176) ->  | AI187: =MIN(IF(AF187:AH187=0,"",AF187:AH187)) -> 0 | AK187: =IF(E187="","",VLOOKUP(A187,List!$A$2:$D$186,2,FALSE)) ->  | AL187: =IF(E187="","",VLOOKUP(VALUE(B187),List!$C$2:$D$186,2,FALSE)) ->  | AO187: =IF('2) Raw'!$X175="","",'2) Raw'!X175) -> 
A188: =IF(C188="","",LEFT(C188,1)*100) ->  | B188: =IF(C188="","",LEFT(C188,3)) ->  | C188: =IF('2) Raw'!E176="","",'2) Raw'!E176) ->  | D188: =IF('2) Raw'!$E176="","",PROPER('2) Raw'!F176)) ->  | E188: =IF('2) Raw'!$E176="","",'2) Raw'!G176) ->  | F188: =IF('2) Raw'!$E176="","",'2) Raw'!H176) ->  | H188: =IF('2) Raw'!$E176="","",'2) Raw'!I176) ->  | I188: =IF('2) Raw'!$E176="","",'2) Raw'!J176) ->  | N188: =IF('2) Raw'!$E176="","",'2) Raw'!K176) ->  | O188: =IF('2) Raw'!$E176="","",'2) Raw'!L176) ->  | R188: =IF('2) Raw'!$E177="","",'2) Raw'!M177) ->  | T188: =IF('2) Raw'!$E176="","",'2) Raw'!O176) ->  | U188: =IF('2) Raw'!$E176="","",'2) Raw'!P176) ->  | X188: =IF('2) Raw'!$E177="","",'2) Raw'!Q177) ->  | Z188: =IF('2) Raw'!$E176="","",'2) Raw'!S176) ->  | AA188: =IF('2) Raw'!$E176="","",'2) Raw'!T176) ->  | AD188: =IF('2) Raw'!$E177="","",'2) Raw'!U177) ->  | AI188: =MIN(IF(AF188:AH188=0,"",AF188:AH188)) -> 0 | AK188: =IF(E188="","",VLOOKUP(A188,List!$A$2:$D$186,2,FALSE)) ->  | AL188: =IF(E188="","",VLOOKUP(VALUE(B188),List!$C$2:$D$186,2,FALSE)) ->  | AO188: =IF('2) Raw'!$X176="","",'2) Raw'!X176) -> 
C189: =IF('2) Raw'!E177="","",'2) Raw'!E177) ->  | D189: =IF('2) Raw'!$E177="","",PROPER('2) Raw'!F177)) ->  | E189: =IF('2) Raw'!$E177="","",'2) Raw'!G177) ->  | F189: =IF('2) Raw'!$E177="","",'2) Raw'!H177) ->  | H189: =IF('2) Raw'!$E177="","",'2) Raw'!I177) ->  | I189: =IF('2) Raw'!$E177="","",'2) Raw'!J177) ->  | N189: =IF('2) Raw'!$E177="","",'2) Raw'!K177) ->  | O189: =IF('2) Raw'!$E177="","",'2) Raw'!L177) ->  | R189: =IF('2) Raw'!$E178="","",'2) Raw'!M178) ->  | T189: =IF('2) Raw'!$E177="","",'2) Raw'!O177) ->  | U189: =IF('2) Raw'!$E177="","",'2) Raw'!P177) ->  | X189: =IF('2) Raw'!$E178="","",'2) Raw'!Q178) ->  | Z189: =IF('2) Raw'!$E177="","",'2) Raw'!S177) ->  | AA189: =IF('2) Raw'!$E177="","",'2) Raw'!T177) ->  | AD189: =IF('2) Raw'!$E178="","",'2) Raw'!U178) ->  | AI189: =MIN(IF(AF189:AH189=0,"",AF189:AH189)) -> 0 | AK189: =IF(E189="","",VLOOKUP(A189,List!$A$2:$D$186,2,FALSE)) ->  | AL189: =IF(E189="","",VLOOKUP(VALUE(B189),List!$C$2:$D$186,2,FALSE)) ->  | AO189: =IF('2) Raw'!$X177="","",'2) Raw'!X177) -> 
C190: =IF('2) Raw'!E178="","",'2) Raw'!E178) ->  | D190: =IF('2) Raw'!$E178="","",PROPER('2) Raw'!F178)) ->  | E190: =IF('2) Raw'!$E178="","",'2) Raw'!G178) ->  | F190: =IF('2) Raw'!$E178="","",'2) Raw'!H178) ->  | H190: =IF('2) Raw'!$E178="","",'2) Raw'!I178) ->  | I190: =IF('2) Raw'!$E178="","",'2) Raw'!J178) ->  | N190: =IF('2) Raw'!$E178="","",'2) Raw'!K178) ->  | O190: =IF('2) Raw'!$E178="","",'2) Raw'!L178) ->  | R190: =IF('2) Raw'!$E179="","",'2) Raw'!M179) ->  | T190: =IF('2) Raw'!$E178="","",'2) Raw'!O178) ->  | U190: =IF('2) Raw'!$E178="","",'2) Raw'!P178) ->  | X190: =IF('2) Raw'!$E179="","",'2) Raw'!Q179) ->  | Z190: =IF('2) Raw'!$E178="","",'2) Raw'!S178) ->  | AA190: =IF('2) Raw'!$E178="","",'2) Raw'!T178) ->  | AD190: =IF('2) Raw'!$E179="","",'2) Raw'!U179) ->  | AI190: =MIN(IF(AF190:AH190=0,"",AF190:AH190)) -> 0 | AK190: =IF(E190="","",VLOOKUP(A190,List!$A$2:$D$186,2,FALSE)) ->  | AL190: =IF(E190="","",VLOOKUP(VALUE(B190),List!$C$2:$D$186,2,FALSE)) ->  | AO190: =IF('2) Raw'!$X178="","",'2) Raw'!X178) -> 
C191: =IF('2) Raw'!E179="","",'2) Raw'!E179) ->  | D191: =IF('2) Raw'!$E179="","",PROPER('2) Raw'!F179)) ->  | E191: =IF('2) Raw'!$E179="","",'2) Raw'!G179) ->  | F191: =IF('2) Raw'!$E179="","",'2) Raw'!H179) ->  | H191: =IF('2) Raw'!$E179="","",'2) Raw'!I179) ->  | I191: =IF('2) Raw'!$E179="","",'2) Raw'!J179) ->  | N191: =IF('2) Raw'!$E179="","",'2) Raw'!K179) ->  | O191: =IF('2) Raw'!$E179="","",'2) Raw'!L179) ->  | R191: =IF('2) Raw'!$E180="","",'2) Raw'!M180) ->  | T191: =IF('2) Raw'!$E179="","",'2) Raw'!O179) ->  | U191: =IF('2) Raw'!$E179="","",'2) Raw'!P179) ->  | X191: =IF('2) Raw'!$E180="","",'2) Raw'!Q180) ->  | Z191: =IF('2) Raw'!$E179="","",'2) Raw'!S179) ->  | AA191: =IF('2) Raw'!$E179="","",'2) Raw'!T179) ->  | AD191: =IF('2) Raw'!$E180="","",'2) Raw'!U180) ->  | AI191: =MIN(IF(AF191:AH191=0,"",AF191:AH191)) -> 0 | AK191: =IF(E191="","",VLOOKUP(A191,List!$A$2:$D$186,2,FALSE)) ->  | AL191: =IF(E191="","",VLOOKUP(VALUE(B191),List!$C$2:$D$186,2,FALSE)) ->  | AO191: =IF('2) Raw'!$X179="","",'2) Raw'!X179) -> 
C192: =IF('2) Raw'!E180="","",'2) Raw'!E180) ->  | D192: =IF('2) Raw'!$E180="","",PROPER('2) Raw'!F180)) ->  | E192: =IF('2) Raw'!$E180="","",'2) Raw'!G180) ->  | F192: =IF('2) Raw'!$E180="","",'2) Raw'!H180) ->  | H192: =IF('2) Raw'!$E180="","",'2) Raw'!I180) ->  | I192: =IF('2) Raw'!$E180="","",'2) Raw'!J180) ->  | N192: =IF('2) Raw'!$E180="","",'2) Raw'!K180) ->  | O192: =IF('2) Raw'!$E180="","",'2) Raw'!L180) ->  | R192: =IF('2) Raw'!$E181="","",'2) Raw'!M181) ->  | T192: =IF('2) Raw'!$E180="","",'2) Raw'!O180) ->  | U192: =IF('2) Raw'!$E180="","",'2) Raw'!P180) ->  | X192: =IF('2) Raw'!$E181="","",'2) Raw'!Q181) ->  | Z192: =IF('2) Raw'!$E180="","",'2) Raw'!S180) ->  | AA192: =IF('2) Raw'!$E180="","",'2) Raw'!T180) ->  | AD192: =IF('2) Raw'!$E181="","",'2) Raw'!U181) ->  | AI192: =MIN(IF(AF192:AH192=0,"",AF192:AH192)) -> 0 | AK192: =IF(E192="","",VLOOKUP(A192,List!$A$2:$D$186,2,FALSE)) ->  | AL192: =IF(E192="","",VLOOKUP(VALUE(B192),List!$C$2:$D$186,2,FALSE)) ->  | AO192: =IF('2) Raw'!$X180="","",'2) Raw'!X180) -> 
C193: =IF('2) Raw'!E181="","",'2) Raw'!E181) ->  | D193: =IF('2) Raw'!$E181="","",PROPER('2) Raw'!F181)) ->  | E193: =IF('2) Raw'!$E181="","",'2) Raw'!G181) ->  | F193: =IF('2) Raw'!$E181="","",'2) Raw'!H181) ->  | H193: =IF('2) Raw'!$E181="","",'2) Raw'!I181) ->  | I193: =IF('2) Raw'!$E181="","",'2) Raw'!J181) ->  | N193: =IF('2) Raw'!$E181="","",'2) Raw'!K181) ->  | O193: =IF('2) Raw'!$E181="","",'2) Raw'!L181) ->  | R193: =IF('2) Raw'!$E182="","",'2) Raw'!M182) ->  | T193: =IF('2) Raw'!$E181="","",'2) Raw'!O181) ->  | U193: =IF('2) Raw'!$E181="","",'2) Raw'!P181) ->  | X193: =IF('2) Raw'!$E182="","",'2) Raw'!Q182) ->  | Z193: =IF('2) Raw'!$E181="","",'2) Raw'!S181) ->  | AA193: =IF('2) Raw'!$E181="","",'2) Raw'!T181) ->  | AD193: =IF('2) Raw'!$E182="","",'2) Raw'!U182) ->  | AI193: =MIN(IF(AF193:AH193=0,"",AF193:AH193)) -> 0 | AK193: =IF(E193="","",VLOOKUP(A193,List!$A$2:$D$186,2,FALSE)) ->  | AL193: =IF(E193="","",VLOOKUP(VALUE(B193),List!$C$2:$D$186,2,FALSE)) ->  | AO193: =IF('2) Raw'!$X181="","",'2) Raw'!X181) -> 
C194: =IF('2) Raw'!E182="","",'2) Raw'!E182) ->  | D194: =IF('2) Raw'!$E182="","",PROPER('2) Raw'!F182)) ->  | E194: =IF('2) Raw'!$E182="","",'2) Raw'!G182) ->  | F194: =IF('2) Raw'!$E182="","",'2) Raw'!H182) ->  | H194: =IF('2) Raw'!$E182="","",'2) Raw'!I182) ->  | I194: =IF('2) Raw'!$E182="","",'2) Raw'!J182) ->  | N194: =IF('2) Raw'!$E182="","",'2) Raw'!K182) ->  | O194: =IF('2) Raw'!$E182="","",'2) Raw'!L182) ->  | R194: =IF('2) Raw'!$E183="","",'2) Raw'!M183) ->  | T194: =IF('2) Raw'!$E182="","",'2) Raw'!O182) ->  | U194: =IF('2) Raw'!$E182="","",'2) Raw'!P182) ->  | X194: =IF('2) Raw'!$E183="","",'2) Raw'!Q183) ->  | Z194: =IF('2) Raw'!$E182="","",'2) Raw'!S182) ->  | AA194: =IF('2) Raw'!$E182="","",'2) Raw'!T182) ->  | AD194: =IF('2) Raw'!$E183="","",'2) Raw'!U183) ->  | AI194: =MIN(IF(AF194:AH194=0,"",AF194:AH194)) -> 0 | AK194: =IF(E194="","",VLOOKUP(A194,List!$A$2:$D$186,2,FALSE)) ->  | AL194: =IF(E194="","",VLOOKUP(VALUE(B194),List!$C$2:$D$186,2,FALSE)) ->  | AO194: =IF('2) Raw'!$X182="","",'2) Raw'!X182) -> 
C195: =IF('2) Raw'!E183="","",'2) Raw'!E183) ->  | D195: =IF('2) Raw'!$E183="","",PROPER('2) Raw'!F183)) ->  | E195: =IF('2) Raw'!$E183="","",'2) Raw'!G183) ->  | F195: =IF('2) Raw'!$E183="","",'2) Raw'!H183) ->  | H195: =IF('2) Raw'!$E183="","",'2) Raw'!I183) ->  | I195: =IF('2) Raw'!$E183="","",'2) Raw'!J183) ->  | N195: =IF('2) Raw'!$E183="","",'2) Raw'!K183) ->  | O195: =IF('2) Raw'!$E183="","",'2) Raw'!L183) ->  | R195: =IF('2) Raw'!$E184="","",'2) Raw'!M184) ->  | T195: =IF('2) Raw'!$E183="","",'2) Raw'!O183) ->  | U195: =IF('2) Raw'!$E183="","",'2) Raw'!P183) ->  | X195: =IF('2) Raw'!$E184="","",'2) Raw'!Q184) ->  | Z195: =IF('2) Raw'!$E183="","",'2) Raw'!S183) ->  | AA195: =IF('2) Raw'!$E183="","",'2) Raw'!T183) ->  | AD195: =IF('2) Raw'!$E184="","",'2) Raw'!U184) ->  | AI195: =MIN(IF(AF195:AH195=0,"",AF195:AH195)) -> 0 | AK195: =IF(E195="","",VLOOKUP(A195,List!$A$2:$D$186,2,FALSE)) ->  | AL195: =IF(E195="","",VLOOKUP(VALUE(B195),List!$C$2:$D$186,2,FALSE)) ->  | AO195: =IF('2) Raw'!$X183="","",'2) Raw'!X183) -> 
C196: =IF('2) Raw'!E184="","",'2) Raw'!E184) ->  | D196: =IF('2) Raw'!$E184="","",PROPER('2) Raw'!F184)) ->  | E196: =IF('2) Raw'!$E184="","",'2) Raw'!G184) ->  | F196: =IF('2) Raw'!$E184="","",'2) Raw'!H184) ->  | H196: =IF('2) Raw'!$E184="","",'2) Raw'!I184) ->  | I196: =IF('2) Raw'!$E184="","",'2) Raw'!J184) ->  | N196: =IF('2) Raw'!$E184="","",'2) Raw'!K184) ->  | O196: =IF('2) Raw'!$E184="","",'2) Raw'!L184) ->  | R196: =IF('2) Raw'!$E185="","",'2) Raw'!M185) ->  | T196: =IF('2) Raw'!$E184="","",'2) Raw'!O184) ->  | U196: =IF('2) Raw'!$E184="","",'2) Raw'!P184) ->  | X196: =IF('2) Raw'!$E185="","",'2) Raw'!Q185) ->  | Z196: =IF('2) Raw'!$E184="","",'2) Raw'!S184) ->  | AA196: =IF('2) Raw'!$E184="","",'2) Raw'!T184) ->  | AD196: =IF('2) Raw'!$E185="","",'2) Raw'!U185) ->  | AI196: =MIN(IF(AF196:AH196=0,"",AF196:AH196)) -> 0 | AK196: =IF(E196="","",VLOOKUP(A196,List!$A$2:$D$186,2,FALSE)) ->  | AL196: =IF(E196="","",VLOOKUP(VALUE(B196),List!$C$2:$D$186,2,FALSE)) ->  | AO196: =IF('2) Raw'!$X184="","",'2) Raw'!X184) -> 
C197: =IF('2) Raw'!E185="","",'2) Raw'!E185) ->  | D197: =IF('2) Raw'!$E185="","",PROPER('2) Raw'!F185)) ->  | E197: =IF('2) Raw'!$E185="","",'2) Raw'!G185) ->  | F197: =IF('2) Raw'!$E185="","",'2) Raw'!H185) ->  | H197: =IF('2) Raw'!$E185="","",'2) Raw'!I185) ->  | I197: =IF('2) Raw'!$E185="","",'2) Raw'!J185) ->  | N197: =IF('2) Raw'!$E185="","",'2) Raw'!K185) ->  | O197: =IF('2) Raw'!$E185="","",'2) Raw'!L185) ->  | R197: =IF('2) Raw'!$E186="","",'2) Raw'!M186) ->  | T197: =IF('2) Raw'!$E185="","",'2) Raw'!O185) ->  | U197: =IF('2) Raw'!$E185="","",'2) Raw'!P185) ->  | X197: =IF('2) Raw'!$E186="","",'2) Raw'!Q186) ->  | Z197: =IF('2) Raw'!$E185="","",'2) Raw'!S185) ->  | AA197: =IF('2) Raw'!$E185="","",'2) Raw'!T185) ->  | AD197: =IF('2) Raw'!$E186="","",'2) Raw'!U186) ->  | AI197: =MIN(IF(AF197:AH197=0,"",AF197:AH197)) -> 0 | AK197: =IF(E197="","",VLOOKUP(A197,List!$A$2:$D$186,2,FALSE)) ->  | AL197: =IF(E197="","",VLOOKUP(VALUE(B197),List!$C$2:$D$186,2,FALSE)) ->  | AO197: =IF('2) Raw'!$X185="","",'2) Raw'!X185) -> 
C198: =IF('2) Raw'!E186="","",'2) Raw'!E186) ->  | D198: =IF('2) Raw'!$E186="","",PROPER('2) Raw'!F186)) ->  | E198: =IF('2) Raw'!$E186="","",'2) Raw'!G186) ->  | F198: =IF('2) Raw'!$E186="","",'2) Raw'!H186) ->  | H198: =IF('2) Raw'!$E186="","",'2) Raw'!I186) ->  | I198: =IF('2) Raw'!$E186="","",'2) Raw'!J186) ->  | N198: =IF('2) Raw'!$E186="","",'2) Raw'!K186) ->  | O198: =IF('2) Raw'!$E186="","",'2) Raw'!L186) ->  | R198: =IF('2) Raw'!$E187="","",'2) Raw'!M187) ->  | T198: =IF('2) Raw'!$E186="","",'2) Raw'!O186) ->  | U198: =IF('2) Raw'!$E186="","",'2) Raw'!P186) ->  | X198: =IF('2) Raw'!$E187="","",'2) Raw'!Q187) ->  | Z198: =IF('2) Raw'!$E186="","",'2) Raw'!S186) ->  | AA198: =IF('2) Raw'!$E186="","",'2) Raw'!T186) ->  | AD198: =IF('2) Raw'!$E187="","",'2) Raw'!U187) ->  | AI198: =MIN(IF(AF198:AH198=0,"",AF198:AH198)) -> 0 | AK198: =IF(E198="","",VLOOKUP(A198,List!$A$2:$D$186,2,FALSE)) ->  | AL198: =IF(E198="","",VLOOKUP(VALUE(B198),List!$C$2:$D$186,2,FALSE)) ->  | AO198: =IF('2) Raw'!$X186="","",'2) Raw'!X186) -> 
C199: =IF('2) Raw'!E187="","",'2) Raw'!E187) ->  | D199: =IF('2) Raw'!$E187="","",PROPER('2) Raw'!F187)) ->  | E199: =IF('2) Raw'!$E187="","",'2) Raw'!G187) ->  | F199: =IF('2) Raw'!$E187="","",'2) Raw'!H187) ->  | H199: =IF('2) Raw'!$E187="","",'2) Raw'!I187) ->  | I199: =IF('2) Raw'!$E187="","",'2) Raw'!J187) ->  | N199: =IF('2) Raw'!$E187="","",'2) Raw'!K187) ->  | O199: =IF('2) Raw'!$E187="","",'2) Raw'!L187) ->  | R199: =IF('2) Raw'!$E188="","",'2) Raw'!M188) ->  | T199: =IF('2) Raw'!$E187="","",'2) Raw'!O187) ->  | U199: =IF('2) Raw'!$E187="","",'2) Raw'!P187) ->  | X199: =IF('2) Raw'!$E188="","",'2) Raw'!Q188) ->  | Z199: =IF('2) Raw'!$E187="","",'2) Raw'!S187) ->  | AA199: =IF('2) Raw'!$E187="","",'2) Raw'!T187) ->  | AD199: =IF('2) Raw'!$E188="","",'2) Raw'!U188) ->  | AI199: =MIN(IF(AF199:AH199=0,"",AF199:AH199)) -> 0 | AK199: =IF(E199="","",VLOOKUP(A199,List!$A$2:$D$186,2,FALSE)) ->  | AL199: =IF(E199="","",VLOOKUP(VALUE(B199),List!$C$2:$D$186,2,FALSE)) ->  | AO199: =IF('2) Raw'!$X187="","",'2) Raw'!X187) -> 
C200: =IF('2) Raw'!E188="","",'2) Raw'!E188) ->  | D200: =IF('2) Raw'!$E188="","",PROPER('2) Raw'!F188)) ->  | E200: =IF('2) Raw'!$E188="","",'2) Raw'!G188) ->  | F200: =IF('2) Raw'!$E188="","",'2) Raw'!H188) ->  | H200: =IF('2) Raw'!$E188="","",'2) Raw'!I188) ->  | I200: =IF('2) Raw'!$E188="","",'2) Raw'!J188) ->  | N200: =IF('2) Raw'!$E188="","",'2) Raw'!K188) ->  | O200: =IF('2) Raw'!$E188="","",'2) Raw'!L188) ->  | R200: =IF('2) Raw'!$E189="","",'2) Raw'!M189) ->  | T200: =IF('2) Raw'!$E188="","",'2) Raw'!O188) ->  | U200: =IF('2) Raw'!$E188="","",'2) Raw'!P188) ->  | X200: =IF('2) Raw'!$E189="","",'2) Raw'!Q189) ->  | Z200: =IF('2) Raw'!$E188="","",'2) Raw'!S188) ->  | AA200: =IF('2) Raw'!$E188="","",'2) Raw'!T188) ->  | AD200: =IF('2) Raw'!$E189="","",'2) Raw'!U189) ->  | AI200: =MIN(IF(AF200:AH200=0,"",AF200:AH200)) -> 0 | AK200: =IF(E200="","",VLOOKUP(A200,List!$A$2:$D$186,2,FALSE)) ->  | AL200: =IF(E200="","",VLOOKUP(VALUE(B200),List!$C$2:$D$186,2,FALSE)) ->  | AO200: =IF('2) Raw'!$X188="","",'2) Raw'!X188) -> 
C201: =IF('2) Raw'!E189="","",'2) Raw'!E189) ->  | D201: =IF('2) Raw'!$E189="","",PROPER('2) Raw'!F189)) ->  | E201: =IF('2) Raw'!$E189="","",'2) Raw'!G189) ->  | F201: =IF('2) Raw'!$E189="","",'2) Raw'!H189) ->  | H201: =IF('2) Raw'!$E189="","",'2) Raw'!I189) ->  | I201: =IF('2) Raw'!$E189="","",'2) Raw'!J189) ->  | N201: =IF('2) Raw'!$E189="","",'2) Raw'!K189) ->  | O201: =IF('2) Raw'!$E189="","",'2) Raw'!L189) ->  | R201: =IF('2) Raw'!$E190="","",'2) Raw'!M190) ->  | T201: =IF('2) Raw'!$E189="","",'2) Raw'!O189) ->  | U201: =IF('2) Raw'!$E189="","",'2) Raw'!P189) ->  | X201: =IF('2) Raw'!$E190="","",'2) Raw'!Q190) ->  | Z201: =IF('2) Raw'!$E189="","",'2) Raw'!S189) ->  | AA201: =IF('2) Raw'!$E189="","",'2) Raw'!T189) ->  | AD201: =IF('2) Raw'!$E190="","",'2) Raw'!U190) ->  | AI201: =MIN(IF(AF201:AH201=0,"",AF201:AH201)) -> 0 | AK201: =IF(E201="","",VLOOKUP(A201,List!$A$2:$D$186,2,FALSE)) ->  | AL201: =IF(E201="","",VLOOKUP(VALUE(B201),List!$C$2:$D$186,2,FALSE)) ->  | AO201: =IF('2) Raw'!$X189="","",'2) Raw'!X189) -> 
C202: =IF('2) Raw'!E190="","",'2) Raw'!E190) ->  | D202: =IF('2) Raw'!$E190="","",PROPER('2) Raw'!F190)) ->  | E202: =IF('2) Raw'!$E190="","",'2) Raw'!G190) ->  | F202: =IF('2) Raw'!$E190="","",'2) Raw'!H190) ->  | H202: =IF('2) Raw'!$E190="","",'2) Raw'!I190) ->  | I202: =IF('2) Raw'!$E190="","",'2) Raw'!J190) ->  | N202: =IF('2) Raw'!$E190="","",'2) Raw'!K190) ->  | O202: =IF('2) Raw'!$E190="","",'2) Raw'!L190) ->  | R202: =IF('2) Raw'!$E191="","",'2) Raw'!M191) ->  | T202: =IF('2) Raw'!$E190="","",'2) Raw'!O190) ->  | U202: =IF('2) Raw'!$E190="","",'2) Raw'!P190) ->  | X202: =IF('2) Raw'!$E191="","",'2) Raw'!Q191) ->  | Z202: =IF('2) Raw'!$E190="","",'2) Raw'!S190) ->  | AA202: =IF('2) Raw'!$E190="","",'2) Raw'!T190) ->  | AD202: =IF('2) Raw'!$E191="","",'2) Raw'!U191) ->  | AI202: =MIN(IF(AF202:AH202=0,"",AF202:AH202)) -> 0 | AK202: =IF(E202="","",VLOOKUP(A202,List!$A$2:$D$186,2,FALSE)) ->  | AL202: =IF(E202="","",VLOOKUP(VALUE(B202),List!$C$2:$D$186,2,FALSE)) ->  | AO202: =IF('2) Raw'!$X190="","",'2) Raw'!X190) -> 
... 866 more rows

Sheet 3b) Zeros (hidden)
B1: Main Parameters in All Comparisons (Original, with Zeros) | F1: District
B2: A | C2: ='1) Parameters'!B6 -> Comparison #1: DOT District 4/Low 3 Prices/from:07/07/2010 TO:07/13/2011 Quantity Range from 50.00% under to 100.00% over and job size from $500,000.00 up to $4,000,000.00/Project Prefix: Multiple | F2: ='1) Parameters'!D6 -> L
B3: B | C3: ='1) Parameters'!B7 -> Comparison #2: State Averages/Low 3 Prices/from:07/07/2010 TO:07/13/2011 Quantity Range from 50.00% under to 100.00% over and job size from $500,000.00 up to $4,000,000.00/Project Prefix: Multiple | F3: ='1) Parameters'!D7 -> Statewide
B4: C | C4: ='1) Parameters'!B8 -> Comparison #3: State Averages/Low 3 Prices/from:07/09/2008 TO:07/13/2011 Quantity Range from 50.00% under to 100.00% over and job size from $500,000.00 up to $4,000,000.00 | F4: ='1) Parameters'!D8 -> Statewide
C5: The Data Below is applied only if the 3 steps method is used.
F6: Comparison 1 (A) | I6: Comparison 2 (B) | L6: Comparison 3 (C)
C7: Grand Total | F7: ='3a) Data'!O2 -> 2324128.15 | I7: ='3a) Data'!U2 -> 2379785.37 | L7: ='3a) Data'!AA2 -> 2451560.1
C8: Total $ Amount that were originally Zero items in Each Comparison: | F8: =IF(COUNT(F18:F507)=0,0,SUMPRODUCT($D$18:$D$507,F18:F507)) -> 853719.795 | I8: =IF(COUNT(I18:I507)=0,0,SUM(Q18:Q507)) -> 321460.85 | L8: =IF(COUNT(L18:L507)=0,0,SUM(S18:S507)) -> 0
C9: % of Total $ Amount that were originally Zero items in Each Comparison: | F9: =IF(F8=0,0,F8/'3a) Data'!O2) -> 0.3673290541 | I9: =IF(I8=0,0,I8/'3a) Data'!U2) -> 0.1350797656 | L9: =IF(L8=0,0,L8/'3a) Data'!AA2) -> 0
C11: Total $ Amount Below | F11: =IF(COUNT(F18:F507)=0,0,SUMPRODUCT($D$18:$D$507,F18:F507)) -> 853719.795 | I11: =IF(COUNT(I18:I507)=0,0,SUMPRODUCT($D$18:$D$507,I18:I507)) -> 853719.795 | L11: =IF(COUNT(L18:L507)=0,0,SUMPRODUCT($D$18:$D$507,L18:L507)) -> 903701.96
C12: % of $ in Total Amount Below vs. Total amount per comparison: | F12: =IF(F11=0,0,F11/'3a) Data'!O2) -> 0.3673290541 | I12: =IF(I11=0,0,I11/'3a) Data'!U2) -> 0.3587381475 | L12: =IF(L11=0,0,L11/'3a) Data'!AA2) -> 0.3686232126
C14: # of Zero Items in Each Comparison Below: | F14: =COUNTIF(H18:H508,0) -> 12 | I14: =COUNTIF(K18:K508,0) -> 3 | L14: =COUNTIF(N18:N509,0) -> 0
F16: Comparison 1 (A) | I16: Comparison 2 (B) | L16: Comparison 3 (C)
A17: Sort code | B17: Item Number | C17: Description | D17: Quantity | E17: Unit | F17: Item Price | G17: Total Price | H17: Count 1 | I17: Item Price | J17: Total Price | K17: Count 2 | L17: Item Price | M17: Total Price | N17: Count 3 | O17: Comment | Q17: Comp. 2 Total | R17: Comp. 3 Total
A18: =IF(B18="","",Zeros!A3) -> 11 | B18: =IF(Zeros!B3="","",Zeros!B3) -> 203-02010 | C18: =IF($B18="","",Zeros!C3) -> Excavation, Rock | D18: =IF($B18="","",Zeros!D3) -> 100 | E18: =IF($B18="","",Zeros!E3) -> C.Y. | F18: =IF($B18="","",Zeros!F3) -> 67.33 | G18: =IF(F18="","",F18*D18) -> 6733 | H18: =IF($B18="","",Zeros!G3) -> 0 | I18: =IF($B18="","",Zeros!H3) -> 67.33 | J18: =IF(I18="","",I18*D18) -> 6733 | K18: =IF($B18="","",Zeros!I3) -> 3 | L18: =IF($B18="","",Zeros!J3) -> 96.46 | M18: =IF(L18="","",L18*D18) -> 9646 | N18: =IF($B18="","",Zeros!K3) -> 23 | O18: =IF(B18="","",IF(AND(H18=0,K18<>0,N18<>0),"Price B used in A",IF(AND(H18=0,K18=0,N18<>0),"Price C used in A and B",IF(N18=0,"Single Item Option used","")))) -> Price B used in A | Q18: =IF(K18=0,I18*D18,0) -> 0 | R18: =IF(N18=0,L18*E18,0) -> 0
A19: =IF(B19="","",Zeros!A4) -> 12 | B19: =IF(Zeros!B4="","",Zeros!B4) -> 203-02055 | C19: =IF($B19="","",Zeros!C4) -> Embankment | D19: =IF($B19="","",Zeros!D4) -> 45813 | E19: =IF($B19="","",Zeros!E4) -> C.Y. | F19: =IF($B19="","",Zeros!F4) -> 6.47 | G19: =IF(F19="","",F19*D19) -> 296410.11 | H19: =IF($B19="","",Zeros!G4) -> 0 | I19: =IF($B19="","",Zeros!H4) -> 6.47 | J19: =IF(I19="","",I19*D19) -> 296410.11 | K19: =IF($B19="","",Zeros!I4) -> 0 | L19: =IF($B19="","",Zeros!J4) -> 6.47 | M19: =IF(L19="","",L19*D19) -> 296410.11 | N19: =IF($B19="","",Zeros!K4) -> 6 | O19: =IF(B19="","",IF(AND(H19=0,K19<>0,N19<>0),"Price B used in A",IF(AND(H19=0,K19=0,N19<>0),"Price C used in A and B",IF(N19=0,"Single Item Option used","")))) -> Price C used in A and B | Q19: =IF(K19=0,I19*D19,0) -> 296410.11 | R19: =IF(N19=0,L19*E19,0) -> 0
A20: =IF(B20="","",Zeros!A5) -> 15 | B20: =IF(Zeros!B5="","",Zeros!B5) -> 205-06931 | C20: =IF($B20="","",Zeros!C5) -> Temporary Check Dam, Revetment Riprap | D20: =IF($B20="","",Zeros!D5) -> 152.5 | E20: =IF($B20="","",Zeros!E5) -> TON | F20: =IF($B20="","",Zeros!F5) -> 40.15 | G20: 6122.875 | H20: =IF($B20="","",Zeros!G5) -> 0 | I20: =IF($B20="","",Zeros!H5) -> 40.15 | J20: 6122.875 | K20: =IF($B20="","",Zeros!I5) -> 61 | L20: =IF($B20="","",Zeros!J5) -> 41.46 | M20: 6322.65 | N20: =IF($B20="","",Zeros!K5) -> 241 | O20: Price B used in A | Q20: 0 | R20: 0
A21: =IF(B21="","",Zeros!A6) -> 27 | B21: =IF(Zeros!B6="","",Zeros!B6) -> 603-06040 | C21: =IF($B21="","",Zeros!C6) -> Fence, Farm Field, 47 In | D21: =IF($B21="","",Zeros!D6) -> 2429 | E21: =IF($B21="","",Zeros!E6) -> L.F. | F21: =IF($B21="","",Zeros!F6) -> 5.29 | G21: 12849.41 | H21: =IF($B21="","",Zeros!G6) -> 0 | I21: =IF($B21="","",Zeros!H6) -> 5.29 | J21: 12849.41 | K21: =IF($B21="","",Zeros!I6) -> 6 | L21: =IF($B21="","",Zeros!J6) -> 6.22 | M21: 15108.38 | N21: =IF($B21="","",Zeros!K6) -> 24 | O21: Price B used in A | Q21: 0 | R21: 0
A22: =IF(B22="","",Zeros!A7) -> 45 | B22: =IF(Zeros!B7="","",Zeros!B7) -> 701-01814 | C22: =IF($B22="","",Zeros!C7) -> Mobilization For Dynamic Pile Monitoring And Equipment | D22: =IF($B22="","",Zeros!D7) -> 1 | E22: =IF($B22="","",Zeros!E7) -> EACH | F22: =IF($B22="","",Zeros!F7) -> 1717.41 | G22: 1717.41 | H22: =IF($B22="","",Zeros!G7) -> 0 | I22: =IF($B22="","",Zeros!H7) -> 1717.41 | J22: 1717.41 | K22: =IF($B22="","",Zeros!I7) -> 0 | L22: =IF($B22="","",Zeros!J7) -> 1717.41 | M22: 1717.41 | N22: =IF($B22="","",Zeros!K7) -> 3 | O22: Price C used in A and B | Q22: 1717.41 | R22: 0
A23: =IF(B23="","",Zeros!A8) -> 50 | B23: =IF(Zeros!B8="","",Zeros!B8) -> 701-51195 | C23: =IF($B23="","",Zeros!C8) -> Pile, Steel H, Hp 12 In X 53 | D23: =IF($B23="","",Zeros!D8) -> 468 | E23: =IF($B23="","",Zeros!E8) -> L.F. | F23: =IF($B23="","",Zeros!F8) -> 52.52 | G23: 24579.36 | H23: =IF($B23="","",Zeros!G8) -> 0 | I23: =IF($B23="","",Zeros!H8) -> 52.52 | J23: 24579.36 | K23: =IF($B23="","",Zeros!I8) -> 35 | L23: =IF($B23="","",Zeros!J8) -> 54.21 | M23: 25370.28 | N23: =IF($B23="","",Zeros!K8) -> 103 | O23: Price B used in A | Q23: 0 | R23: 0
A24: =IF(B24="","",Zeros!A9) -> 51 | B24: =IF(Zeros!B9="","",Zeros!B9) -> 701-92043 | C24: =IF($B24="","",Zeros!C9) -> Cored Hole In Rock, 18 In | D24: =IF($B24="","",Zeros!D9) -> 100 | E24: =IF($B24="","",Zeros!E9) -> L.F. | F24: =IF($B24="","",Zeros!F9) -> 224.71 | G24: 22471 | H24: =IF($B24="","",Zeros!G9) -> 0 | I24: =IF($B24="","",Zeros!H9) -> 224.71 | J24: 22471 | K24: =IF($B24="","",Zeros!I9) -> 9 | L24: =IF($B24="","",Zeros!J9) -> 281.15 | M24: 28115 | N24: =IF($B24="","",Zeros!K9) -> 21 | O24: Price B used in A | Q24: 0 | R24: 0
A25: =IF(B25="","",Zeros!A10) -> 52 | B25: =IF(Zeros!B10="","",Zeros!B10) -> 702-05533 | C25: =IF($B25="","",Zeros!C10) -> Grates, Basins, And Fittings, Cast Iron | D25: =IF($B25="","",Zeros!D10) -> 1 | E25: =IF($B25="","",Zeros!E10) -> L.S. | F25: =IF($B25="","",Zeros!F10) -> 23333.33 | G25: 23333.33 | H25: =IF($B25="","",Zeros!G10) -> 0 | I25: =IF($B25="","",Zeros!H10) -> 23333.33 | J25: 23333.33 | K25: =IF($B25="","",Zeros!I10) -> 0 | L25: =IF($B25="","",Zeros!J10) -> 23333.33 | M25: 23333.33 | N25: =IF($B25="","",Zeros!K10) -> 6 | O25: Price C used in A and B | Q25: 23333.33 | R25: 0
A26: =IF(B26="","",Zeros!A11) -> 60 | B26: =IF(Zeros!B11="","",Zeros!B11) -> 707-09865 | C26: =IF($B26="","",Zeros!C11) -> Structural Member, Concrete Bulb-T Beam, 36 In X 49 In | D26: =IF($B26="","",Zeros!D11) -> 1905 | E26: =IF($B26="","",Zeros!E11) -> L.F. | F26: =IF($B26="","",Zeros!F11) -> 230.32 | G26: 438759.6 | H26: =IF($B26="","",Zeros!G11) -> 0 | I26: =IF($B26="","",Zeros!H11) -> 230.32 | J26: 438759.6 | K26: =IF($B26="","",Zeros!I11) -> 12 | L26: =IF($B26="","",Zeros!J11) -> 248.64 | M26: 473659.2 | N26: =IF($B26="","",Zeros!K11) -> 15 | O26: Price B used in A | Q26: 0 | R26: 0
A27: =IF(B27="","",Zeros!A12) -> 62 | B27: =IF(Zeros!B12="","",Zeros!B12) -> 711-51070 | C27: =IF($B27="","",Zeros!C12) -> Anchor Plate, Ap 1 | D27: =IF($B27="","",Zeros!D12) -> 20 | E27: =IF($B27="","",Zeros!E12) -> EACH | F27: =IF($B27="","",Zeros!F12) -> 90.16 | G27: 1803.2 | H27: =IF($B27="","",Zeros!G12) -> 0 | I27: =IF($B27="","",Zeros!H12) -> 90.16 | J27: 1803.2 | K27: =IF($B27="","",Zeros!I12) -> 12 | L27: =IF($B27="","",Zeros!J12) -> 109.03 | M27: 2180.6 | N27: =IF($B27="","",Zeros!K12) -> 54 | O27: Price B used in A | Q27: 0 | R27: 0
A28: =IF(B28="","",Zeros!A13) -> 66 | B28: =IF(Zeros!B13="","",Zeros!B13) -> 715-05244 | C28: =IF($B28="","",Zeros!C13) -> Pipe, Type 1 Deformed Min Area 11.6 Sf | D28: =IF($B28="","",Zeros!D13) -> 50 | E28: =IF($B28="","",Zeros!E13) -> L.F. | F28: =IF($B28="","",Zeros!F13) -> 114.83 | G28: 5741.5 | H28: =IF($B28="","",Zeros!G13) -> 0 | I28: =IF($B28="","",Zeros!H13) -> 114.83 | J28: 5741.5 | K28: =IF($B28="","",Zeros!I13) -> 3 | L28: =IF($B28="","",Zeros!J13) -> 135.13 | M28: 6756.5 | N28: =IF($B28="","",Zeros!K13) -> 6 | O28: Price B used in A | Q28: 0 | R28: 0
A29: =IF(B29="","",Zeros!A14) -> 63 | B29: =IF(Zeros!B14="","",Zeros!B14) -> 714-11081 | C29: =IF($B29="","",Zeros!C14) -> Structure, Precast, Rc, Box Section 7Ft X 3Ft | D29: =IF($B29="","",Zeros!D14) -> 50 | E29: =IF($B29="","",Zeros!E14) -> L.F. | F29: =IF($B29="","",Zeros!F14) -> 263.98 | G29: 13199 | H29: =IF($B29="","",Zeros!G14) -> 0 | I29: =IF($B29="","",Zeros!H14) -> 263.98 | J29: 13199 | K29: =IF($B29="","",Zeros!I14) -> 6 | L29: =IF($B29="","",Zeros!J14) -> 301.65 | M29: 15082.5 | N29: =IF($B29="","",Zeros!K14) -> 12 | O29: Price B used in A | Q29: 0 | R29: 0
A30: =IF(B30="","",Zeros!A15) ->  | B30: =IF(Zeros!B15="","",Zeros!B15) ->  | C30: =IF($B30="","",Zeros!C15) ->  | D30: =IF($B30="","",Zeros!D15) ->  | E30: =IF($B30="","",Zeros!E15) ->  | F30: =IF($B30="","",Zeros!F15) ->  | H30: =IF($B30="","",Zeros!G15) ->  | I30: =IF($B30="","",Zeros!H15) ->  | K30: =IF($B30="","",Zeros!I15) ->  | L30: =IF($B30="","",Zeros!J15) ->  | N30: =IF($B30="","",Zeros!K15) ->  | Q30: 0 | R30: 0
A31: =IF(B31="","",Zeros!A16) ->  | B31: =IF(Zeros!B16="","",Zeros!B16) ->  | C31: =IF($B31="","",Zeros!C16) ->  | D31: =IF($B31="","",Zeros!D16) ->  | E31: =IF($B31="","",Zeros!E16) ->  | F31: =IF($B31="","",Zeros!F16) ->  | H31: =IF($B31="","",Zeros!G16) ->  | I31: =IF($B31="","",Zeros!H16) ->  | K31: =IF($B31="","",Zeros!I16) ->  | L31: =IF($B31="","",Zeros!J16) ->  | N31: =IF($B31="","",Zeros!K16) ->  | Q31: 0 | R31: 0
A32: =IF(B32="","",Zeros!A17) ->  | B32: =IF(Zeros!B17="","",Zeros!B17) ->  | C32: =IF($B32="","",Zeros!C17) ->  | D32: =IF($B32="","",Zeros!D17) ->  | E32: =IF($B32="","",Zeros!E17) ->  | F32: =IF($B32="","",Zeros!F17) ->  | H32: =IF($B32="","",Zeros!G17) ->  | I32: =IF($B32="","",Zeros!H17) ->  | K32: =IF($B32="","",Zeros!I17) ->  | L32: =IF($B32="","",Zeros!J17) ->  | N32: =IF($B32="","",Zeros!K17) ->  | Q32: 0 | R32: 0
A33: =IF(B33="","",Zeros!A18) ->  | B33: =IF(Zeros!B18="","",Zeros!B18) ->  | C33: =IF($B33="","",Zeros!C18) ->  | D33: =IF($B33="","",Zeros!D18) ->  | E33: =IF($B33="","",Zeros!E18) ->  | F33: =IF($B33="","",Zeros!F18) ->  | H33: =IF($B33="","",Zeros!G18) ->  | I33: =IF($B33="","",Zeros!H18) ->  | K33: =IF($B33="","",Zeros!I18) ->  | L33: =IF($B33="","",Zeros!J18) ->  | N33: =IF($B33="","",Zeros!K18) ->  | Q33: 0 | R33: 0
A34: =IF(B34="","",Zeros!A19) ->  | B34: =IF(Zeros!B19="","",Zeros!B19) ->  | C34: =IF($B34="","",Zeros!C19) ->  | D34: =IF($B34="","",Zeros!D19) ->  | E34: =IF($B34="","",Zeros!E19) ->  | F34: =IF($B34="","",Zeros!F19) ->  | H34: =IF($B34="","",Zeros!G19) ->  | I34: =IF($B34="","",Zeros!H19) ->  | K34: =IF($B34="","",Zeros!I19) ->  | L34: =IF($B34="","",Zeros!J19) ->  | N34: =IF($B34="","",Zeros!K19) ->  | Q34: 0 | R34: 0
A35: =IF(B35="","",Zeros!A20) ->  | B35: =IF(Zeros!B20="","",Zeros!B20) ->  | C35: =IF($B35="","",Zeros!C20) ->  | D35: =IF($B35="","",Zeros!D20) ->  | E35: =IF($B35="","",Zeros!E20) ->  | F35: =IF($B35="","",Zeros!F20) ->  | H35: =IF($B35="","",Zeros!G20) ->  | I35: =IF($B35="","",Zeros!H20) ->  | K35: =IF($B35="","",Zeros!I20) ->  | L35: =IF($B35="","",Zeros!J20) ->  | N35: =IF($B35="","",Zeros!K20) ->  | Q35: 0 | R35: 0
